Workbook

Sheet Control
A1: Sheets | B1: Text File Names | C1: Description | E1: Notes: 50 sheets maximum
A2: P_Ex_SW004 | B2: NonDeg\P_Exceed_SW004_Output.txt | C2: Fraction of realizations exceeding standards in the Partridge River at SW-004 | E2: Referenced text files must be in same root folder as this spreadsheet
A3: P_Ex_SW004a | B3: NonDeg\P_Exceed_SW004a_Output.txt | C3: Fraction of realizations exceeding standards in the Partridge River at SW-004a
A4: P_Ex_SW005 | B4: NonDeg\P_Exceed_SW005_Output.txt | C4: Fraction of realizations exceeding standards in the Partridge River at SW-005
A5: P_Ex_Colby | B5: NonDeg\P_Exceed_Colby_Output.txt | C5: Fraction of realizations exceeding standards in the Partridge River at Colby Lake
A6: P_notNA_SW004 | B6: NonDeg\P_notNA_Exceed_SW004_Output.txt | C6: Fraction of realizations exceeding standards in the Partridge River at SW-004 when the no-action model did not exceed
A7: P_notNA_SW004a | B7: NonDeg\P_notNA_Exceed_SW004a_Output.txt | C7: Fraction of realizations exceeding standards in the Partridge River at SW-004a when the no-action model did not exceed
A8: P_notNA_SW005 | B8: NonDeg\P_notNA_Exceed_SW005_Output.txt | C8: Fraction of realizations exceeding standards in the Partridge River at SW-005 when the no-action model did not exceed | F8: Run Time Min: | G8: =MIN(P_Ex_SW004!B5,P_Ex_SW004a!B5,P_Ex_Colby!B5,P_notNA_SW004a!B5,P_notNA_SW004!B5,P_notNA_Colby!B5,AssimCap_SW004!B5,AssimCap_SW004a!B5,AssimCap_Colby!B5) -> 2014-12-15T22:56:18
A9: P_notNA_Colby | B9: NonDeg\P_notNA_Exceed_Colby_Output.txt | C9: Fraction of realizations exceeding standards in the Partridge River at Colby Lake when the no-action model did not exceed | F9: Run Time Max: | G9: =MAX(P_Ex_SW004!B5,P_Ex_SW004a!B5,P_Ex_Colby!B5,P_notNA_SW004a!B5,P_notNA_SW004!B5,P_notNA_Colby!B5,AssimCap_SW004!B5,AssimCap_SW004a!B5,AssimCap_Colby!B5) -> 2014-12-15T22:56:18
A10: AssimCap_SW004 | B10: NonDeg\AssimCap_SW004_Output.txt | C10: Assimilative capacity used by the project at SW-004
A11: AssimCap_SW004a | B11: NonDeg\AssimCap_SW004a_Output.txt | C11: Assimilative capacity used by the project at SW-004a
A12: AssimCap_SW005 | B12: NonDeg\AssimCap_SW005_Output.txt | C12: Assimilative capacity used by the project at SW-005
A13: AssimCap_Colby | B13: NonDeg\AssimCap_Colby_Output.txt | C13: Assimilative capacity used by the project at Colby Lake

Sheet PlotControl
A2: Model Name: | B2: Mine Site Version 6.0 | C2: =B2 & " Model " & IF(B4="Annual Max", "Annual Maximum", B4) & " of the Exceedance Probability " & B6 & " in " & IF(B8=A19,B8," the Partridge River at " & B8) -> Mine Site Version 6.0 Model Annual Maximum of the Exceedance Probability SO4 in the Partridge River at SW005
C3: =B2 & " Model " & IF(B4="Annual Max", "Annual Maximum", B4) & " of 'Assimilative Capacity Used' Statistics " & B6 & " in " & IF(B8=A19,B8," the Partridge River at " & B8) -> Mine Site Version 6.0 Model Annual Maximum of 'Assimilative Capacity Used' Statistics SO4 in the Partridge River at SW005 | AH3: 0 | AI3: 20 | AJ3: 55
A4: Plot: | B4: Annual Max | C4: =B2 & " Model Monthly 'Assimilative Capacity Used' Statistics " & B6 & " in " & IF(B8=A19,B8," the Partridge River at " & B8) -> Mine Site Version 6.0 Model Monthly 'Assimilative Capacity Used' Statistics SO4 in the Partridge River at SW005 | V4: Directory to save PDFs to: | W4: C:\Users\jem4\Desktop\temp | AH4: 1 | AI4: 20 | AJ4: 55
C5: =B2 & " Model Monthly Exceedance Probability " & B6 & " in " & IF(B8=A19,B8," the Partridge River at " & B8) -> Mine Site Version 6.0 Model Monthly Exceedance Probability SO4 in the Partridge River at SW005 | V5: Starting figure caption | W5: Figure L-05-28.2
A6: Constituent to Plot (dropdown): | B6: SO4 | C6: =MATCH(B6,$A$39:$A$66,0) -> 24
V7: NOTE: This loops through plot, location, and constituent drop down menus for the annual exceedance probability plot and the annual assimilative capacity plot.
A8: Location to Plot (dropdown): | B8: SW005 | C8: =MATCH(B8,$A$15:$A$19,0) -> 4
A10: Initial Time for Monthly Plot (yr): | B10: 120
B11: =B10+20 -> 140
A14: Locations | B14: Number | D14: SAVE UPPER-LEFT PLOT ONLY
A15: SW003 | B15: 1
A16: SW004 | B16: 2
A17: SW004a | B17: 3
A18: SW005 | B18: 4
A19: Colby Lake | B19: 5
A21: Plot
A22: Annual Max
A23: Annual Average
I37: Annual Project Results | P37: Monthly Project Results | S37: Monthly Results
A38: Constituent | B38: Partridge Standard (ug/L) | C38: Colby Standard (ug/L) | D38: Hardness Based "A" | E38: Hardness Based "B" | F38: Hardness Based at 100 mg/L hardness (ug/L) | H38: Time | I38: % Exceeding in Project Model | J38: % Exceeding in Project Model when No Action Model does not Exceed | K38: % Assim. Cap. Used P10 | L38: % Assim. Cap. Used P50 | M38: % Assim. Cap. Used P90 | O38: Time | P38: % Assim. Cap. Used P10 | Q38: % Assim. Cap. Used P50 | R38: % Assim. Cap. Used P90 | S38: % Exceeding in Project Model | T38: % Exceeding in Project Model when Cont. Exist. Cond. Scenario does not Exceed
A39: Ag | B39: 1 | C39: 1 | F39: =EXP(D39*LN(100)+E39) ->  | O39: =B10 -> 120 | P39: =VLOOKUP($O39,P_All!$AF$5:$AU$244,3*($C$8-1)+2) -> 0.013567 | Q39: =VLOOKUP($O39,P_All!$AF$5:$AU$244,3*($C$8-1)+3) -> 0.038671 | R39: =VLOOKUP($O39,P_All!$AF$5:$AU$244,3*($C$8-1)+4) -> 1 | S39: =VLOOKUP($O39,P_All!$AW$5:$BG$244,($C$8-1)+2) -> 0.202 | T39: =VLOOKUP($O39,P_All!$AW$5:$BG$244,($C$8-1)+7) -> 0.006
A40: Al | B40: 125 | C40: 125 | F40: =EXP(D40*LN(100)+E40) ->  | H40: 1 | I40: =VLOOKUP($H40,P_All!$A$5:$F$204,($C$8-1)+2) -> 1 | J40: =VLOOKUP($H40,P_All!$H$5:$M$204,($C$8-1)+2) -> 0 | K40: =VLOOKUP($H40,P_All!$O$5:$AD$204,3*($C$8-1)+2) -> 1 | L40: =VLOOKUP($H40,P_All!$O$5:$AD$204,3*($C$8-1)+3) -> 1 | M40: =VLOOKUP($H40,P_All!$O$5:$AD$204,3*($C$8-1)+4) -> 1 | O40: =O39+1/12 -> 120.0833333 | P40: =VLOOKUP($O40,P_All!$AF$5:$AU$244,3*($C$8-1)+2) -> 0.023074 | Q40: =VLOOKUP($O40,P_All!$AF$5:$AU$244,3*($C$8-1)+3) -> 0.067451 | R40: =VLOOKUP($O40,P_All!$AF$5:$AU$244,3*($C$8-1)+4) -> 1 | S40: =VLOOKUP($O40,P_All!$AW$5:$BG$244,($C$8-1)+2) -> 0.198 | T40: =VLOOKUP($O40,P_All!$AW$5:$BG$244,($C$8-1)+7) -> 0.002
A41: Alkalinity | H41: 2 | I41: =VLOOKUP($H41,P_All!$A$5:$F$204,($C$8-1)+2) -> 0.946 | J41: =VLOOKUP($H41,P_All!$H$5:$M$204,($C$8-1)+2) -> 0.004 | K41: =VLOOKUP($H41,P_All!$O$5:$AD$204,3*($C$8-1)+2) -> 1 | L41: =VLOOKUP($H41,P_All!$O$5:$AD$204,3*($C$8-1)+3) -> 1 | M41: =VLOOKUP($H41,P_All!$O$5:$AD$204,3*($C$8-1)+4) -> 1 | O41: =O40+1/12 -> 120.1666667 | P41: =VLOOKUP($O41,P_All!$AF$5:$AU$244,3*($C$8-1)+2) -> 0.016821 | Q41: =VLOOKUP($O41,P_All!$AF$5:$AU$244,3*($C$8-1)+3) -> 0.099279 | R41: =VLOOKUP($O41,P_All!$AF$5:$AU$244,3*($C$8-1)+4) -> 1 | S41: =VLOOKUP($O41,P_All!$AW$5:$BG$244,($C$8-1)+2) -> 0.174 | T41: =VLOOKUP($O41,P_All!$AW$5:$BG$244,($C$8-1)+7) -> 0.008
A42: As | B42: 53 | C42: 2 | H42: 3 | I42: =VLOOKUP($H42,P_All!$A$5:$F$204,($C$8-1)+2) -> 0.96 | J42: =VLOOKUP($H42,P_All!$H$5:$M$204,($C$8-1)+2) -> 0.004 | K42: =VLOOKUP($H42,P_All!$O$5:$AD$204,3*($C$8-1)+2) -> 1 | L42: =VLOOKUP($H42,P_All!$O$5:$AD$204,3*($C$8-1)+3) -> 1 | M42: =VLOOKUP($H42,P_All!$O$5:$AD$204,3*($C$8-1)+4) -> 1 | O42: 120.25 | P42: =VLOOKUP($O42,P_All!$AF$5:$AU$244,3*($C$8-1)+2) -> 0.0038443 | Q42: =VLOOKUP($O42,P_All!$AF$5:$AU$244,3*($C$8-1)+3) -> 0.0995 | R42: =VLOOKUP($O42,P_All!$AF$5:$AU$244,3*($C$8-1)+4) -> 1 | S42: =VLOOKUP($O42,P_All!$AW$5:$BG$244,($C$8-1)+2) -> 0.162 | T42: =VLOOKUP($O42,P_All!$AW$5:$BG$244,($C$8-1)+7) -> 0.002
A43: B | B43: 500 | C43: 500 | H43: 4 | I43: =VLOOKUP($H43,P_All!$A$5:$F$204,($C$8-1)+2) -> 0.964 | J43: =VLOOKUP($H43,P_All!$H$5:$M$204,($C$8-1)+2) -> 0.006 | K43: =VLOOKUP($H43,P_All!$O$5:$AD$204,3*($C$8-1)+2) -> 1 | L43: =VLOOKUP($H43,P_All!$O$5:$AD$204,3*($C$8-1)+3) -> 1 | M43: =VLOOKUP($H43,P_All!$O$5:$AD$204,3*($C$8-1)+4) -> 1 | O43: 120.3333333 | P43: =VLOOKUP($O43,P_All!$AF$5:$AU$244,3*($C$8-1)+2) -> 0.0011278 | Q43: =VLOOKUP($O43,P_All!$AF$5:$AU$244,3*($C$8-1)+3) -> 0.0085087 | R43: =VLOOKUP($O43,P_All!$AF$5:$AU$244,3*($C$8-1)+4) -> 1 | S43: =VLOOKUP($O43,P_All!$AW$5:$BG$244,($C$8-1)+2) -> 0.234 | T43: =VLOOKUP($O43,P_All!$AW$5:$BG$244,($C$8-1)+7) -> 0
A44: Ba | C44: 2000 | H44: 5 | I44: =VLOOKUP($H44,P_All!$A$5:$F$204,($C$8-1)+2) -> 0.966 | J44: =VLOOKUP($H44,P_All!$H$5:$M$204,($C$8-1)+2) -> 0.004 | K44: =VLOOKUP($H44,P_All!$O$5:$AD$204,3*($C$8-1)+2) -> 1 | L44: =VLOOKUP($H44,P_All!$O$5:$AD$204,3*($C$8-1)+3) -> 1 | M44: =VLOOKUP($H44,P_All!$O$5:$AD$204,3*($C$8-1)+4) -> 1 | O44: 120.4166667 | P44: =VLOOKUP($O44,P_All!$AF$5:$AU$244,3*($C$8-1)+2) -> 0.0014206 | Q44: =VLOOKUP($O44,P_All!$AF$5:$AU$244,3*($C$8-1)+3) -> 0.0079376 | R44: =VLOOKUP($O44,P_All!$AF$5:$AU$244,3*($C$8-1)+4) -> 1 | S44: =VLOOKUP($O44,P_All!$AW$5:$BG$244,($C$8-1)+2) -> 0.26 | T44: =VLOOKUP($O44,P_All!$AW$5:$BG$244,($C$8-1)+7) -> 0
A45: Be | C45: 4 | H45: 6 | I45: =VLOOKUP($H45,P_All!$A$5:$F$204,($C$8-1)+2) -> 0.93 | J45: =VLOOKUP($H45,P_All!$H$5:$M$204,($C$8-1)+2) -> 0.002 | K45: =VLOOKUP($H45,P_All!$O$5:$AD$204,3*($C$8-1)+2) -> 1 | L45: =VLOOKUP($H45,P_All!$O$5:$AD$204,3*($C$8-1)+3) -> 1 | M45: =VLOOKUP($H45,P_All!$O$5:$AD$204,3*($C$8-1)+4) -> 1 | O45: 120.5 | P45: =VLOOKUP($O45,P_All!$AF$5:$AU$244,3*($C$8-1)+2) -> 0.0028034 | Q45: =VLOOKUP($O45,P_All!$AF$5:$AU$244,3*($C$8-1)+3) -> 0.012531 | R45: =VLOOKUP($O45,P_All!$AF$5:$AU$244,3*($C$8-1)+4) -> 1 | S45: =VLOOKUP($O45,P_All!$AW$5:$BG$244,($C$8-1)+2) -> 0.228 | T45: =VLOOKUP($O45,P_All!$AW$5:$BG$244,($C$8-1)+7) -> 0
A46: Ca | H46: 7 | I46: =VLOOKUP($H46,P_All!$A$5:$F$204,($C$8-1)+2) -> 0.964 | J46: =VLOOKUP($H46,P_All!$H$5:$M$204,($C$8-1)+2) -> 0.004 | K46: =VLOOKUP($H46,P_All!$O$5:$AD$204,3*($C$8-1)+2) -> 1 | L46: =VLOOKUP($H46,P_All!$O$5:$AD$204,3*($C$8-1)+3) -> 1 | M46: =VLOOKUP($H46,P_All!$O$5:$AD$204,3*($C$8-1)+4) -> 1 | O46: 120.5833333 | P46: =VLOOKUP($O46,P_All!$AF$5:$AU$244,3*($C$8-1)+2) -> 0.0012643 | Q46: =VLOOKUP($O46,P_All!$AF$5:$AU$244,3*($C$8-1)+3) -> 0.020805 | R46: =VLOOKUP($O46,P_All!$AF$5:$AU$244,3*($C$8-1)+4) -> 1 | S46: =VLOOKUP($O46,P_All!$AW$5:$BG$244,($C$8-1)+2) -> 0.224 | T46: =VLOOKUP($O46,P_All!$AW$5:$BG$244,($C$8-1)+7) -> 0
A47: Cd | C47: 5 | D47: 0.7852 | E47: -2.715 | F47: 2.462013793 | H47: 8 | I47: =VLOOKUP($H47,P_All!$A$5:$F$204,($C$8-1)+2) -> 0.964 | J47: =VLOOKUP($H47,P_All!$H$5:$M$204,($C$8-1)+2) -> 0.008 | K47: =VLOOKUP($H47,P_All!$O$5:$AD$204,3*($C$8-1)+2) -> 1 | L47: =VLOOKUP($H47,P_All!$O$5:$AD$204,3*($C$8-1)+3) -> 1 | M47: =VLOOKUP($H47,P_All!$O$5:$AD$204,3*($C$8-1)+4) -> 1 | O47: 120.6666667 | P47: =VLOOKUP($O47,P_All!$AF$5:$AU$244,3*($C$8-1)+2) -> 0.002277 | Q47: =VLOOKUP($O47,P_All!$AF$5:$AU$244,3*($C$8-1)+3) -> 0.02169 | R47: =VLOOKUP($O47,P_All!$AF$5:$AU$244,3*($C$8-1)+4) -> 1 | S47: =VLOOKUP($O47,P_All!$AW$5:$BG$244,($C$8-1)+2) -> 0.204 | T47: =VLOOKUP($O47,P_All!$AW$5:$BG$244,($C$8-1)+7) -> 0
A48: Cl | B48: 230000 | C48: 230000 | H48: 9 | I48: =VLOOKUP($H48,P_All!$A$5:$F$204,($C$8-1)+2) -> 0.95 | J48: =VLOOKUP($H48,P_All!$H$5:$M$204,($C$8-1)+2) -> 0.004 | K48: =VLOOKUP($H48,P_All!$O$5:$AD$204,3*($C$8-1)+2) -> 1 | L48: =VLOOKUP($H48,P_All!$O$5:$AD$204,3*($C$8-1)+3) -> 1 | M48: =VLOOKUP($H48,P_All!$O$5:$AD$204,3*($C$8-1)+4) -> 1 | O48: 120.75 | P48: =VLOOKUP($O48,P_All!$AF$5:$AU$244,3*($C$8-1)+2) -> 0.0036862 | Q48: =VLOOKUP($O48,P_All!$AF$5:$AU$244,3*($C$8-1)+3) -> 0.015115 | R48: =VLOOKUP($O48,P_All!$AF$5:$AU$244,3*($C$8-1)+4) -> 1 | S48: =VLOOKUP($O48,P_All!$AW$5:$BG$244,($C$8-1)+2) -> 0.172 | T48: =VLOOKUP($O48,P_All!$AW$5:$BG$244,($C$8-1)+7) -> 0
A49: Co | B49: 5 | C49: 2.8 | H49: 10 | I49: =VLOOKUP($H49,P_All!$A$5:$F$204,($C$8-1)+2) -> 0.95 | J49: =VLOOKUP($H49,P_All!$H$5:$M$204,($C$8-1)+2) -> 0.004 | K49: =VLOOKUP($H49,P_All!$O$5:$AD$204,3*($C$8-1)+2) -> 1 | L49: =VLOOKUP($H49,P_All!$O$5:$AD$204,3*($C$8-1)+3) -> 1 | M49: =VLOOKUP($H49,P_All!$O$5:$AD$204,3*($C$8-1)+4) -> 1 | O49: 120.8333333 | P49: =VLOOKUP($O49,P_All!$AF$5:$AU$244,3*($C$8-1)+2) -> 0.0022948 | Q49: =VLOOKUP($O49,P_All!$AF$5:$AU$244,3*($C$8-1)+3) -> 0.014571 | R49: =VLOOKUP($O49,P_All!$AF$5:$AU$244,3*($C$8-1)+4) -> 1 | S49: =VLOOKUP($O49,P_All!$AW$5:$BG$244,($C$8-1)+2) -> 0.234 | T49: =VLOOKUP($O49,P_All!$AW$5:$BG$244,($C$8-1)+7) -> 0.002
A50: Cr | B50: 11 | C50: 11 | H50: 11 | I50: =VLOOKUP($H50,P_All!$A$5:$F$204,($C$8-1)+2) -> 0.958 | J50: =VLOOKUP($H50,P_All!$H$5:$M$204,($C$8-1)+2) -> 0.006 | K50: =VLOOKUP($H50,P_All!$O$5:$AD$204,3*($C$8-1)+2) -> 1 | L50: =VLOOKUP($H50,P_All!$O$5:$AD$204,3*($C$8-1)+3) -> 1 | M50: =VLOOKUP($H50,P_All!$O$5:$AD$204,3*($C$8-1)+4) -> 1 | O50: 120.9166667 | P50: =VLOOKUP($O50,P_All!$AF$5:$AU$244,3*($C$8-1)+2) -> 0.0048299 | Q50: =VLOOKUP($O50,P_All!$AF$5:$AU$244,3*($C$8-1)+3) -> 0.020989 | R50: =VLOOKUP($O50,P_All!$AF$5:$AU$244,3*($C$8-1)+4) -> 1 | S50: =VLOOKUP($O50,P_All!$AW$5:$BG$244,($C$8-1)+2) -> 0.206 | T50: =VLOOKUP($O50,P_All!$AW$5:$BG$244,($C$8-1)+7) -> 0
A51: Cu | D51: 0.8545 | E51: -1.702 | F51: 9.328907606 | H51: 12 | I51: =VLOOKUP($H51,P_All!$A$5:$F$204,($C$8-1)+2) -> 0.946 | J51: =VLOOKUP($H51,P_All!$H$5:$M$204,($C$8-1)+2) -> 0.008 | K51: =VLOOKUP($H51,P_All!$O$5:$AD$204,3*($C$8-1)+2) -> 1 | L51: =VLOOKUP($H51,P_All!$O$5:$AD$204,3*($C$8-1)+3) -> 1 | M51: =VLOOKUP($H51,P_All!$O$5:$AD$204,3*($C$8-1)+4) -> 1 | O51: 121 | P51: =VLOOKUP($O51,P_All!$AF$5:$AU$244,3*($C$8-1)+2) -> 0.013829 | Q51: =VLOOKUP($O51,P_All!$AF$5:$AU$244,3*($C$8-1)+3) -> 0.040486 | R51: =VLOOKUP($O51,P_All!$AF$5:$AU$244,3*($C$8-1)+4) -> 1 | S51: =VLOOKUP($O51,P_All!$AW$5:$BG$244,($C$8-1)+2) -> 0.2 | T51: =VLOOKUP($O51,P_All!$AW$5:$BG$244,($C$8-1)+7) -> 0.004
A52: F | C52: 4000 | H52: 13 | I52: =VLOOKUP($H52,P_All!$A$5:$F$204,($C$8-1)+2) -> 0.95 | J52: =VLOOKUP($H52,P_All!$H$5:$M$204,($C$8-1)+2) -> 0.004 | K52: =VLOOKUP($H52,P_All!$O$5:$AD$204,3*($C$8-1)+2) -> 1 | L52: =VLOOKUP($H52,P_All!$O$5:$AD$204,3*($C$8-1)+3) -> 1 | M52: =VLOOKUP($H52,P_All!$O$5:$AD$204,3*($C$8-1)+4) -> 1 | O52: 121.0833333 | P52: =VLOOKUP($O52,P_All!$AF$5:$AU$244,3*($C$8-1)+2) -> 0.022521 | Q52: =VLOOKUP($O52,P_All!$AF$5:$AU$244,3*($C$8-1)+3) -> 0.071617 | R52: =VLOOKUP($O52,P_All!$AF$5:$AU$244,3*($C$8-1)+4) -> 1 | S52: =VLOOKUP($O52,P_All!$AW$5:$BG$244,($C$8-1)+2) -> 0.176 | T52: =VLOOKUP($O52,P_All!$AW$5:$BG$244,($C$8-1)+7) -> 0
A53: Fe | C53: 300 | H53: 14 | I53: =VLOOKUP($H53,P_All!$A$5:$F$204,($C$8-1)+2) -> 0.97 | J53: =VLOOKUP($H53,P_All!$H$5:$M$204,($C$8-1)+2) -> 0.004 | K53: =VLOOKUP($H53,P_All!$O$5:$AD$204,3*($C$8-1)+2) -> 1 | L53: =VLOOKUP($H53,P_All!$O$5:$AD$204,3*($C$8-1)+3) -> 1 | M53: =VLOOKUP($H53,P_All!$O$5:$AD$204,3*($C$8-1)+4) -> 1 | O53: 121.1666667 | P53: =VLOOKUP($O53,P_All!$AF$5:$AU$244,3*($C$8-1)+2) -> 0.024121 | Q53: =VLOOKUP($O53,P_All!$AF$5:$AU$244,3*($C$8-1)+3) -> 0.10082 | R53: =VLOOKUP($O53,P_All!$AF$5:$AU$244,3*($C$8-1)+4) -> 1 | S53: =VLOOKUP($O53,P_All!$AW$5:$BG$244,($C$8-1)+2) -> 0.15 | T53: =VLOOKUP($O53,P_All!$AW$5:$BG$244,($C$8-1)+7) -> 0
A54: K | H54: 15 | I54: =VLOOKUP($H54,P_All!$A$5:$F$204,($C$8-1)+2) -> 0.954 | J54: =VLOOKUP($H54,P_All!$H$5:$M$204,($C$8-1)+2) -> 0.004 | K54: =VLOOKUP($H54,P_All!$O$5:$AD$204,3*($C$8-1)+2) -> 1 | L54: =VLOOKUP($H54,P_All!$O$5:$AD$204,3*($C$8-1)+3) -> 1 | M54: =VLOOKUP($H54,P_All!$O$5:$AD$204,3*($C$8-1)+4) -> 1 | O54: 121.25 | P54: =VLOOKUP($O54,P_All!$AF$5:$AU$244,3*($C$8-1)+2) -> 0.0049127 | Q54: =VLOOKUP($O54,P_All!$AF$5:$AU$244,3*($C$8-1)+3) -> 0.097164 | R54: =VLOOKUP($O54,P_All!$AF$5:$AU$244,3*($C$8-1)+4) -> 1 | S54: =VLOOKUP($O54,P_All!$AW$5:$BG$244,($C$8-1)+2) -> 0.142 | T54: =VLOOKUP($O54,P_All!$AW$5:$BG$244,($C$8-1)+7) -> 0.004
A55: Mg | H55: 16 | I55: =VLOOKUP($H55,P_All!$A$5:$F$204,($C$8-1)+2) -> 0.944 | J55: =VLOOKUP($H55,P_All!$H$5:$M$204,($C$8-1)+2) -> 0.006 | K55: =VLOOKUP($H55,P_All!$O$5:$AD$204,3*($C$8-1)+2) -> 1 | L55: =VLOOKUP($H55,P_All!$O$5:$AD$204,3*($C$8-1)+3) -> 1 | M55: =VLOOKUP($H55,P_All!$O$5:$AD$204,3*($C$8-1)+4) -> 1 | O55: 121.3333333 | P55: =VLOOKUP($O55,P_All!$AF$5:$AU$244,3*($C$8-1)+2) -> 0.0013105 | Q55: =VLOOKUP($O55,P_All!$AF$5:$AU$244,3*($C$8-1)+3) -> 0.0073438 | R55: =VLOOKUP($O55,P_All!$AF$5:$AU$244,3*($C$8-1)+4) -> 1 | S55: =VLOOKUP($O55,P_All!$AW$5:$BG$244,($C$8-1)+2) -> 0.24 | T55: =VLOOKUP($O55,P_All!$AW$5:$BG$244,($C$8-1)+7) -> 0
A56: Mn | C56: 50 | H56: 17 | I56: =VLOOKUP($H56,P_All!$A$5:$F$204,($C$8-1)+2) -> 0.962 | J56: =VLOOKUP($H56,P_All!$H$5:$M$204,($C$8-1)+2) -> 0.004 | K56: =VLOOKUP($H56,P_All!$O$5:$AD$204,3*($C$8-1)+2) -> 1 | L56: =VLOOKUP($H56,P_All!$O$5:$AD$204,3*($C$8-1)+3) -> 1 | M56: =VLOOKUP($H56,P_All!$O$5:$AD$204,3*($C$8-1)+4) -> 1 | O56: 121.4166667 | P56: =VLOOKUP($O56,P_All!$AF$5:$AU$244,3*($C$8-1)+2) -> 0.0015677 | Q56: =VLOOKUP($O56,P_All!$AF$5:$AU$244,3*($C$8-1)+3) -> 0.0068294 | R56: =VLOOKUP($O56,P_All!$AF$5:$AU$244,3*($C$8-1)+4) -> 1 | S56: =VLOOKUP($O56,P_All!$AW$5:$BG$244,($C$8-1)+2) -> 0.202 | T56: =VLOOKUP($O56,P_All!$AW$5:$BG$244,($C$8-1)+7) -> 0
A57: Na | H57: 18 | I57: =VLOOKUP($H57,P_All!$A$5:$F$204,($C$8-1)+2) -> 0.956 | J57: =VLOOKUP($H57,P_All!$H$5:$M$204,($C$8-1)+2) -> 0.006 | K57: =VLOOKUP($H57,P_All!$O$5:$AD$204,3*($C$8-1)+2) -> 1 | L57: =VLOOKUP($H57,P_All!$O$5:$AD$204,3*($C$8-1)+3) -> 1 | M57: =VLOOKUP($H57,P_All!$O$5:$AD$204,3*($C$8-1)+4) -> 1 | O57: 121.5 | P57: =VLOOKUP($O57,P_All!$AF$5:$AU$244,3*($C$8-1)+2) -> 0.0032818 | Q57: =VLOOKUP($O57,P_All!$AF$5:$AU$244,3*($C$8-1)+3) -> 0.012191 | R57: =VLOOKUP($O57,P_All!$AF$5:$AU$244,3*($C$8-1)+4) -> 1 | S57: =VLOOKUP($O57,P_All!$AW$5:$BG$244,($C$8-1)+2) -> 0.218 | T57: =VLOOKUP($O57,P_All!$AW$5:$BG$244,($C$8-1)+7) -> 0.002
A58: Ni | D58: 0.846 | E58: 0.0584 | F58: 52.16302848 | H58: 19 | I58: =VLOOKUP($H58,P_All!$A$5:$F$204,($C$8-1)+2) -> 0.94 | J58: =VLOOKUP($H58,P_All!$H$5:$M$204,($C$8-1)+2) -> 0.002 | K58: =VLOOKUP($H58,P_All!$O$5:$AD$204,3*($C$8-1)+2) -> 1 | L58: =VLOOKUP($H58,P_All!$O$5:$AD$204,3*($C$8-1)+3) -> 1 | M58: =VLOOKUP($H58,P_All!$O$5:$AD$204,3*($C$8-1)+4) -> 1 | O58: 121.5833333 | P58: =VLOOKUP($O58,P_All!$AF$5:$AU$244,3*($C$8-1)+2) -> 0.0013576 | Q58: =VLOOKUP($O58,P_All!$AF$5:$AU$244,3*($C$8-1)+3) -> 0.02038 | R58: =VLOOKUP($O58,P_All!$AF$5:$AU$244,3*($C$8-1)+4) -> 1 | S58: =VLOOKUP($O58,P_All!$AW$5:$BG$244,($C$8-1)+2) -> 0.228 | T58: =VLOOKUP($O58,P_All!$AW$5:$BG$244,($C$8-1)+7) -> 0.002
A59: Pb | D59: 1.273 | E59: -4.705 | F59: 3.181591829 | H59: 20 | I59: =VLOOKUP($H59,P_All!$A$5:$F$204,($C$8-1)+2) -> 0.946 | J59: =VLOOKUP($H59,P_All!$H$5:$M$204,($C$8-1)+2) -> 0.004 | K59: =VLOOKUP($H59,P_All!$O$5:$AD$204,3*($C$8-1)+2) -> 1 | L59: =VLOOKUP($H59,P_All!$O$5:$AD$204,3*($C$8-1)+3) -> 1 | M59: =VLOOKUP($H59,P_All!$O$5:$AD$204,3*($C$8-1)+4) -> 1 | O59: 121.6666667 | P59: =VLOOKUP($O59,P_All!$AF$5:$AU$244,3*($C$8-1)+2) -> 0.0021008 | Q59: =VLOOKUP($O59,P_All!$AF$5:$AU$244,3*($C$8-1)+3) -> 0.019845 | R59: =VLOOKUP($O59,P_All!$AF$5:$AU$244,3*($C$8-1)+4) -> 1 | S59: =VLOOKUP($O59,P_All!$AW$5:$BG$244,($C$8-1)+2) -> 0.202 | T59: =VLOOKUP($O59,P_All!$AW$5:$BG$244,($C$8-1)+7) -> 0
A60: Sb | B60: 31 | C60: 5.5 | H60: 21 | I60: =VLOOKUP($H60,P_All!$A$5:$F$204,($C$8-1)+2) -> 0.954 | J60: =VLOOKUP($H60,P_All!$H$5:$M$204,($C$8-1)+2) -> 0.002 | K60: =VLOOKUP($H60,P_All!$O$5:$AD$204,3*($C$8-1)+2) -> 1 | L60: =VLOOKUP($H60,P_All!$O$5:$AD$204,3*($C$8-1)+3) -> 1 | M60: =VLOOKUP($H60,P_All!$O$5:$AD$204,3*($C$8-1)+4) -> 1 | O60: 121.75 | P60: =VLOOKUP($O60,P_All!$AF$5:$AU$244,3*($C$8-1)+2) -> 0.0035478 | Q60: =VLOOKUP($O60,P_All!$AF$5:$AU$244,3*($C$8-1)+3) -> 0.015321 | R60: =VLOOKUP($O60,P_All!$AF$5:$AU$244,3*($C$8-1)+4) -> 1 | S60: =VLOOKUP($O60,P_All!$AW$5:$BG$244,($C$8-1)+2) -> 0.218 | T60: =VLOOKUP($O60,P_All!$AW$5:$BG$244,($C$8-1)+7) -> 0
A61: Se | B61: 5 | C61: 5 | H61: 22 | I61: =VLOOKUP($H61,P_All!$A$5:$F$204,($C$8-1)+2) -> 0.952 | J61: =VLOOKUP($H61,P_All!$H$5:$M$204,($C$8-1)+2) -> 0.004 | K61: =VLOOKUP($H61,P_All!$O$5:$AD$204,3*($C$8-1)+2) -> 1 | L61: =VLOOKUP($H61,P_All!$O$5:$AD$204,3*($C$8-1)+3) -> 1 | M61: =VLOOKUP($H61,P_All!$O$5:$AD$204,3*($C$8-1)+4) -> 1 | O61: 121.8333333 | P61: =VLOOKUP($O61,P_All!$AF$5:$AU$244,3*($C$8-1)+2) -> 0.0024159 | Q61: =VLOOKUP($O61,P_All!$AF$5:$AU$244,3*($C$8-1)+3) -> 0.015389 | R61: =VLOOKUP($O61,P_All!$AF$5:$AU$244,3*($C$8-1)+4) -> 1 | S61: =VLOOKUP($O61,P_All!$AW$5:$BG$244,($C$8-1)+2) -> 0.234 | T61: =VLOOKUP($O61,P_All!$AW$5:$BG$244,($C$8-1)+7) -> 0
A62: SO4 | C62: 250000 | H62: 23 | I62: =VLOOKUP($H62,P_All!$A$5:$F$204,($C$8-1)+2) -> 0.948 | J62: =VLOOKUP($H62,P_All!$H$5:$M$204,($C$8-1)+2) -> 0.006 | K62: =VLOOKUP($H62,P_All!$O$5:$AD$204,3*($C$8-1)+2) -> 1 | L62: =VLOOKUP($H62,P_All!$O$5:$AD$204,3*($C$8-1)+3) -> 1 | M62: =VLOOKUP($H62,P_All!$O$5:$AD$204,3*($C$8-1)+4) -> 1 | O62: 121.9166667 | P62: =VLOOKUP($O62,P_All!$AF$5:$AU$244,3*($C$8-1)+2) -> 0.0046016 | Q62: =VLOOKUP($O62,P_All!$AF$5:$AU$244,3*($C$8-1)+3) -> 0.021662 | R62: =VLOOKUP($O62,P_All!$AF$5:$AU$244,3*($C$8-1)+4) -> 1 | S62: =VLOOKUP($O62,P_All!$AW$5:$BG$244,($C$8-1)+2) -> 0.216 | T62: =VLOOKUP($O62,P_All!$AW$5:$BG$244,($C$8-1)+7) -> 0
A63: Tl | B63: 0.56 | C63: 0.28 | H63: 24 | I63: =VLOOKUP($H63,P_All!$A$5:$F$204,($C$8-1)+2) -> 0.954 | J63: =VLOOKUP($H63,P_All!$H$5:$M$204,($C$8-1)+2) -> 0.004 | K63: =VLOOKUP($H63,P_All!$O$5:$AD$204,3*($C$8-1)+2) -> 1 | L63: =VLOOKUP($H63,P_All!$O$5:$AD$204,3*($C$8-1)+3) -> 1 | M63: =VLOOKUP($H63,P_All!$O$5:$AD$204,3*($C$8-1)+4) -> 1 | O63: 122 | P63: =VLOOKUP($O63,P_All!$AF$5:$AU$244,3*($C$8-1)+2) -> 0.013439 | Q63: =VLOOKUP($O63,P_All!$AF$5:$AU$244,3*($C$8-1)+3) -> 0.041123 | R63: =VLOOKUP($O63,P_All!$AF$5:$AU$244,3*($C$8-1)+4) -> 1 | S63: =VLOOKUP($O63,P_All!$AW$5:$BG$244,($C$8-1)+2) -> 0.222 | T63: =VLOOKUP($O63,P_All!$AW$5:$BG$244,($C$8-1)+7) -> 0
A64: V | H64: 25 | I64: =VLOOKUP($H64,P_All!$A$5:$F$204,($C$8-1)+2) -> 0.936 | J64: =VLOOKUP($H64,P_All!$H$5:$M$204,($C$8-1)+2) -> 0.004 | K64: =VLOOKUP($H64,P_All!$O$5:$AD$204,3*($C$8-1)+2) -> 1 | L64: =VLOOKUP($H64,P_All!$O$5:$AD$204,3*($C$8-1)+3) -> 1 | M64: =VLOOKUP($H64,P_All!$O$5:$AD$204,3*($C$8-1)+4) -> 1 | O64: 122.0833333 | P64: =VLOOKUP($O64,P_All!$AF$5:$AU$244,3*($C$8-1)+2) -> 0.026579 | Q64: =VLOOKUP($O64,P_All!$AF$5:$AU$244,3*($C$8-1)+3) -> 0.06815 | R64: =VLOOKUP($O64,P_All!$AF$5:$AU$244,3*($C$8-1)+4) -> 1 | S64: =VLOOKUP($O64,P_All!$AW$5:$BG$244,($C$8-1)+2) -> 0.192 | T64: =VLOOKUP($O64,P_All!$AW$5:$BG$244,($C$8-1)+7) -> 0.004
A65: Zn | D65: 0.8473 | E65: 0.884 | F65: 119.8164153 | H65: 26 | I65: =VLOOKUP($H65,P_All!$A$5:$F$204,($C$8-1)+2) -> 0.95 | J65: =VLOOKUP($H65,P_All!$H$5:$M$204,($C$8-1)+2) -> 0.004 | K65: =VLOOKUP($H65,P_All!$O$5:$AD$204,3*($C$8-1)+2) -> 1 | L65: =VLOOKUP($H65,P_All!$O$5:$AD$204,3*($C$8-1)+3) -> 1 | M65: =VLOOKUP($H65,P_All!$O$5:$AD$204,3*($C$8-1)+4) -> 1 | O65: 122.1666667 | P65: =VLOOKUP($O65,P_All!$AF$5:$AU$244,3*($C$8-1)+2) -> 0.029754 | Q65: =VLOOKUP($O65,P_All!$AF$5:$AU$244,3*($C$8-1)+3) -> 0.102 | R65: =VLOOKUP($O65,P_All!$AF$5:$AU$244,3*($C$8-1)+4) -> 1 | S65: =VLOOKUP($O65,P_All!$AW$5:$BG$244,($C$8-1)+2) -> 0.19 | T65: =VLOOKUP($O65,P_All!$AW$5:$BG$244,($C$8-1)+7) -> 0.002
A66: Hardness | B66: 500000 | C66: 500000 | H66: 27 | I66: =VLOOKUP($H66,P_All!$A$5:$F$204,($C$8-1)+2) -> 0.946 | J66: =VLOOKUP($H66,P_All!$H$5:$M$204,($C$8-1)+2) -> 0.002 | K66: =VLOOKUP($H66,P_All!$O$5:$AD$204,3*($C$8-1)+2) -> 1 | L66: =VLOOKUP($H66,P_All!$O$5:$AD$204,3*($C$8-1)+3) -> 1 | M66: =VLOOKUP($H66,P_All!$O$5:$AD$204,3*($C$8-1)+4) -> 1 | O66: 122.25 | P66: =VLOOKUP($O66,P_All!$AF$5:$AU$244,3*($C$8-1)+2) -> 0.004717 | Q66: =VLOOKUP($O66,P_All!$AF$5:$AU$244,3*($C$8-1)+3) -> 0.09724 | R66: =VLOOKUP($O66,P_All!$AF$5:$AU$244,3*($C$8-1)+4) -> 1 | S66: =VLOOKUP($O66,P_All!$AW$5:$BG$244,($C$8-1)+2) -> 0.198 | T66: =VLOOKUP($O66,P_All!$AW$5:$BG$244,($C$8-1)+7) -> 0.002
H67: 28 | I67: =VLOOKUP($H67,P_All!$A$5:$F$204,($C$8-1)+2) -> 0.964 | J67: =VLOOKUP($H67,P_All!$H$5:$M$204,($C$8-1)+2) -> 0.004 | K67: =VLOOKUP($H67,P_All!$O$5:$AD$204,3*($C$8-1)+2) -> 1 | L67: =VLOOKUP($H67,P_All!$O$5:$AD$204,3*($C$8-1)+3) -> 1 | M67: =VLOOKUP($H67,P_All!$O$5:$AD$204,3*($C$8-1)+4) -> 1 | O67: 122.3333333 | P67: =VLOOKUP($O67,P_All!$AF$5:$AU$244,3*($C$8-1)+2) -> 0.0009127 | Q67: =VLOOKUP($O67,P_All!$AF$5:$AU$244,3*($C$8-1)+3) -> 0.0071627 | R67: =VLOOKUP($O67,P_All!$AF$5:$AU$244,3*($C$8-1)+4) -> 1 | S67: =VLOOKUP($O67,P_All!$AW$5:$BG$244,($C$8-1)+2) -> 0.214 | T67: =VLOOKUP($O67,P_All!$AW$5:$BG$244,($C$8-1)+7) -> 0.002
H68: 29 | I68: =VLOOKUP($H68,P_All!$A$5:$F$204,($C$8-1)+2) -> 0.96 | J68: =VLOOKUP($H68,P_All!$H$5:$M$204,($C$8-1)+2) -> 0.002 | K68: =VLOOKUP($H68,P_All!$O$5:$AD$204,3*($C$8-1)+2) -> 1 | L68: =VLOOKUP($H68,P_All!$O$5:$AD$204,3*($C$8-1)+3) -> 1 | M68: =VLOOKUP($H68,P_All!$O$5:$AD$204,3*($C$8-1)+4) -> 1 | O68: 122.4166667 | P68: =VLOOKUP($O68,P_All!$AF$5:$AU$244,3*($C$8-1)+2) -> 0.0014076 | Q68: =VLOOKUP($O68,P_All!$AF$5:$AU$244,3*($C$8-1)+3) -> 0.0070267 | R68: =VLOOKUP($O68,P_All!$AF$5:$AU$244,3*($C$8-1)+4) -> 1 | S68: =VLOOKUP($O68,P_All!$AW$5:$BG$244,($C$8-1)+2) -> 0.23 | T68: =VLOOKUP($O68,P_All!$AW$5:$BG$244,($C$8-1)+7) -> 0
H69: 30 | I69: =VLOOKUP($H69,P_All!$A$5:$F$204,($C$8-1)+2) -> 0.932 | J69: =VLOOKUP($H69,P_All!$H$5:$M$204,($C$8-1)+2) -> 0.002 | K69: =VLOOKUP($H69,P_All!$O$5:$AD$204,3*($C$8-1)+2) -> 1 | L69: =VLOOKUP($H69,P_All!$O$5:$AD$204,3*($C$8-1)+3) -> 1 | M69: =VLOOKUP($H69,P_All!$O$5:$AD$204,3*($C$8-1)+4) -> 1 | O69: 122.5 | P69: =VLOOKUP($O69,P_All!$AF$5:$AU$244,3*($C$8-1)+2) -> 0.0028919 | Q69: =VLOOKUP($O69,P_All!$AF$5:$AU$244,3*($C$8-1)+3) -> 0.012374 | R69: =VLOOKUP($O69,P_All!$AF$5:$AU$244,3*($C$8-1)+4) -> 1 | S69: =VLOOKUP($O69,P_All!$AW$5:$BG$244,($C$8-1)+2) -> 0.234 | T69: =VLOOKUP($O69,P_All!$AW$5:$BG$244,($C$8-1)+7) -> 0
H70: 31 | I70: =VLOOKUP($H70,P_All!$A$5:$F$204,($C$8-1)+2) -> 0.952 | J70: =VLOOKUP($H70,P_All!$H$5:$M$204,($C$8-1)+2) -> 0.002 | K70: =VLOOKUP($H70,P_All!$O$5:$AD$204,3*($C$8-1)+2) -> 1 | L70: =VLOOKUP($H70,P_All!$O$5:$AD$204,3*($C$8-1)+3) -> 1 | M70: =VLOOKUP($H70,P_All!$O$5:$AD$204,3*($C$8-1)+4) -> 1 | O70: 122.5833333 | P70: =VLOOKUP($O70,P_All!$AF$5:$AU$244,3*($C$8-1)+2) -> 0.0012669 | Q70: =VLOOKUP($O70,P_All!$AF$5:$AU$244,3*($C$8-1)+3) -> 0.023399 | R70: =VLOOKUP($O70,P_All!$AF$5:$AU$244,3*($C$8-1)+4) -> 1 | S70: =VLOOKUP($O70,P_All!$AW$5:$BG$244,($C$8-1)+2) -> 0.212 | T70: =VLOOKUP($O70,P_All!$AW$5:$BG$244,($C$8-1)+7) -> 0
H71: 32 | I71: =VLOOKUP($H71,P_All!$A$5:$F$204,($C$8-1)+2) -> 0.96 | J71: =VLOOKUP($H71,P_All!$H$5:$M$204,($C$8-1)+2) -> 0.002 | K71: =VLOOKUP($H71,P_All!$O$5:$AD$204,3*($C$8-1)+2) -> 1 | L71: =VLOOKUP($H71,P_All!$O$5:$AD$204,3*($C$8-1)+3) -> 1 | M71: =VLOOKUP($H71,P_All!$O$5:$AD$204,3*($C$8-1)+4) -> 1 | O71: 122.6666667 | P71: =VLOOKUP($O71,P_All!$AF$5:$AU$244,3*($C$8-1)+2) -> 0.0020471 | Q71: =VLOOKUP($O71,P_All!$AF$5:$AU$244,3*($C$8-1)+3) -> 0.020809 | R71: =VLOOKUP($O71,P_All!$AF$5:$AU$244,3*($C$8-1)+4) -> 1 | S71: =VLOOKUP($O71,P_All!$AW$5:$BG$244,($C$8-1)+2) -> 0.208 | T71: =VLOOKUP($O71,P_All!$AW$5:$BG$244,($C$8-1)+7) -> 0.002
H72: 33 | I72: =VLOOKUP($H72,P_All!$A$5:$F$204,($C$8-1)+2) -> 0.934 | J72: =VLOOKUP($H72,P_All!$H$5:$M$204,($C$8-1)+2) -> 0.006 | K72: =VLOOKUP($H72,P_All!$O$5:$AD$204,3*($C$8-1)+2) -> 1 | L72: =VLOOKUP($H72,P_All!$O$5:$AD$204,3*($C$8-1)+3) -> 1 | M72: =VLOOKUP($H72,P_All!$O$5:$AD$204,3*($C$8-1)+4) -> 1 | O72: 122.75 | P72: =VLOOKUP($O72,P_All!$AF$5:$AU$244,3*($C$8-1)+2) -> 0.0031693 | Q72: =VLOOKUP($O72,P_All!$AF$5:$AU$244,3*($C$8-1)+3) -> 0.013726 | R72: =VLOOKUP($O72,P_All!$AF$5:$AU$244,3*($C$8-1)+4) -> 1 | S72: =VLOOKUP($O72,P_All!$AW$5:$BG$244,($C$8-1)+2) -> 0.196 | T72: =VLOOKUP($O72,P_All!$AW$5:$BG$244,($C$8-1)+7) -> 0.004
H73: 34 | I73: =VLOOKUP($H73,P_All!$A$5:$F$204,($C$8-1)+2) -> 0.944 | J73: =VLOOKUP($H73,P_All!$H$5:$M$204,($C$8-1)+2) -> 0.002 | K73: =VLOOKUP($H73,P_All!$O$5:$AD$204,3*($C$8-1)+2) -> 1 | L73: =VLOOKUP($H73,P_All!$O$5:$AD$204,3*($C$8-1)+3) -> 1 | M73: =VLOOKUP($H73,P_All!$O$5:$AD$204,3*($C$8-1)+4) -> 1 | O73: 122.8333333 | P73: =VLOOKUP($O73,P_All!$AF$5:$AU$244,3*($C$8-1)+2) -> 0.0027766 | Q73: =VLOOKUP($O73,P_All!$AF$5:$AU$244,3*($C$8-1)+3) -> 0.01604 | R73: =VLOOKUP($O73,P_All!$AF$5:$AU$244,3*($C$8-1)+4) -> 1 | S73: =VLOOKUP($O73,P_All!$AW$5:$BG$244,($C$8-1)+2) -> 0.23 | T73: =VLOOKUP($O73,P_All!$AW$5:$BG$244,($C$8-1)+7) -> 0
H74: 35 | I74: =VLOOKUP($H74,P_All!$A$5:$F$204,($C$8-1)+2) -> 0.94 | J74: =VLOOKUP($H74,P_All!$H$5:$M$204,($C$8-1)+2) -> 0.004 | K74: =VLOOKUP($H74,P_All!$O$5:$AD$204,3*($C$8-1)+2) -> 1 | L74: =VLOOKUP($H74,P_All!$O$5:$AD$204,3*($C$8-1)+3) -> 1 | M74: =VLOOKUP($H74,P_All!$O$5:$AD$204,3*($C$8-1)+4) -> 1 | O74: 122.9166667 | P74: =VLOOKUP($O74,P_All!$AF$5:$AU$244,3*($C$8-1)+2) -> 0.005159 | Q74: =VLOOKUP($O74,P_All!$AF$5:$AU$244,3*($C$8-1)+3) -> 0.023406 | R74: =VLOOKUP($O74,P_All!$AF$5:$AU$244,3*($C$8-1)+4) -> 1 | S74: =VLOOKUP($O74,P_All!$AW$5:$BG$244,($C$8-1)+2) -> 0.25 | T74: =VLOOKUP($O74,P_All!$AW$5:$BG$244,($C$8-1)+7) -> 0
H75: 36 | I75: =VLOOKUP($H75,P_All!$A$5:$F$204,($C$8-1)+2) -> 0.958 | J75: =VLOOKUP($H75,P_All!$H$5:$M$204,($C$8-1)+2) -> 0.004 | K75: =VLOOKUP($H75,P_All!$O$5:$AD$204,3*($C$8-1)+2) -> 1 | L75: =VLOOKUP($H75,P_All!$O$5:$AD$204,3*($C$8-1)+3) -> 1 | M75: =VLOOKUP($H75,P_All!$O$5:$AD$204,3*($C$8-1)+4) -> 1 | O75: 123 | P75: =VLOOKUP($O75,P_All!$AF$5:$AU$244,3*($C$8-1)+2) -> 0.013155 | Q75: =VLOOKUP($O75,P_All!$AF$5:$AU$244,3*($C$8-1)+3) -> 0.040294 | R75: =VLOOKUP($O75,P_All!$AF$5:$AU$244,3*($C$8-1)+4) -> 1 | S75: =VLOOKUP($O75,P_All!$AW$5:$BG$244,($C$8-1)+2) -> 0.218 | T75: =VLOOKUP($O75,P_All!$AW$5:$BG$244,($C$8-1)+7) -> 0
H76: 37 | I76: =VLOOKUP($H76,P_All!$A$5:$F$204,($C$8-1)+2) -> 0.95 | J76: =VLOOKUP($H76,P_All!$H$5:$M$204,($C$8-1)+2) -> 0.002 | K76: =VLOOKUP($H76,P_All!$O$5:$AD$204,3*($C$8-1)+2) -> 1 | L76: =VLOOKUP($H76,P_All!$O$5:$AD$204,3*($C$8-1)+3) -> 1 | M76: =VLOOKUP($H76,P_All!$O$5:$AD$204,3*($C$8-1)+4) -> 1 | O76: 123.0833333 | P76: =VLOOKUP($O76,P_All!$AF$5:$AU$244,3*($C$8-1)+2) -> 0.025187 | Q76: =VLOOKUP($O76,P_All!$AF$5:$AU$244,3*($C$8-1)+3) -> 0.072191 | R76: =VLOOKUP($O76,P_All!$AF$5:$AU$244,3*($C$8-1)+4) -> 1 | S76: =VLOOKUP($O76,P_All!$AW$5:$BG$244,($C$8-1)+2) -> 0.222 | T76: =VLOOKUP($O76,P_All!$AW$5:$BG$244,($C$8-1)+7) -> 0.004
H77: 38 | I77: =VLOOKUP($H77,P_All!$A$5:$F$204,($C$8-1)+2) -> 0.95 | J77: =VLOOKUP($H77,P_All!$H$5:$M$204,($C$8-1)+2) -> 0.004 | K77: =VLOOKUP($H77,P_All!$O$5:$AD$204,3*($C$8-1)+2) -> 1 | L77: =VLOOKUP($H77,P_All!$O$5:$AD$204,3*($C$8-1)+3) -> 1 | M77: =VLOOKUP($H77,P_All!$O$5:$AD$204,3*($C$8-1)+4) -> 1 | O77: 123.1666667 | P77: =VLOOKUP($O77,P_All!$AF$5:$AU$244,3*($C$8-1)+2) -> 0.026165 | Q77: =VLOOKUP($O77,P_All!$AF$5:$AU$244,3*($C$8-1)+3) -> 0.11138 | R77: =VLOOKUP($O77,P_All!$AF$5:$AU$244,3*($C$8-1)+4) -> 1 | S77: =VLOOKUP($O77,P_All!$AW$5:$BG$244,($C$8-1)+2) -> 0.22 | T77: =VLOOKUP($O77,P_All!$AW$5:$BG$244,($C$8-1)+7) -> 0.006
H78: 39 | I78: =VLOOKUP($H78,P_All!$A$5:$F$204,($C$8-1)+2) -> 0.934 | J78: =VLOOKUP($H78,P_All!$H$5:$M$204,($C$8-1)+2) -> 0.004 | K78: =VLOOKUP($H78,P_All!$O$5:$AD$204,3*($C$8-1)+2) -> 1 | L78: =VLOOKUP($H78,P_All!$O$5:$AD$204,3*($C$8-1)+3) -> 1 | M78: =VLOOKUP($H78,P_All!$O$5:$AD$204,3*($C$8-1)+4) -> 1 | O78: 123.25 | P78: =VLOOKUP($O78,P_All!$AF$5:$AU$244,3*($C$8-1)+2) -> 0.0046626 | Q78: =VLOOKUP($O78,P_All!$AF$5:$AU$244,3*($C$8-1)+3) -> 0.095272 | R78: =VLOOKUP($O78,P_All!$AF$5:$AU$244,3*($C$8-1)+4) -> 1 | S78: =VLOOKUP($O78,P_All!$AW$5:$BG$244,($C$8-1)+2) -> 0.204 | T78: =VLOOKUP($O78,P_All!$AW$5:$BG$244,($C$8-1)+7) -> 0.002
H79: 40 | I79: =VLOOKUP($H79,P_All!$A$5:$F$204,($C$8-1)+2) -> 0.946 | J79: =VLOOKUP($H79,P_All!$H$5:$M$204,($C$8-1)+2) -> 0.004 | K79: =VLOOKUP($H79,P_All!$O$5:$AD$204,3*($C$8-1)+2) -> 1 | L79: =VLOOKUP($H79,P_All!$O$5:$AD$204,3*($C$8-1)+3) -> 1 | M79: =VLOOKUP($H79,P_All!$O$5:$AD$204,3*($C$8-1)+4) -> 1 | O79: 123.3333333 | P79: =VLOOKUP($O79,P_All!$AF$5:$AU$244,3*($C$8-1)+2) -> 0.00071989 | Q79: =VLOOKUP($O79,P_All!$AF$5:$AU$244,3*($C$8-1)+3) -> 0.0070753 | R79: =VLOOKUP($O79,P_All!$AF$5:$AU$244,3*($C$8-1)+4) -> 1 | S79: =VLOOKUP($O79,P_All!$AW$5:$BG$244,($C$8-1)+2) -> 0.184 | T79: =VLOOKUP($O79,P_All!$AW$5:$BG$244,($C$8-1)+7) -> 0
H80: 41 | I80: =VLOOKUP($H80,P_All!$A$5:$F$204,($C$8-1)+2) -> 0.938 | J80: =VLOOKUP($H80,P_All!$H$5:$M$204,($C$8-1)+2) -> 0.002 | K80: =VLOOKUP($H80,P_All!$O$5:$AD$204,3*($C$8-1)+2) -> 1 | L80: =VLOOKUP($H80,P_All!$O$5:$AD$204,3*($C$8-1)+3) -> 1 | M80: =VLOOKUP($H80,P_All!$O$5:$AD$204,3*($C$8-1)+4) -> 1 | O80: 123.4166667 | P80: =VLOOKUP($O80,P_All!$AF$5:$AU$244,3*($C$8-1)+2) -> 0.0014217 | Q80: =VLOOKUP($O80,P_All!$AF$5:$AU$244,3*($C$8-1)+3) -> 0.0068404 | R80: =VLOOKUP($O80,P_All!$AF$5:$AU$244,3*($C$8-1)+4) -> 1 | S80: =VLOOKUP($O80,P_All!$AW$5:$BG$244,($C$8-1)+2) -> 0.204 | T80: =VLOOKUP($O80,P_All!$AW$5:$BG$244,($C$8-1)+7) -> 0
H81: 42 | I81: =VLOOKUP($H81,P_All!$A$5:$F$204,($C$8-1)+2) -> 0.936 | J81: =VLOOKUP($H81,P_All!$H$5:$M$204,($C$8-1)+2) -> 0.002 | K81: =VLOOKUP($H81,P_All!$O$5:$AD$204,3*($C$8-1)+2) -> 1 | L81: =VLOOKUP($H81,P_All!$O$5:$AD$204,3*($C$8-1)+3) -> 1 | M81: =VLOOKUP($H81,P_All!$O$5:$AD$204,3*($C$8-1)+4) -> 1 | O81: 123.5 | P81: =VLOOKUP($O81,P_All!$AF$5:$AU$244,3*($C$8-1)+2) -> 0.0031452 | Q81: =VLOOKUP($O81,P_All!$AF$5:$AU$244,3*($C$8-1)+3) -> 0.014232 | R81: =VLOOKUP($O81,P_All!$AF$5:$AU$244,3*($C$8-1)+4) -> 1 | S81: =VLOOKUP($O81,P_All!$AW$5:$BG$244,($C$8-1)+2) -> 0.228 | T81: =VLOOKUP($O81,P_All!$AW$5:$BG$244,($C$8-1)+7) -> 0.002
H82: 43 | I82: =VLOOKUP($H82,P_All!$A$5:$F$204,($C$8-1)+2) -> 0.962 | J82: =VLOOKUP($H82,P_All!$H$5:$M$204,($C$8-1)+2) -> 0.002 | K82: =VLOOKUP($H82,P_All!$O$5:$AD$204,3*($C$8-1)+2) -> 1 | L82: =VLOOKUP($H82,P_All!$O$5:$AD$204,3*($C$8-1)+3) -> 1 | M82: =VLOOKUP($H82,P_All!$O$5:$AD$204,3*($C$8-1)+4) -> 1 | O82: 123.5833333 | P82: =VLOOKUP($O82,P_All!$AF$5:$AU$244,3*($C$8-1)+2) -> 0.0015517 | Q82: =VLOOKUP($O82,P_All!$AF$5:$AU$244,3*($C$8-1)+3) -> 0.0219 | R82: =VLOOKUP($O82,P_All!$AF$5:$AU$244,3*($C$8-1)+4) -> 1 | S82: =VLOOKUP($O82,P_All!$AW$5:$BG$244,($C$8-1)+2) -> 0.228 | T82: =VLOOKUP($O82,P_All!$AW$5:$BG$244,($C$8-1)+7) -> 0
H83: 44 | I83: =VLOOKUP($H83,P_All!$A$5:$F$204,($C$8-1)+2) -> 0.93 | J83: =VLOOKUP($H83,P_All!$H$5:$M$204,($C$8-1)+2) -> 0.004 | K83: =VLOOKUP($H83,P_All!$O$5:$AD$204,3*($C$8-1)+2) -> 1 | L83: =VLOOKUP($H83,P_All!$O$5:$AD$204,3*($C$8-1)+3) -> 1 | M83: =VLOOKUP($H83,P_All!$O$5:$AD$204,3*($C$8-1)+4) -> 1 | O83: 123.6666667 | P83: =VLOOKUP($O83,P_All!$AF$5:$AU$244,3*($C$8-1)+2) -> 0.0018298 | Q83: =VLOOKUP($O83,P_All!$AF$5:$AU$244,3*($C$8-1)+3) -> 0.020669 | R83: =VLOOKUP($O83,P_All!$AF$5:$AU$244,3*($C$8-1)+4) -> 1 | S83: =VLOOKUP($O83,P_All!$AW$5:$BG$244,($C$8-1)+2) -> 0.212 | T83: =VLOOKUP($O83,P_All!$AW$5:$BG$244,($C$8-1)+7) -> 0
H84: 45 | I84: =VLOOKUP($H84,P_All!$A$5:$F$204,($C$8-1)+2) -> 0.956 | J84: =VLOOKUP($H84,P_All!$H$5:$M$204,($C$8-1)+2) -> 0.002 | K84: =VLOOKUP($H84,P_All!$O$5:$AD$204,3*($C$8-1)+2) -> 1 | L84: =VLOOKUP($H84,P_All!$O$5:$AD$204,3*($C$8-1)+3) -> 1 | M84: =VLOOKUP($H84,P_All!$O$5:$AD$204,3*($C$8-1)+4) -> 1 | O84: 123.75 | P84: =VLOOKUP($O84,P_All!$AF$5:$AU$244,3*($C$8-1)+2) -> 0.0037168 | Q84: =VLOOKUP($O84,P_All!$AF$5:$AU$244,3*($C$8-1)+3) -> 0.018277 | R84: =VLOOKUP($O84,P_All!$AF$5:$AU$244,3*($C$8-1)+4) -> 1 | S84: =VLOOKUP($O84,P_All!$AW$5:$BG$244,($C$8-1)+2) -> 0.226 | T84: =VLOOKUP($O84,P_All!$AW$5:$BG$244,($C$8-1)+7) -> 0.002
H85: 46 | I85: =VLOOKUP($H85,P_All!$A$5:$F$204,($C$8-1)+2) -> 0.95 | J85: =VLOOKUP($H85,P_All!$H$5:$M$204,($C$8-1)+2) -> 0.002 | K85: =VLOOKUP($H85,P_All!$O$5:$AD$204,3*($C$8-1)+2) -> 1 | L85: =VLOOKUP($H85,P_All!$O$5:$AD$204,3*($C$8-1)+3) -> 1 | M85: =VLOOKUP($H85,P_All!$O$5:$AD$204,3*($C$8-1)+4) -> 1 | O85: 123.8333333 | P85: =VLOOKUP($O85,P_All!$AF$5:$AU$244,3*($C$8-1)+2) -> 0.0029233 | Q85: =VLOOKUP($O85,P_All!$AF$5:$AU$244,3*($C$8-1)+3) -> 0.013579 | R85: =VLOOKUP($O85,P_All!$AF$5:$AU$244,3*($C$8-1)+4) -> 1 | S85: =VLOOKUP($O85,P_All!$AW$5:$BG$244,($C$8-1)+2) -> 0.224 | T85: =VLOOKUP($O85,P_All!$AW$5:$BG$244,($C$8-1)+7) -> 0
H86: 47 | I86: =VLOOKUP($H86,P_All!$A$5:$F$204,($C$8-1)+2) -> 0.958 | J86: =VLOOKUP($H86,P_All!$H$5:$M$204,($C$8-1)+2) -> 0 | K86: =VLOOKUP($H86,P_All!$O$5:$AD$204,3*($C$8-1)+2) -> 1 | L86: =VLOOKUP($H86,P_All!$O$5:$AD$204,3*($C$8-1)+3) -> 1 | M86: =VLOOKUP($H86,P_All!$O$5:$AD$204,3*($C$8-1)+4) -> 1 | O86: 123.9166667 | P86: =VLOOKUP($O86,P_All!$AF$5:$AU$244,3*($C$8-1)+2) -> 0.0053317 | Q86: =VLOOKUP($O86,P_All!$AF$5:$AU$244,3*($C$8-1)+3) -> 0.021959 | R86: =VLOOKUP($O86,P_All!$AF$5:$AU$244,3*($C$8-1)+4) -> 1 | S86: =VLOOKUP($O86,P_All!$AW$5:$BG$244,($C$8-1)+2) -> 0.236 | T86: =VLOOKUP($O86,P_All!$AW$5:$BG$244,($C$8-1)+7) -> 0.002
H87: 48 | I87: =VLOOKUP($H87,P_All!$A$5:$F$204,($C$8-1)+2) -> 0.956 | J87: =VLOOKUP($H87,P_All!$H$5:$M$204,($C$8-1)+2) -> 0.004 | K87: =VLOOKUP($H87,P_All!$O$5:$AD$204,3*($C$8-1)+2) -> 1 | L87: =VLOOKUP($H87,P_All!$O$5:$AD$204,3*($C$8-1)+3) -> 1 | M87: =VLOOKUP($H87,P_All!$O$5:$AD$204,3*($C$8-1)+4) -> 1 | O87: 124 | P87: =VLOOKUP($O87,P_All!$AF$5:$AU$244,3*($C$8-1)+2) -> 0.011746 | Q87: =VLOOKUP($O87,P_All!$AF$5:$AU$244,3*($C$8-1)+3) -> 0.042978 | R87: =VLOOKUP($O87,P_All!$AF$5:$AU$244,3*($C$8-1)+4) -> 1 | S87: =VLOOKUP($O87,P_All!$AW$5:$BG$244,($C$8-1)+2) -> 0.228 | T87: =VLOOKUP($O87,P_All!$AW$5:$BG$244,($C$8-1)+7) -> 0.002
H88: 49 | I88: =VLOOKUP($H88,P_All!$A$5:$F$204,($C$8-1)+2) -> 0.954 | J88: =VLOOKUP($H88,P_All!$H$5:$M$204,($C$8-1)+2) -> 0.002 | K88: =VLOOKUP($H88,P_All!$O$5:$AD$204,3*($C$8-1)+2) -> 1 | L88: =VLOOKUP($H88,P_All!$O$5:$AD$204,3*($C$8-1)+3) -> 1 | M88: =VLOOKUP($H88,P_All!$O$5:$AD$204,3*($C$8-1)+4) -> 1 | O88: 124.0833333 | P88: =VLOOKUP($O88,P_All!$AF$5:$AU$244,3*($C$8-1)+2) -> 0.024489 | Q88: =VLOOKUP($O88,P_All!$AF$5:$AU$244,3*($C$8-1)+3) -> 0.075843 | R88: =VLOOKUP($O88,P_All!$AF$5:$AU$244,3*($C$8-1)+4) -> 1 | S88: =VLOOKUP($O88,P_All!$AW$5:$BG$244,($C$8-1)+2) -> 0.22 | T88: =VLOOKUP($O88,P_All!$AW$5:$BG$244,($C$8-1)+7) -> 0
H89: 50 | I89: =VLOOKUP($H89,P_All!$A$5:$F$204,($C$8-1)+2) -> 0.948 | J89: =VLOOKUP($H89,P_All!$H$5:$M$204,($C$8-1)+2) -> 0.002 | K89: =VLOOKUP($H89,P_All!$O$5:$AD$204,3*($C$8-1)+2) -> 1 | L89: =VLOOKUP($H89,P_All!$O$5:$AD$204,3*($C$8-1)+3) -> 1 | M89: =VLOOKUP($H89,P_All!$O$5:$AD$204,3*($C$8-1)+4) -> 1 | O89: 124.1666667 | P89: =VLOOKUP($O89,P_All!$AF$5:$AU$244,3*($C$8-1)+2) -> 0.028842 | Q89: =VLOOKUP($O89,P_All!$AF$5:$AU$244,3*($C$8-1)+3) -> 0.11421 | R89: =VLOOKUP($O89,P_All!$AF$5:$AU$244,3*($C$8-1)+4) -> 1 | S89: =VLOOKUP($O89,P_All!$AW$5:$BG$244,($C$8-1)+2) -> 0.226 | T89: =VLOOKUP($O89,P_All!$AW$5:$BG$244,($C$8-1)+7) -> 0.006
H90: 51 | I90: =VLOOKUP($H90,P_All!$A$5:$F$204,($C$8-1)+2) -> 0.962 | J90: =VLOOKUP($H90,P_All!$H$5:$M$204,($C$8-1)+2) -> 0.004 | K90: =VLOOKUP($H90,P_All!$O$5:$AD$204,3*($C$8-1)+2) -> 1 | L90: =VLOOKUP($H90,P_All!$O$5:$AD$204,3*($C$8-1)+3) -> 1 | M90: =VLOOKUP($H90,P_All!$O$5:$AD$204,3*($C$8-1)+4) -> 1 | O90: 124.25 | P90: =VLOOKUP($O90,P_All!$AF$5:$AU$244,3*($C$8-1)+2) -> 0.0053147 | Q90: =VLOOKUP($O90,P_All!$AF$5:$AU$244,3*($C$8-1)+3) -> 0.11463 | R90: =VLOOKUP($O90,P_All!$AF$5:$AU$244,3*($C$8-1)+4) -> 1 | S90: =VLOOKUP($O90,P_All!$AW$5:$BG$244,($C$8-1)+2) -> 0.216 | T90: =VLOOKUP($O90,P_All!$AW$5:$BG$244,($C$8-1)+7) -> 0.002
H91: 52 | I91: =VLOOKUP($H91,P_All!$A$5:$F$204,($C$8-1)+2) -> 0.964 | J91: =VLOOKUP($H91,P_All!$H$5:$M$204,($C$8-1)+2) -> 0.002 | K91: =VLOOKUP($H91,P_All!$O$5:$AD$204,3*($C$8-1)+2) -> 1 | L91: =VLOOKUP($H91,P_All!$O$5:$AD$204,3*($C$8-1)+3) -> 1 | M91: =VLOOKUP($H91,P_All!$O$5:$AD$204,3*($C$8-1)+4) -> 1 | O91: 124.3333333 | P91: =VLOOKUP($O91,P_All!$AF$5:$AU$244,3*($C$8-1)+2) -> 0.0010669 | Q91: =VLOOKUP($O91,P_All!$AF$5:$AU$244,3*($C$8-1)+3) -> 0.0066549 | R91: =VLOOKUP($O91,P_All!$AF$5:$AU$244,3*($C$8-1)+4) -> 1 | S91: =VLOOKUP($O91,P_All!$AW$5:$BG$244,($C$8-1)+2) -> 0.212 | T91: =VLOOKUP($O91,P_All!$AW$5:$BG$244,($C$8-1)+7) -> 0.002
H92: 53 | I92: =VLOOKUP($H92,P_All!$A$5:$F$204,($C$8-1)+2) -> 0.96 | J92: =VLOOKUP($H92,P_All!$H$5:$M$204,($C$8-1)+2) -> 0.004 | K92: =VLOOKUP($H92,P_All!$O$5:$AD$204,3*($C$8-1)+2) -> 1 | L92: =VLOOKUP($H92,P_All!$O$5:$AD$204,3*($C$8-1)+3) -> 1 | M92: =VLOOKUP($H92,P_All!$O$5:$AD$204,3*($C$8-1)+4) -> 1 | O92: 124.4166667 | P92: =VLOOKUP($O92,P_All!$AF$5:$AU$244,3*($C$8-1)+2) -> 0.0015801 | Q92: =VLOOKUP($O92,P_All!$AF$5:$AU$244,3*($C$8-1)+3) -> 0.0082789 | R92: =VLOOKUP($O92,P_All!$AF$5:$AU$244,3*($C$8-1)+4) -> 1 | S92: =VLOOKUP($O92,P_All!$AW$5:$BG$244,($C$8-1)+2) -> 0.242 | T92: =VLOOKUP($O92,P_All!$AW$5:$BG$244,($C$8-1)+7) -> 0
H93: 54 | I93: =VLOOKUP($H93,P_All!$A$5:$F$204,($C$8-1)+2) -> 0.952 | J93: =VLOOKUP($H93,P_All!$H$5:$M$204,($C$8-1)+2) -> 0 | K93: =VLOOKUP($H93,P_All!$O$5:$AD$204,3*($C$8-1)+2) -> 1 | L93: =VLOOKUP($H93,P_All!$O$5:$AD$204,3*($C$8-1)+3) -> 1 | M93: =VLOOKUP($H93,P_All!$O$5:$AD$204,3*($C$8-1)+4) -> 1 | O93: 124.5 | P93: =VLOOKUP($O93,P_All!$AF$5:$AU$244,3*($C$8-1)+2) -> 0.0033019 | Q93: =VLOOKUP($O93,P_All!$AF$5:$AU$244,3*($C$8-1)+3) -> 0.015389 | R93: =VLOOKUP($O93,P_All!$AF$5:$AU$244,3*($C$8-1)+4) -> 1 | S93: =VLOOKUP($O93,P_All!$AW$5:$BG$244,($C$8-1)+2) -> 0.256 | T93: =VLOOKUP($O93,P_All!$AW$5:$BG$244,($C$8-1)+7) -> 0
H94: 55 | I94: =VLOOKUP($H94,P_All!$A$5:$F$204,($C$8-1)+2) -> 0.954 | J94: =VLOOKUP($H94,P_All!$H$5:$M$204,($C$8-1)+2) -> 0.002 | K94: =VLOOKUP($H94,P_All!$O$5:$AD$204,3*($C$8-1)+2) -> 1 | L94: =VLOOKUP($H94,P_All!$O$5:$AD$204,3*($C$8-1)+3) -> 1 | M94: =VLOOKUP($H94,P_All!$O$5:$AD$204,3*($C$8-1)+4) -> 1 | O94: 124.5833333 | P94: =VLOOKUP($O94,P_All!$AF$5:$AU$244,3*($C$8-1)+2) -> 0.0013679 | Q94: =VLOOKUP($O94,P_All!$AF$5:$AU$244,3*($C$8-1)+3) -> 0.022289 | R94: =VLOOKUP($O94,P_All!$AF$5:$AU$244,3*($C$8-1)+4) -> 1 | S94: =VLOOKUP($O94,P_All!$AW$5:$BG$244,($C$8-1)+2) -> 0.236 | T94: =VLOOKUP($O94,P_All!$AW$5:$BG$244,($C$8-1)+7) -> 0
H95: 56 | I95: =VLOOKUP($H95,P_All!$A$5:$F$204,($C$8-1)+2) -> 0.778 | J95: =VLOOKUP($H95,P_All!$H$5:$M$204,($C$8-1)+2) -> 0.004 | K95: =VLOOKUP($H95,P_All!$O$5:$AD$204,3*($C$8-1)+2) -> 0.004016 | L95: =VLOOKUP($H95,P_All!$O$5:$AD$204,3*($C$8-1)+3) -> 1 | M95: =VLOOKUP($H95,P_All!$O$5:$AD$204,3*($C$8-1)+4) -> 1 | O95: 124.6666667 | P95: =VLOOKUP($O95,P_All!$AF$5:$AU$244,3*($C$8-1)+2) -> 0.0020941 | Q95: =VLOOKUP($O95,P_All!$AF$5:$AU$244,3*($C$8-1)+3) -> 0.021439 | R95: =VLOOKUP($O95,P_All!$AF$5:$AU$244,3*($C$8-1)+4) -> 1 | S95: =VLOOKUP($O95,P_All!$AW$5:$BG$244,($C$8-1)+2) -> 0.212 | T95: =VLOOKUP($O95,P_All!$AW$5:$BG$244,($C$8-1)+7) -> 0
H96: 57 | I96: =VLOOKUP($H96,P_All!$A$5:$F$204,($C$8-1)+2) -> 0.246 | J96: =VLOOKUP($H96,P_All!$H$5:$M$204,($C$8-1)+2) -> 0 | K96: =VLOOKUP($H96,P_All!$O$5:$AD$204,3*($C$8-1)+2) -> 0.0057 | L96: =VLOOKUP($H96,P_All!$O$5:$AD$204,3*($C$8-1)+3) -> 0.07074 | M96: =VLOOKUP($H96,P_All!$O$5:$AD$204,3*($C$8-1)+4) -> 1 | O96: 124.75 | P96: =VLOOKUP($O96,P_All!$AF$5:$AU$244,3*($C$8-1)+2) -> 0.0032732 | Q96: =VLOOKUP($O96,P_All!$AF$5:$AU$244,3*($C$8-1)+3) -> 0.014366 | R96: =VLOOKUP($O96,P_All!$AF$5:$AU$244,3*($C$8-1)+4) -> 1 | S96: =VLOOKUP($O96,P_All!$AW$5:$BG$244,($C$8-1)+2) -> 0.182 | T96: =VLOOKUP($O96,P_All!$AW$5:$BG$244,($C$8-1)+7) -> 0
H97: 58 | I97: =VLOOKUP($H97,P_All!$A$5:$F$204,($C$8-1)+2) -> 0.232 | J97: =VLOOKUP($H97,P_All!$H$5:$M$204,($C$8-1)+2) -> 0.002 | K97: =VLOOKUP($H97,P_All!$O$5:$AD$204,3*($C$8-1)+2) -> 0.0041951 | L97: =VLOOKUP($H97,P_All!$O$5:$AD$204,3*($C$8-1)+3) -> 0.069352 | M97: =VLOOKUP($H97,P_All!$O$5:$AD$204,3*($C$8-1)+4) -> 1 | O97: 124.8333333 | P97: =VLOOKUP($O97,P_All!$AF$5:$AU$244,3*($C$8-1)+2) -> 0.0025434 | Q97: =VLOOKUP($O97,P_All!$AF$5:$AU$244,3*($C$8-1)+3) -> 0.014411 | R97: =VLOOKUP($O97,P_All!$AF$5:$AU$244,3*($C$8-1)+4) -> 1 | S97: =VLOOKUP($O97,P_All!$AW$5:$BG$244,($C$8-1)+2) -> 0.22 | T97: =VLOOKUP($O97,P_All!$AW$5:$BG$244,($C$8-1)+7) -> 0
H98: 59 | I98: =VLOOKUP($H98,P_All!$A$5:$F$204,($C$8-1)+2) -> 0.244 | J98: =VLOOKUP($H98,P_All!$H$5:$M$204,($C$8-1)+2) -> 0.002 | K98: =VLOOKUP($H98,P_All!$O$5:$AD$204,3*($C$8-1)+2) -> 0.0093739 | L98: =VLOOKUP($H98,P_All!$O$5:$AD$204,3*($C$8-1)+3) -> 0.078057 | M98: =VLOOKUP($H98,P_All!$O$5:$AD$204,3*($C$8-1)+4) -> 1 | O98: 124.9166667 | P98: =VLOOKUP($O98,P_All!$AF$5:$AU$244,3*($C$8-1)+2) -> 0.0049137 | Q98: =VLOOKUP($O98,P_All!$AF$5:$AU$244,3*($C$8-1)+3) -> 0.022221 | R98: =VLOOKUP($O98,P_All!$AF$5:$AU$244,3*($C$8-1)+4) -> 1 | S98: =VLOOKUP($O98,P_All!$AW$5:$BG$244,($C$8-1)+2) -> 0.194 | T98: =VLOOKUP($O98,P_All!$AW$5:$BG$244,($C$8-1)+7) -> 0.002
H99: 60 | I99: =VLOOKUP($H99,P_All!$A$5:$F$204,($C$8-1)+2) -> 0.23 | J99: =VLOOKUP($H99,P_All!$H$5:$M$204,($C$8-1)+2) -> 0.002 | K99: =VLOOKUP($H99,P_All!$O$5:$AD$204,3*($C$8-1)+2) -> 0.01064 | L99: =VLOOKUP($H99,P_All!$O$5:$AD$204,3*($C$8-1)+3) -> 0.077383 | M99: =VLOOKUP($H99,P_All!$O$5:$AD$204,3*($C$8-1)+4) -> 1 | O99: 125 | P99: =VLOOKUP($O99,P_All!$AF$5:$AU$244,3*($C$8-1)+2) -> 0.015294 | Q99: =VLOOKUP($O99,P_All!$AF$5:$AU$244,3*($C$8-1)+3) -> 0.042302 | R99: =VLOOKUP($O99,P_All!$AF$5:$AU$244,3*($C$8-1)+4) -> 1 | S99: =VLOOKUP($O99,P_All!$AW$5:$BG$244,($C$8-1)+2) -> 0.19 | T99: =VLOOKUP($O99,P_All!$AW$5:$BG$244,($C$8-1)+7) -> 0.002
H100: 61 | I100: =VLOOKUP($H100,P_All!$A$5:$F$204,($C$8-1)+2) -> 0.238 | J100: =VLOOKUP($H100,P_All!$H$5:$M$204,($C$8-1)+2) -> 0.004 | K100: =VLOOKUP($H100,P_All!$O$5:$AD$204,3*($C$8-1)+2) -> 0.010827 | L100: =VLOOKUP($H100,P_All!$O$5:$AD$204,3*($C$8-1)+3) -> 0.073455 | M100: =VLOOKUP($H100,P_All!$O$5:$AD$204,3*($C$8-1)+4) -> 1 | O100: 125.0833333 | P100: =VLOOKUP($O100,P_All!$AF$5:$AU$244,3*($C$8-1)+2) -> 0.02878 | Q100: =VLOOKUP($O100,P_All!$AF$5:$AU$244,3*($C$8-1)+3) -> 0.071558 | R100: =VLOOKUP($O100,P_All!$AF$5:$AU$244,3*($C$8-1)+4) -> 1 | S100: =VLOOKUP($O100,P_All!$AW$5:$BG$244,($C$8-1)+2) -> 0.2 | T100: =VLOOKUP($O100,P_All!$AW$5:$BG$244,($C$8-1)+7) -> 0
H101: 62 | I101: =VLOOKUP($H101,P_All!$A$5:$F$204,($C$8-1)+2) -> 0.252 | J101: =VLOOKUP($H101,P_All!$H$5:$M$204,($C$8-1)+2) -> 0.002 | K101: =VLOOKUP($H101,P_All!$O$5:$AD$204,3*($C$8-1)+2) -> 0.010245 | L101: =VLOOKUP($H101,P_All!$O$5:$AD$204,3*($C$8-1)+3) -> 0.080577 | M101: =VLOOKUP($H101,P_All!$O$5:$AD$204,3*($C$8-1)+4) -> 1 | O101: 125.1666667 | P101: =VLOOKUP($O101,P_All!$AF$5:$AU$244,3*($C$8-1)+2) -> 0.031717 | Q101: =VLOOKUP($O101,P_All!$AF$5:$AU$244,3*($C$8-1)+3) -> 0.10123 | R101: =VLOOKUP($O101,P_All!$AF$5:$AU$244,3*($C$8-1)+4) -> 1 | S101: =VLOOKUP($O101,P_All!$AW$5:$BG$244,($C$8-1)+2) -> 0.176 | T101: =VLOOKUP($O101,P_All!$AW$5:$BG$244,($C$8-1)+7) -> 0
H102: 63 | I102: =VLOOKUP($H102,P_All!$A$5:$F$204,($C$8-1)+2) -> 0.244 | J102: =VLOOKUP($H102,P_All!$H$5:$M$204,($C$8-1)+2) -> 0.002 | K102: =VLOOKUP($H102,P_All!$O$5:$AD$204,3*($C$8-1)+2) -> 0.0098453 | L102: =VLOOKUP($H102,P_All!$O$5:$AD$204,3*($C$8-1)+3) -> 0.0786 | M102: =VLOOKUP($H102,P_All!$O$5:$AD$204,3*($C$8-1)+4) -> 1 | O102: 125.25 | P102: =VLOOKUP($O102,P_All!$AF$5:$AU$244,3*($C$8-1)+2) -> 0.0054116 | Q102: =VLOOKUP($O102,P_All!$AF$5:$AU$244,3*($C$8-1)+3) -> 0.1173 | R102: =VLOOKUP($O102,P_All!$AF$5:$AU$244,3*($C$8-1)+4) -> 1 | S102: =VLOOKUP($O102,P_All!$AW$5:$BG$244,($C$8-1)+2) -> 0.208 | T102: =VLOOKUP($O102,P_All!$AW$5:$BG$244,($C$8-1)+7) -> 0.006
H103: 64 | I103: =VLOOKUP($H103,P_All!$A$5:$F$204,($C$8-1)+2) -> 0.256 | J103: =VLOOKUP($H103,P_All!$H$5:$M$204,($C$8-1)+2) -> 0.004 | K103: =VLOOKUP($H103,P_All!$O$5:$AD$204,3*($C$8-1)+2) -> 0.012315 | L103: =VLOOKUP($H103,P_All!$O$5:$AD$204,3*($C$8-1)+3) -> 0.075466 | M103: =VLOOKUP($H103,P_All!$O$5:$AD$204,3*($C$8-1)+4) -> 1 | O103: 125.3333333 | P103: =VLOOKUP($O103,P_All!$AF$5:$AU$244,3*($C$8-1)+2) -> 0.0010675 | Q103: =VLOOKUP($O103,P_All!$AF$5:$AU$244,3*($C$8-1)+3) -> 0.0068775 | R103: =VLOOKUP($O103,P_All!$AF$5:$AU$244,3*($C$8-1)+4) -> 1 | S103: =VLOOKUP($O103,P_All!$AW$5:$BG$244,($C$8-1)+2) -> 0.226 | T103: =VLOOKUP($O103,P_All!$AW$5:$BG$244,($C$8-1)+7) -> 0
H104: 65 | I104: =VLOOKUP($H104,P_All!$A$5:$F$204,($C$8-1)+2) -> 0.244 | J104: =VLOOKUP($H104,P_All!$H$5:$M$204,($C$8-1)+2) -> 0.002 | K104: =VLOOKUP($H104,P_All!$O$5:$AD$204,3*($C$8-1)+2) -> 0.0081957 | L104: =VLOOKUP($H104,P_All!$O$5:$AD$204,3*($C$8-1)+3) -> 0.072583 | M104: =VLOOKUP($H104,P_All!$O$5:$AD$204,3*($C$8-1)+4) -> 1 | O104: 125.4166667 | P104: =VLOOKUP($O104,P_All!$AF$5:$AU$244,3*($C$8-1)+2) -> 0.0014569 | Q104: =VLOOKUP($O104,P_All!$AF$5:$AU$244,3*($C$8-1)+3) -> 0.0073493 | R104: =VLOOKUP($O104,P_All!$AF$5:$AU$244,3*($C$8-1)+4) -> 1 | S104: =VLOOKUP($O104,P_All!$AW$5:$BG$244,($C$8-1)+2) -> 0.218 | T104: =VLOOKUP($O104,P_All!$AW$5:$BG$244,($C$8-1)+7) -> 0.002
H105: 66 | I105: =VLOOKUP($H105,P_All!$A$5:$F$204,($C$8-1)+2) -> 0.248 | J105: =VLOOKUP($H105,P_All!$H$5:$M$204,($C$8-1)+2) -> 0.002 | K105: =VLOOKUP($H105,P_All!$O$5:$AD$204,3*($C$8-1)+2) -> 0.013442 | L105: =VLOOKUP($H105,P_All!$O$5:$AD$204,3*($C$8-1)+3) -> 0.08604 | M105: =VLOOKUP($H105,P_All!$O$5:$AD$204,3*($C$8-1)+4) -> 1 | O105: =O104+1/12 -> 125.5 | P105: =VLOOKUP($O105,P_All!$AF$5:$AU$244,3*($C$8-1)+2) -> 0.0029319 | Q105: =VLOOKUP($O105,P_All!$AF$5:$AU$244,3*($C$8-1)+3) -> 0.013509 | R105: =VLOOKUP($O105,P_All!$AF$5:$AU$244,3*($C$8-1)+4) -> 1 | S105: =VLOOKUP($O105,P_All!$AW$5:$BG$244,($C$8-1)+2) -> 0.214 | T105: =VLOOKUP($O105,P_All!$AW$5:$BG$244,($C$8-1)+7) -> 0
H106: 67 | I106: =VLOOKUP($H106,P_All!$A$5:$F$204,($C$8-1)+2) -> 0.252 | J106: =VLOOKUP($H106,P_All!$H$5:$M$204,($C$8-1)+2) -> 0.002 | K106: =VLOOKUP($H106,P_All!$O$5:$AD$204,3*($C$8-1)+2) -> 0.011198 | L106: =VLOOKUP($H106,P_All!$O$5:$AD$204,3*($C$8-1)+3) -> 0.074552 | M106: =VLOOKUP($H106,P_All!$O$5:$AD$204,3*($C$8-1)+4) -> 1 | O106: 125.5833333 | P106: =VLOOKUP($O106,P_All!$AF$5:$AU$244,3*($C$8-1)+2) -> 0.0016504 | Q106: =VLOOKUP($O106,P_All!$AF$5:$AU$244,3*($C$8-1)+3) -> 0.02889 | R106: =VLOOKUP($O106,P_All!$AF$5:$AU$244,3*($C$8-1)+4) -> 1 | S106: =VLOOKUP($O106,P_All!$AW$5:$BG$244,($C$8-1)+2) -> 0.254 | T106: =VLOOKUP($O106,P_All!$AW$5:$BG$244,($C$8-1)+7) -> 0
H107: 68 | I107: =VLOOKUP($H107,P_All!$A$5:$F$204,($C$8-1)+2) -> 0.26 | J107: =VLOOKUP($H107,P_All!$H$5:$M$204,($C$8-1)+2) -> 0.002 | K107: =VLOOKUP($H107,P_All!$O$5:$AD$204,3*($C$8-1)+2) -> 0.0075556 | L107: =VLOOKUP($H107,P_All!$O$5:$AD$204,3*($C$8-1)+3) -> 0.073341 | M107: =VLOOKUP($H107,P_All!$O$5:$AD$204,3*($C$8-1)+4) -> 1 | O107: 125.6666667 | P107: =VLOOKUP($O107,P_All!$AF$5:$AU$244,3*($C$8-1)+2) -> 0.0024787 | Q107: =VLOOKUP($O107,P_All!$AF$5:$AU$244,3*($C$8-1)+3) -> 0.023102 | R107: =VLOOKUP($O107,P_All!$AF$5:$AU$244,3*($C$8-1)+4) -> 1 | S107: =VLOOKUP($O107,P_All!$AW$5:$BG$244,($C$8-1)+2) -> 0.24 | T107: =VLOOKUP($O107,P_All!$AW$5:$BG$244,($C$8-1)+7) -> 0.002
H108: 69 | I108: =VLOOKUP($H108,P_All!$A$5:$F$204,($C$8-1)+2) -> 0.234 | J108: =VLOOKUP($H108,P_All!$H$5:$M$204,($C$8-1)+2) -> 0.002 | K108: =VLOOKUP($H108,P_All!$O$5:$AD$204,3*($C$8-1)+2) -> 0.0062591 | L108: =VLOOKUP($H108,P_All!$O$5:$AD$204,3*($C$8-1)+3) -> 0.07339 | M108: =VLOOKUP($H108,P_All!$O$5:$AD$204,3*($C$8-1)+4) -> 1 | O108: 125.75 | P108: =VLOOKUP($O108,P_All!$AF$5:$AU$244,3*($C$8-1)+2) -> 0.0040259 | Q108: =VLOOKUP($O108,P_All!$AF$5:$AU$244,3*($C$8-1)+3) -> 0.017069 | R108: =VLOOKUP($O108,P_All!$AF$5:$AU$244,3*($C$8-1)+4) -> 1 | S108: =VLOOKUP($O108,P_All!$AW$5:$BG$244,($C$8-1)+2) -> 0.2 | T108: =VLOOKUP($O108,P_All!$AW$5:$BG$244,($C$8-1)+7) -> 0.002
H109: 70 | I109: =VLOOKUP($H109,P_All!$A$5:$F$204,($C$8-1)+2) -> 0.248 | J109: =VLOOKUP($H109,P_All!$H$5:$M$204,($C$8-1)+2) -> 0.002 | K109: =VLOOKUP($H109,P_All!$O$5:$AD$204,3*($C$8-1)+2) -> 0.0058872 | L109: =VLOOKUP($H109,P_All!$O$5:$AD$204,3*($C$8-1)+3) -> 0.073181 | M109: =VLOOKUP($H109,P_All!$O$5:$AD$204,3*($C$8-1)+4) -> 1 | O109: 125.8333333 | P109: =VLOOKUP($O109,P_All!$AF$5:$AU$244,3*($C$8-1)+2) -> 0.0028071 | Q109: =VLOOKUP($O109,P_All!$AF$5:$AU$244,3*($C$8-1)+3) -> 0.014374 | R109: =VLOOKUP($O109,P_All!$AF$5:$AU$244,3*($C$8-1)+4) -> 1 | S109: =VLOOKUP($O109,P_All!$AW$5:$BG$244,($C$8-1)+2) -> 0.184 | T109: =VLOOKUP($O109,P_All!$AW$5:$BG$244,($C$8-1)+7) -> 0
H110: 71 | I110: =VLOOKUP($H110,P_All!$A$5:$F$204,($C$8-1)+2) -> 0.264 | J110: =VLOOKUP($H110,P_All!$H$5:$M$204,($C$8-1)+2) -> 0.002 | K110: =VLOOKUP($H110,P_All!$O$5:$AD$204,3*($C$8-1)+2) -> 0.010995 | L110: =VLOOKUP($H110,P_All!$O$5:$AD$204,3*($C$8-1)+3) -> 0.076519 | M110: =VLOOKUP($H110,P_All!$O$5:$AD$204,3*($C$8-1)+4) -> 1 | O110: 125.9166667 | P110: =VLOOKUP($O110,P_All!$AF$5:$AU$244,3*($C$8-1)+2) -> 0.0051536 | Q110: =VLOOKUP($O110,P_All!$AF$5:$AU$244,3*($C$8-1)+3) -> 0.021338 | R110: =VLOOKUP($O110,P_All!$AF$5:$AU$244,3*($C$8-1)+4) -> 1 | S110: =VLOOKUP($O110,P_All!$AW$5:$BG$244,($C$8-1)+2) -> 0.204 | T110: =VLOOKUP($O110,P_All!$AW$5:$BG$244,($C$8-1)+7) -> 0
H111: 72 | I111: =VLOOKUP($H111,P_All!$A$5:$F$204,($C$8-1)+2) -> 0.262 | J111: =VLOOKUP($H111,P_All!$H$5:$M$204,($C$8-1)+2) -> 0 | K111: =VLOOKUP($H111,P_All!$O$5:$AD$204,3*($C$8-1)+2) -> 0.009973 | L111: =VLOOKUP($H111,P_All!$O$5:$AD$204,3*($C$8-1)+3) -> 0.07911 | M111: =VLOOKUP($H111,P_All!$O$5:$AD$204,3*($C$8-1)+4) -> 1 | O111: 126 | P111: =VLOOKUP($O111,P_All!$AF$5:$AU$244,3*($C$8-1)+2) -> 0.014622 | Q111: =VLOOKUP($O111,P_All!$AF$5:$AU$244,3*($C$8-1)+3) -> 0.04175 | R111: =VLOOKUP($O111,P_All!$AF$5:$AU$244,3*($C$8-1)+4) -> 1 | S111: =VLOOKUP($O111,P_All!$AW$5:$BG$244,($C$8-1)+2) -> 0.212 | T111: =VLOOKUP($O111,P_All!$AW$5:$BG$244,($C$8-1)+7) -> 0
H112: 73 | I112: =VLOOKUP($H112,P_All!$A$5:$F$204,($C$8-1)+2) -> 0.232 | J112: =VLOOKUP($H112,P_All!$H$5:$M$204,($C$8-1)+2) -> 0.002 | K112: =VLOOKUP($H112,P_All!$O$5:$AD$204,3*($C$8-1)+2) -> 0.011764 | L112: =VLOOKUP($H112,P_All!$O$5:$AD$204,3*($C$8-1)+3) -> 0.074817 | M112: =VLOOKUP($H112,P_All!$O$5:$AD$204,3*($C$8-1)+4) -> 1 | O112: 126.0833333 | P112: =VLOOKUP($O112,P_All!$AF$5:$AU$244,3*($C$8-1)+2) -> 0.025185 | Q112: =VLOOKUP($O112,P_All!$AF$5:$AU$244,3*($C$8-1)+3) -> 0.069066 | R112: =VLOOKUP($O112,P_All!$AF$5:$AU$244,3*($C$8-1)+4) -> 1 | S112: =VLOOKUP($O112,P_All!$AW$5:$BG$244,($C$8-1)+2) -> 0.216 | T112: =VLOOKUP($O112,P_All!$AW$5:$BG$244,($C$8-1)+7) -> 0.002
H113: 74 | I113: =VLOOKUP($H113,P_All!$A$5:$F$204,($C$8-1)+2) -> 0.232 | J113: =VLOOKUP($H113,P_All!$H$5:$M$204,($C$8-1)+2) -> 0.006 | K113: =VLOOKUP($H113,P_All!$O$5:$AD$204,3*($C$8-1)+2) -> 0.0064592 | L113: =VLOOKUP($H113,P_All!$O$5:$AD$204,3*($C$8-1)+3) -> 0.072101 | M113: =VLOOKUP($H113,P_All!$O$5:$AD$204,3*($C$8-1)+4) -> 1 | O113: 126.1666667 | P113: =VLOOKUP($O113,P_All!$AF$5:$AU$244,3*($C$8-1)+2) -> 0.027974 | Q113: =VLOOKUP($O113,P_All!$AF$5:$AU$244,3*($C$8-1)+3) -> 0.10265 | R113: =VLOOKUP($O113,P_All!$AF$5:$AU$244,3*($C$8-1)+4) -> 1 | S113: =VLOOKUP($O113,P_All!$AW$5:$BG$244,($C$8-1)+2) -> 0.196 | T113: =VLOOKUP($O113,P_All!$AW$5:$BG$244,($C$8-1)+7) -> 0.002
H114: 75 | I114: =VLOOKUP($H114,P_All!$A$5:$F$204,($C$8-1)+2) -> 0.248 | J114: =VLOOKUP($H114,P_All!$H$5:$M$204,($C$8-1)+2) -> 0.002 | K114: =VLOOKUP($H114,P_All!$O$5:$AD$204,3*($C$8-1)+2) -> 0.009893 | L114: =VLOOKUP($H114,P_All!$O$5:$AD$204,3*($C$8-1)+3) -> 0.07695 | M114: =VLOOKUP($H114,P_All!$O$5:$AD$204,3*($C$8-1)+4) -> 1 | O114: 126.25 | P114: =VLOOKUP($O114,P_All!$AF$5:$AU$244,3*($C$8-1)+2) -> 0.0057531 | Q114: =VLOOKUP($O114,P_All!$AF$5:$AU$244,3*($C$8-1)+3) -> 0.10046 | R114: =VLOOKUP($O114,P_All!$AF$5:$AU$244,3*($C$8-1)+4) -> 1 | S114: =VLOOKUP($O114,P_All!$AW$5:$BG$244,($C$8-1)+2) -> 0.2 | T114: =VLOOKUP($O114,P_All!$AW$5:$BG$244,($C$8-1)+7) -> 0.004
H115: 76 | I115: =VLOOKUP($H115,P_All!$A$5:$F$204,($C$8-1)+2) -> 0.226 | J115: =VLOOKUP($H115,P_All!$H$5:$M$204,($C$8-1)+2) -> 0.002 | K115: =VLOOKUP($H115,P_All!$O$5:$AD$204,3*($C$8-1)+2) -> 0.007619 | L115: =VLOOKUP($H115,P_All!$O$5:$AD$204,3*($C$8-1)+3) -> 0.072651 | M115: =VLOOKUP($H115,P_All!$O$5:$AD$204,3*($C$8-1)+4) -> 1 | O115: 126.3333333 | P115: =VLOOKUP($O115,P_All!$AF$5:$AU$244,3*($C$8-1)+2) -> 0.00095212 | Q115: =VLOOKUP($O115,P_All!$AF$5:$AU$244,3*($C$8-1)+3) -> 0.0063007 | R115: =VLOOKUP($O115,P_All!$AF$5:$AU$244,3*($C$8-1)+4) -> 1 | S115: =VLOOKUP($O115,P_All!$AW$5:$BG$244,($C$8-1)+2) -> 0.202 | T115: =VLOOKUP($O115,P_All!$AW$5:$BG$244,($C$8-1)+7) -> 0.004
H116: 77 | I116: =VLOOKUP($H116,P_All!$A$5:$F$204,($C$8-1)+2) -> 0.246 | J116: =VLOOKUP($H116,P_All!$H$5:$M$204,($C$8-1)+2) -> 0.002 | K116: =VLOOKUP($H116,P_All!$O$5:$AD$204,3*($C$8-1)+2) -> 0.013496 | L116: =VLOOKUP($H116,P_All!$O$5:$AD$204,3*($C$8-1)+3) -> 0.07574 | M116: =VLOOKUP($H116,P_All!$O$5:$AD$204,3*($C$8-1)+4) -> 1 | O116: 126.4166667 | P116: =VLOOKUP($O116,P_All!$AF$5:$AU$244,3*($C$8-1)+2) -> 0.001476 | Q116: =VLOOKUP($O116,P_All!$AF$5:$AU$244,3*($C$8-1)+3) -> 0.0086044 | R116: =VLOOKUP($O116,P_All!$AF$5:$AU$244,3*($C$8-1)+4) -> 1 | S116: =VLOOKUP($O116,P_All!$AW$5:$BG$244,($C$8-1)+2) -> 0.254 | T116: =VLOOKUP($O116,P_All!$AW$5:$BG$244,($C$8-1)+7) -> 0
H117: 78 | I117: =VLOOKUP($H117,P_All!$A$5:$F$204,($C$8-1)+2) -> 0.256 | J117: =VLOOKUP($H117,P_All!$H$5:$M$204,($C$8-1)+2) -> 0.004 | K117: =VLOOKUP($H117,P_All!$O$5:$AD$204,3*($C$8-1)+2) -> 0.011559 | L117: =VLOOKUP($H117,P_All!$O$5:$AD$204,3*($C$8-1)+3) -> 0.07598 | M117: =VLOOKUP($H117,P_All!$O$5:$AD$204,3*($C$8-1)+4) -> 1 | O117: 126.5 | P117: =VLOOKUP($O117,P_All!$AF$5:$AU$244,3*($C$8-1)+2) -> 0.0031725 | Q117: =VLOOKUP($O117,P_All!$AF$5:$AU$244,3*($C$8-1)+3) -> 0.012566 | R117: =VLOOKUP($O117,P_All!$AF$5:$AU$244,3*($C$8-1)+4) -> 1 | S117: =VLOOKUP($O117,P_All!$AW$5:$BG$244,($C$8-1)+2) -> 0.204 | T117: =VLOOKUP($O117,P_All!$AW$5:$BG$244,($C$8-1)+7) -> 0
H118: 79 | I118: =VLOOKUP($H118,P_All!$A$5:$F$204,($C$8-1)+2) -> 0.232 | J118: =VLOOKUP($H118,P_All!$H$5:$M$204,($C$8-1)+2) -> 0.002 | K118: =VLOOKUP($H118,P_All!$O$5:$AD$204,3*($C$8-1)+2) -> 0.014279 | L118: =VLOOKUP($H118,P_All!$O$5:$AD$204,3*($C$8-1)+3) -> 0.077634 | M118: =VLOOKUP($H118,P_All!$O$5:$AD$204,3*($C$8-1)+4) -> 1 | O118: 126.5833333 | P118: =VLOOKUP($O118,P_All!$AF$5:$AU$244,3*($C$8-1)+2) -> 0.0014313 | Q118: =VLOOKUP($O118,P_All!$AF$5:$AU$244,3*($C$8-1)+3) -> 0.030327 | R118: =VLOOKUP($O118,P_All!$AF$5:$AU$244,3*($C$8-1)+4) -> 1 | S118: =VLOOKUP($O118,P_All!$AW$5:$BG$244,($C$8-1)+2) -> 0.236 | T118: =VLOOKUP($O118,P_All!$AW$5:$BG$244,($C$8-1)+7) -> 0.002
H119: 80 | I119: =VLOOKUP($H119,P_All!$A$5:$F$204,($C$8-1)+2) -> 0.236 | J119: =VLOOKUP($H119,P_All!$H$5:$M$204,($C$8-1)+2) -> 0.004 | K119: =VLOOKUP($H119,P_All!$O$5:$AD$204,3*($C$8-1)+2) -> 0.0079486 | L119: =VLOOKUP($H119,P_All!$O$5:$AD$204,3*($C$8-1)+3) -> 0.072138 | M119: =VLOOKUP($H119,P_All!$O$5:$AD$204,3*($C$8-1)+4) -> 1 | O119: 126.6666667 | P119: =VLOOKUP($O119,P_All!$AF$5:$AU$244,3*($C$8-1)+2) -> 0.0022608 | Q119: =VLOOKUP($O119,P_All!$AF$5:$AU$244,3*($C$8-1)+3) -> 0.019815 | R119: =VLOOKUP($O119,P_All!$AF$5:$AU$244,3*($C$8-1)+4) -> 1 | S119: =VLOOKUP($O119,P_All!$AW$5:$BG$244,($C$8-1)+2) -> 0.236 | T119: =VLOOKUP($O119,P_All!$AW$5:$BG$244,($C$8-1)+7) -> 0.002
H120: 81 | I120: =VLOOKUP($H120,P_All!$A$5:$F$204,($C$8-1)+2) -> 0.238 | J120: =VLOOKUP($H120,P_All!$H$5:$M$204,($C$8-1)+2) -> 0.002 | K120: =VLOOKUP($H120,P_All!$O$5:$AD$204,3*($C$8-1)+2) -> 0.014481 | L120: =VLOOKUP($H120,P_All!$O$5:$AD$204,3*($C$8-1)+3) -> 0.082669 | M120: =VLOOKUP($H120,P_All!$O$5:$AD$204,3*($C$8-1)+4) -> 1 | O120: 126.75 | P120: =VLOOKUP($O120,P_All!$AF$5:$AU$244,3*($C$8-1)+2) -> 0.0033827 | Q120: =VLOOKUP($O120,P_All!$AF$5:$AU$244,3*($C$8-1)+3) -> 0.015259 | R120: =VLOOKUP($O120,P_All!$AF$5:$AU$244,3*($C$8-1)+4) -> 1 | S120: =VLOOKUP($O120,P_All!$AW$5:$BG$244,($C$8-1)+2) -> 0.23 | T120: =VLOOKUP($O120,P_All!$AW$5:$BG$244,($C$8-1)+7) -> 0
H121: 82 | I121: =VLOOKUP($H121,P_All!$A$5:$F$204,($C$8-1)+2) -> 0.274 | J121: =VLOOKUP($H121,P_All!$H$5:$M$204,($C$8-1)+2) -> 0.002 | K121: =VLOOKUP($H121,P_All!$O$5:$AD$204,3*($C$8-1)+2) -> 0.016566 | L121: =VLOOKUP($H121,P_All!$O$5:$AD$204,3*($C$8-1)+3) -> 0.075944 | M121: =VLOOKUP($H121,P_All!$O$5:$AD$204,3*($C$8-1)+4) -> 1 | O121: 126.8333333 | P121: =VLOOKUP($O121,P_All!$AF$5:$AU$244,3*($C$8-1)+2) -> 0.002156 | Q121: =VLOOKUP($O121,P_All!$AF$5:$AU$244,3*($C$8-1)+3) -> 0.01277 | R121: =VLOOKUP($O121,P_All!$AF$5:$AU$244,3*($C$8-1)+4) -> 1 | S121: =VLOOKUP($O121,P_All!$AW$5:$BG$244,($C$8-1)+2) -> 0.194 | T121: =VLOOKUP($O121,P_All!$AW$5:$BG$244,($C$8-1)+7) -> 0
H122: 83 | I122: =VLOOKUP($H122,P_All!$A$5:$F$204,($C$8-1)+2) -> 0.23 | J122: =VLOOKUP($H122,P_All!$H$5:$M$204,($C$8-1)+2) -> 0.002 | K122: =VLOOKUP($H122,P_All!$O$5:$AD$204,3*($C$8-1)+2) -> 0.017016 | L122: =VLOOKUP($H122,P_All!$O$5:$AD$204,3*($C$8-1)+3) -> 0.079562 | M122: =VLOOKUP($H122,P_All!$O$5:$AD$204,3*($C$8-1)+4) -> 1 | O122: 126.9166667 | P122: =VLOOKUP($O122,P_All!$AF$5:$AU$244,3*($C$8-1)+2) -> 0.0050996 | Q122: =VLOOKUP($O122,P_All!$AF$5:$AU$244,3*($C$8-1)+3) -> 0.022653 | R122: =VLOOKUP($O122,P_All!$AF$5:$AU$244,3*($C$8-1)+4) -> 1 | S122: =VLOOKUP($O122,P_All!$AW$5:$BG$244,($C$8-1)+2) -> 0.202 | T122: =VLOOKUP($O122,P_All!$AW$5:$BG$244,($C$8-1)+7) -> 0
H123: 84 | I123: =VLOOKUP($H123,P_All!$A$5:$F$204,($C$8-1)+2) -> 0.244 | J123: =VLOOKUP($H123,P_All!$H$5:$M$204,($C$8-1)+2) -> 0.004 | K123: =VLOOKUP($H123,P_All!$O$5:$AD$204,3*($C$8-1)+2) -> 0.010246 | L123: =VLOOKUP($H123,P_All!$O$5:$AD$204,3*($C$8-1)+3) -> 0.085978 | M123: =VLOOKUP($H123,P_All!$O$5:$AD$204,3*($C$8-1)+4) -> 1 | O123: 127 | P123: =VLOOKUP($O123,P_All!$AF$5:$AU$244,3*($C$8-1)+2) -> 0.01414 | Q123: =VLOOKUP($O123,P_All!$AF$5:$AU$244,3*($C$8-1)+3) -> 0.039778 | R123: =VLOOKUP($O123,P_All!$AF$5:$AU$244,3*($C$8-1)+4) -> 1 | S123: =VLOOKUP($O123,P_All!$AW$5:$BG$244,($C$8-1)+2) -> 0.192 | T123: =VLOOKUP($O123,P_All!$AW$5:$BG$244,($C$8-1)+7) -> 0.002
H124: 85 | I124: =VLOOKUP($H124,P_All!$A$5:$F$204,($C$8-1)+2) -> 0.234 | J124: =VLOOKUP($H124,P_All!$H$5:$M$204,($C$8-1)+2) -> 0.004 | K124: =VLOOKUP($H124,P_All!$O$5:$AD$204,3*($C$8-1)+2) -> 0.015375 | L124: =VLOOKUP($H124,P_All!$O$5:$AD$204,3*($C$8-1)+3) -> 0.07723 | M124: =VLOOKUP($H124,P_All!$O$5:$AD$204,3*($C$8-1)+4) -> 1 | O124: 127.0833333 | P124: =VLOOKUP($O124,P_All!$AF$5:$AU$244,3*($C$8-1)+2) -> 0.024338 | Q124: =VLOOKUP($O124,P_All!$AF$5:$AU$244,3*($C$8-1)+3) -> 0.070668 | R124: =VLOOKUP($O124,P_All!$AF$5:$AU$244,3*($C$8-1)+4) -> 1 | S124: =VLOOKUP($O124,P_All!$AW$5:$BG$244,($C$8-1)+2) -> 0.18 | T124: =VLOOKUP($O124,P_All!$AW$5:$BG$244,($C$8-1)+7) -> 0.002
H125: 86 | I125: =VLOOKUP($H125,P_All!$A$5:$F$204,($C$8-1)+2) -> 0.242 | J125: =VLOOKUP($H125,P_All!$H$5:$M$204,($C$8-1)+2) -> 0.002 | K125: =VLOOKUP($H125,P_All!$O$5:$AD$204,3*($C$8-1)+2) -> 0.013041 | L125: =VLOOKUP($H125,P_All!$O$5:$AD$204,3*($C$8-1)+3) -> 0.079742 | M125: =VLOOKUP($H125,P_All!$O$5:$AD$204,3*($C$8-1)+4) -> 1 | O125: 127.1666667 | P125: =VLOOKUP($O125,P_All!$AF$5:$AU$244,3*($C$8-1)+2) -> 0.0329 | Q125: =VLOOKUP($O125,P_All!$AF$5:$AU$244,3*($C$8-1)+3) -> 0.11726 | R125: =VLOOKUP($O125,P_All!$AF$5:$AU$244,3*($C$8-1)+4) -> 1 | S125: =VLOOKUP($O125,P_All!$AW$5:$BG$244,($C$8-1)+2) -> 0.206 | T125: =VLOOKUP($O125,P_All!$AW$5:$BG$244,($C$8-1)+7) -> 0.01
H126: 87 | I126: =VLOOKUP($H126,P_All!$A$5:$F$204,($C$8-1)+2) -> 0.24 | J126: =VLOOKUP($H126,P_All!$H$5:$M$204,($C$8-1)+2) -> 0.002 | K126: =VLOOKUP($H126,P_All!$O$5:$AD$204,3*($C$8-1)+2) -> 0.0083115 | L126: =VLOOKUP($H126,P_All!$O$5:$AD$204,3*($C$8-1)+3) -> 0.077656 | M126: =VLOOKUP($H126,P_All!$O$5:$AD$204,3*($C$8-1)+4) -> 1 | O126: 127.25 | P126: =VLOOKUP($O126,P_All!$AF$5:$AU$244,3*($C$8-1)+2) -> 0.0051957 | Q126: =VLOOKUP($O126,P_All!$AF$5:$AU$244,3*($C$8-1)+3) -> 0.10712 | R126: =VLOOKUP($O126,P_All!$AF$5:$AU$244,3*($C$8-1)+4) -> 1 | S126: =VLOOKUP($O126,P_All!$AW$5:$BG$244,($C$8-1)+2) -> 0.196 | T126: =VLOOKUP($O126,P_All!$AW$5:$BG$244,($C$8-1)+7) -> 0.004
H127: 88 | I127: =VLOOKUP($H127,P_All!$A$5:$F$204,($C$8-1)+2) -> 0.246 | J127: =VLOOKUP($H127,P_All!$H$5:$M$204,($C$8-1)+2) -> 0.004 | K127: =VLOOKUP($H127,P_All!$O$5:$AD$204,3*($C$8-1)+2) -> 0.01773 | L127: =VLOOKUP($H127,P_All!$O$5:$AD$204,3*($C$8-1)+3) -> 0.080795 | M127: =VLOOKUP($H127,P_All!$O$5:$AD$204,3*($C$8-1)+4) -> 1 | O127: 127.3333333 | P127: =VLOOKUP($O127,P_All!$AF$5:$AU$244,3*($C$8-1)+2) -> 0.0010324 | Q127: =VLOOKUP($O127,P_All!$AF$5:$AU$244,3*($C$8-1)+3) -> 0.0067291 | R127: =VLOOKUP($O127,P_All!$AF$5:$AU$244,3*($C$8-1)+4) -> 1 | S127: =VLOOKUP($O127,P_All!$AW$5:$BG$244,($C$8-1)+2) -> 0.206 | T127: =VLOOKUP($O127,P_All!$AW$5:$BG$244,($C$8-1)+7) -> 0.002
H128: 89 | I128: =VLOOKUP($H128,P_All!$A$5:$F$204,($C$8-1)+2) -> 0.234 | J128: =VLOOKUP($H128,P_All!$H$5:$M$204,($C$8-1)+2) -> 0.004 | K128: =VLOOKUP($H128,P_All!$O$5:$AD$204,3*($C$8-1)+2) -> 0.021635 | L128: =VLOOKUP($H128,P_All!$O$5:$AD$204,3*($C$8-1)+3) -> 0.084933 | M128: =VLOOKUP($H128,P_All!$O$5:$AD$204,3*($C$8-1)+4) -> 1 | O128: 127.4166667 | P128: =VLOOKUP($O128,P_All!$AF$5:$AU$244,3*($C$8-1)+2) -> 0.0014778 | Q128: =VLOOKUP($O128,P_All!$AF$5:$AU$244,3*($C$8-1)+3) -> 0.0070392 | R128: =VLOOKUP($O128,P_All!$AF$5:$AU$244,3*($C$8-1)+4) -> 1 | S128: =VLOOKUP($O128,P_All!$AW$5:$BG$244,($C$8-1)+2) -> 0.218 | T128: =VLOOKUP($O128,P_All!$AW$5:$BG$244,($C$8-1)+7) -> 0
H129: 90 | I129: =VLOOKUP($H129,P_All!$A$5:$F$204,($C$8-1)+2) -> 0.258 | J129: =VLOOKUP($H129,P_All!$H$5:$M$204,($C$8-1)+2) -> 0.002 | K129: =VLOOKUP($H129,P_All!$O$5:$AD$204,3*($C$8-1)+2) -> 0.015334 | L129: =VLOOKUP($H129,P_All!$O$5:$AD$204,3*($C$8-1)+3) -> 0.087496 | M129: =VLOOKUP($H129,P_All!$O$5:$AD$204,3*($C$8-1)+4) -> 1 | O129: 127.5 | P129: =VLOOKUP($O129,P_All!$AF$5:$AU$244,3*($C$8-1)+2) -> 0.0030489 | Q129: =VLOOKUP($O129,P_All!$AF$5:$AU$244,3*($C$8-1)+3) -> 0.012022 | R129: =VLOOKUP($O129,P_All!$AF$5:$AU$244,3*($C$8-1)+4) -> 1 | S129: =VLOOKUP($O129,P_All!$AW$5:$BG$244,($C$8-1)+2) -> 0.23 | T129: =VLOOKUP($O129,P_All!$AW$5:$BG$244,($C$8-1)+7) -> 0
H130: 91 | I130: =VLOOKUP($H130,P_All!$A$5:$F$204,($C$8-1)+2) -> 0.254 | J130: =VLOOKUP($H130,P_All!$H$5:$M$204,($C$8-1)+2) -> 0.004 | K130: =VLOOKUP($H130,P_All!$O$5:$AD$204,3*($C$8-1)+2) -> 0.015287 | L130: =VLOOKUP($H130,P_All!$O$5:$AD$204,3*($C$8-1)+3) -> 0.088576 | M130: =VLOOKUP($H130,P_All!$O$5:$AD$204,3*($C$8-1)+4) -> 1 | O130: 127.5833333 | P130: =VLOOKUP($O130,P_All!$AF$5:$AU$244,3*($C$8-1)+2) -> 0.0012575 | Q130: =VLOOKUP($O130,P_All!$AF$5:$AU$244,3*($C$8-1)+3) -> 0.019145 | R130: =VLOOKUP($O130,P_All!$AF$5:$AU$244,3*($C$8-1)+4) -> 1 | S130: =VLOOKUP($O130,P_All!$AW$5:$BG$244,($C$8-1)+2) -> 0.224 | T130: =VLOOKUP($O130,P_All!$AW$5:$BG$244,($C$8-1)+7) -> 0
H131: 92 | I131: =VLOOKUP($H131,P_All!$A$5:$F$204,($C$8-1)+2) -> 0.254 | J131: =VLOOKUP($H131,P_All!$H$5:$M$204,($C$8-1)+2) -> 0.002 | K131: =VLOOKUP($H131,P_All!$O$5:$AD$204,3*($C$8-1)+2) -> 0.012506 | L131: =VLOOKUP($H131,P_All!$O$5:$AD$204,3*($C$8-1)+3) -> 0.092944 | M131: =VLOOKUP($H131,P_All!$O$5:$AD$204,3*($C$8-1)+4) -> 1 | O131: 127.6666667 | P131: =VLOOKUP($O131,P_All!$AF$5:$AU$244,3*($C$8-1)+2) -> 0.0022098 | Q131: =VLOOKUP($O131,P_All!$AF$5:$AU$244,3*($C$8-1)+3) -> 0.018543 | R131: =VLOOKUP($O131,P_All!$AF$5:$AU$244,3*($C$8-1)+4) -> 1 | S131: =VLOOKUP($O131,P_All!$AW$5:$BG$244,($C$8-1)+2) -> 0.202 | T131: =VLOOKUP($O131,P_All!$AW$5:$BG$244,($C$8-1)+7) -> 0
H132: 93 | I132: =VLOOKUP($H132,P_All!$A$5:$F$204,($C$8-1)+2) -> 0.254 | J132: =VLOOKUP($H132,P_All!$H$5:$M$204,($C$8-1)+2) -> 0.004 | K132: =VLOOKUP($H132,P_All!$O$5:$AD$204,3*($C$8-1)+2) -> 0.012991 | L132: =VLOOKUP($H132,P_All!$O$5:$AD$204,3*($C$8-1)+3) -> 0.086538 | M132: =VLOOKUP($H132,P_All!$O$5:$AD$204,3*($C$8-1)+4) -> 1 | O132: 127.75 | P132: =VLOOKUP($O132,P_All!$AF$5:$AU$244,3*($C$8-1)+2) -> 0.0037732 | Q132: =VLOOKUP($O132,P_All!$AF$5:$AU$244,3*($C$8-1)+3) -> 0.016565 | R132: =VLOOKUP($O132,P_All!$AF$5:$AU$244,3*($C$8-1)+4) -> 1 | S132: =VLOOKUP($O132,P_All!$AW$5:$BG$244,($C$8-1)+2) -> 0.212 | T132: =VLOOKUP($O132,P_All!$AW$5:$BG$244,($C$8-1)+7) -> 0
H133: 94 | I133: =VLOOKUP($H133,P_All!$A$5:$F$204,($C$8-1)+2) -> 0.258 | J133: =VLOOKUP($H133,P_All!$H$5:$M$204,($C$8-1)+2) -> 0.002 | K133: =VLOOKUP($H133,P_All!$O$5:$AD$204,3*($C$8-1)+2) -> 0.0090256 | L133: =VLOOKUP($H133,P_All!$O$5:$AD$204,3*($C$8-1)+3) -> 0.093302 | M133: =VLOOKUP($H133,P_All!$O$5:$AD$204,3*($C$8-1)+4) -> 1 | O133: 127.8333333 | P133: =VLOOKUP($O133,P_All!$AF$5:$AU$244,3*($C$8-1)+2) -> 0.0021034 | Q133: =VLOOKUP($O133,P_All!$AF$5:$AU$244,3*($C$8-1)+3) -> 0.015721 | R133: =VLOOKUP($O133,P_All!$AF$5:$AU$244,3*($C$8-1)+4) -> 1 | S133: =VLOOKUP($O133,P_All!$AW$5:$BG$244,($C$8-1)+2) -> 0.212 | T133: =VLOOKUP($O133,P_All!$AW$5:$BG$244,($C$8-1)+7) -> 0
H134: 95 | I134: =VLOOKUP($H134,P_All!$A$5:$F$204,($C$8-1)+2) -> 0.232 | J134: =VLOOKUP($H134,P_All!$H$5:$M$204,($C$8-1)+2) -> 0.004 | K134: =VLOOKUP($H134,P_All!$O$5:$AD$204,3*($C$8-1)+2) -> 0.018174 | L134: =VLOOKUP($H134,P_All!$O$5:$AD$204,3*($C$8-1)+3) -> 0.090542 | M134: =VLOOKUP($H134,P_All!$O$5:$AD$204,3*($C$8-1)+4) -> 1 | O134: 127.9166667 | P134: =VLOOKUP($O134,P_All!$AF$5:$AU$244,3*($C$8-1)+2) -> 0.005665 | Q134: =VLOOKUP($O134,P_All!$AF$5:$AU$244,3*($C$8-1)+3) -> 0.021326 | R134: =VLOOKUP($O134,P_All!$AF$5:$AU$244,3*($C$8-1)+4) -> 1 | S134: =VLOOKUP($O134,P_All!$AW$5:$BG$244,($C$8-1)+2) -> 0.212 | T134: =VLOOKUP($O134,P_All!$AW$5:$BG$244,($C$8-1)+7) -> 0
H135: 96 | I135: =VLOOKUP($H135,P_All!$A$5:$F$204,($C$8-1)+2) -> 0.246 | J135: =VLOOKUP($H135,P_All!$H$5:$M$204,($C$8-1)+2) -> 0.002 | K135: =VLOOKUP($H135,P_All!$O$5:$AD$204,3*($C$8-1)+2) -> 0.017562 | L135: =VLOOKUP($H135,P_All!$O$5:$AD$204,3*($C$8-1)+3) -> 0.093907 | M135: =VLOOKUP($H135,P_All!$O$5:$AD$204,3*($C$8-1)+4) -> 1 | O135: 128 | P135: =VLOOKUP($O135,P_All!$AF$5:$AU$244,3*($C$8-1)+2) -> 0.011985 | Q135: =VLOOKUP($O135,P_All!$AF$5:$AU$244,3*($C$8-1)+3) -> 0.040269 | R135: =VLOOKUP($O135,P_All!$AF$5:$AU$244,3*($C$8-1)+4) -> 1 | S135: =VLOOKUP($O135,P_All!$AW$5:$BG$244,($C$8-1)+2) -> 0.2 | T135: =VLOOKUP($O135,P_All!$AW$5:$BG$244,($C$8-1)+7) -> 0.004
H136: 97 | I136: =VLOOKUP($H136,P_All!$A$5:$F$204,($C$8-1)+2) -> 0.236 | J136: =VLOOKUP($H136,P_All!$H$5:$M$204,($C$8-1)+2) -> 0.002 | K136: =VLOOKUP($H136,P_All!$O$5:$AD$204,3*($C$8-1)+2) -> 0.014285 | L136: =VLOOKUP($H136,P_All!$O$5:$AD$204,3*($C$8-1)+3) -> 0.088004 | M136: =VLOOKUP($H136,P_All!$O$5:$AD$204,3*($C$8-1)+4) -> 1 | O136: 128.0833333 | P136: =VLOOKUP($O136,P_All!$AF$5:$AU$244,3*($C$8-1)+2) -> 0.024342 | Q136: =VLOOKUP($O136,P_All!$AF$5:$AU$244,3*($C$8-1)+3) -> 0.069028 | R136: =VLOOKUP($O136,P_All!$AF$5:$AU$244,3*($C$8-1)+4) -> 1 | S136: =VLOOKUP($O136,P_All!$AW$5:$BG$244,($C$8-1)+2) -> 0.186 | T136: =VLOOKUP($O136,P_All!$AW$5:$BG$244,($C$8-1)+7) -> 0
H137: 98 | I137: =VLOOKUP($H137,P_All!$A$5:$F$204,($C$8-1)+2) -> 0.266 | J137: =VLOOKUP($H137,P_All!$H$5:$M$204,($C$8-1)+2) -> 0.004 | K137: =VLOOKUP($H137,P_All!$O$5:$AD$204,3*($C$8-1)+2) -> 0.01531 | L137: =VLOOKUP($H137,P_All!$O$5:$AD$204,3*($C$8-1)+3) -> 0.09552 | M137: =VLOOKUP($H137,P_All!$O$5:$AD$204,3*($C$8-1)+4) -> 1 | O137: 128.1666667 | P137: =VLOOKUP($O137,P_All!$AF$5:$AU$244,3*($C$8-1)+2) -> 0.03044 | Q137: =VLOOKUP($O137,P_All!$AF$5:$AU$244,3*($C$8-1)+3) -> 0.099717 | R137: =VLOOKUP($O137,P_All!$AF$5:$AU$244,3*($C$8-1)+4) -> 1 | S137: =VLOOKUP($O137,P_All!$AW$5:$BG$244,($C$8-1)+2) -> 0.184 | T137: =VLOOKUP($O137,P_All!$AW$5:$BG$244,($C$8-1)+7) -> 0.002
H138: 99 | I138: =VLOOKUP($H138,P_All!$A$5:$F$204,($C$8-1)+2) -> 0.24 | J138: =VLOOKUP($H138,P_All!$H$5:$M$204,($C$8-1)+2) -> 0.004 | K138: =VLOOKUP($H138,P_All!$O$5:$AD$204,3*($C$8-1)+2) -> 0.026637 | L138: =VLOOKUP($H138,P_All!$O$5:$AD$204,3*($C$8-1)+3) -> 0.088758 | M138: =VLOOKUP($H138,P_All!$O$5:$AD$204,3*($C$8-1)+4) -> 1 | O138: 128.25 | P138: =VLOOKUP($O138,P_All!$AF$5:$AU$244,3*($C$8-1)+2) -> 0.0044408 | Q138: =VLOOKUP($O138,P_All!$AF$5:$AU$244,3*($C$8-1)+3) -> 0.1033 | R138: =VLOOKUP($O138,P_All!$AF$5:$AU$244,3*($C$8-1)+4) -> 1 | S138: =VLOOKUP($O138,P_All!$AW$5:$BG$244,($C$8-1)+2) -> 0.208 | T138: =VLOOKUP($O138,P_All!$AW$5:$BG$244,($C$8-1)+7) -> 0.006
H139: 100 | I139: =VLOOKUP($H139,P_All!$A$5:$F$204,($C$8-1)+2) -> 0.232 | J139: =VLOOKUP($H139,P_All!$H$5:$M$204,($C$8-1)+2) -> 0.004 | K139: =VLOOKUP($H139,P_All!$O$5:$AD$204,3*($C$8-1)+2) -> 0.023187 | L139: =VLOOKUP($H139,P_All!$O$5:$AD$204,3*($C$8-1)+3) -> 0.10202 | M139: =VLOOKUP($H139,P_All!$O$5:$AD$204,3*($C$8-1)+4) -> 1 | O139: 128.3333333 | P139: =VLOOKUP($O139,P_All!$AF$5:$AU$244,3*($C$8-1)+2) -> 0.00094184 | Q139: =VLOOKUP($O139,P_All!$AF$5:$AU$244,3*($C$8-1)+3) -> 0.0070199 | R139: =VLOOKUP($O139,P_All!$AF$5:$AU$244,3*($C$8-1)+4) -> 1 | S139: =VLOOKUP($O139,P_All!$AW$5:$BG$244,($C$8-1)+2) -> 0.242 | T139: =VLOOKUP($O139,P_All!$AW$5:$BG$244,($C$8-1)+7) -> 0.002
H140: 101 | I140: =VLOOKUP($H140,P_All!$A$5:$F$204,($C$8-1)+2) -> 0.23 | J140: =VLOOKUP($H140,P_All!$H$5:$M$204,($C$8-1)+2) -> 0.004 | K140: =VLOOKUP($H140,P_All!$O$5:$AD$204,3*($C$8-1)+2) -> 0.015865 | L140: =VLOOKUP($H140,P_All!$O$5:$AD$204,3*($C$8-1)+3) -> 0.091365 | M140: =VLOOKUP($H140,P_All!$O$5:$AD$204,3*($C$8-1)+4) -> 1 | O140: 128.4166667 | P140: =VLOOKUP($O140,P_All!$AF$5:$AU$244,3*($C$8-1)+2) -> 0.0013996 | Q140: =VLOOKUP($O140,P_All!$AF$5:$AU$244,3*($C$8-1)+3) -> 0.0070329 | R140: =VLOOKUP($O140,P_All!$AF$5:$AU$244,3*($C$8-1)+4) -> 1 | S140: =VLOOKUP($O140,P_All!$AW$5:$BG$244,($C$8-1)+2) -> 0.218 | T140: =VLOOKUP($O140,P_All!$AW$5:$BG$244,($C$8-1)+7) -> 0
H141: 102 | I141: =VLOOKUP($H141,P_All!$A$5:$F$204,($C$8-1)+2) -> 0.236 | J141: =VLOOKUP($H141,P_All!$H$5:$M$204,($C$8-1)+2) -> 0.004 | K141: =VLOOKUP($H141,P_All!$O$5:$AD$204,3*($C$8-1)+2) -> 0.021707 | L141: =VLOOKUP($H141,P_All!$O$5:$AD$204,3*($C$8-1)+3) -> 0.094377 | M141: =VLOOKUP($H141,P_All!$O$5:$AD$204,3*($C$8-1)+4) -> 1 | O141: 128.5 | P141: =VLOOKUP($O141,P_All!$AF$5:$AU$244,3*($C$8-1)+2) -> 0.0030169 | Q141: =VLOOKUP($O141,P_All!$AF$5:$AU$244,3*($C$8-1)+3) -> 0.011268 | R141: =VLOOKUP($O141,P_All!$AF$5:$AU$244,3*($C$8-1)+4) -> 1 | S141: =VLOOKUP($O141,P_All!$AW$5:$BG$244,($C$8-1)+2) -> 0.222 | T141: =VLOOKUP($O141,P_All!$AW$5:$BG$244,($C$8-1)+7) -> 0.002
H142: 103 | I142: =VLOOKUP($H142,P_All!$A$5:$F$204,($C$8-1)+2) -> 0.238 | J142: =VLOOKUP($H142,P_All!$H$5:$M$204,($C$8-1)+2) -> 0.004 | K142: =VLOOKUP($H142,P_All!$O$5:$AD$204,3*($C$8-1)+2) -> 0.02119 | L142: =VLOOKUP($H142,P_All!$O$5:$AD$204,3*($C$8-1)+3) -> 0.091189 | M142: =VLOOKUP($H142,P_All!$O$5:$AD$204,3*($C$8-1)+4) -> 1 | O142: 128.5833333 | P142: =VLOOKUP($O142,P_All!$AF$5:$AU$244,3*($C$8-1)+2) -> 0.0012484 | Q142: =VLOOKUP($O142,P_All!$AF$5:$AU$244,3*($C$8-1)+3) -> 0.021044 | R142: =VLOOKUP($O142,P_All!$AF$5:$AU$244,3*($C$8-1)+4) -> 1 | S142: =VLOOKUP($O142,P_All!$AW$5:$BG$244,($C$8-1)+2) -> 0.176 | T142: =VLOOKUP($O142,P_All!$AW$5:$BG$244,($C$8-1)+7) -> 0
H143: 104 | I143: =VLOOKUP($H143,P_All!$A$5:$F$204,($C$8-1)+2) -> 0.238 | J143: =VLOOKUP($H143,P_All!$H$5:$M$204,($C$8-1)+2) -> 0.006 | K143: =VLOOKUP($H143,P_All!$O$5:$AD$204,3*($C$8-1)+2) -> 0.01638 | L143: =VLOOKUP($H143,P_All!$O$5:$AD$204,3*($C$8-1)+3) -> 0.094389 | M143: =VLOOKUP($H143,P_All!$O$5:$AD$204,3*($C$8-1)+4) -> 1 | O143: 128.6666667 | P143: =VLOOKUP($O143,P_All!$AF$5:$AU$244,3*($C$8-1)+2) -> 0.0024293 | Q143: =VLOOKUP($O143,P_All!$AF$5:$AU$244,3*($C$8-1)+3) -> 0.021833 | R143: =VLOOKUP($O143,P_All!$AF$5:$AU$244,3*($C$8-1)+4) -> 1 | S143: =VLOOKUP($O143,P_All!$AW$5:$BG$244,($C$8-1)+2) -> 0.236 | T143: =VLOOKUP($O143,P_All!$AW$5:$BG$244,($C$8-1)+7) -> 0.002
H144: 105 | I144: =VLOOKUP($H144,P_All!$A$5:$F$204,($C$8-1)+2) -> 0.24 | J144: =VLOOKUP($H144,P_All!$H$5:$M$204,($C$8-1)+2) -> 0.004 | K144: =VLOOKUP($H144,P_All!$O$5:$AD$204,3*($C$8-1)+2) -> 0.021137 | L144: =VLOOKUP($H144,P_All!$O$5:$AD$204,3*($C$8-1)+3) -> 0.097381 | M144: =VLOOKUP($H144,P_All!$O$5:$AD$204,3*($C$8-1)+4) -> 1 | O144: 128.75 | P144: =VLOOKUP($O144,P_All!$AF$5:$AU$244,3*($C$8-1)+2) -> 0.0034489 | Q144: =VLOOKUP($O144,P_All!$AF$5:$AU$244,3*($C$8-1)+3) -> 0.015479 | R144: =VLOOKUP($O144,P_All!$AF$5:$AU$244,3*($C$8-1)+4) -> 1 | S144: =VLOOKUP($O144,P_All!$AW$5:$BG$244,($C$8-1)+2) -> 0.232 | T144: =VLOOKUP($O144,P_All!$AW$5:$BG$244,($C$8-1)+7) -> 0
H145: 106 | I145: =VLOOKUP($H145,P_All!$A$5:$F$204,($C$8-1)+2) -> 0.266 | J145: =VLOOKUP($H145,P_All!$H$5:$M$204,($C$8-1)+2) -> 0.008 | K145: =VLOOKUP($H145,P_All!$O$5:$AD$204,3*($C$8-1)+2) -> 0.0215 | L145: =VLOOKUP($H145,P_All!$O$5:$AD$204,3*($C$8-1)+3) -> 0.10579 | M145: =VLOOKUP($H145,P_All!$O$5:$AD$204,3*($C$8-1)+4) -> 1 | O145: 128.8333333 | P145: =VLOOKUP($O145,P_All!$AF$5:$AU$244,3*($C$8-1)+2) -> 0.0025145 | Q145: =VLOOKUP($O145,P_All!$AF$5:$AU$244,3*($C$8-1)+3) -> 0.014513 | R145: =VLOOKUP($O145,P_All!$AF$5:$AU$244,3*($C$8-1)+4) -> 1 | S145: =VLOOKUP($O145,P_All!$AW$5:$BG$244,($C$8-1)+2) -> 0.218 | T145: =VLOOKUP($O145,P_All!$AW$5:$BG$244,($C$8-1)+7) -> 0
H146: 107 | I146: =VLOOKUP($H146,P_All!$A$5:$F$204,($C$8-1)+2) -> 0.234 | J146: =VLOOKUP($H146,P_All!$H$5:$M$204,($C$8-1)+2) -> 0.004 | K146: =VLOOKUP($H146,P_All!$O$5:$AD$204,3*($C$8-1)+2) -> 0.019699 | L146: =VLOOKUP($H146,P_All!$O$5:$AD$204,3*($C$8-1)+3) -> 0.10347 | M146: =VLOOKUP($H146,P_All!$O$5:$AD$204,3*($C$8-1)+4) -> 1 | O146: 128.9166667 | P146: =VLOOKUP($O146,P_All!$AF$5:$AU$244,3*($C$8-1)+2) -> 0.0048296 | Q146: =VLOOKUP($O146,P_All!$AF$5:$AU$244,3*($C$8-1)+3) -> 0.020307 | R146: =VLOOKUP($O146,P_All!$AF$5:$AU$244,3*($C$8-1)+4) -> 1 | S146: =VLOOKUP($O146,P_All!$AW$5:$BG$244,($C$8-1)+2) -> 0.202 | T146: =VLOOKUP($O146,P_All!$AW$5:$BG$244,($C$8-1)+7) -> 0
H147: 108 | I147: =VLOOKUP($H147,P_All!$A$5:$F$204,($C$8-1)+2) -> 0.248 | J147: =VLOOKUP($H147,P_All!$H$5:$M$204,($C$8-1)+2) -> 0.01 | K147: =VLOOKUP($H147,P_All!$O$5:$AD$204,3*($C$8-1)+2) -> 0.023777 | L147: =VLOOKUP($H147,P_All!$O$5:$AD$204,3*($C$8-1)+3) -> 0.1018 | M147: =VLOOKUP($H147,P_All!$O$5:$AD$204,3*($C$8-1)+4) -> 1 | O147: 129 | P147: =VLOOKUP($O147,P_All!$AF$5:$AU$244,3*($C$8-1)+2) -> 0.01404 | Q147: =VLOOKUP($O147,P_All!$AF$5:$AU$244,3*($C$8-1)+3) -> 0.041735 | R147: =VLOOKUP($O147,P_All!$AF$5:$AU$244,3*($C$8-1)+4) -> 1 | S147: =VLOOKUP($O147,P_All!$AW$5:$BG$244,($C$8-1)+2) -> 0.232 | T147: =VLOOKUP($O147,P_All!$AW$5:$BG$244,($C$8-1)+7) -> 0.002
H148: 109 | I148: =VLOOKUP($H148,P_All!$A$5:$F$204,($C$8-1)+2) -> 0.226 | J148: =VLOOKUP($H148,P_All!$H$5:$M$204,($C$8-1)+2) -> 0.006 | K148: =VLOOKUP($H148,P_All!$O$5:$AD$204,3*($C$8-1)+2) -> 0.021707 | L148: =VLOOKUP($H148,P_All!$O$5:$AD$204,3*($C$8-1)+3) -> 0.099291 | M148: =VLOOKUP($H148,P_All!$O$5:$AD$204,3*($C$8-1)+4) -> 1 | O148: 129.0833333 | P148: =VLOOKUP($O148,P_All!$AF$5:$AU$244,3*($C$8-1)+2) -> 0.027518 | Q148: =VLOOKUP($O148,P_All!$AF$5:$AU$244,3*($C$8-1)+3) -> 0.072767 | R148: =VLOOKUP($O148,P_All!$AF$5:$AU$244,3*($C$8-1)+4) -> 1 | S148: =VLOOKUP($O148,P_All!$AW$5:$BG$244,($C$8-1)+2) -> 0.214 | T148: =VLOOKUP($O148,P_All!$AW$5:$BG$244,($C$8-1)+7) -> 0.002
H149: 110 | I149: =VLOOKUP($H149,P_All!$A$5:$F$204,($C$8-1)+2) -> 0.238 | J149: =VLOOKUP($H149,P_All!$H$5:$M$204,($C$8-1)+2) -> 0.002 | K149: =VLOOKUP($H149,P_All!$O$5:$AD$204,3*($C$8-1)+2) -> 0.022081 | L149: =VLOOKUP($H149,P_All!$O$5:$AD$204,3*($C$8-1)+3) -> 0.10051 | M149: =VLOOKUP($H149,P_All!$O$5:$AD$204,3*($C$8-1)+4) -> 1 | O149: 129.1666667 | P149: =VLOOKUP($O149,P_All!$AF$5:$AU$244,3*($C$8-1)+2) -> 0.031557 | Q149: =VLOOKUP($O149,P_All!$AF$5:$AU$244,3*($C$8-1)+3) -> 0.10437 | R149: =VLOOKUP($O149,P_All!$AF$5:$AU$244,3*($C$8-1)+4) -> 1 | S149: =VLOOKUP($O149,P_All!$AW$5:$BG$244,($C$8-1)+2) -> 0.21 | T149: =VLOOKUP($O149,P_All!$AW$5:$BG$244,($C$8-1)+7) -> 0.004
H150: 111 | I150: =VLOOKUP($H150,P_All!$A$5:$F$204,($C$8-1)+2) -> 0.234 | J150: =VLOOKUP($H150,P_All!$H$5:$M$204,($C$8-1)+2) -> 0.004 | K150: =VLOOKUP($H150,P_All!$O$5:$AD$204,3*($C$8-1)+2) -> 0.023589 | L150: =VLOOKUP($H150,P_All!$O$5:$AD$204,3*($C$8-1)+3) -> 0.096358 | M150: =VLOOKUP($H150,P_All!$O$5:$AD$204,3*($C$8-1)+4) -> 1 | O150: 129.25 | P150: =VLOOKUP($O150,P_All!$AF$5:$AU$244,3*($C$8-1)+2) -> 0.0064131 | Q150: =VLOOKUP($O150,P_All!$AF$5:$AU$244,3*($C$8-1)+3) -> 0.1172 | R150: =VLOOKUP($O150,P_All!$AF$5:$AU$244,3*($C$8-1)+4) -> 1 | S150: =VLOOKUP($O150,P_All!$AW$5:$BG$244,($C$8-1)+2) -> 0.222 | T150: =VLOOKUP($O150,P_All!$AW$5:$BG$244,($C$8-1)+7) -> 0.002
H151: 112 | I151: =VLOOKUP($H151,P_All!$A$5:$F$204,($C$8-1)+2) -> 0.274 | J151: =VLOOKUP($H151,P_All!$H$5:$M$204,($C$8-1)+2) -> 0.006 | K151: =VLOOKUP($H151,P_All!$O$5:$AD$204,3*($C$8-1)+2) -> 0.019883 | L151: =VLOOKUP($H151,P_All!$O$5:$AD$204,3*($C$8-1)+3) -> 0.10173 | M151: =VLOOKUP($H151,P_All!$O$5:$AD$204,3*($C$8-1)+4) -> 1 | O151: 129.3333333 | P151: =VLOOKUP($O151,P_All!$AF$5:$AU$244,3*($C$8-1)+2) -> 0.00090884 | Q151: =VLOOKUP($O151,P_All!$AF$5:$AU$244,3*($C$8-1)+3) -> 0.0071449 | R151: =VLOOKUP($O151,P_All!$AF$5:$AU$244,3*($C$8-1)+4) -> 1 | S151: =VLOOKUP($O151,P_All!$AW$5:$BG$244,($C$8-1)+2) -> 0.228 | T151: =VLOOKUP($O151,P_All!$AW$5:$BG$244,($C$8-1)+7) -> 0.002
H152: 113 | I152: =VLOOKUP($H152,P_All!$A$5:$F$204,($C$8-1)+2) -> 0.25 | J152: =VLOOKUP($H152,P_All!$H$5:$M$204,($C$8-1)+2) -> 0.004 | K152: =VLOOKUP($H152,P_All!$O$5:$AD$204,3*($C$8-1)+2) -> 0.026584 | L152: =VLOOKUP($H152,P_All!$O$5:$AD$204,3*($C$8-1)+3) -> 0.098012 | M152: =VLOOKUP($H152,P_All!$O$5:$AD$204,3*($C$8-1)+4) -> 1 | O152: 129.4166667 | P152: =VLOOKUP($O152,P_All!$AF$5:$AU$244,3*($C$8-1)+2) -> 0.0017829 | Q152: =VLOOKUP($O152,P_All!$AF$5:$AU$244,3*($C$8-1)+3) -> 0.0077142 | R152: =VLOOKUP($O152,P_All!$AF$5:$AU$244,3*($C$8-1)+4) -> 1 | S152: =VLOOKUP($O152,P_All!$AW$5:$BG$244,($C$8-1)+2) -> 0.216 | T152: =VLOOKUP($O152,P_All!$AW$5:$BG$244,($C$8-1)+7) -> 0
H153: 114 | I153: =VLOOKUP($H153,P_All!$A$5:$F$204,($C$8-1)+2) -> 0.242 | J153: =VLOOKUP($H153,P_All!$H$5:$M$204,($C$8-1)+2) -> 0.01 | K153: =VLOOKUP($H153,P_All!$O$5:$AD$204,3*($C$8-1)+2) -> 0.022655 | L153: =VLOOKUP($H153,P_All!$O$5:$AD$204,3*($C$8-1)+3) -> 0.094909 | M153: =VLOOKUP($H153,P_All!$O$5:$AD$204,3*($C$8-1)+4) -> 1 | O153: 129.5 | P153: =VLOOKUP($O153,P_All!$AF$5:$AU$244,3*($C$8-1)+2) -> 0.0033044 | Q153: =VLOOKUP($O153,P_All!$AF$5:$AU$244,3*($C$8-1)+3) -> 0.012425 | R153: =VLOOKUP($O153,P_All!$AF$5:$AU$244,3*($C$8-1)+4) -> 1 | S153: =VLOOKUP($O153,P_All!$AW$5:$BG$244,($C$8-1)+2) -> 0.216 | T153: =VLOOKUP($O153,P_All!$AW$5:$BG$244,($C$8-1)+7) -> 0
H154: 115 | I154: =VLOOKUP($H154,P_All!$A$5:$F$204,($C$8-1)+2) -> 0.264 | J154: =VLOOKUP($H154,P_All!$H$5:$M$204,($C$8-1)+2) -> 0.002 | K154: =VLOOKUP($H154,P_All!$O$5:$AD$204,3*($C$8-1)+2) -> 0.025628 | L154: =VLOOKUP($H154,P_All!$O$5:$AD$204,3*($C$8-1)+3) -> 0.10271 | M154: =VLOOKUP($H154,P_All!$O$5:$AD$204,3*($C$8-1)+4) -> 1 | O154: 129.5833333 | P154: =VLOOKUP($O154,P_All!$AF$5:$AU$244,3*($C$8-1)+2) -> 0.0012929 | Q154: =VLOOKUP($O154,P_All!$AF$5:$AU$244,3*($C$8-1)+3) -> 0.020821 | R154: =VLOOKUP($O154,P_All!$AF$5:$AU$244,3*($C$8-1)+4) -> 1 | S154: =VLOOKUP($O154,P_All!$AW$5:$BG$244,($C$8-1)+2) -> 0.206 | T154: =VLOOKUP($O154,P_All!$AW$5:$BG$244,($C$8-1)+7) -> 0
H155: 116 | I155: =VLOOKUP($H155,P_All!$A$5:$F$204,($C$8-1)+2) -> 0.246 | J155: =VLOOKUP($H155,P_All!$H$5:$M$204,($C$8-1)+2) -> 0.006 | K155: =VLOOKUP($H155,P_All!$O$5:$AD$204,3*($C$8-1)+2) -> 0.022873 | L155: =VLOOKUP($H155,P_All!$O$5:$AD$204,3*($C$8-1)+3) -> 0.10114 | M155: =VLOOKUP($H155,P_All!$O$5:$AD$204,3*($C$8-1)+4) -> 1 | O155: 129.6666667 | P155: =VLOOKUP($O155,P_All!$AF$5:$AU$244,3*($C$8-1)+2) -> 0.001909 | Q155: =VLOOKUP($O155,P_All!$AF$5:$AU$244,3*($C$8-1)+3) -> 0.020021 | R155: =VLOOKUP($O155,P_All!$AF$5:$AU$244,3*($C$8-1)+4) -> 1 | S155: =VLOOKUP($O155,P_All!$AW$5:$BG$244,($C$8-1)+2) -> 0.198 | T155: =VLOOKUP($O155,P_All!$AW$5:$BG$244,($C$8-1)+7) -> 0.004
H156: 117 | I156: =VLOOKUP($H156,P_All!$A$5:$F$204,($C$8-1)+2) -> 0.236 | J156: =VLOOKUP($H156,P_All!$H$5:$M$204,($C$8-1)+2) -> 0.004 | K156: =VLOOKUP($H156,P_All!$O$5:$AD$204,3*($C$8-1)+2) -> 0.026447 | L156: =VLOOKUP($H156,P_All!$O$5:$AD$204,3*($C$8-1)+3) -> 0.10284 | M156: =VLOOKUP($H156,P_All!$O$5:$AD$204,3*($C$8-1)+4) -> 1 | O156: 129.75 | P156: =VLOOKUP($O156,P_All!$AF$5:$AU$244,3*($C$8-1)+2) -> 0.0034203 | Q156: =VLOOKUP($O156,P_All!$AF$5:$AU$244,3*($C$8-1)+3) -> 0.019612 | R156: =VLOOKUP($O156,P_All!$AF$5:$AU$244,3*($C$8-1)+4) -> 1 | S156: =VLOOKUP($O156,P_All!$AW$5:$BG$244,($C$8-1)+2) -> 0.258 | T156: =VLOOKUP($O156,P_All!$AW$5:$BG$244,($C$8-1)+7) -> 0
H157: 118 | I157: =VLOOKUP($H157,P_All!$A$5:$F$204,($C$8-1)+2) -> 0.232 | J157: =VLOOKUP($H157,P_All!$H$5:$M$204,($C$8-1)+2) -> 0.002 | K157: =VLOOKUP($H157,P_All!$O$5:$AD$204,3*($C$8-1)+2) -> 0.02799 | L157: =VLOOKUP($H157,P_All!$O$5:$AD$204,3*($C$8-1)+3) -> 0.10261 | M157: =VLOOKUP($H157,P_All!$O$5:$AD$204,3*($C$8-1)+4) -> 1 | O157: 129.8333333 | P157: =VLOOKUP($O157,P_All!$AF$5:$AU$244,3*($C$8-1)+2) -> 0.0022399 | Q157: =VLOOKUP($O157,P_All!$AF$5:$AU$244,3*($C$8-1)+3) -> 0.016248 | R157: =VLOOKUP($O157,P_All!$AF$5:$AU$244,3*($C$8-1)+4) -> 1 | S157: =VLOOKUP($O157,P_All!$AW$5:$BG$244,($C$8-1)+2) -> 0.232 | T157: =VLOOKUP($O157,P_All!$AW$5:$BG$244,($C$8-1)+7) -> 0.002
H158: 119 | I158: =VLOOKUP($H158,P_All!$A$5:$F$204,($C$8-1)+2) -> 0.266 | J158: =VLOOKUP($H158,P_All!$H$5:$M$204,($C$8-1)+2) -> 0.002 | K158: =VLOOKUP($H158,P_All!$O$5:$AD$204,3*($C$8-1)+2) -> 0.02597 | L158: =VLOOKUP($H158,P_All!$O$5:$AD$204,3*($C$8-1)+3) -> 0.098943 | M158: =VLOOKUP($H158,P_All!$O$5:$AD$204,3*($C$8-1)+4) -> 1 | O158: 129.9166667 | P158: =VLOOKUP($O158,P_All!$AF$5:$AU$244,3*($C$8-1)+2) -> 0.004336 | Q158: =VLOOKUP($O158,P_All!$AF$5:$AU$244,3*($C$8-1)+3) -> 0.020822 | R158: =VLOOKUP($O158,P_All!$AF$5:$AU$244,3*($C$8-1)+4) -> 1 | S158: =VLOOKUP($O158,P_All!$AW$5:$BG$244,($C$8-1)+2) -> 0.21 | T158: =VLOOKUP($O158,P_All!$AW$5:$BG$244,($C$8-1)+7) -> 0
H159: 120 | I159: =VLOOKUP($H159,P_All!$A$5:$F$204,($C$8-1)+2) -> 0.248 | J159: =VLOOKUP($H159,P_All!$H$5:$M$204,($C$8-1)+2) -> 0.004 | K159: =VLOOKUP($H159,P_All!$O$5:$AD$204,3*($C$8-1)+2) -> 0.027325 | L159: =VLOOKUP($H159,P_All!$O$5:$AD$204,3*($C$8-1)+3) -> 0.10343 | M159: =VLOOKUP($H159,P_All!$O$5:$AD$204,3*($C$8-1)+4) -> 1 | O159: 130 | P159: =VLOOKUP($O159,P_All!$AF$5:$AU$244,3*($C$8-1)+2) -> 0.013195 | Q159: =VLOOKUP($O159,P_All!$AF$5:$AU$244,3*($C$8-1)+3) -> 0.038793 | R159: =VLOOKUP($O159,P_All!$AF$5:$AU$244,3*($C$8-1)+4) -> 1 | S159: =VLOOKUP($O159,P_All!$AW$5:$BG$244,($C$8-1)+2) -> 0.204 | T159: =VLOOKUP($O159,P_All!$AW$5:$BG$244,($C$8-1)+7) -> 0.002
H160: 121 | I160: =VLOOKUP($H160,P_All!$A$5:$F$204,($C$8-1)+2) -> 0.26 | J160: =VLOOKUP($H160,P_All!$H$5:$M$204,($C$8-1)+2) -> 0.008 | K160: =VLOOKUP($H160,P_All!$O$5:$AD$204,3*($C$8-1)+2) -> 0.023074 | L160: =VLOOKUP($H160,P_All!$O$5:$AD$204,3*($C$8-1)+3) -> 0.0995 | M160: =VLOOKUP($H160,P_All!$O$5:$AD$204,3*($C$8-1)+4) -> 1 | O160: 130.0833333 | P160: =VLOOKUP($O160,P_All!$AF$5:$AU$244,3*($C$8-1)+2) -> 0.02278 | Q160: =VLOOKUP($O160,P_All!$AF$5:$AU$244,3*($C$8-1)+3) -> 0.068991 | R160: =VLOOKUP($O160,P_All!$AF$5:$AU$244,3*($C$8-1)+4) -> 1 | S160: =VLOOKUP($O160,P_All!$AW$5:$BG$244,($C$8-1)+2) -> 0.19 | T160: =VLOOKUP($O160,P_All!$AW$5:$BG$244,($C$8-1)+7) -> 0.002
H161: 122 | I161: =VLOOKUP($H161,P_All!$A$5:$F$204,($C$8-1)+2) -> 0.24 | J161: =VLOOKUP($H161,P_All!$H$5:$M$204,($C$8-1)+2) -> 0.004 | K161: =VLOOKUP($H161,P_All!$O$5:$AD$204,3*($C$8-1)+2) -> 0.024121 | L161: =VLOOKUP($H161,P_All!$O$5:$AD$204,3*($C$8-1)+3) -> 0.10082 | M161: =VLOOKUP($H161,P_All!$O$5:$AD$204,3*($C$8-1)+4) -> 1 | O161: 130.1666667 | P161: =VLOOKUP($O161,P_All!$AF$5:$AU$244,3*($C$8-1)+2) -> 0.027434 | Q161: =VLOOKUP($O161,P_All!$AF$5:$AU$244,3*($C$8-1)+3) -> 0.09974 | R161: =VLOOKUP($O161,P_All!$AF$5:$AU$244,3*($C$8-1)+4) -> 1 | S161: =VLOOKUP($O161,P_All!$AW$5:$BG$244,($C$8-1)+2) -> 0.18 | T161: =VLOOKUP($O161,P_All!$AW$5:$BG$244,($C$8-1)+7) -> 0.002
H162: 123 | I162: =VLOOKUP($H162,P_All!$A$5:$F$204,($C$8-1)+2) -> 0.25 | J162: =VLOOKUP($H162,P_All!$H$5:$M$204,($C$8-1)+2) -> 0.004 | K162: =VLOOKUP($H162,P_All!$O$5:$AD$204,3*($C$8-1)+2) -> 0.029754 | L162: =VLOOKUP($H162,P_All!$O$5:$AD$204,3*($C$8-1)+3) -> 0.102 | M162: =VLOOKUP($H162,P_All!$O$5:$AD$204,3*($C$8-1)+4) -> 1 | O162: 130.25 | P162: =VLOOKUP($O162,P_All!$AF$5:$AU$244,3*($C$8-1)+2) -> 0.0038472 | Q162: =VLOOKUP($O162,P_All!$AF$5:$AU$244,3*($C$8-1)+3) -> 0.10151 | R162: =VLOOKUP($O162,P_All!$AF$5:$AU$244,3*($C$8-1)+4) -> 1 | S162: =VLOOKUP($O162,P_All!$AW$5:$BG$244,($C$8-1)+2) -> 0.204 | T162: =VLOOKUP($O162,P_All!$AW$5:$BG$244,($C$8-1)+7) -> 0.006
H163: 124 | I163: =VLOOKUP($H163,P_All!$A$5:$F$204,($C$8-1)+2) -> 0.236 | J163: =VLOOKUP($H163,P_All!$H$5:$M$204,($C$8-1)+2) -> 0.006 | K163: =VLOOKUP($H163,P_All!$O$5:$AD$204,3*($C$8-1)+2) -> 0.026165 | L163: =VLOOKUP($H163,P_All!$O$5:$AD$204,3*($C$8-1)+3) -> 0.11138 | M163: =VLOOKUP($H163,P_All!$O$5:$AD$204,3*($C$8-1)+4) -> 1 | O163: 130.3333333 | P163: =VLOOKUP($O163,P_All!$AF$5:$AU$244,3*($C$8-1)+2) -> 0.0012263 | Q163: =VLOOKUP($O163,P_All!$AF$5:$AU$244,3*($C$8-1)+3) -> 0.0073253 | R163: =VLOOKUP($O163,P_All!$AF$5:$AU$244,3*($C$8-1)+4) -> 1 | S163: =VLOOKUP($O163,P_All!$AW$5:$BG$244,($C$8-1)+2) -> 0.2 | T163: =VLOOKUP($O163,P_All!$AW$5:$BG$244,($C$8-1)+7) -> 0.002
H164: 125 | I164: =VLOOKUP($H164,P_All!$A$5:$F$204,($C$8-1)+2) -> 0.256 | J164: =VLOOKUP($H164,P_All!$H$5:$M$204,($C$8-1)+2) -> 0.006 | K164: =VLOOKUP($H164,P_All!$O$5:$AD$204,3*($C$8-1)+2) -> 0.028842 | L164: =VLOOKUP($H164,P_All!$O$5:$AD$204,3*($C$8-1)+3) -> 0.11463 | M164: =VLOOKUP($H164,P_All!$O$5:$AD$204,3*($C$8-1)+4) -> 1 | O164: 130.4166667 | P164: =VLOOKUP($O164,P_All!$AF$5:$AU$244,3*($C$8-1)+2) -> 0.0013931 | Q164: =VLOOKUP($O164,P_All!$AF$5:$AU$244,3*($C$8-1)+3) -> 0.0067528 | R164: =VLOOKUP($O164,P_All!$AF$5:$AU$244,3*($C$8-1)+4) -> 1 | S164: =VLOOKUP($O164,P_All!$AW$5:$BG$244,($C$8-1)+2) -> 0.206 | T164: =VLOOKUP($O164,P_All!$AW$5:$BG$244,($C$8-1)+7) -> 0
H165: 126 | I165: =VLOOKUP($H165,P_All!$A$5:$F$204,($C$8-1)+2) -> 0.254 | J165: =VLOOKUP($H165,P_All!$H$5:$M$204,($C$8-1)+2) -> 0.006 | K165: =VLOOKUP($H165,P_All!$O$5:$AD$204,3*($C$8-1)+2) -> 0.031717 | L165: =VLOOKUP($H165,P_All!$O$5:$AD$204,3*($C$8-1)+3) -> 0.1173 | M165: =VLOOKUP($H165,P_All!$O$5:$AD$204,3*($C$8-1)+4) -> 1 | O165: 130.5 | P165: =VLOOKUP($O165,P_All!$AF$5:$AU$244,3*($C$8-1)+2) -> 0.003733 | Q165: =VLOOKUP($O165,P_All!$AF$5:$AU$244,3*($C$8-1)+3) -> 0.01348 | R165: =VLOOKUP($O165,P_All!$AF$5:$AU$244,3*($C$8-1)+4) -> 1 | S165: =VLOOKUP($O165,P_All!$AW$5:$BG$244,($C$8-1)+2) -> 0.214 | T165: =VLOOKUP($O165,P_All!$AW$5:$BG$244,($C$8-1)+7) -> 0
H166: 127 | I166: =VLOOKUP($H166,P_All!$A$5:$F$204,($C$8-1)+2) -> 0.254 | J166: =VLOOKUP($H166,P_All!$H$5:$M$204,($C$8-1)+2) -> 0.004 | K166: =VLOOKUP($H166,P_All!$O$5:$AD$204,3*($C$8-1)+2) -> 0.027974 | L166: =VLOOKUP($H166,P_All!$O$5:$AD$204,3*($C$8-1)+3) -> 0.10265 | M166: =VLOOKUP($H166,P_All!$O$5:$AD$204,3*($C$8-1)+4) -> 1 | O166: 130.5833333 | P166: =VLOOKUP($O166,P_All!$AF$5:$AU$244,3*($C$8-1)+2) -> 0.0014189 | Q166: =VLOOKUP($O166,P_All!$AF$5:$AU$244,3*($C$8-1)+3) -> 0.022106 | R166: =VLOOKUP($O166,P_All!$AF$5:$AU$244,3*($C$8-1)+4) -> 1 | S166: =VLOOKUP($O166,P_All!$AW$5:$BG$244,($C$8-1)+2) -> 0.21 | T166: =VLOOKUP($O166,P_All!$AW$5:$BG$244,($C$8-1)+7) -> 0
H167: 128 | I167: =VLOOKUP($H167,P_All!$A$5:$F$204,($C$8-1)+2) -> 0.23 | J167: =VLOOKUP($H167,P_All!$H$5:$M$204,($C$8-1)+2) -> 0.01 | K167: =VLOOKUP($H167,P_All!$O$5:$AD$204,3*($C$8-1)+2) -> 0.0329 | L167: =VLOOKUP($H167,P_All!$O$5:$AD$204,3*($C$8-1)+3) -> 0.11726 | M167: =VLOOKUP($H167,P_All!$O$5:$AD$204,3*($C$8-1)+4) -> 1 | O167: 130.6666667 | P167: =VLOOKUP($O167,P_All!$AF$5:$AU$244,3*($C$8-1)+2) -> 0.0023468 | Q167: =VLOOKUP($O167,P_All!$AF$5:$AU$244,3*($C$8-1)+3) -> 0.023412 | R167: =VLOOKUP($O167,P_All!$AF$5:$AU$244,3*($C$8-1)+4) -> 1 | S167: =VLOOKUP($O167,P_All!$AW$5:$BG$244,($C$8-1)+2) -> 0.236 | T167: =VLOOKUP($O167,P_All!$AW$5:$BG$244,($C$8-1)+7) -> 0.002
H168: 129 | I168: =VLOOKUP($H168,P_All!$A$5:$F$204,($C$8-1)+2) -> 0.242 | J168: =VLOOKUP($H168,P_All!$H$5:$M$204,($C$8-1)+2) -> 0.006 | K168: =VLOOKUP($H168,P_All!$O$5:$AD$204,3*($C$8-1)+2) -> 0.03044 | L168: =VLOOKUP($H168,P_All!$O$5:$AD$204,3*($C$8-1)+3) -> 0.1033 | M168: =VLOOKUP($H168,P_All!$O$5:$AD$204,3*($C$8-1)+4) -> 1 | O168: 130.75 | P168: =VLOOKUP($O168,P_All!$AF$5:$AU$244,3*($C$8-1)+2) -> 0.0033579 | Q168: =VLOOKUP($O168,P_All!$AF$5:$AU$244,3*($C$8-1)+3) -> 0.014198 | R168: =VLOOKUP($O168,P_All!$AF$5:$AU$244,3*($C$8-1)+4) -> 1 | S168: =VLOOKUP($O168,P_All!$AW$5:$BG$244,($C$8-1)+2) -> 0.2 | T168: =VLOOKUP($O168,P_All!$AW$5:$BG$244,($C$8-1)+7) -> 0
H169: 130 | I169: =VLOOKUP($H169,P_All!$A$5:$F$204,($C$8-1)+2) -> 0.258 | J169: =VLOOKUP($H169,P_All!$H$5:$M$204,($C$8-1)+2) -> 0.004 | K169: =VLOOKUP($H169,P_All!$O$5:$AD$204,3*($C$8-1)+2) -> 0.031557 | L169: =VLOOKUP($H169,P_All!$O$5:$AD$204,3*($C$8-1)+3) -> 0.1172 | M169: =VLOOKUP($H169,P_All!$O$5:$AD$204,3*($C$8-1)+4) -> 1 | O169: =O168+1/12 -> 130.8333333 | P169: =VLOOKUP($O169,P_All!$AF$5:$AU$244,3*($C$8-1)+2) -> 0.002967 | Q169: =VLOOKUP($O169,P_All!$AF$5:$AU$244,3*($C$8-1)+3) -> 0.015117 | R169: =VLOOKUP($O169,P_All!$AF$5:$AU$244,3*($C$8-1)+4) -> 1 | S169: =VLOOKUP($O169,P_All!$AW$5:$BG$244,($C$8-1)+2) -> 0.232 | T169: =VLOOKUP($O169,P_All!$AW$5:$BG$244,($C$8-1)+7) -> 0.002
H170: 131 | I170: =VLOOKUP($H170,P_All!$A$5:$F$204,($C$8-1)+2) -> 0.236 | J170: =VLOOKUP($H170,P_All!$H$5:$M$204,($C$8-1)+2) -> 0.006 | K170: =VLOOKUP($H170,P_All!$O$5:$AD$204,3*($C$8-1)+2) -> 0.027434 | L170: =VLOOKUP($H170,P_All!$O$5:$AD$204,3*($C$8-1)+3) -> 0.10151 | M170: =VLOOKUP($H170,P_All!$O$5:$AD$204,3*($C$8-1)+4) -> 1 | O170: 130.9166667 | P170: =VLOOKUP($O170,P_All!$AF$5:$AU$244,3*($C$8-1)+2) -> 0.0047357 | Q170: =VLOOKUP($O170,P_All!$AF$5:$AU$244,3*($C$8-1)+3) -> 0.021327 | R170: =VLOOKUP($O170,P_All!$AF$5:$AU$244,3*($C$8-1)+4) -> 1 | S170: =VLOOKUP($O170,P_All!$AW$5:$BG$244,($C$8-1)+2) -> 0.232 | T170: =VLOOKUP($O170,P_All!$AW$5:$BG$244,($C$8-1)+7) -> 0
H171: 132 | I171: =VLOOKUP($H171,P_All!$A$5:$F$204,($C$8-1)+2) -> 0.26 | J171: =VLOOKUP($H171,P_All!$H$5:$M$204,($C$8-1)+2) -> 0.006 | K171: =VLOOKUP($H171,P_All!$O$5:$AD$204,3*($C$8-1)+2) -> 0.028561 | L171: =VLOOKUP($H171,P_All!$O$5:$AD$204,3*($C$8-1)+3) -> 0.10286 | M171: =VLOOKUP($H171,P_All!$O$5:$AD$204,3*($C$8-1)+4) -> 1 | O171: 131 | P171: =VLOOKUP($O171,P_All!$AF$5:$AU$244,3*($C$8-1)+2) -> 0.011086 | Q171: =VLOOKUP($O171,P_All!$AF$5:$AU$244,3*($C$8-1)+3) -> 0.03936 | R171: =VLOOKUP($O171,P_All!$AF$5:$AU$244,3*($C$8-1)+4) -> 1 | S171: =VLOOKUP($O171,P_All!$AW$5:$BG$244,($C$8-1)+2) -> 0.206 | T171: =VLOOKUP($O171,P_All!$AW$5:$BG$244,($C$8-1)+7) -> 0
H172: 133 | I172: =VLOOKUP($H172,P_All!$A$5:$F$204,($C$8-1)+2) -> 0.248 | J172: =VLOOKUP($H172,P_All!$H$5:$M$204,($C$8-1)+2) -> 0.008 | K172: =VLOOKUP($H172,P_All!$O$5:$AD$204,3*($C$8-1)+2) -> 0.020669 | L172: =VLOOKUP($H172,P_All!$O$5:$AD$204,3*($C$8-1)+3) -> 0.099862 | M172: =VLOOKUP($H172,P_All!$O$5:$AD$204,3*($C$8-1)+4) -> 1 | O172: 131.0833333 | P172: =VLOOKUP($O172,P_All!$AF$5:$AU$244,3*($C$8-1)+2) -> 0.024499 | Q172: =VLOOKUP($O172,P_All!$AF$5:$AU$244,3*($C$8-1)+3) -> 0.068603 | R172: =VLOOKUP($O172,P_All!$AF$5:$AU$244,3*($C$8-1)+4) -> 1 | S172: =VLOOKUP($O172,P_All!$AW$5:$BG$244,($C$8-1)+2) -> 0.198 | T172: =VLOOKUP($O172,P_All!$AW$5:$BG$244,($C$8-1)+7) -> 0.006
H173: 134 | I173: =VLOOKUP($H173,P_All!$A$5:$F$204,($C$8-1)+2) -> 0.246 | J173: =VLOOKUP($H173,P_All!$H$5:$M$204,($C$8-1)+2) -> 0.006 | K173: =VLOOKUP($H173,P_All!$O$5:$AD$204,3*($C$8-1)+2) -> 0.027292 | L173: =VLOOKUP($H173,P_All!$O$5:$AD$204,3*($C$8-1)+3) -> 0.11783 | M173: =VLOOKUP($H173,P_All!$O$5:$AD$204,3*($C$8-1)+4) -> 1 | O173: 131.1666667 | P173: =VLOOKUP($O173,P_All!$AF$5:$AU$244,3*($C$8-1)+2) -> 0.028561 | Q173: =VLOOKUP($O173,P_All!$AF$5:$AU$244,3*($C$8-1)+3) -> 0.10064 | R173: =VLOOKUP($O173,P_All!$AF$5:$AU$244,3*($C$8-1)+4) -> 1 | S173: =VLOOKUP($O173,P_All!$AW$5:$BG$244,($C$8-1)+2) -> 0.188 | T173: =VLOOKUP($O173,P_All!$AW$5:$BG$244,($C$8-1)+7) -> 0
H174: 135 | I174: =VLOOKUP($H174,P_All!$A$5:$F$204,($C$8-1)+2) -> 0.25 | J174: =VLOOKUP($H174,P_All!$H$5:$M$204,($C$8-1)+2) -> 0.004 | K174: =VLOOKUP($H174,P_All!$O$5:$AD$204,3*($C$8-1)+2) -> 0.029413 | L174: =VLOOKUP($H174,P_All!$O$5:$AD$204,3*($C$8-1)+3) -> 0.11371 | M174: =VLOOKUP($H174,P_All!$O$5:$AD$204,3*($C$8-1)+4) -> 1 | O174: 131.25 | P174: =VLOOKUP($O174,P_All!$AF$5:$AU$244,3*($C$8-1)+2) -> 0.004727 | Q174: =VLOOKUP($O174,P_All!$AF$5:$AU$244,3*($C$8-1)+3) -> 0.10286 | R174: =VLOOKUP($O174,P_All!$AF$5:$AU$244,3*($C$8-1)+4) -> 1 | S174: =VLOOKUP($O174,P_All!$AW$5:$BG$244,($C$8-1)+2) -> 0.18 | T174: =VLOOKUP($O174,P_All!$AW$5:$BG$244,($C$8-1)+7) -> 0.002
H175: 136 | I175: =VLOOKUP($H175,P_All!$A$5:$F$204,($C$8-1)+2) -> 0.25 | J175: =VLOOKUP($H175,P_All!$H$5:$M$204,($C$8-1)+2) -> 0.006 | K175: =VLOOKUP($H175,P_All!$O$5:$AD$204,3*($C$8-1)+2) -> 0.026078 | L175: =VLOOKUP($H175,P_All!$O$5:$AD$204,3*($C$8-1)+3) -> 0.099891 | M175: =VLOOKUP($H175,P_All!$O$5:$AD$204,3*($C$8-1)+4) -> 1 | O175: 131.3333333 | P175: =VLOOKUP($O175,P_All!$AF$5:$AU$244,3*($C$8-1)+2) -> 0.0010903 | Q175: =VLOOKUP($O175,P_All!$AF$5:$AU$244,3*($C$8-1)+3) -> 0.0072663 | R175: =VLOOKUP($O175,P_All!$AF$5:$AU$244,3*($C$8-1)+4) -> 1 | S175: =VLOOKUP($O175,P_All!$AW$5:$BG$244,($C$8-1)+2) -> 0.242 | T175: =VLOOKUP($O175,P_All!$AW$5:$BG$244,($C$8-1)+7) -> 0
H176: 137 | I176: =VLOOKUP($H176,P_All!$A$5:$F$204,($C$8-1)+2) -> 0.248 | J176: =VLOOKUP($H176,P_All!$H$5:$M$204,($C$8-1)+2) -> 0.004 | K176: =VLOOKUP($H176,P_All!$O$5:$AD$204,3*($C$8-1)+2) -> 0.029628 | L176: =VLOOKUP($H176,P_All!$O$5:$AD$204,3*($C$8-1)+3) -> 0.10254 | M176: =VLOOKUP($H176,P_All!$O$5:$AD$204,3*($C$8-1)+4) -> 1 | O176: 131.4166667 | P176: =VLOOKUP($O176,P_All!$AF$5:$AU$244,3*($C$8-1)+2) -> 0.0014084 | Q176: =VLOOKUP($O176,P_All!$AF$5:$AU$244,3*($C$8-1)+3) -> 0.0075665 | R176: =VLOOKUP($O176,P_All!$AF$5:$AU$244,3*($C$8-1)+4) -> 1 | S176: =VLOOKUP($O176,P_All!$AW$5:$BG$244,($C$8-1)+2) -> 0.25 | T176: =VLOOKUP($O176,P_All!$AW$5:$BG$244,($C$8-1)+7) -> 0
H177: 138 | I177: =VLOOKUP($H177,P_All!$A$5:$F$204,($C$8-1)+2) -> 0.258 | J177: =VLOOKUP($H177,P_All!$H$5:$M$204,($C$8-1)+2) -> 0.004 | K177: =VLOOKUP($H177,P_All!$O$5:$AD$204,3*($C$8-1)+2) -> 0.031603 | L177: =VLOOKUP($H177,P_All!$O$5:$AD$204,3*($C$8-1)+3) -> 0.10906 | M177: =VLOOKUP($H177,P_All!$O$5:$AD$204,3*($C$8-1)+4) -> 1 | O177: 131.5 | P177: =VLOOKUP($O177,P_All!$AF$5:$AU$244,3*($C$8-1)+2) -> 0.0033544 | Q177: =VLOOKUP($O177,P_All!$AF$5:$AU$244,3*($C$8-1)+3) -> 0.011954 | R177: =VLOOKUP($O177,P_All!$AF$5:$AU$244,3*($C$8-1)+4) -> 1 | S177: =VLOOKUP($O177,P_All!$AW$5:$BG$244,($C$8-1)+2) -> 0.226 | T177: =VLOOKUP($O177,P_All!$AW$5:$BG$244,($C$8-1)+7) -> 0
H178: 139 | I178: =VLOOKUP($H178,P_All!$A$5:$F$204,($C$8-1)+2) -> 0.258 | J178: =VLOOKUP($H178,P_All!$H$5:$M$204,($C$8-1)+2) -> 0.006 | K178: =VLOOKUP($H178,P_All!$O$5:$AD$204,3*($C$8-1)+2) -> 0.023118 | L178: =VLOOKUP($H178,P_All!$O$5:$AD$204,3*($C$8-1)+3) -> 0.097315 | M178: =VLOOKUP($H178,P_All!$O$5:$AD$204,3*($C$8-1)+4) -> 1 | O178: 131.5833333 | P178: =VLOOKUP($O178,P_All!$AF$5:$AU$244,3*($C$8-1)+2) -> 0.0011341 | Q178: =VLOOKUP($O178,P_All!$AF$5:$AU$244,3*($C$8-1)+3) -> 0.018703 | R178: =VLOOKUP($O178,P_All!$AF$5:$AU$244,3*($C$8-1)+4) -> 1 | S178: =VLOOKUP($O178,P_All!$AW$5:$BG$244,($C$8-1)+2) -> 0.204 | T178: =VLOOKUP($O178,P_All!$AW$5:$BG$244,($C$8-1)+7) -> 0.002
H179: 140 | I179: =VLOOKUP($H179,P_All!$A$5:$F$204,($C$8-1)+2) -> 0.224 | J179: =VLOOKUP($H179,P_All!$H$5:$M$204,($C$8-1)+2) -> 0.006 | K179: =VLOOKUP($H179,P_All!$O$5:$AD$204,3*($C$8-1)+2) -> 0.023862 | L179: =VLOOKUP($H179,P_All!$O$5:$AD$204,3*($C$8-1)+3) -> 0.10004 | M179: =VLOOKUP($H179,P_All!$O$5:$AD$204,3*($C$8-1)+4) -> 1 | O179: 131.6666667 | P179: =VLOOKUP($O179,P_All!$AF$5:$AU$244,3*($C$8-1)+2) -> 0.0025946 | Q179: =VLOOKUP($O179,P_All!$AF$5:$AU$244,3*($C$8-1)+3) -> 0.022007 | R179: =VLOOKUP($O179,P_All!$AF$5:$AU$244,3*($C$8-1)+4) -> 1 | S179: =VLOOKUP($O179,P_All!$AW$5:$BG$244,($C$8-1)+2) -> 0.236 | T179: =VLOOKUP($O179,P_All!$AW$5:$BG$244,($C$8-1)+7) -> 0
H180: 141 | I180: =VLOOKUP($H180,P_All!$A$5:$F$204,($C$8-1)+2) -> 0.236 | J180: =VLOOKUP($H180,P_All!$H$5:$M$204,($C$8-1)+2) -> 0.004 | K180: =VLOOKUP($H180,P_All!$O$5:$AD$204,3*($C$8-1)+2) -> 0.031859 | L180: =VLOOKUP($H180,P_All!$O$5:$AD$204,3*($C$8-1)+3) -> 0.10599 | M180: =VLOOKUP($H180,P_All!$O$5:$AD$204,3*($C$8-1)+4) -> 1 | O180: 131.75 | P180: =VLOOKUP($O180,P_All!$AF$5:$AU$244,3*($C$8-1)+2) -> 0.004046 | Q180: =VLOOKUP($O180,P_All!$AF$5:$AU$244,3*($C$8-1)+3) -> 0.015721 | R180: =VLOOKUP($O180,P_All!$AF$5:$AU$244,3*($C$8-1)+4) -> 1 | S180: =VLOOKUP($O180,P_All!$AW$5:$BG$244,($C$8-1)+2) -> 0.21 | T180: =VLOOKUP($O180,P_All!$AW$5:$BG$244,($C$8-1)+7) -> 0
H181: 142 | I181: =VLOOKUP($H181,P_All!$A$5:$F$204,($C$8-1)+2) -> 0.262 | J181: =VLOOKUP($H181,P_All!$H$5:$M$204,($C$8-1)+2) -> 0.006 | K181: =VLOOKUP($H181,P_All!$O$5:$AD$204,3*($C$8-1)+2) -> 0.031789 | L181: =VLOOKUP($H181,P_All!$O$5:$AD$204,3*($C$8-1)+3) -> 0.10717 | M181: =VLOOKUP($H181,P_All!$O$5:$AD$204,3*($C$8-1)+4) -> 1 | O181: 131.8333333 | P181: =VLOOKUP($O181,P_All!$AF$5:$AU$244,3*($C$8-1)+2) -> 0.0024458 | Q181: =VLOOKUP($O181,P_All!$AF$5:$AU$244,3*($C$8-1)+3) -> 0.017735 | R181: =VLOOKUP($O181,P_All!$AF$5:$AU$244,3*($C$8-1)+4) -> 1 | S181: =VLOOKUP($O181,P_All!$AW$5:$BG$244,($C$8-1)+2) -> 0.246 | T181: =VLOOKUP($O181,P_All!$AW$5:$BG$244,($C$8-1)+7) -> 0
H182: 143 | I182: =VLOOKUP($H182,P_All!$A$5:$F$204,($C$8-1)+2) -> 0.23 | J182: =VLOOKUP($H182,P_All!$H$5:$M$204,($C$8-1)+2) -> 0.004 | K182: =VLOOKUP($H182,P_All!$O$5:$AD$204,3*($C$8-1)+2) -> 0.026942 | L182: =VLOOKUP($H182,P_All!$O$5:$AD$204,3*($C$8-1)+3) -> 0.12186 | M182: =VLOOKUP($H182,P_All!$O$5:$AD$204,3*($C$8-1)+4) -> 1 | O182: 131.9166667 | P182: =VLOOKUP($O182,P_All!$AF$5:$AU$244,3*($C$8-1)+2) -> 0.0045656 | Q182: =VLOOKUP($O182,P_All!$AF$5:$AU$244,3*($C$8-1)+3) -> 0.022859 | R182: =VLOOKUP($O182,P_All!$AF$5:$AU$244,3*($C$8-1)+4) -> 1 | S182: =VLOOKUP($O182,P_All!$AW$5:$BG$244,($C$8-1)+2) -> 0.26 | T182: =VLOOKUP($O182,P_All!$AW$5:$BG$244,($C$8-1)+7) -> 0.002
H183: 144 | I183: =VLOOKUP($H183,P_All!$A$5:$F$204,($C$8-1)+2) -> 0.254 | J183: =VLOOKUP($H183,P_All!$H$5:$M$204,($C$8-1)+2) -> 0.004 | K183: =VLOOKUP($H183,P_All!$O$5:$AD$204,3*($C$8-1)+2) -> 0.028819 | L183: =VLOOKUP($H183,P_All!$O$5:$AD$204,3*($C$8-1)+3) -> 0.11789 | M183: =VLOOKUP($H183,P_All!$O$5:$AD$204,3*($C$8-1)+4) -> 1 | O183: 132 | P183: =VLOOKUP($O183,P_All!$AF$5:$AU$244,3*($C$8-1)+2) -> 0.010257 | Q183: =VLOOKUP($O183,P_All!$AF$5:$AU$244,3*($C$8-1)+3) -> 0.038791 | R183: =VLOOKUP($O183,P_All!$AF$5:$AU$244,3*($C$8-1)+4) -> 1 | S183: =VLOOKUP($O183,P_All!$AW$5:$BG$244,($C$8-1)+2) -> 0.224 | T183: =VLOOKUP($O183,P_All!$AW$5:$BG$244,($C$8-1)+7) -> 0.002
H184: 145 | I184: =VLOOKUP($H184,P_All!$A$5:$F$204,($C$8-1)+2) -> 0.252 | J184: =VLOOKUP($H184,P_All!$H$5:$M$204,($C$8-1)+2) -> 0.006 | K184: =VLOOKUP($H184,P_All!$O$5:$AD$204,3*($C$8-1)+2) -> 0.033791 | L184: =VLOOKUP($H184,P_All!$O$5:$AD$204,3*($C$8-1)+3) -> 0.11211 | M184: =VLOOKUP($H184,P_All!$O$5:$AD$204,3*($C$8-1)+4) -> 1 | O184: 132.0833333 | P184: =VLOOKUP($O184,P_All!$AF$5:$AU$244,3*($C$8-1)+2) -> 0.016702 | Q184: =VLOOKUP($O184,P_All!$AF$5:$AU$244,3*($C$8-1)+3) -> 0.067201 | R184: =VLOOKUP($O184,P_All!$AF$5:$AU$244,3*($C$8-1)+4) -> 1 | S184: =VLOOKUP($O184,P_All!$AW$5:$BG$244,($C$8-1)+2) -> 0.194 | T184: =VLOOKUP($O184,P_All!$AW$5:$BG$244,($C$8-1)+7) -> 0.008
H185: 146 | I185: =VLOOKUP($H185,P_All!$A$5:$F$204,($C$8-1)+2) -> 0.234 | J185: =VLOOKUP($H185,P_All!$H$5:$M$204,($C$8-1)+2) -> 0.002 | K185: =VLOOKUP($H185,P_All!$O$5:$AD$204,3*($C$8-1)+2) -> 0.026515 | L185: =VLOOKUP($H185,P_All!$O$5:$AD$204,3*($C$8-1)+3) -> 0.10564 | M185: =VLOOKUP($H185,P_All!$O$5:$AD$204,3*($C$8-1)+4) -> 1 | O185: 132.1666667 | P185: =VLOOKUP($O185,P_All!$AF$5:$AU$244,3*($C$8-1)+2) -> 0.020669 | Q185: =VLOOKUP($O185,P_All!$AF$5:$AU$244,3*($C$8-1)+3) -> 0.097622 | R185: =VLOOKUP($O185,P_All!$AF$5:$AU$244,3*($C$8-1)+4) -> 1 | S185: =VLOOKUP($O185,P_All!$AW$5:$BG$244,($C$8-1)+2) -> 0.182 | T185: =VLOOKUP($O185,P_All!$AW$5:$BG$244,($C$8-1)+7) -> 0.006
H186: 147 | I186: =VLOOKUP($H186,P_All!$A$5:$F$204,($C$8-1)+2) -> 0.244 | J186: =VLOOKUP($H186,P_All!$H$5:$M$204,($C$8-1)+2) -> 0.004 | K186: =VLOOKUP($H186,P_All!$O$5:$AD$204,3*($C$8-1)+2) -> 0.030939 | L186: =VLOOKUP($H186,P_All!$O$5:$AD$204,3*($C$8-1)+3) -> 0.11924 | M186: =VLOOKUP($H186,P_All!$O$5:$AD$204,3*($C$8-1)+4) -> 1 | O186: 132.25 | P186: =VLOOKUP($O186,P_All!$AF$5:$AU$244,3*($C$8-1)+2) -> 0.0051772 | Q186: =VLOOKUP($O186,P_All!$AF$5:$AU$244,3*($C$8-1)+3) -> 0.099862 | R186: =VLOOKUP($O186,P_All!$AF$5:$AU$244,3*($C$8-1)+4) -> 1 | S186: =VLOOKUP($O186,P_All!$AW$5:$BG$244,($C$8-1)+2) -> 0.196 | T186: =VLOOKUP($O186,P_All!$AW$5:$BG$244,($C$8-1)+7) -> 0.002
H187: 148 | I187: =VLOOKUP($H187,P_All!$A$5:$F$204,($C$8-1)+2) -> 0.266 | J187: =VLOOKUP($H187,P_All!$H$5:$M$204,($C$8-1)+2) -> 0.002 | K187: =VLOOKUP($H187,P_All!$O$5:$AD$204,3*($C$8-1)+2) -> 0.023189 | L187: =VLOOKUP($H187,P_All!$O$5:$AD$204,3*($C$8-1)+3) -> 0.10574 | M187: =VLOOKUP($H187,P_All!$O$5:$AD$204,3*($C$8-1)+4) -> 1 | O187: 132.3333333 | P187: =VLOOKUP($O187,P_All!$AF$5:$AU$244,3*($C$8-1)+2) -> 0.0013358 | Q187: =VLOOKUP($O187,P_All!$AF$5:$AU$244,3*($C$8-1)+3) -> 0.0076541 | R187: =VLOOKUP($O187,P_All!$AF$5:$AU$244,3*($C$8-1)+4) -> 1 | S187: =VLOOKUP($O187,P_All!$AW$5:$BG$244,($C$8-1)+2) -> 0.214 | T187: =VLOOKUP($O187,P_All!$AW$5:$BG$244,($C$8-1)+7) -> 0
H188: 149 | I188: =VLOOKUP($H188,P_All!$A$5:$F$204,($C$8-1)+2) -> 0.26 | J188: =VLOOKUP($H188,P_All!$H$5:$M$204,($C$8-1)+2) -> 0.006 | K188: =VLOOKUP($H188,P_All!$O$5:$AD$204,3*($C$8-1)+2) -> 0.02671 | L188: =VLOOKUP($H188,P_All!$O$5:$AD$204,3*($C$8-1)+3) -> 0.096796 | M188: =VLOOKUP($H188,P_All!$O$5:$AD$204,3*($C$8-1)+4) -> 1 | O188: 132.4166667 | P188: =VLOOKUP($O188,P_All!$AF$5:$AU$244,3*($C$8-1)+2) -> 0.0013806 | Q188: =VLOOKUP($O188,P_All!$AF$5:$AU$244,3*($C$8-1)+3) -> 0.0074313 | R188: =VLOOKUP($O188,P_All!$AF$5:$AU$244,3*($C$8-1)+4) -> 1 | S188: =VLOOKUP($O188,P_All!$AW$5:$BG$244,($C$8-1)+2) -> 0.232 | T188: =VLOOKUP($O188,P_All!$AW$5:$BG$244,($C$8-1)+7) -> 0
H189: 150 | I189: =VLOOKUP($H189,P_All!$A$5:$F$204,($C$8-1)+2) -> 0.25 | J189: =VLOOKUP($H189,P_All!$H$5:$M$204,($C$8-1)+2) -> 0.004 | K189: =VLOOKUP($H189,P_All!$O$5:$AD$204,3*($C$8-1)+2) -> 0.028732 | L189: =VLOOKUP($H189,P_All!$O$5:$AD$204,3*($C$8-1)+3) -> 0.10412 | M189: =VLOOKUP($H189,P_All!$O$5:$AD$204,3*($C$8-1)+4) -> 1 | O189: 132.5 | P189: =VLOOKUP($O189,P_All!$AF$5:$AU$244,3*($C$8-1)+2) -> 0.0038083 | Q189: =VLOOKUP($O189,P_All!$AF$5:$AU$244,3*($C$8-1)+3) -> 0.013913 | R189: =VLOOKUP($O189,P_All!$AF$5:$AU$244,3*($C$8-1)+4) -> 1 | S189: =VLOOKUP($O189,P_All!$AW$5:$BG$244,($C$8-1)+2) -> 0.22 | T189: =VLOOKUP($O189,P_All!$AW$5:$BG$244,($C$8-1)+7) -> 0
H190: 151 | I190: =VLOOKUP($H190,P_All!$A$5:$F$204,($C$8-1)+2) -> 0.248 | J190: =VLOOKUP($H190,P_All!$H$5:$M$204,($C$8-1)+2) -> 0 | K190: =VLOOKUP($H190,P_All!$O$5:$AD$204,3*($C$8-1)+2) -> 0.027616 | L190: =VLOOKUP($H190,P_All!$O$5:$AD$204,3*($C$8-1)+3) -> 0.099428 | M190: =VLOOKUP($H190,P_All!$O$5:$AD$204,3*($C$8-1)+4) -> 1 | O190: 132.5833333 | P190: =VLOOKUP($O190,P_All!$AF$5:$AU$244,3*($C$8-1)+2) -> 0.0013378 | Q190: =VLOOKUP($O190,P_All!$AF$5:$AU$244,3*($C$8-1)+3) -> 0.023934 | R190: =VLOOKUP($O190,P_All!$AF$5:$AU$244,3*($C$8-1)+4) -> 1 | S190: =VLOOKUP($O190,P_All!$AW$5:$BG$244,($C$8-1)+2) -> 0.228 | T190: =VLOOKUP($O190,P_All!$AW$5:$BG$244,($C$8-1)+7) -> 0.002
H191: 152 | I191: =VLOOKUP($H191,P_All!$A$5:$F$204,($C$8-1)+2) -> 0.246 | J191: =VLOOKUP($H191,P_All!$H$5:$M$204,($C$8-1)+2) -> 0.008 | K191: =VLOOKUP($H191,P_All!$O$5:$AD$204,3*($C$8-1)+2) -> 0.028669 | L191: =VLOOKUP($H191,P_All!$O$5:$AD$204,3*($C$8-1)+3) -> 0.11006 | M191: =VLOOKUP($H191,P_All!$O$5:$AD$204,3*($C$8-1)+4) -> 1 | O191: 132.6666667 | P191: =VLOOKUP($O191,P_All!$AF$5:$AU$244,3*($C$8-1)+2) -> 0.0020986 | Q191: =VLOOKUP($O191,P_All!$AF$5:$AU$244,3*($C$8-1)+3) -> 0.020965 | R191: =VLOOKUP($O191,P_All!$AF$5:$AU$244,3*($C$8-1)+4) -> 1 | S191: =VLOOKUP($O191,P_All!$AW$5:$BG$244,($C$8-1)+2) -> 0.208 | T191: =VLOOKUP($O191,P_All!$AW$5:$BG$244,($C$8-1)+7) -> 0
H192: 153 | I192: =VLOOKUP($H192,P_All!$A$5:$F$204,($C$8-1)+2) -> 0.244 | J192: =VLOOKUP($H192,P_All!$H$5:$M$204,($C$8-1)+2) -> 0.006 | K192: =VLOOKUP($H192,P_All!$O$5:$AD$204,3*($C$8-1)+2) -> 0.030425 | L192: =VLOOKUP($H192,P_All!$O$5:$AD$204,3*($C$8-1)+3) -> 0.10614 | M192: =VLOOKUP($H192,P_All!$O$5:$AD$204,3*($C$8-1)+4) -> 1 | O192: 132.75 | P192: =VLOOKUP($O192,P_All!$AF$5:$AU$244,3*($C$8-1)+2) -> 0.0037348 | Q192: =VLOOKUP($O192,P_All!$AF$5:$AU$244,3*($C$8-1)+3) -> 0.014085 | R192: =VLOOKUP($O192,P_All!$AF$5:$AU$244,3*($C$8-1)+4) -> 1 | S192: =VLOOKUP($O192,P_All!$AW$5:$BG$244,($C$8-1)+2) -> 0.214 | T192: =VLOOKUP($O192,P_All!$AW$5:$BG$244,($C$8-1)+7) -> 0
H193: 154 | I193: =VLOOKUP($H193,P_All!$A$5:$F$204,($C$8-1)+2) -> 0.24 | J193: =VLOOKUP($H193,P_All!$H$5:$M$204,($C$8-1)+2) -> 0.004 | K193: =VLOOKUP($H193,P_All!$O$5:$AD$204,3*($C$8-1)+2) -> 0.025692 | L193: =VLOOKUP($H193,P_All!$O$5:$AD$204,3*($C$8-1)+3) -> 0.097963 | M193: =VLOOKUP($H193,P_All!$O$5:$AD$204,3*($C$8-1)+4) -> 1 | O193: 132.8333333 | P193: =VLOOKUP($O193,P_All!$AF$5:$AU$244,3*($C$8-1)+2) -> 0.0026808 | Q193: =VLOOKUP($O193,P_All!$AF$5:$AU$244,3*($C$8-1)+3) -> 0.01618 | R193: =VLOOKUP($O193,P_All!$AF$5:$AU$244,3*($C$8-1)+4) -> 1 | S193: =VLOOKUP($O193,P_All!$AW$5:$BG$244,($C$8-1)+2) -> 0.248 | T193: =VLOOKUP($O193,P_All!$AW$5:$BG$244,($C$8-1)+7) -> 0
H194: 155 | I194: =VLOOKUP($H194,P_All!$A$5:$F$204,($C$8-1)+2) -> 0.254 | J194: =VLOOKUP($H194,P_All!$H$5:$M$204,($C$8-1)+2) -> 0.008 | K194: =VLOOKUP($H194,P_All!$O$5:$AD$204,3*($C$8-1)+2) -> 0.034195 | L194: =VLOOKUP($H194,P_All!$O$5:$AD$204,3*($C$8-1)+3) -> 0.10495 | M194: =VLOOKUP($H194,P_All!$O$5:$AD$204,3*($C$8-1)+4) -> 1 | O194: 132.9166667 | P194: =VLOOKUP($O194,P_All!$AF$5:$AU$244,3*($C$8-1)+2) -> 0.004858 | Q194: =VLOOKUP($O194,P_All!$AF$5:$AU$244,3*($C$8-1)+3) -> 0.019811 | R194: =VLOOKUP($O194,P_All!$AF$5:$AU$244,3*($C$8-1)+4) -> 1 | S194: =VLOOKUP($O194,P_All!$AW$5:$BG$244,($C$8-1)+2) -> 0.21 | T194: =VLOOKUP($O194,P_All!$AW$5:$BG$244,($C$8-1)+7) -> 0
H195: 156 | I195: =VLOOKUP($H195,P_All!$A$5:$F$204,($C$8-1)+2) -> 0.238 | J195: =VLOOKUP($H195,P_All!$H$5:$M$204,($C$8-1)+2) -> 0.004 | K195: =VLOOKUP($H195,P_All!$O$5:$AD$204,3*($C$8-1)+2) -> 0.03568 | L195: =VLOOKUP($H195,P_All!$O$5:$AD$204,3*($C$8-1)+3) -> 0.10161 | M195: =VLOOKUP($H195,P_All!$O$5:$AD$204,3*($C$8-1)+4) -> 1 | O195: 133 | P195: =VLOOKUP($O195,P_All!$AF$5:$AU$244,3*($C$8-1)+2) -> 0.015528 | Q195: =VLOOKUP($O195,P_All!$AF$5:$AU$244,3*($C$8-1)+3) -> 0.03952 | R195: =VLOOKUP($O195,P_All!$AF$5:$AU$244,3*($C$8-1)+4) -> 1 | S195: =VLOOKUP($O195,P_All!$AW$5:$BG$244,($C$8-1)+2) -> 0.22 | T195: =VLOOKUP($O195,P_All!$AW$5:$BG$244,($C$8-1)+7) -> 0.002
H196: 157 | I196: =VLOOKUP($H196,P_All!$A$5:$F$204,($C$8-1)+2) -> 0.24 | J196: =VLOOKUP($H196,P_All!$H$5:$M$204,($C$8-1)+2) -> 0.004 | K196: =VLOOKUP($H196,P_All!$O$5:$AD$204,3*($C$8-1)+2) -> 0.022626 | L196: =VLOOKUP($H196,P_All!$O$5:$AD$204,3*($C$8-1)+3) -> 0.10158 | M196: =VLOOKUP($H196,P_All!$O$5:$AD$204,3*($C$8-1)+4) -> 1 | O196: 133.0833333 | P196: =VLOOKUP($O196,P_All!$AF$5:$AU$244,3*($C$8-1)+2) -> 0.024633 | Q196: =VLOOKUP($O196,P_All!$AF$5:$AU$244,3*($C$8-1)+3) -> 0.070667 | R196: =VLOOKUP($O196,P_All!$AF$5:$AU$244,3*($C$8-1)+4) -> 1 | S196: =VLOOKUP($O196,P_All!$AW$5:$BG$244,($C$8-1)+2) -> 0.196 | T196: =VLOOKUP($O196,P_All!$AW$5:$BG$244,($C$8-1)+7) -> 0.002
H197: 158 | I197: =VLOOKUP($H197,P_All!$A$5:$F$204,($C$8-1)+2) -> 0.256 | J197: =VLOOKUP($H197,P_All!$H$5:$M$204,($C$8-1)+2) -> 0.004 | K197: =VLOOKUP($H197,P_All!$O$5:$AD$204,3*($C$8-1)+2) -> 0.026087 | L197: =VLOOKUP($H197,P_All!$O$5:$AD$204,3*($C$8-1)+3) -> 0.10118 | M197: =VLOOKUP($H197,P_All!$O$5:$AD$204,3*($C$8-1)+4) -> 1 | O197: 133.1666667 | P197: =VLOOKUP($O197,P_All!$AF$5:$AU$244,3*($C$8-1)+2) -> 0.027292 | Q197: =VLOOKUP($O197,P_All!$AF$5:$AU$244,3*($C$8-1)+3) -> 0.11091 | R197: =VLOOKUP($O197,P_All!$AF$5:$AU$244,3*($C$8-1)+4) -> 1 | S197: =VLOOKUP($O197,P_All!$AW$5:$BG$244,($C$8-1)+2) -> 0.184 | T197: =VLOOKUP($O197,P_All!$AW$5:$BG$244,($C$8-1)+7) -> 0.004
H198: 159 | I198: =VLOOKUP($H198,P_All!$A$5:$F$204,($C$8-1)+2) -> 0.238 | J198: =VLOOKUP($H198,P_All!$H$5:$M$204,($C$8-1)+2) -> 0.006 | K198: =VLOOKUP($H198,P_All!$O$5:$AD$204,3*($C$8-1)+2) -> 0.027944 | L198: =VLOOKUP($H198,P_All!$O$5:$AD$204,3*($C$8-1)+3) -> 0.10714 | M198: =VLOOKUP($H198,P_All!$O$5:$AD$204,3*($C$8-1)+4) -> 1 | O198: 133.25 | P198: =VLOOKUP($O198,P_All!$AF$5:$AU$244,3*($C$8-1)+2) -> 0.0038669 | Q198: =VLOOKUP($O198,P_All!$AF$5:$AU$244,3*($C$8-1)+3) -> 0.11783 | R198: =VLOOKUP($O198,P_All!$AF$5:$AU$244,3*($C$8-1)+4) -> 1 | S198: =VLOOKUP($O198,P_All!$AW$5:$BG$244,($C$8-1)+2) -> 0.202 | T198: =VLOOKUP($O198,P_All!$AW$5:$BG$244,($C$8-1)+7) -> 0.006
H199: 160 | I199: =VLOOKUP($H199,P_All!$A$5:$F$204,($C$8-1)+2) -> 0.248 | J199: =VLOOKUP($H199,P_All!$H$5:$M$204,($C$8-1)+2) -> 0.006 | K199: =VLOOKUP($H199,P_All!$O$5:$AD$204,3*($C$8-1)+2) -> 0.026134 | L199: =VLOOKUP($H199,P_All!$O$5:$AD$204,3*($C$8-1)+3) -> 0.099549 | M199: =VLOOKUP($H199,P_All!$O$5:$AD$204,3*($C$8-1)+4) -> 1 | O199: 133.3333333 | P199: =VLOOKUP($O199,P_All!$AF$5:$AU$244,3*($C$8-1)+2) -> 0.0012903 | Q199: =VLOOKUP($O199,P_All!$AF$5:$AU$244,3*($C$8-1)+3) -> 0.007098 | R199: =VLOOKUP($O199,P_All!$AF$5:$AU$244,3*($C$8-1)+4) -> 1 | S199: =VLOOKUP($O199,P_All!$AW$5:$BG$244,($C$8-1)+2) -> 0.222 | T199: =VLOOKUP($O199,P_All!$AW$5:$BG$244,($C$8-1)+7) -> 0.002
H200: 161 | I200: =VLOOKUP($H200,P_All!$A$5:$F$204,($C$8-1)+2) -> 0.22 | J200: =VLOOKUP($H200,P_All!$H$5:$M$204,($C$8-1)+2) -> 0.006 | K200: =VLOOKUP($H200,P_All!$O$5:$AD$204,3*($C$8-1)+2) -> 0.031533 | L200: =VLOOKUP($H200,P_All!$O$5:$AD$204,3*($C$8-1)+3) -> 0.10392 | M200: =VLOOKUP($H200,P_All!$O$5:$AD$204,3*($C$8-1)+4) -> 1 | O200: 133.4166667 | P200: =VLOOKUP($O200,P_All!$AF$5:$AU$244,3*($C$8-1)+2) -> 0.0015163 | Q200: =VLOOKUP($O200,P_All!$AF$5:$AU$244,3*($C$8-1)+3) -> 0.0079292 | R200: =VLOOKUP($O200,P_All!$AF$5:$AU$244,3*($C$8-1)+4) -> 1 | S200: =VLOOKUP($O200,P_All!$AW$5:$BG$244,($C$8-1)+2) -> 0.208 | T200: =VLOOKUP($O200,P_All!$AW$5:$BG$244,($C$8-1)+7) -> 0
H201: 162 | I201: =VLOOKUP($H201,P_All!$A$5:$F$204,($C$8-1)+2) -> 0.248 | J201: =VLOOKUP($H201,P_All!$H$5:$M$204,($C$8-1)+2) -> 0.006 | K201: =VLOOKUP($H201,P_All!$O$5:$AD$204,3*($C$8-1)+2) -> 0.028463 | L201: =VLOOKUP($H201,P_All!$O$5:$AD$204,3*($C$8-1)+3) -> 0.10816 | M201: =VLOOKUP($H201,P_All!$O$5:$AD$204,3*($C$8-1)+4) -> 1 | O201: 133.5 | P201: =VLOOKUP($O201,P_All!$AF$5:$AU$244,3*($C$8-1)+2) -> 0.0031668 | Q201: =VLOOKUP($O201,P_All!$AF$5:$AU$244,3*($C$8-1)+3) -> 0.013962 | R201: =VLOOKUP($O201,P_All!$AF$5:$AU$244,3*($C$8-1)+4) -> 1 | S201: =VLOOKUP($O201,P_All!$AW$5:$BG$244,($C$8-1)+2) -> 0.246 | T201: =VLOOKUP($O201,P_All!$AW$5:$BG$244,($C$8-1)+7) -> 0.002
H202: 163 | I202: =VLOOKUP($H202,P_All!$A$5:$F$204,($C$8-1)+2) -> 0.236 | J202: =VLOOKUP($H202,P_All!$H$5:$M$204,($C$8-1)+2) -> 0.004 | K202: =VLOOKUP($H202,P_All!$O$5:$AD$204,3*($C$8-1)+2) -> 0.027816 | L202: =VLOOKUP($H202,P_All!$O$5:$AD$204,3*($C$8-1)+3) -> 0.10139 | M202: =VLOOKUP($H202,P_All!$O$5:$AD$204,3*($C$8-1)+4) -> 1 | O202: 133.5833333 | P202: =VLOOKUP($O202,P_All!$AF$5:$AU$244,3*($C$8-1)+2) -> 0.0014417 | Q202: =VLOOKUP($O202,P_All!$AF$5:$AU$244,3*($C$8-1)+3) -> 0.018228 | R202: =VLOOKUP($O202,P_All!$AF$5:$AU$244,3*($C$8-1)+4) -> 1 | S202: =VLOOKUP($O202,P_All!$AW$5:$BG$244,($C$8-1)+2) -> 0.22 | T202: =VLOOKUP($O202,P_All!$AW$5:$BG$244,($C$8-1)+7) -> 0.002
H203: 164 | I203: =VLOOKUP($H203,P_All!$A$5:$F$204,($C$8-1)+2) -> 0.224 | J203: =VLOOKUP($H203,P_All!$H$5:$M$204,($C$8-1)+2) -> 0.004 | K203: =VLOOKUP($H203,P_All!$O$5:$AD$204,3*($C$8-1)+2) -> 0.028821 | L203: =VLOOKUP($H203,P_All!$O$5:$AD$204,3*($C$8-1)+3) -> 0.10259 | M203: =VLOOKUP($H203,P_All!$O$5:$AD$204,3*($C$8-1)+4) -> 1 | O203: 133.6666667 | P203: =VLOOKUP($O203,P_All!$AF$5:$AU$244,3*($C$8-1)+2) -> 0.0018765 | Q203: =VLOOKUP($O203,P_All!$AF$5:$AU$244,3*($C$8-1)+3) -> 0.02079 | R203: =VLOOKUP($O203,P_All!$AF$5:$AU$244,3*($C$8-1)+4) -> 1 | S203: =VLOOKUP($O203,P_All!$AW$5:$BG$244,($C$8-1)+2) -> 0.21 | T203: =VLOOKUP($O203,P_All!$AW$5:$BG$244,($C$8-1)+7) -> 0
H204: 165 | I204: =VLOOKUP($H204,P_All!$A$5:$F$204,($C$8-1)+2) -> 0.234 | J204: =VLOOKUP($H204,P_All!$H$5:$M$204,($C$8-1)+2) -> 0.008 | K204: =VLOOKUP($H204,P_All!$O$5:$AD$204,3*($C$8-1)+2) -> 0.027522 | L204: =VLOOKUP($H204,P_All!$O$5:$AD$204,3*($C$8-1)+3) -> 0.10281 | M204: =VLOOKUP($H204,P_All!$O$5:$AD$204,3*($C$8-1)+4) -> 1 | O204: 133.75 | P204: =VLOOKUP($O204,P_All!$AF$5:$AU$244,3*($C$8-1)+2) -> 0.0034879 | Q204: =VLOOKUP($O204,P_All!$AF$5:$AU$244,3*($C$8-1)+3) -> 0.01883 | R204: =VLOOKUP($O204,P_All!$AF$5:$AU$244,3*($C$8-1)+4) -> 1 | S204: =VLOOKUP($O204,P_All!$AW$5:$BG$244,($C$8-1)+2) -> 0.246 | T204: =VLOOKUP($O204,P_All!$AW$5:$BG$244,($C$8-1)+7) -> 0
H205: 166 | I205: =VLOOKUP($H205,P_All!$A$5:$F$204,($C$8-1)+2) -> 0.238 | J205: =VLOOKUP($H205,P_All!$H$5:$M$204,($C$8-1)+2) -> 0.004 | K205: =VLOOKUP($H205,P_All!$O$5:$AD$204,3*($C$8-1)+2) -> 0.026059 | L205: =VLOOKUP($H205,P_All!$O$5:$AD$204,3*($C$8-1)+3) -> 0.099215 | M205: =VLOOKUP($H205,P_All!$O$5:$AD$204,3*($C$8-1)+4) -> 1 | O205: 133.8333333 | P205: =VLOOKUP($O205,P_All!$AF$5:$AU$244,3*($C$8-1)+2) -> 0.0025902 | Q205: =VLOOKUP($O205,P_All!$AF$5:$AU$244,3*($C$8-1)+3) -> 0.014517 | R205: =VLOOKUP($O205,P_All!$AF$5:$AU$244,3*($C$8-1)+4) -> 1 | S205: =VLOOKUP($O205,P_All!$AW$5:$BG$244,($C$8-1)+2) -> 0.218 | T205: =VLOOKUP($O205,P_All!$AW$5:$BG$244,($C$8-1)+7) -> 0.002
H206: 167 | I206: =VLOOKUP($H206,P_All!$A$5:$F$204,($C$8-1)+2) -> 0.238 | J206: =VLOOKUP($H206,P_All!$H$5:$M$204,($C$8-1)+2) -> 0.008 | K206: =VLOOKUP($H206,P_All!$O$5:$AD$204,3*($C$8-1)+2) -> 0.028363 | L206: =VLOOKUP($H206,P_All!$O$5:$AD$204,3*($C$8-1)+3) -> 0.11186 | M206: =VLOOKUP($H206,P_All!$O$5:$AD$204,3*($C$8-1)+4) -> 1 | O206: 133.9166667 | P206: =VLOOKUP($O206,P_All!$AF$5:$AU$244,3*($C$8-1)+2) -> 0.0050958 | Q206: =VLOOKUP($O206,P_All!$AF$5:$AU$244,3*($C$8-1)+3) -> 0.020179 | R206: =VLOOKUP($O206,P_All!$AF$5:$AU$244,3*($C$8-1)+4) -> 1 | S206: =VLOOKUP($O206,P_All!$AW$5:$BG$244,($C$8-1)+2) -> 0.192 | T206: =VLOOKUP($O206,P_All!$AW$5:$BG$244,($C$8-1)+7) -> 0
H207: 168 | I207: =VLOOKUP($H207,P_All!$A$5:$F$204,($C$8-1)+2) -> 0.244 | J207: =VLOOKUP($H207,P_All!$H$5:$M$204,($C$8-1)+2) -> 0.004 | K207: =VLOOKUP($H207,P_All!$O$5:$AD$204,3*($C$8-1)+2) -> 0.028185 | L207: =VLOOKUP($H207,P_All!$O$5:$AD$204,3*($C$8-1)+3) -> 0.10918 | M207: =VLOOKUP($H207,P_All!$O$5:$AD$204,3*($C$8-1)+4) -> 1 | O207: 134 | P207: =VLOOKUP($O207,P_All!$AF$5:$AU$244,3*($C$8-1)+2) -> 0.013751 | Q207: =VLOOKUP($O207,P_All!$AF$5:$AU$244,3*($C$8-1)+3) -> 0.042524 | R207: =VLOOKUP($O207,P_All!$AF$5:$AU$244,3*($C$8-1)+4) -> 1 | S207: =VLOOKUP($O207,P_All!$AW$5:$BG$244,($C$8-1)+2) -> 0.202 | T207: =VLOOKUP($O207,P_All!$AW$5:$BG$244,($C$8-1)+7) -> 0.002
H208: 169 | I208: =VLOOKUP($H208,P_All!$A$5:$F$204,($C$8-1)+2) -> 0.24 | J208: =VLOOKUP($H208,P_All!$H$5:$M$204,($C$8-1)+2) -> 0.002 | K208: =VLOOKUP($H208,P_All!$O$5:$AD$204,3*($C$8-1)+2) -> 0.027824 | L208: =VLOOKUP($H208,P_All!$O$5:$AD$204,3*($C$8-1)+3) -> 0.10638 | M208: =VLOOKUP($H208,P_All!$O$5:$AD$204,3*($C$8-1)+4) -> 1 | O208: 134.0833333 | P208: =VLOOKUP($O208,P_All!$AF$5:$AU$244,3*($C$8-1)+2) -> 0.026202 | Q208: =VLOOKUP($O208,P_All!$AF$5:$AU$244,3*($C$8-1)+3) -> 0.074877 | R208: =VLOOKUP($O208,P_All!$AF$5:$AU$244,3*($C$8-1)+4) -> 1 | S208: =VLOOKUP($O208,P_All!$AW$5:$BG$244,($C$8-1)+2) -> 0.204 | T208: =VLOOKUP($O208,P_All!$AW$5:$BG$244,($C$8-1)+7) -> 0
H209: 170 | I209: =VLOOKUP($H209,P_All!$A$5:$F$204,($C$8-1)+2) -> 0.228 | J209: =VLOOKUP($H209,P_All!$H$5:$M$204,($C$8-1)+2) -> 0.004 | K209: =VLOOKUP($H209,P_All!$O$5:$AD$204,3*($C$8-1)+2) -> 0.027131 | L209: =VLOOKUP($H209,P_All!$O$5:$AD$204,3*($C$8-1)+3) -> 0.098129 | M209: =VLOOKUP($H209,P_All!$O$5:$AD$204,3*($C$8-1)+4) -> 1 | O209: 134.1666667 | P209: =VLOOKUP($O209,P_All!$AF$5:$AU$244,3*($C$8-1)+2) -> 0.029413 | Q209: =VLOOKUP($O209,P_All!$AF$5:$AU$244,3*($C$8-1)+3) -> 0.10924 | R209: =VLOOKUP($O209,P_All!$AF$5:$AU$244,3*($C$8-1)+4) -> 1 | S209: =VLOOKUP($O209,P_All!$AW$5:$BG$244,($C$8-1)+2) -> 0.2 | T209: =VLOOKUP($O209,P_All!$AW$5:$BG$244,($C$8-1)+7) -> 0.004
H210: 171 | I210: =VLOOKUP($H210,P_All!$A$5:$F$204,($C$8-1)+2) -> 0.232 | J210: =VLOOKUP($H210,P_All!$H$5:$M$204,($C$8-1)+2) -> 0.008 | K210: =VLOOKUP($H210,P_All!$O$5:$AD$204,3*($C$8-1)+2) -> 0.027379 | L210: =VLOOKUP($H210,P_All!$O$5:$AD$204,3*($C$8-1)+3) -> 0.098998 | M210: =VLOOKUP($H210,P_All!$O$5:$AD$204,3*($C$8-1)+4) -> 1 | O210: 134.25 | P210: =VLOOKUP($O210,P_All!$AF$5:$AU$244,3*($C$8-1)+2) -> 0.0054025 | Q210: =VLOOKUP($O210,P_All!$AF$5:$AU$244,3*($C$8-1)+3) -> 0.11371 | R210: =VLOOKUP($O210,P_All!$AF$5:$AU$244,3*($C$8-1)+4) -> 1 | S210: =VLOOKUP($O210,P_All!$AW$5:$BG$244,($C$8-1)+2) -> 0.21 | T210: =VLOOKUP($O210,P_All!$AW$5:$BG$244,($C$8-1)+7) -> 0.002
H211: 172 | I211: =VLOOKUP($H211,P_All!$A$5:$F$204,($C$8-1)+2) -> 0.244 | J211: =VLOOKUP($H211,P_All!$H$5:$M$204,($C$8-1)+2) -> 0.004 | K211: =VLOOKUP($H211,P_All!$O$5:$AD$204,3*($C$8-1)+2) -> 0.033029 | L211: =VLOOKUP($H211,P_All!$O$5:$AD$204,3*($C$8-1)+3) -> 0.10253 | M211: =VLOOKUP($H211,P_All!$O$5:$AD$204,3*($C$8-1)+4) -> 1 | O211: 134.3333333 | P211: =VLOOKUP($O211,P_All!$AF$5:$AU$244,3*($C$8-1)+2) -> 0.0010169 | Q211: =VLOOKUP($O211,P_All!$AF$5:$AU$244,3*($C$8-1)+3) -> 0.0077626 | R211: =VLOOKUP($O211,P_All!$AF$5:$AU$244,3*($C$8-1)+4) -> 1 | S211: =VLOOKUP($O211,P_All!$AW$5:$BG$244,($C$8-1)+2) -> 0.232 | T211: =VLOOKUP($O211,P_All!$AW$5:$BG$244,($C$8-1)+7) -> 0
H212: 173 | I212: =VLOOKUP($H212,P_All!$A$5:$F$204,($C$8-1)+2) -> 0.236 | J212: =VLOOKUP($H212,P_All!$H$5:$M$204,($C$8-1)+2) -> 0.004 | K212: =VLOOKUP($H212,P_All!$O$5:$AD$204,3*($C$8-1)+2) -> 0.026053 | L212: =VLOOKUP($H212,P_All!$O$5:$AD$204,3*($C$8-1)+3) -> 0.10514 | M212: =VLOOKUP($H212,P_All!$O$5:$AD$204,3*($C$8-1)+4) -> 1 | O212: 134.4166667 | P212: =VLOOKUP($O212,P_All!$AF$5:$AU$244,3*($C$8-1)+2) -> 0.0013707 | Q212: =VLOOKUP($O212,P_All!$AF$5:$AU$244,3*($C$8-1)+3) -> 0.0075534 | R212: =VLOOKUP($O212,P_All!$AF$5:$AU$244,3*($C$8-1)+4) -> 1 | S212: =VLOOKUP($O212,P_All!$AW$5:$BG$244,($C$8-1)+2) -> 0.206 | T212: =VLOOKUP($O212,P_All!$AW$5:$BG$244,($C$8-1)+7) -> 0
H213: 174 | I213: =VLOOKUP($H213,P_All!$A$5:$F$204,($C$8-1)+2) -> 0.234 | J213: =VLOOKUP($H213,P_All!$H$5:$M$204,($C$8-1)+2) -> 0.004 | K213: =VLOOKUP($H213,P_All!$O$5:$AD$204,3*($C$8-1)+2) -> 0.02324 | L213: =VLOOKUP($H213,P_All!$O$5:$AD$204,3*($C$8-1)+3) -> 0.10316 | M213: =VLOOKUP($H213,P_All!$O$5:$AD$204,3*($C$8-1)+4) -> 1 | O213: 134.5 | P213: =VLOOKUP($O213,P_All!$AF$5:$AU$244,3*($C$8-1)+2) -> 0.0034113 | Q213: =VLOOKUP($O213,P_All!$AF$5:$AU$244,3*($C$8-1)+3) -> 0.012648 | R213: =VLOOKUP($O213,P_All!$AF$5:$AU$244,3*($C$8-1)+4) -> 1 | S213: =VLOOKUP($O213,P_All!$AW$5:$BG$244,($C$8-1)+2) -> 0.224 | T213: =VLOOKUP($O213,P_All!$AW$5:$BG$244,($C$8-1)+7) -> 0
H214: 175 | I214: =VLOOKUP($H214,P_All!$A$5:$F$204,($C$8-1)+2) -> 0.258 | J214: =VLOOKUP($H214,P_All!$H$5:$M$204,($C$8-1)+2) -> 0 | K214: =VLOOKUP($H214,P_All!$O$5:$AD$204,3*($C$8-1)+2) -> 0.026203 | L214: =VLOOKUP($H214,P_All!$O$5:$AD$204,3*($C$8-1)+3) -> 0.094754 | M214: =VLOOKUP($H214,P_All!$O$5:$AD$204,3*($C$8-1)+4) -> 1 | O214: 134.5833333 | P214: =VLOOKUP($O214,P_All!$AF$5:$AU$244,3*($C$8-1)+2) -> 0.0015826 | Q214: =VLOOKUP($O214,P_All!$AF$5:$AU$244,3*($C$8-1)+3) -> 0.026072 | R214: =VLOOKUP($O214,P_All!$AF$5:$AU$244,3*($C$8-1)+4) -> 1 | S214: =VLOOKUP($O214,P_All!$AW$5:$BG$244,($C$8-1)+2) -> 0.22 | T214: =VLOOKUP($O214,P_All!$AW$5:$BG$244,($C$8-1)+7) -> 0
H215: 176 | I215: =VLOOKUP($H215,P_All!$A$5:$F$204,($C$8-1)+2) -> 0.228 | J215: =VLOOKUP($H215,P_All!$H$5:$M$204,($C$8-1)+2) -> 0.002 | K215: =VLOOKUP($H215,P_All!$O$5:$AD$204,3*($C$8-1)+2) -> 0.027739 | L215: =VLOOKUP($H215,P_All!$O$5:$AD$204,3*($C$8-1)+3) -> 0.097061 | M215: =VLOOKUP($H215,P_All!$O$5:$AD$204,3*($C$8-1)+4) -> 1 | O215: 134.6666667 | P215: =VLOOKUP($O215,P_All!$AF$5:$AU$244,3*($C$8-1)+2) -> 0.0025177 | Q215: =VLOOKUP($O215,P_All!$AF$5:$AU$244,3*($C$8-1)+3) -> 0.021271 | R215: =VLOOKUP($O215,P_All!$AF$5:$AU$244,3*($C$8-1)+4) -> 1 | S215: =VLOOKUP($O215,P_All!$AW$5:$BG$244,($C$8-1)+2) -> 0.25 | T215: =VLOOKUP($O215,P_All!$AW$5:$BG$244,($C$8-1)+7) -> 0
H216: 177 | I216: =VLOOKUP($H216,P_All!$A$5:$F$204,($C$8-1)+2) -> 0.218 | J216: =VLOOKUP($H216,P_All!$H$5:$M$204,($C$8-1)+2) -> 0.004 | K216: =VLOOKUP($H216,P_All!$O$5:$AD$204,3*($C$8-1)+2) -> 0.027745 | L216: =VLOOKUP($H216,P_All!$O$5:$AD$204,3*($C$8-1)+3) -> 0.097822 | M216: =VLOOKUP($H216,P_All!$O$5:$AD$204,3*($C$8-1)+4) -> 1 | O216: 134.75 | P216: =VLOOKUP($O216,P_All!$AF$5:$AU$244,3*($C$8-1)+2) -> 0.0034274 | Q216: =VLOOKUP($O216,P_All!$AF$5:$AU$244,3*($C$8-1)+3) -> 0.015575 | R216: =VLOOKUP($O216,P_All!$AF$5:$AU$244,3*($C$8-1)+4) -> 1 | S216: =VLOOKUP($O216,P_All!$AW$5:$BG$244,($C$8-1)+2) -> 0.224 | T216: =VLOOKUP($O216,P_All!$AW$5:$BG$244,($C$8-1)+7) -> 0.002
H217: 178 | I217: =VLOOKUP($H217,P_All!$A$5:$F$204,($C$8-1)+2) -> 0.234 | J217: =VLOOKUP($H217,P_All!$H$5:$M$204,($C$8-1)+2) -> 0.004 | K217: =VLOOKUP($H217,P_All!$O$5:$AD$204,3*($C$8-1)+2) -> 0.026825 | L217: =VLOOKUP($H217,P_All!$O$5:$AD$204,3*($C$8-1)+3) -> 0.10819 | M217: =VLOOKUP($H217,P_All!$O$5:$AD$204,3*($C$8-1)+4) -> 1 | O217: 134.8333333 | P217: =VLOOKUP($O217,P_All!$AF$5:$AU$244,3*($C$8-1)+2) -> 0.0032672 | Q217: =VLOOKUP($O217,P_All!$AF$5:$AU$244,3*($C$8-1)+3) -> 0.01647 | R217: =VLOOKUP($O217,P_All!$AF$5:$AU$244,3*($C$8-1)+4) -> 1 | S217: =VLOOKUP($O217,P_All!$AW$5:$BG$244,($C$8-1)+2) -> 0.23 | T217: =VLOOKUP($O217,P_All!$AW$5:$BG$244,($C$8-1)+7) -> 0
H218: 179 | I218: =VLOOKUP($H218,P_All!$A$5:$F$204,($C$8-1)+2) -> 0.256 | J218: =VLOOKUP($H218,P_All!$H$5:$M$204,($C$8-1)+2) -> 0.004 | K218: =VLOOKUP($H218,P_All!$O$5:$AD$204,3*($C$8-1)+2) -> 0.026415 | L218: =VLOOKUP($H218,P_All!$O$5:$AD$204,3*($C$8-1)+3) -> 0.10316 | M218: =VLOOKUP($H218,P_All!$O$5:$AD$204,3*($C$8-1)+4) -> 1 | O218: 134.9166667 | P218: =VLOOKUP($O218,P_All!$AF$5:$AU$244,3*($C$8-1)+2) -> 0.0048218 | Q218: =VLOOKUP($O218,P_All!$AF$5:$AU$244,3*($C$8-1)+3) -> 0.021751 | R218: =VLOOKUP($O218,P_All!$AF$5:$AU$244,3*($C$8-1)+4) -> 1 | S218: =VLOOKUP($O218,P_All!$AW$5:$BG$244,($C$8-1)+2) -> 0.224 | T218: =VLOOKUP($O218,P_All!$AW$5:$BG$244,($C$8-1)+7) -> 0.002
... 60 more rows

Sheet P_All
B1: Values shown for constituent selected on PlotControl tab | I1: Values shown for constituent selected on PlotControl tab | P1: Values shown for constituent selected on PlotControl tab | AG1: Values shown for constituent selected on PlotControl tab | AX1: Values shown for constituent selected on PlotControl tab
B2: =PlotControl!$A$15 -> SW003 | C2: =PlotControl!$A$16 -> SW004 | D2: =PlotControl!$A$17 -> SW004a | E2: =PlotControl!$A$18 -> SW005 | F2: =PlotControl!$A$19 -> Colby Lake | I2: =PlotControl!$A$15 -> SW003 | J2: =PlotControl!$A$16 -> SW004 | K2: =PlotControl!$A$17 -> SW004a | L2: =PlotControl!$A$18 -> SW005 | M2: =PlotControl!$A$19 -> Colby Lake | P2: =PlotControl!$A$15 -> SW003 | S2: =PlotControl!$A$16 -> SW004 | V2: =PlotControl!$A$17 -> SW004a | Y2: =PlotControl!$A$18 -> SW005 | AB2: =PlotControl!$A$19 -> Colby Lake | AG2: =PlotControl!$A$15 -> SW003 | AJ2: =PlotControl!$A$16 -> SW004 | AM2: =PlotControl!$A$17 -> SW004a | AP2: =PlotControl!$A$18 -> SW005 | AS2: =PlotControl!$A$19 -> Colby Lake | AX2: =PlotControl!$A$15 -> SW003 | AY2: =PlotControl!$A$16 -> SW004 | AZ2: =PlotControl!$A$17 -> SW004a | BA2: =PlotControl!$A$18 -> SW005 | BB2: =PlotControl!$A$19 -> Colby Lake | BC2: =PlotControl!$A$15 -> SW003 | BD2: =PlotControl!$A$16 -> SW004 | BE2: =PlotControl!$A$17 -> SW004a | BF2: =PlotControl!$A$18 -> SW005 | BG2: =PlotControl!$A$19 -> Colby Lake
B3: Annual Project Results | I3: Annual Project Results | P3: Annual Results, % Assimilation Capacity Used | S3: Annual Results, % Assimilation Capacity Used | V3: Annual Results, % Assimilation Capacity Used | Y3: Annual Results, % Assimilation Capacity Used | AB3: Annual Results, % Assimilation Capacity Used | AG3: Monthly Results, % Assimilation Capacity Used | AJ3: Monthly Results, % Assimilation Capacity Used | AM3: Monthly Results, % Assimilation Capacity Used | AP3: Monthly Results, % Assimilation Capacity Used | AS3: Monthly Results, % Assimilation Capacity Used | AX3: Monthly Project Results | BC3: Monthly Project Results
A4: Time | B4: % Exceeding in Project Model | H4: Time | I4: % Exceeding in Project Model but not No-Act | O4: Time | P4: P10 | Q4: P50 | R4: P90 | S4: P10 | T4: P50 | U4: P90 | V4: P10 | W4: P50 | X4: P90 | Y4: P10 | Z4: P50 | AA4: P90 | AB4: P10 | AC4: P50 | AD4: P90 | AF4: Time | AG4: P10 | AH4: P50 | AI4: P90 | AJ4: P10 | AK4: P50 | AL4: P90 | AM4: P10 | AN4: P50 | AO4: P90 | AP4: P10 | AQ4: P50 | AR4: P90 | AS4: P10 | AT4: P50 | AU4: P90 | AW4: Time | AX4: % Exceeding in Project Model | BC4: % Exceeding in Project Model but not No-Act
A5: 1 | B5: =IF(PlotControl!$B$4 = "Annual Max",MAX(OFFSET(P_Ex_SW003!$B$10,12*($A5-1),(PlotControl!$C$6-1),12,1)),AVERAGE(OFFSET(P_Ex_SW003!$B$10,12*($A5-1),(PlotControl!$C$6-1),12,1))) -> 0 | C5: =IF(PlotControl!$B$4 = "Annual Max",MAX(OFFSET(P_Ex_SW004!$B$10,12*($A5-1),(PlotControl!$C$6-1),12,1)),AVERAGE(OFFSET(P_Ex_SW004!$B$10,12*($A5-1),(PlotControl!$C$6-1),12,1))) -> 0 | D5: =IF(PlotControl!$B$4 = "Annual Max",MAX(OFFSET(P_Ex_SW004a!$B$10,12*($A5-1),(PlotControl!$C$6-1),12,1)),AVERAGE(OFFSET(P_Ex_SW004a!$B$10,12*($A5-1),(PlotControl!$C$6-1),12,1))) -> 0 | E5: =IF(PlotControl!$B$4 = "Annual Max",MAX(OFFSET(P_Ex_SW005!$B$10,12*($A5-1),(PlotControl!$C$6-1),12,1)),AVERAGE(OFFSET(P_Ex_SW005!$B$10,12*($A5-1),(PlotControl!$C$6-1),12,1))) -> 1 | F5: =IF(PlotControl!$B$4 = "Annual Max",MAX(OFFSET(P_Ex_Colby!$B$10,12*($A5-1),(PlotControl!$C$6-1),12,1)),AVERAGE(OFFSET(P_Ex_Colby!$B$10,12*($A5-1),(PlotControl!$C$6-1),12,1))) -> 0 | H5: 1 | I5: =IF(PlotControl!$B$4 = "Annual Max",MAX(OFFSET(P_notNA_SW003!$B$10,12*($H5-1),(PlotControl!$C$6-1),12,1)),AVERAGE(OFFSET(P_notNA_SW003!$B$10,12*$A5,(PlotControl!$C$6-1),12,1))) -> 0 | J5: =IF(PlotControl!$B$4 = "Annual Max",MAX(OFFSET(P_notNA_SW004!$B$10,12*($H5-1),(PlotControl!$C$6-1),12,1)),AVERAGE(OFFSET(P_notNA_SW004!$B$10,12*$A5,(PlotControl!$C$6-1),12,1))) -> 0 | K5: =IF(PlotControl!$B$4 = "Annual Max",MAX(OFFSET(P_notNA_SW004a!$B$10,12*($H5-1),(PlotControl!$C$6-1),12,1)),AVERAGE(OFFSET(P_notNA_SW004a!$B$10,12*$A5,(PlotControl!$C$6-1),12,1))) -> 0 | L5: =IF(PlotControl!$B$4 = "Annual Max",MAX(OFFSET(P_notNA_SW005!$B$10,12*($H5-1),(PlotControl!$C$6-1),12,1)),AVERAGE(OFFSET(P_notNA_SW005!$B$10,12*$A5,(PlotControl!$C$6-1),12,1))) -> 0 | M5: =IF(PlotControl!$B$4 = "Annual Max",MAX(OFFSET(P_notNA_Colby!$B$10,12*($H5-1),(PlotControl!$C$6-1),12,1)),AVERAGE(OFFSET(P_notNA_Colby!$B$10,12*$A5,(PlotControl!$C$6-1),12,1))) -> 0 | O5: 1 | P5: =IF(PlotControl!$B$4 = "Annual Max",MAX(OFFSET(AssimCap_SW003!$C$10,12*($O5-1),4*(PlotControl!$C$6-1),12,1)),AVERAGE(OFFSET(AssimCap_SW003!$C$10,12*($O5-1),4*(PlotControl!$C$6-1),12,1))) -> 0 | Q5: =IF(PlotControl!$B$4 = "Annual Max",MAX(OFFSET(AssimCap_SW003!$D$10,12*($O5-1),4*(PlotControl!$C$6-1),12,1)),AVERAGE(OFFSET(AssimCap_SW003!$D$10,12*($O5-1),4*(PlotControl!$C$6-1),12,1))) -> 0 | R5: =IF(PlotControl!$B$4 = "Annual Max",MAX(OFFSET(AssimCap_SW003!$E$10,12*($O5-1),4*(PlotControl!$C$6-1),12,1)),AVERAGE(OFFSET(AssimCap_SW003!$E$10,12*($O5-1),4*(PlotControl!$C$6-1),12,1))) -> 0 | S5: =IF(PlotControl!$B$4 = "Annual Max",MAX(OFFSET(AssimCap_SW004!$C$10,12*($O5-1),4*(PlotControl!$C$6-1),12,1)),AVERAGE(OFFSET(AssimCap_SW004!$C$10,12*($O5-1),4*(PlotControl!$C$6-1),12,1))) -> 0 | T5: =IF(PlotControl!$B$4 = "Annual Max",MAX(OFFSET(AssimCap_SW004!$D$10,12*($O5-1),4*(PlotControl!$C$6-1),12,1)),AVERAGE(OFFSET(AssimCap_SW004!$D$10,12*($O5-1),4*(PlotControl!$C$6-1),12,1))) -> 0 | U5: =IF(PlotControl!$B$4 = "Annual Max",MAX(OFFSET(AssimCap_SW004!$E$10,12*($O5-1),4*(PlotControl!$C$6-1),12,1)),AVERAGE(OFFSET(AssimCap_SW004!$E$10,12*($O5-1),4*(PlotControl!$C$6-1),12,1))) -> 0 | V5: =IF(PlotControl!$B$4 = "Annual Max",MAX(OFFSET(AssimCap_SW004a!$C$10,12*($O5-1),4*(PlotControl!$C$6-1),12,1)),AVERAGE(OFFSET(AssimCap_SW004a!$C$10,12*($O5-1),4*(PlotControl!$C$6-1),12,1))) -> 0 | W5: =IF(PlotControl!$B$4 = "Annual Max",MAX(OFFSET(AssimCap_SW004a!$D$10,12*($O5-1),4*(PlotControl!$C$6-1),12,1)),AVERAGE(OFFSET(AssimCap_SW004a!$D$10,12*($O5-1),4*(PlotControl!$C$6-1),12,1))) -> 0 | X5: =IF(PlotControl!$B$4 = "Annual Max",MAX(OFFSET(AssimCap_SW004a!$E$10,12*($O5-1),4*(PlotControl!$C$6-1),12,1)),AVERAGE(OFFSET(AssimCap_SW004a!$E$10,12*($O5-1),4*(PlotControl!$C$6-1),12,1))) -> 0 | Y5: =IF(PlotControl!$B$4 = "Annual Max",MAX(OFFSET(AssimCap_SW005!$C$10,12*($O5-1),4*(PlotControl!$C$6-1),12,1)),AVERAGE(OFFSET(AssimCap_SW005!$C$10,12*($O5-1),4*(PlotControl!$C$6-1),12,1))) -> 1 | Z5: =IF(PlotControl!$B$4 = "Annual Max",MAX(OFFSET(AssimCap_SW005!$D$10,12*($O5-1),4*(PlotControl!$C$6-1),12,1)),AVERAGE(OFFSET(AssimCap_SW005!$D$10,12*($O5-1),4*(PlotControl!$C$6-1),12,1))) -> 1 | AA5: =IF(PlotControl!$B$4 = "Annual Max",MAX(OFFSET(AssimCap_SW005!$E$10,12*($O5-1),4*(PlotControl!$C$6-1),12,1)),AVERAGE(OFFSET(AssimCap_SW005!$E$10,12*($O5-1),4*(PlotControl!$C$6-1),12,1))) -> 1 | AB5: =IF(PlotControl!$B$4 = "Annual Max",MAX(OFFSET(AssimCap_Colby!$C$10,12*($O5-1),4*(PlotControl!$C$6-1),12,1)),AVERAGE(OFFSET(AssimCap_Colby!$C$10,12*($O5-1),4*(PlotControl!$C$6-1),12,1))) -> 6.1706e-05 | AC5: =IF(PlotControl!$B$4 = "Annual Max",MAX(OFFSET(AssimCap_Colby!$D$10,12*($O5-1),4*(PlotControl!$C$6-1),12,1)),AVERAGE(OFFSET(AssimCap_Colby!$D$10,12*($O5-1),4*(PlotControl!$C$6-1),12,1))) -> 0.00010644 | AD5: =IF(PlotControl!$B$4 = "Annual Max",MAX(OFFSET(AssimCap_Colby!$E$10,12*($O5-1),4*(PlotControl!$C$6-1),12,1)),AVERAGE(OFFSET(AssimCap_Colby!$E$10,12*($O5-1),4*(PlotControl!$C$6-1),12,1))) -> 0.00016457 | AF5: =PlotControl!$B$10 -> 120 | AG5: =OFFSET(AssimCap_SW003!$C$10,ROUND(12*$AF5,0),4*(PlotControl!$C$6-1),1,1) -> 0 | AH5: =OFFSET(AssimCap_SW003!$D$10,ROUND(12*$AF5,0),4*(PlotControl!$C$6-1),1,1) -> 0 | AI5: =OFFSET(AssimCap_SW003!$E$10,ROUND(12*$AF5,0),4*(PlotControl!$C$6-1),1,1) -> 0 | AJ5: =OFFSET(AssimCap_SW004!$C$10,ROUND(12*$AF5,0),4*(PlotControl!$C$6-1),1,1) -> 0 | AK5: =OFFSET(AssimCap_SW004!$D$10,ROUND(12*$AF5,0),4*(PlotControl!$C$6-1),1,1) -> 0 | AL5: =OFFSET(AssimCap_SW004!$E$10,ROUND(12*$AF5,0),4*(PlotControl!$C$6-1),1,1) -> 0 | AM5: =OFFSET(AssimCap_SW004a!$C$10,ROUND(12*$AF5,0),4*(PlotControl!$C$6-1),1,1) -> 0 | AN5: =OFFSET(AssimCap_SW004a!$D$10,ROUND(12*$AF5,0),4*(PlotControl!$C$6-1),1,1) -> 0 | AO5: =OFFSET(AssimCap_SW004a!$E$10,ROUND(12*$AF5,0),4*(PlotControl!$C$6-1),1,1) -> 0 | AP5: =OFFSET(AssimCap_SW005!$C$10,ROUND(12*$AF5,0),4*(PlotControl!$C$6-1),1,1) -> 0.013567 | AQ5: =OFFSET(AssimCap_SW005!$D$10,ROUND(12*$AF5,0),4*(PlotControl!$C$6-1),1,1) -> 0.038671 | AR5: =OFFSET(AssimCap_SW005!$E$10,ROUND(12*$AF5,0),4*(PlotControl!$C$6-1),1,1) -> 1 | AS5: =OFFSET(AssimCap_Colby!$C$10,ROUND(12*$AF5,0),4*(PlotControl!$C$6-1),1,1) -> -0.0023111 | AT5: =OFFSET(AssimCap_Colby!$D$10,ROUND(12*$AF5,0),4*(PlotControl!$C$6-1),1,1) -> -0.001056 | AU5: =OFFSET(AssimCap_Colby!$E$10,ROUND(12*$AF5,0),4*(PlotControl!$C$6-1),1,1) -> -0.00037687 | AW5: =PlotControl!$B$10 -> 120 | AX5: =(OFFSET(P_Ex_SW003!$B$10,ROUND(12*$AW5,0),(PlotControl!$C$6-1),1,1)) -> 0 | AY5: =(OFFSET(P_Ex_SW004!$B$10,ROUND(12*$AW5,0),(PlotControl!$C$6-1),1,1)) -> 0 | AZ5: =(OFFSET(P_Ex_SW004a!$B$10,ROUND(12*$AW5,0),(PlotControl!$C$6-1),1,1)) -> 0 | BA5: =(OFFSET(P_Ex_SW005!$B$10,ROUND(12*$AW5,0),(PlotControl!$C$6-1),1,1)) -> 0.202 | BB5: =(OFFSET(P_Ex_Colby!$B$10,ROUND(12*$AW5,0),(PlotControl!$C$6-1),1,1)) -> 0 | BC5: =(OFFSET(P_notNA_SW003!$B$10,ROUND(12*$AW5,0),(PlotControl!$C$6-1),1,1)) -> 0 | BD5: =(OFFSET(P_notNA_SW004!$B$10,ROUND(12*$AW5,0),(PlotControl!$C$6-1),1,1)) -> 0 | BE5: =(OFFSET(P_notNA_SW004a!$B$10,ROUND(12*$AW5,0),(PlotControl!$C$6-1),1,1)) -> 0 | BF5: =(OFFSET(P_notNA_SW005!$B$10,ROUND(12*$AW5,0),(PlotControl!$C$6-1),1,1)) -> 0.006 | BG5: =(OFFSET(P_notNA_Colby!$B$10,ROUND(12*$AW5,0),(PlotControl!$C$6-1),1,1)) -> 0
A6: 2 | B6: =IF(PlotControl!$B$4 = "Annual Max",MAX(OFFSET(P_Ex_SW003!$B$10,12*($A6-1),(PlotControl!$C$6-1),12,1)),AVERAGE(OFFSET(P_Ex_SW003!$B$10,12*($A6-1),(PlotControl!$C$6-1),12,1))) -> 0 | C6: =IF(PlotControl!$B$4 = "Annual Max",MAX(OFFSET(P_Ex_SW004!$B$10,12*($A6-1),(PlotControl!$C$6-1),12,1)),AVERAGE(OFFSET(P_Ex_SW004!$B$10,12*($A6-1),(PlotControl!$C$6-1),12,1))) -> 0 | D6: =IF(PlotControl!$B$4 = "Annual Max",MAX(OFFSET(P_Ex_SW004a!$B$10,12*($A6-1),(PlotControl!$C$6-1),12,1)),AVERAGE(OFFSET(P_Ex_SW004a!$B$10,12*($A6-1),(PlotControl!$C$6-1),12,1))) -> 0 | E6: =IF(PlotControl!$B$4 = "Annual Max",MAX(OFFSET(P_Ex_SW005!$B$10,12*($A6-1),(PlotControl!$C$6-1),12,1)),AVERAGE(OFFSET(P_Ex_SW005!$B$10,12*($A6-1),(PlotControl!$C$6-1),12,1))) -> 0.946 | F6: =IF(PlotControl!$B$4 = "Annual Max",MAX(OFFSET(P_Ex_Colby!$B$10,12*($A6-1),(PlotControl!$C$6-1),12,1)),AVERAGE(OFFSET(P_Ex_Colby!$B$10,12*($A6-1),(PlotControl!$C$6-1),12,1))) -> 0 | H6: 2 | I6: =IF(PlotControl!$B$4 = "Annual Max",MAX(OFFSET(P_notNA_SW003!$B$10,12*($H6-1),(PlotControl!$C$6-1),12,1)),AVERAGE(OFFSET(P_notNA_SW003!$B$10,12*$A6,(PlotControl!$C$6-1),12,1))) -> 0 | J6: =IF(PlotControl!$B$4 = "Annual Max",MAX(OFFSET(P_notNA_SW004!$B$10,12*($H6-1),(PlotControl!$C$6-1),12,1)),AVERAGE(OFFSET(P_notNA_SW004!$B$10,12*$A6,(PlotControl!$C$6-1),12,1))) -> 0 | K6: =IF(PlotControl!$B$4 = "Annual Max",MAX(OFFSET(P_notNA_SW004a!$B$10,12*($H6-1),(PlotControl!$C$6-1),12,1)),AVERAGE(OFFSET(P_notNA_SW004a!$B$10,12*$A6,(PlotControl!$C$6-1),12,1))) -> 0 | L6: =IF(PlotControl!$B$4 = "Annual Max",MAX(OFFSET(P_notNA_SW005!$B$10,12*($H6-1),(PlotControl!$C$6-1),12,1)),AVERAGE(OFFSET(P_notNA_SW005!$B$10,12*$A6,(PlotControl!$C$6-1),12,1))) -> 0.004 | M6: =IF(PlotControl!$B$4 = "Annual Max",MAX(OFFSET(P_notNA_Colby!$B$10,12*($H6-1),(PlotControl!$C$6-1),12,1)),AVERAGE(OFFSET(P_notNA_Colby!$B$10,12*$A6,(PlotControl!$C$6-1),12,1))) -> 0 | O6: 2 | P6: =IF(PlotControl!$B$4 = "Annual Max",MAX(OFFSET(AssimCap_SW003!$C$10,12*($O6-1),4*(PlotControl!$C$6-1),12,1)),AVERAGE(OFFSET(AssimCap_SW003!$C$10,12*($O6-1),4*(PlotControl!$C$6-1),12,1))) -> 0 | Q6: =IF(PlotControl!$B$4 = "Annual Max",MAX(OFFSET(AssimCap_SW003!$D$10,12*($O6-1),4*(PlotControl!$C$6-1),12,1)),AVERAGE(OFFSET(AssimCap_SW003!$D$10,12*($O6-1),4*(PlotControl!$C$6-1),12,1))) -> 0 | R6: =IF(PlotControl!$B$4 = "Annual Max",MAX(OFFSET(AssimCap_SW003!$E$10,12*($O6-1),4*(PlotControl!$C$6-1),12,1)),AVERAGE(OFFSET(AssimCap_SW003!$E$10,12*($O6-1),4*(PlotControl!$C$6-1),12,1))) -> 0 | S6: =IF(PlotControl!$B$4 = "Annual Max",MAX(OFFSET(AssimCap_SW004!$C$10,12*($O6-1),4*(PlotControl!$C$6-1),12,1)),AVERAGE(OFFSET(AssimCap_SW004!$C$10,12*($O6-1),4*(PlotControl!$C$6-1),12,1))) -> 0 | T6: =IF(PlotControl!$B$4 = "Annual Max",MAX(OFFSET(AssimCap_SW004!$D$10,12*($O6-1),4*(PlotControl!$C$6-1),12,1)),AVERAGE(OFFSET(AssimCap_SW004!$D$10,12*($O6-1),4*(PlotControl!$C$6-1),12,1))) -> 0 | U6: =IF(PlotControl!$B$4 = "Annual Max",MAX(OFFSET(AssimCap_SW004!$E$10,12*($O6-1),4*(PlotControl!$C$6-1),12,1)),AVERAGE(OFFSET(AssimCap_SW004!$E$10,12*($O6-1),4*(PlotControl!$C$6-1),12,1))) -> 0 | V6: =IF(PlotControl!$B$4 = "Annual Max",MAX(OFFSET(AssimCap_SW004a!$C$10,12*($O6-1),4*(PlotControl!$C$6-1),12,1)),AVERAGE(OFFSET(AssimCap_SW004a!$C$10,12*($O6-1),4*(PlotControl!$C$6-1),12,1))) -> 0 | W6: =IF(PlotControl!$B$4 = "Annual Max",MAX(OFFSET(AssimCap_SW004a!$D$10,12*($O6-1),4*(PlotControl!$C$6-1),12,1)),AVERAGE(OFFSET(AssimCap_SW004a!$D$10,12*($O6-1),4*(PlotControl!$C$6-1),12,1))) -> 0 | X6: =IF(PlotControl!$B$4 = "Annual Max",MAX(OFFSET(AssimCap_SW004a!$E$10,12*($O6-1),4*(PlotControl!$C$6-1),12,1)),AVERAGE(OFFSET(AssimCap_SW004a!$E$10,12*($O6-1),4*(PlotControl!$C$6-1),12,1))) -> 0 | Y6: =IF(PlotControl!$B$4 = "Annual Max",MAX(OFFSET(AssimCap_SW005!$C$10,12*($O6-1),4*(PlotControl!$C$6-1),12,1)),AVERAGE(OFFSET(AssimCap_SW005!$C$10,12*($O6-1),4*(PlotControl!$C$6-1),12,1))) -> 1 | Z6: =IF(PlotControl!$B$4 = "Annual Max",MAX(OFFSET(AssimCap_SW005!$D$10,12*($O6-1),4*(PlotControl!$C$6-1),12,1)),AVERAGE(OFFSET(AssimCap_SW005!$D$10,12*($O6-1),4*(PlotControl!$C$6-1),12,1))) -> 1 | AA6: =IF(PlotControl!$B$4 = "Annual Max",MAX(OFFSET(AssimCap_SW005!$E$10,12*($O6-1),4*(PlotControl!$C$6-1),12,1)),AVERAGE(OFFSET(AssimCap_SW005!$E$10,12*($O6-1),4*(PlotControl!$C$6-1),12,1))) -> 1 | AB6: =IF(PlotControl!$B$4 = "Annual Max",MAX(OFFSET(AssimCap_Colby!$C$10,12*($O6-1),4*(PlotControl!$C$6-1),12,1)),AVERAGE(OFFSET(AssimCap_Colby!$C$10,12*($O6-1),4*(PlotControl!$C$6-1),12,1))) -> 0.00014067 | AC6: =IF(PlotControl!$B$4 = "Annual Max",MAX(OFFSET(AssimCap_Colby!$D$10,12*($O6-1),4*(PlotControl!$C$6-1),12,1)),AVERAGE(OFFSET(AssimCap_Colby!$D$10,12*($O6-1),4*(PlotControl!$C$6-1),12,1))) -> 0.00020962 | AD6: =IF(PlotControl!$B$4 = "Annual Max",MAX(OFFSET(AssimCap_Colby!$E$10,12*($O6-1),4*(PlotControl!$C$6-1),12,1)),AVERAGE(OFFSET(AssimCap_Colby!$E$10,12*($O6-1),4*(PlotControl!$C$6-1),12,1))) -> 0.00032325 | AF6: =AF5+1/12 -> 120.0833333 | AG6: =OFFSET(AssimCap_SW003!$C$10,ROUND(12*$AF6,0),4*(PlotControl!$C$6-1),1,1) -> 0 | AH6: =OFFSET(AssimCap_SW003!$D$10,ROUND(12*$AF6,0),4*(PlotControl!$C$6-1),1,1) -> 0 | AI6: =OFFSET(AssimCap_SW003!$E$10,ROUND(12*$AF6,0),4*(PlotControl!$C$6-1),1,1) -> 0 | AJ6: =OFFSET(AssimCap_SW004!$C$10,ROUND(12*$AF6,0),4*(PlotControl!$C$6-1),1,1) -> 0 | AK6: =OFFSET(AssimCap_SW004!$D$10,ROUND(12*$AF6,0),4*(PlotControl!$C$6-1),1,1) -> 0 | AL6: =OFFSET(AssimCap_SW004!$E$10,ROUND(12*$AF6,0),4*(PlotControl!$C$6-1),1,1) -> 0 | AM6: =OFFSET(AssimCap_SW004a!$C$10,ROUND(12*$AF6,0),4*(PlotControl!$C$6-1),1,1) -> 0 | AN6: =OFFSET(AssimCap_SW004a!$D$10,ROUND(12*$AF6,0),4*(PlotControl!$C$6-1),1,1) -> 0 | AO6: =OFFSET(AssimCap_SW004a!$E$10,ROUND(12*$AF6,0),4*(PlotControl!$C$6-1),1,1) -> 0 | AP6: =OFFSET(AssimCap_SW005!$C$10,ROUND(12*$AF6,0),4*(PlotControl!$C$6-1),1,1) -> 0.023074 | AQ6: =OFFSET(AssimCap_SW005!$D$10,ROUND(12*$AF6,0),4*(PlotControl!$C$6-1),1,1) -> 0.067451 | AR6: =OFFSET(AssimCap_SW005!$E$10,ROUND(12*$AF6,0),4*(PlotControl!$C$6-1),1,1) -> 1 | AS6: =OFFSET(AssimCap_Colby!$C$10,ROUND(12*$AF6,0),4*(PlotControl!$C$6-1),1,1) -> -0.0032564 | AT6: =OFFSET(AssimCap_Colby!$D$10,ROUND(12*$AF6,0),4*(PlotControl!$C$6-1),1,1) -> -0.0016253 | AU6: =OFFSET(AssimCap_Colby!$E$10,ROUND(12*$AF6,0),4*(PlotControl!$C$6-1),1,1) -> -0.00042542 | AW6: =AW5+1/12 -> 120.0833333 | AX6: =(OFFSET(P_Ex_SW003!$B$10,ROUND(12*$AW6,0),(PlotControl!$C$6-1),1,1)) -> 0 | AY6: =(OFFSET(P_Ex_SW004!$B$10,ROUND(12*$AW6,0),(PlotControl!$C$6-1),1,1)) -> 0 | AZ6: =(OFFSET(P_Ex_SW004a!$B$10,ROUND(12*$AW6,0),(PlotControl!$C$6-1),1,1)) -> 0 | BA6: =(OFFSET(P_Ex_SW005!$B$10,ROUND(12*$AW6,0),(PlotControl!$C$6-1),1,1)) -> 0.198 | BB6: =(OFFSET(P_Ex_Colby!$B$10,ROUND(12*$AW6,0),(PlotControl!$C$6-1),1,1)) -> 0 | BC6: =(OFFSET(P_notNA_SW003!$B$10,ROUND(12*$AW6,0),(PlotControl!$C$6-1),1,1)) -> 0 | BD6: =(OFFSET(P_notNA_SW004!$B$10,ROUND(12*$AW6,0),(PlotControl!$C$6-1),1,1)) -> 0 | BE6: =(OFFSET(P_notNA_SW004a!$B$10,ROUND(12*$AW6,0),(PlotControl!$C$6-1),1,1)) -> 0 | BF6: =(OFFSET(P_notNA_SW005!$B$10,ROUND(12*$AW6,0),(PlotControl!$C$6-1),1,1)) -> 0.002 | BG6: =(OFFSET(P_notNA_Colby!$B$10,ROUND(12*$AW6,0),(PlotControl!$C$6-1),1,1)) -> 0
A7: 3 | B7: =IF(PlotControl!$B$4 = "Annual Max",MAX(OFFSET(P_Ex_SW003!$B$10,12*($A7-1),(PlotControl!$C$6-1),12,1)),AVERAGE(OFFSET(P_Ex_SW003!$B$10,12*($A7-1),(PlotControl!$C$6-1),12,1))) -> 0 | C7: =IF(PlotControl!$B$4 = "Annual Max",MAX(OFFSET(P_Ex_SW004!$B$10,12*($A7-1),(PlotControl!$C$6-1),12,1)),AVERAGE(OFFSET(P_Ex_SW004!$B$10,12*($A7-1),(PlotControl!$C$6-1),12,1))) -> 0 | D7: =IF(PlotControl!$B$4 = "Annual Max",MAX(OFFSET(P_Ex_SW004a!$B$10,12*($A7-1),(PlotControl!$C$6-1),12,1)),AVERAGE(OFFSET(P_Ex_SW004a!$B$10,12*($A7-1),(PlotControl!$C$6-1),12,1))) -> 0 | E7: =IF(PlotControl!$B$4 = "Annual Max",MAX(OFFSET(P_Ex_SW005!$B$10,12*($A7-1),(PlotControl!$C$6-1),12,1)),AVERAGE(OFFSET(P_Ex_SW005!$B$10,12*($A7-1),(PlotControl!$C$6-1),12,1))) -> 0.96 | F7: =IF(PlotControl!$B$4 = "Annual Max",MAX(OFFSET(P_Ex_Colby!$B$10,12*($A7-1),(PlotControl!$C$6-1),12,1)),AVERAGE(OFFSET(P_Ex_Colby!$B$10,12*($A7-1),(PlotControl!$C$6-1),12,1))) -> 0 | H7: 3 | I7: =IF(PlotControl!$B$4 = "Annual Max",MAX(OFFSET(P_notNA_SW003!$B$10,12*($H7-1),(PlotControl!$C$6-1),12,1)),AVERAGE(OFFSET(P_notNA_SW003!$B$10,12*$A7,(PlotControl!$C$6-1),12,1))) -> 0 | J7: =IF(PlotControl!$B$4 = "Annual Max",MAX(OFFSET(P_notNA_SW004!$B$10,12*($H7-1),(PlotControl!$C$6-1),12,1)),AVERAGE(OFFSET(P_notNA_SW004!$B$10,12*$A7,(PlotControl!$C$6-1),12,1))) -> 0 | K7: =IF(PlotControl!$B$4 = "Annual Max",MAX(OFFSET(P_notNA_SW004a!$B$10,12*($H7-1),(PlotControl!$C$6-1),12,1)),AVERAGE(OFFSET(P_notNA_SW004a!$B$10,12*$A7,(PlotControl!$C$6-1),12,1))) -> 0 | L7: =IF(PlotControl!$B$4 = "Annual Max",MAX(OFFSET(P_notNA_SW005!$B$10,12*($H7-1),(PlotControl!$C$6-1),12,1)),AVERAGE(OFFSET(P_notNA_SW005!$B$10,12*$A7,(PlotControl!$C$6-1),12,1))) -> 0.004 | M7: =IF(PlotControl!$B$4 = "Annual Max",MAX(OFFSET(P_notNA_Colby!$B$10,12*($H7-1),(PlotControl!$C$6-1),12,1)),AVERAGE(OFFSET(P_notNA_Colby!$B$10,12*$A7,(PlotControl!$C$6-1),12,1))) -> 0 | O7: 3 | P7: =IF(PlotControl!$B$4 = "Annual Max",MAX(OFFSET(AssimCap_SW003!$C$10,12*($O7-1),4*(PlotControl!$C$6-1),12,1)),AVERAGE(OFFSET(AssimCap_SW003!$C$10,12*($O7-1),4*(PlotControl!$C$6-1),12,1))) -> 0 | Q7: =IF(PlotControl!$B$4 = "Annual Max",MAX(OFFSET(AssimCap_SW003!$D$10,12*($O7-1),4*(PlotControl!$C$6-1),12,1)),AVERAGE(OFFSET(AssimCap_SW003!$D$10,12*($O7-1),4*(PlotControl!$C$6-1),12,1))) -> 0 | R7: =IF(PlotControl!$B$4 = "Annual Max",MAX(OFFSET(AssimCap_SW003!$E$10,12*($O7-1),4*(PlotControl!$C$6-1),12,1)),AVERAGE(OFFSET(AssimCap_SW003!$E$10,12*($O7-1),4*(PlotControl!$C$6-1),12,1))) -> 0 | S7: =IF(PlotControl!$B$4 = "Annual Max",MAX(OFFSET(AssimCap_SW004!$C$10,12*($O7-1),4*(PlotControl!$C$6-1),12,1)),AVERAGE(OFFSET(AssimCap_SW004!$C$10,12*($O7-1),4*(PlotControl!$C$6-1),12,1))) -> 0 | T7: =IF(PlotControl!$B$4 = "Annual Max",MAX(OFFSET(AssimCap_SW004!$D$10,12*($O7-1),4*(PlotControl!$C$6-1),12,1)),AVERAGE(OFFSET(AssimCap_SW004!$D$10,12*($O7-1),4*(PlotControl!$C$6-1),12,1))) -> 0 | U7: =IF(PlotControl!$B$4 = "Annual Max",MAX(OFFSET(AssimCap_SW004!$E$10,12*($O7-1),4*(PlotControl!$C$6-1),12,1)),AVERAGE(OFFSET(AssimCap_SW004!$E$10,12*($O7-1),4*(PlotControl!$C$6-1),12,1))) -> 0 | V7: =IF(PlotControl!$B$4 = "Annual Max",MAX(OFFSET(AssimCap_SW004a!$C$10,12*($O7-1),4*(PlotControl!$C$6-1),12,1)),AVERAGE(OFFSET(AssimCap_SW004a!$C$10,12*($O7-1),4*(PlotControl!$C$6-1),12,1))) -> 0 | W7: =IF(PlotControl!$B$4 = "Annual Max",MAX(OFFSET(AssimCap_SW004a!$D$10,12*($O7-1),4*(PlotControl!$C$6-1),12,1)),AVERAGE(OFFSET(AssimCap_SW004a!$D$10,12*($O7-1),4*(PlotControl!$C$6-1),12,1))) -> 0 | X7: =IF(PlotControl!$B$4 = "Annual Max",MAX(OFFSET(AssimCap_SW004a!$E$10,12*($O7-1),4*(PlotControl!$C$6-1),12,1)),AVERAGE(OFFSET(AssimCap_SW004a!$E$10,12*($O7-1),4*(PlotControl!$C$6-1),12,1))) -> 0 | Y7: =IF(PlotControl!$B$4 = "Annual Max",MAX(OFFSET(AssimCap_SW005!$C$10,12*($O7-1),4*(PlotControl!$C$6-1),12,1)),AVERAGE(OFFSET(AssimCap_SW005!$C$10,12*($O7-1),4*(PlotControl!$C$6-1),12,1))) -> 1 | Z7: =IF(PlotControl!$B$4 = "Annual Max",MAX(OFFSET(AssimCap_SW005!$D$10,12*($O7-1),4*(PlotControl!$C$6-1),12,1)),AVERAGE(OFFSET(AssimCap_SW005!$D$10,12*($O7-1),4*(PlotControl!$C$6-1),12,1))) -> 1 | AA7: =IF(PlotControl!$B$4 = "Annual Max",MAX(OFFSET(AssimCap_SW005!$E$10,12*($O7-1),4*(PlotControl!$C$6-1),12,1)),AVERAGE(OFFSET(AssimCap_SW005!$E$10,12*($O7-1),4*(PlotControl!$C$6-1),12,1))) -> 1 | AB7: =IF(PlotControl!$B$4 = "Annual Max",MAX(OFFSET(AssimCap_Colby!$C$10,12*($O7-1),4*(PlotControl!$C$6-1),12,1)),AVERAGE(OFFSET(AssimCap_Colby!$C$10,12*($O7-1),4*(PlotControl!$C$6-1),12,1))) -> 0.00023717 | AC7: =IF(PlotControl!$B$4 = "Annual Max",MAX(OFFSET(AssimCap_Colby!$D$10,12*($O7-1),4*(PlotControl!$C$6-1),12,1)),AVERAGE(OFFSET(AssimCap_Colby!$D$10,12*($O7-1),4*(PlotControl!$C$6-1),12,1))) -> 0.00034137 | AD7: =IF(PlotControl!$B$4 = "Annual Max",MAX(OFFSET(AssimCap_Colby!$E$10,12*($O7-1),4*(PlotControl!$C$6-1),12,1)),AVERAGE(OFFSET(AssimCap_Colby!$E$10,12*($O7-1),4*(PlotControl!$C$6-1),12,1))) -> 0.00049009 | AF7: =AF6+1/12 -> 120.1666667 | AG7: =OFFSET(AssimCap_SW003!$C$10,ROUND(12*$AF7,0),4*(PlotControl!$C$6-1),1,1) -> 0 | AH7: =OFFSET(AssimCap_SW003!$D$10,ROUND(12*$AF7,0),4*(PlotControl!$C$6-1),1,1) -> 0 | AI7: =OFFSET(AssimCap_SW003!$E$10,ROUND(12*$AF7,0),4*(PlotControl!$C$6-1),1,1) -> 0 | AJ7: =OFFSET(AssimCap_SW004!$C$10,ROUND(12*$AF7,0),4*(PlotControl!$C$6-1),1,1) -> 0 | AK7: =OFFSET(AssimCap_SW004!$D$10,ROUND(12*$AF7,0),4*(PlotControl!$C$6-1),1,1) -> 0 | AL7: =OFFSET(AssimCap_SW004!$E$10,ROUND(12*$AF7,0),4*(PlotControl!$C$6-1),1,1) -> 0 | AM7: =OFFSET(AssimCap_SW004a!$C$10,ROUND(12*$AF7,0),4*(PlotControl!$C$6-1),1,1) -> 0 | AN7: =OFFSET(AssimCap_SW004a!$D$10,ROUND(12*$AF7,0),4*(PlotControl!$C$6-1),1,1) -> 0 | AO7: =OFFSET(AssimCap_SW004a!$E$10,ROUND(12*$AF7,0),4*(PlotControl!$C$6-1),1,1) -> 0 | AP7: =OFFSET(AssimCap_SW005!$C$10,ROUND(12*$AF7,0),4*(PlotControl!$C$6-1),1,1) -> 0.016821 | AQ7: =OFFSET(AssimCap_SW005!$D$10,ROUND(12*$AF7,0),4*(PlotControl!$C$6-1),1,1) -> 0.099279 | AR7: =OFFSET(AssimCap_SW005!$E$10,ROUND(12*$AF7,0),4*(PlotControl!$C$6-1),1,1) -> 1 | AS7: =OFFSET(AssimCap_Colby!$C$10,ROUND(12*$AF7,0),4*(PlotControl!$C$6-1),1,1) -> -0.0041735 | AT7: =OFFSET(AssimCap_Colby!$D$10,ROUND(12*$AF7,0),4*(PlotControl!$C$6-1),1,1) -> -0.00179 | AU7: =OFFSET(AssimCap_Colby!$E$10,ROUND(12*$AF7,0),4*(PlotControl!$C$6-1),1,1) -> 0.00084112 | AW7: =AW6+1/12 -> 120.1666667 | AX7: =(OFFSET(P_Ex_SW003!$B$10,ROUND(12*$AW7,0),(PlotControl!$C$6-1),1,1)) -> 0 | AY7: =(OFFSET(P_Ex_SW004!$B$10,ROUND(12*$AW7,0),(PlotControl!$C$6-1),1,1)) -> 0 | AZ7: =(OFFSET(P_Ex_SW004a!$B$10,ROUND(12*$AW7,0),(PlotControl!$C$6-1),1,1)) -> 0 | BA7: =(OFFSET(P_Ex_SW005!$B$10,ROUND(12*$AW7,0),(PlotControl!$C$6-1),1,1)) -> 0.174 | BB7: =(OFFSET(P_Ex_Colby!$B$10,ROUND(12*$AW7,0),(PlotControl!$C$6-1),1,1)) -> 0 | BC7: =(OFFSET(P_notNA_SW003!$B$10,ROUND(12*$AW7,0),(PlotControl!$C$6-1),1,1)) -> 0 | BD7: =(OFFSET(P_notNA_SW004!$B$10,ROUND(12*$AW7,0),(PlotControl!$C$6-1),1,1)) -> 0 | BE7: =(OFFSET(P_notNA_SW004a!$B$10,ROUND(12*$AW7,0),(PlotControl!$C$6-1),1,1)) -> 0 | BF7: =(OFFSET(P_notNA_SW005!$B$10,ROUND(12*$AW7,0),(PlotControl!$C$6-1),1,1)) -> 0.008 | BG7: =(OFFSET(P_notNA_Colby!$B$10,ROUND(12*$AW7,0),(PlotControl!$C$6-1),1,1)) -> 0
A8: 4 | B8: =IF(PlotControl!$B$4 = "Annual Max",MAX(OFFSET(P_Ex_SW003!$B$10,12*($A8-1),(PlotControl!$C$6-1),12,1)),AVERAGE(OFFSET(P_Ex_SW003!$B$10,12*($A8-1),(PlotControl!$C$6-1),12,1))) -> 0 | C8: =IF(PlotControl!$B$4 = "Annual Max",MAX(OFFSET(P_Ex_SW004!$B$10,12*($A8-1),(PlotControl!$C$6-1),12,1)),AVERAGE(OFFSET(P_Ex_SW004!$B$10,12*($A8-1),(PlotControl!$C$6-1),12,1))) -> 0 | D8: =IF(PlotControl!$B$4 = "Annual Max",MAX(OFFSET(P_Ex_SW004a!$B$10,12*($A8-1),(PlotControl!$C$6-1),12,1)),AVERAGE(OFFSET(P_Ex_SW004a!$B$10,12*($A8-1),(PlotControl!$C$6-1),12,1))) -> 0 | E8: =IF(PlotControl!$B$4 = "Annual Max",MAX(OFFSET(P_Ex_SW005!$B$10,12*($A8-1),(PlotControl!$C$6-1),12,1)),AVERAGE(OFFSET(P_Ex_SW005!$B$10,12*($A8-1),(PlotControl!$C$6-1),12,1))) -> 0.964 | F8: =IF(PlotControl!$B$4 = "Annual Max",MAX(OFFSET(P_Ex_Colby!$B$10,12*($A8-1),(PlotControl!$C$6-1),12,1)),AVERAGE(OFFSET(P_Ex_Colby!$B$10,12*($A8-1),(PlotControl!$C$6-1),12,1))) -> 0 | H8: 4 | I8: =IF(PlotControl!$B$4 = "Annual Max",MAX(OFFSET(P_notNA_SW003!$B$10,12*($H8-1),(PlotControl!$C$6-1),12,1)),AVERAGE(OFFSET(P_notNA_SW003!$B$10,12*$A8,(PlotControl!$C$6-1),12,1))) -> 0 | J8: =IF(PlotControl!$B$4 = "Annual Max",MAX(OFFSET(P_notNA_SW004!$B$10,12*($H8-1),(PlotControl!$C$6-1),12,1)),AVERAGE(OFFSET(P_notNA_SW004!$B$10,12*$A8,(PlotControl!$C$6-1),12,1))) -> 0 | K8: =IF(PlotControl!$B$4 = "Annual Max",MAX(OFFSET(P_notNA_SW004a!$B$10,12*($H8-1),(PlotControl!$C$6-1),12,1)),AVERAGE(OFFSET(P_notNA_SW004a!$B$10,12*$A8,(PlotControl!$C$6-1),12,1))) -> 0 | L8: =IF(PlotControl!$B$4 = "Annual Max",MAX(OFFSET(P_notNA_SW005!$B$10,12*($H8-1),(PlotControl!$C$6-1),12,1)),AVERAGE(OFFSET(P_notNA_SW005!$B$10,12*$A8,(PlotControl!$C$6-1),12,1))) -> 0.006 | M8: =IF(PlotControl!$B$4 = "Annual Max",MAX(OFFSET(P_notNA_Colby!$B$10,12*($H8-1),(PlotControl!$C$6-1),12,1)),AVERAGE(OFFSET(P_notNA_Colby!$B$10,12*$A8,(PlotControl!$C$6-1),12,1))) -> 0 | O8: 4 | P8: =IF(PlotControl!$B$4 = "Annual Max",MAX(OFFSET(AssimCap_SW003!$C$10,12*($O8-1),4*(PlotControl!$C$6-1),12,1)),AVERAGE(OFFSET(AssimCap_SW003!$C$10,12*($O8-1),4*(PlotControl!$C$6-1),12,1))) -> 0 | Q8: =IF(PlotControl!$B$4 = "Annual Max",MAX(OFFSET(AssimCap_SW003!$D$10,12*($O8-1),4*(PlotControl!$C$6-1),12,1)),AVERAGE(OFFSET(AssimCap_SW003!$D$10,12*($O8-1),4*(PlotControl!$C$6-1),12,1))) -> 0 | R8: =IF(PlotControl!$B$4 = "Annual Max",MAX(OFFSET(AssimCap_SW003!$E$10,12*($O8-1),4*(PlotControl!$C$6-1),12,1)),AVERAGE(OFFSET(AssimCap_SW003!$E$10,12*($O8-1),4*(PlotControl!$C$6-1),12,1))) -> 0 | S8: =IF(PlotControl!$B$4 = "Annual Max",MAX(OFFSET(AssimCap_SW004!$C$10,12*($O8-1),4*(PlotControl!$C$6-1),12,1)),AVERAGE(OFFSET(AssimCap_SW004!$C$10,12*($O8-1),4*(PlotControl!$C$6-1),12,1))) -> 0 | T8: =IF(PlotControl!$B$4 = "Annual Max",MAX(OFFSET(AssimCap_SW004!$D$10,12*($O8-1),4*(PlotControl!$C$6-1),12,1)),AVERAGE(OFFSET(AssimCap_SW004!$D$10,12*($O8-1),4*(PlotControl!$C$6-1),12,1))) -> 0 | U8: =IF(PlotControl!$B$4 = "Annual Max",MAX(OFFSET(AssimCap_SW004!$E$10,12*($O8-1),4*(PlotControl!$C$6-1),12,1)),AVERAGE(OFFSET(AssimCap_SW004!$E$10,12*($O8-1),4*(PlotControl!$C$6-1),12,1))) -> 0 | V8: =IF(PlotControl!$B$4 = "Annual Max",MAX(OFFSET(AssimCap_SW004a!$C$10,12*($O8-1),4*(PlotControl!$C$6-1),12,1)),AVERAGE(OFFSET(AssimCap_SW004a!$C$10,12*($O8-1),4*(PlotControl!$C$6-1),12,1))) -> 0 | W8: =IF(PlotControl!$B$4 = "Annual Max",MAX(OFFSET(AssimCap_SW004a!$D$10,12*($O8-1),4*(PlotControl!$C$6-1),12,1)),AVERAGE(OFFSET(AssimCap_SW004a!$D$10,12*($O8-1),4*(PlotControl!$C$6-1),12,1))) -> 0 | X8: =IF(PlotControl!$B$4 = "Annual Max",MAX(OFFSET(AssimCap_SW004a!$E$10,12*($O8-1),4*(PlotControl!$C$6-1),12,1)),AVERAGE(OFFSET(AssimCap_SW004a!$E$10,12*($O8-1),4*(PlotControl!$C$6-1),12,1))) -> 0 | Y8: =IF(PlotControl!$B$4 = "Annual Max",MAX(OFFSET(AssimCap_SW005!$C$10,12*($O8-1),4*(PlotControl!$C$6-1),12,1)),AVERAGE(OFFSET(AssimCap_SW005!$C$10,12*($O8-1),4*(PlotControl!$C$6-1),12,1))) -> 1 | Z8: =IF(PlotControl!$B$4 = "Annual Max",MAX(OFFSET(AssimCap_SW005!$D$10,12*($O8-1),4*(PlotControl!$C$6-1),12,1)),AVERAGE(OFFSET(AssimCap_SW005!$D$10,12*($O8-1),4*(PlotControl!$C$6-1),12,1))) -> 1 | AA8: =IF(PlotControl!$B$4 = "Annual Max",MAX(OFFSET(AssimCap_SW005!$E$10,12*($O8-1),4*(PlotControl!$C$6-1),12,1)),AVERAGE(OFFSET(AssimCap_SW005!$E$10,12*($O8-1),4*(PlotControl!$C$6-1),12,1))) -> 1 | AB8: =IF(PlotControl!$B$4 = "Annual Max",MAX(OFFSET(AssimCap_Colby!$C$10,12*($O8-1),4*(PlotControl!$C$6-1),12,1)),AVERAGE(OFFSET(AssimCap_Colby!$C$10,12*($O8-1),4*(PlotControl!$C$6-1),12,1))) -> 0.00030355 | AC8: =IF(PlotControl!$B$4 = "Annual Max",MAX(OFFSET(AssimCap_Colby!$D$10,12*($O8-1),4*(PlotControl!$C$6-1),12,1)),AVERAGE(OFFSET(AssimCap_Colby!$D$10,12*($O8-1),4*(PlotControl!$C$6-1),12,1))) -> 0.00044898 | AD8: =IF(PlotControl!$B$4 = "Annual Max",MAX(OFFSET(AssimCap_Colby!$E$10,12*($O8-1),4*(PlotControl!$C$6-1),12,1)),AVERAGE(OFFSET(AssimCap_Colby!$E$10,12*($O8-1),4*(PlotControl!$C$6-1),12,1))) -> 0.00065542 | AF8: 120.25 | AG8: =OFFSET(AssimCap_SW003!$C$10,ROUND(12*$AF8,0),4*(PlotControl!$C$6-1),1,1) -> 0 | AH8: =OFFSET(AssimCap_SW003!$D$10,ROUND(12*$AF8,0),4*(PlotControl!$C$6-1),1,1) -> 0 | AI8: =OFFSET(AssimCap_SW003!$E$10,ROUND(12*$AF8,0),4*(PlotControl!$C$6-1),1,1) -> 0 | AJ8: =OFFSET(AssimCap_SW004!$C$10,ROUND(12*$AF8,0),4*(PlotControl!$C$6-1),1,1) -> 0 | AK8: =OFFSET(AssimCap_SW004!$D$10,ROUND(12*$AF8,0),4*(PlotControl!$C$6-1),1,1) -> 0 | AL8: =OFFSET(AssimCap_SW004!$E$10,ROUND(12*$AF8,0),4*(PlotControl!$C$6-1),1,1) -> 0 | AM8: =OFFSET(AssimCap_SW004a!$C$10,ROUND(12*$AF8,0),4*(PlotControl!$C$6-1),1,1) -> 0 | AN8: =OFFSET(AssimCap_SW004a!$D$10,ROUND(12*$AF8,0),4*(PlotControl!$C$6-1),1,1) -> 0 | AO8: =OFFSET(AssimCap_SW004a!$E$10,ROUND(12*$AF8,0),4*(PlotControl!$C$6-1),1,1) -> 0 | AP8: =OFFSET(AssimCap_SW005!$C$10,ROUND(12*$AF8,0),4*(PlotControl!$C$6-1),1,1) -> 0.0038443 | AQ8: =OFFSET(AssimCap_SW005!$D$10,ROUND(12*$AF8,0),4*(PlotControl!$C$6-1),1,1) -> 0.0995 | AR8: =OFFSET(AssimCap_SW005!$E$10,ROUND(12*$AF8,0),4*(PlotControl!$C$6-1),1,1) -> 1 | AS8: =OFFSET(AssimCap_Colby!$C$10,ROUND(12*$AF8,0),4*(PlotControl!$C$6-1),1,1) -> -0.0055675 | AT8: =OFFSET(AssimCap_Colby!$D$10,ROUND(12*$AF8,0),4*(PlotControl!$C$6-1),1,1) -> -0.002683 | AU8: =OFFSET(AssimCap_Colby!$E$10,ROUND(12*$AF8,0),4*(PlotControl!$C$6-1),1,1) -> 0.000482 | AW8: 120.25 | AX8: =(OFFSET(P_Ex_SW003!$B$10,ROUND(12*$AW8,0),(PlotControl!$C$6-1),1,1)) -> 0 | AY8: =(OFFSET(P_Ex_SW004!$B$10,ROUND(12*$AW8,0),(PlotControl!$C$6-1),1,1)) -> 0 | AZ8: =(OFFSET(P_Ex_SW004a!$B$10,ROUND(12*$AW8,0),(PlotControl!$C$6-1),1,1)) -> 0 | BA8: =(OFFSET(P_Ex_SW005!$B$10,ROUND(12*$AW8,0),(PlotControl!$C$6-1),1,1)) -> 0.162 | BB8: =(OFFSET(P_Ex_Colby!$B$10,ROUND(12*$AW8,0),(PlotControl!$C$6-1),1,1)) -> 0 | BC8: =(OFFSET(P_notNA_SW003!$B$10,ROUND(12*$AW8,0),(PlotControl!$C$6-1),1,1)) -> 0 | BD8: =(OFFSET(P_notNA_SW004!$B$10,ROUND(12*$AW8,0),(PlotControl!$C$6-1),1,1)) -> 0 | BE8: =(OFFSET(P_notNA_SW004a!$B$10,ROUND(12*$AW8,0),(PlotControl!$C$6-1),1,1)) -> 0 | BF8: =(OFFSET(P_notNA_SW005!$B$10,ROUND(12*$AW8,0),(PlotControl!$C$6-1),1,1)) -> 0.002 | BG8: =(OFFSET(P_notNA_Colby!$B$10,ROUND(12*$AW8,0),(PlotControl!$C$6-1),1,1)) -> 0
A9: 5 | B9: =IF(PlotControl!$B$4 = "Annual Max",MAX(OFFSET(P_Ex_SW003!$B$10,12*($A9-1),(PlotControl!$C$6-1),12,1)),AVERAGE(OFFSET(P_Ex_SW003!$B$10,12*($A9-1),(PlotControl!$C$6-1),12,1))) -> 0 | C9: =IF(PlotControl!$B$4 = "Annual Max",MAX(OFFSET(P_Ex_SW004!$B$10,12*($A9-1),(PlotControl!$C$6-1),12,1)),AVERAGE(OFFSET(P_Ex_SW004!$B$10,12*($A9-1),(PlotControl!$C$6-1),12,1))) -> 0 | D9: =IF(PlotControl!$B$4 = "Annual Max",MAX(OFFSET(P_Ex_SW004a!$B$10,12*($A9-1),(PlotControl!$C$6-1),12,1)),AVERAGE(OFFSET(P_Ex_SW004a!$B$10,12*($A9-1),(PlotControl!$C$6-1),12,1))) -> 0 | E9: =IF(PlotControl!$B$4 = "Annual Max",MAX(OFFSET(P_Ex_SW005!$B$10,12*($A9-1),(PlotControl!$C$6-1),12,1)),AVERAGE(OFFSET(P_Ex_SW005!$B$10,12*($A9-1),(PlotControl!$C$6-1),12,1))) -> 0.966 | F9: =IF(PlotControl!$B$4 = "Annual Max",MAX(OFFSET(P_Ex_Colby!$B$10,12*($A9-1),(PlotControl!$C$6-1),12,1)),AVERAGE(OFFSET(P_Ex_Colby!$B$10,12*($A9-1),(PlotControl!$C$6-1),12,1))) -> 0 | H9: 5 | I9: =IF(PlotControl!$B$4 = "Annual Max",MAX(OFFSET(P_notNA_SW003!$B$10,12*($H9-1),(PlotControl!$C$6-1),12,1)),AVERAGE(OFFSET(P_notNA_SW003!$B$10,12*$A9,(PlotControl!$C$6-1),12,1))) -> 0 | J9: =IF(PlotControl!$B$4 = "Annual Max",MAX(OFFSET(P_notNA_SW004!$B$10,12*($H9-1),(PlotControl!$C$6-1),12,1)),AVERAGE(OFFSET(P_notNA_SW004!$B$10,12*$A9,(PlotControl!$C$6-1),12,1))) -> 0 | K9: =IF(PlotControl!$B$4 = "Annual Max",MAX(OFFSET(P_notNA_SW004a!$B$10,12*($H9-1),(PlotControl!$C$6-1),12,1)),AVERAGE(OFFSET(P_notNA_SW004a!$B$10,12*$A9,(PlotControl!$C$6-1),12,1))) -> 0 | L9: =IF(PlotControl!$B$4 = "Annual Max",MAX(OFFSET(P_notNA_SW005!$B$10,12*($H9-1),(PlotControl!$C$6-1),12,1)),AVERAGE(OFFSET(P_notNA_SW005!$B$10,12*$A9,(PlotControl!$C$6-1),12,1))) -> 0.004 | M9: =IF(PlotControl!$B$4 = "Annual Max",MAX(OFFSET(P_notNA_Colby!$B$10,12*($H9-1),(PlotControl!$C$6-1),12,1)),AVERAGE(OFFSET(P_notNA_Colby!$B$10,12*$A9,(PlotControl!$C$6-1),12,1))) -> 0 | O9: 5 | P9: =IF(PlotControl!$B$4 = "Annual Max",MAX(OFFSET(AssimCap_SW003!$C$10,12*($O9-1),4*(PlotControl!$C$6-1),12,1)),AVERAGE(OFFSET(AssimCap_SW003!$C$10,12*($O9-1),4*(PlotControl!$C$6-1),12,1))) -> 0 | Q9: =IF(PlotControl!$B$4 = "Annual Max",MAX(OFFSET(AssimCap_SW003!$D$10,12*($O9-1),4*(PlotControl!$C$6-1),12,1)),AVERAGE(OFFSET(AssimCap_SW003!$D$10,12*($O9-1),4*(PlotControl!$C$6-1),12,1))) -> 0 | R9: =IF(PlotControl!$B$4 = "Annual Max",MAX(OFFSET(AssimCap_SW003!$E$10,12*($O9-1),4*(PlotControl!$C$6-1),12,1)),AVERAGE(OFFSET(AssimCap_SW003!$E$10,12*($O9-1),4*(PlotControl!$C$6-1),12,1))) -> 0 | S9: =IF(PlotControl!$B$4 = "Annual Max",MAX(OFFSET(AssimCap_SW004!$C$10,12*($O9-1),4*(PlotControl!$C$6-1),12,1)),AVERAGE(OFFSET(AssimCap_SW004!$C$10,12*($O9-1),4*(PlotControl!$C$6-1),12,1))) -> 0 | T9: =IF(PlotControl!$B$4 = "Annual Max",MAX(OFFSET(AssimCap_SW004!$D$10,12*($O9-1),4*(PlotControl!$C$6-1),12,1)),AVERAGE(OFFSET(AssimCap_SW004!$D$10,12*($O9-1),4*(PlotControl!$C$6-1),12,1))) -> 0 | U9: =IF(PlotControl!$B$4 = "Annual Max",MAX(OFFSET(AssimCap_SW004!$E$10,12*($O9-1),4*(PlotControl!$C$6-1),12,1)),AVERAGE(OFFSET(AssimCap_SW004!$E$10,12*($O9-1),4*(PlotControl!$C$6-1),12,1))) -> 0 | V9: =IF(PlotControl!$B$4 = "Annual Max",MAX(OFFSET(AssimCap_SW004a!$C$10,12*($O9-1),4*(PlotControl!$C$6-1),12,1)),AVERAGE(OFFSET(AssimCap_SW004a!$C$10,12*($O9-1),4*(PlotControl!$C$6-1),12,1))) -> 0 | W9: =IF(PlotControl!$B$4 = "Annual Max",MAX(OFFSET(AssimCap_SW004a!$D$10,12*($O9-1),4*(PlotControl!$C$6-1),12,1)),AVERAGE(OFFSET(AssimCap_SW004a!$D$10,12*($O9-1),4*(PlotControl!$C$6-1),12,1))) -> 0 | X9: =IF(PlotControl!$B$4 = "Annual Max",MAX(OFFSET(AssimCap_SW004a!$E$10,12*($O9-1),4*(PlotControl!$C$6-1),12,1)),AVERAGE(OFFSET(AssimCap_SW004a!$E$10,12*($O9-1),4*(PlotControl!$C$6-1),12,1))) -> 0 | Y9: =IF(PlotControl!$B$4 = "Annual Max",MAX(OFFSET(AssimCap_SW005!$C$10,12*($O9-1),4*(PlotControl!$C$6-1),12,1)),AVERAGE(OFFSET(AssimCap_SW005!$C$10,12*($O9-1),4*(PlotControl!$C$6-1),12,1))) -> 1 | Z9: =IF(PlotControl!$B$4 = "Annual Max",MAX(OFFSET(AssimCap_SW005!$D$10,12*($O9-1),4*(PlotControl!$C$6-1),12,1)),AVERAGE(OFFSET(AssimCap_SW005!$D$10,12*($O9-1),4*(PlotControl!$C$6-1),12,1))) -> 1 | AA9: =IF(PlotControl!$B$4 = "Annual Max",MAX(OFFSET(AssimCap_SW005!$E$10,12*($O9-1),4*(PlotControl!$C$6-1),12,1)),AVERAGE(OFFSET(AssimCap_SW005!$E$10,12*($O9-1),4*(PlotControl!$C$6-1),12,1))) -> 1 | AB9: =IF(PlotControl!$B$4 = "Annual Max",MAX(OFFSET(AssimCap_Colby!$C$10,12*($O9-1),4*(PlotControl!$C$6-1),12,1)),AVERAGE(OFFSET(AssimCap_Colby!$C$10,12*($O9-1),4*(PlotControl!$C$6-1),12,1))) -> 0.00038468 | AC9: =IF(PlotControl!$B$4 = "Annual Max",MAX(OFFSET(AssimCap_Colby!$D$10,12*($O9-1),4*(PlotControl!$C$6-1),12,1)),AVERAGE(OFFSET(AssimCap_Colby!$D$10,12*($O9-1),4*(PlotControl!$C$6-1),12,1))) -> 0.00055034 | AD9: =IF(PlotControl!$B$4 = "Annual Max",MAX(OFFSET(AssimCap_Colby!$E$10,12*($O9-1),4*(PlotControl!$C$6-1),12,1)),AVERAGE(OFFSET(AssimCap_Colby!$E$10,12*($O9-1),4*(PlotControl!$C$6-1),12,1))) -> 0.00078134 | AF9: 120.3333333 | AG9: =OFFSET(AssimCap_SW003!$C$10,ROUND(12*$AF9,0),4*(PlotControl!$C$6-1),1,1) -> 0 | AH9: =OFFSET(AssimCap_SW003!$D$10,ROUND(12*$AF9,0),4*(PlotControl!$C$6-1),1,1) -> 0 | AI9: =OFFSET(AssimCap_SW003!$E$10,ROUND(12*$AF9,0),4*(PlotControl!$C$6-1),1,1) -> 0 | AJ9: =OFFSET(AssimCap_SW004!$C$10,ROUND(12*$AF9,0),4*(PlotControl!$C$6-1),1,1) -> 0 | AK9: =OFFSET(AssimCap_SW004!$D$10,ROUND(12*$AF9,0),4*(PlotControl!$C$6-1),1,1) -> 0 | AL9: =OFFSET(AssimCap_SW004!$E$10,ROUND(12*$AF9,0),4*(PlotControl!$C$6-1),1,1) -> 0 | AM9: =OFFSET(AssimCap_SW004a!$C$10,ROUND(12*$AF9,0),4*(PlotControl!$C$6-1),1,1) -> 0 | AN9: =OFFSET(AssimCap_SW004a!$D$10,ROUND(12*$AF9,0),4*(PlotControl!$C$6-1),1,1) -> 0 | AO9: =OFFSET(AssimCap_SW004a!$E$10,ROUND(12*$AF9,0),4*(PlotControl!$C$6-1),1,1) -> 0 | AP9: =OFFSET(AssimCap_SW005!$C$10,ROUND(12*$AF9,0),4*(PlotControl!$C$6-1),1,1) -> 0.0011278 | AQ9: =OFFSET(AssimCap_SW005!$D$10,ROUND(12*$AF9,0),4*(PlotControl!$C$6-1),1,1) -> 0.0085087 | AR9: =OFFSET(AssimCap_SW005!$E$10,ROUND(12*$AF9,0),4*(PlotControl!$C$6-1),1,1) -> 1 | AS9: =OFFSET(AssimCap_Colby!$C$10,ROUND(12*$AF9,0),4*(PlotControl!$C$6-1),1,1) -> -0.004116 | AT9: =OFFSET(AssimCap_Colby!$D$10,ROUND(12*$AF9,0),4*(PlotControl!$C$6-1),1,1) -> -0.0011589 | AU9: =OFFSET(AssimCap_Colby!$E$10,ROUND(12*$AF9,0),4*(PlotControl!$C$6-1),1,1) -> -0.00027547 | AW9: 120.3333333 | AX9: =(OFFSET(P_Ex_SW003!$B$10,ROUND(12*$AW9,0),(PlotControl!$C$6-1),1,1)) -> 0 | AY9: =(OFFSET(P_Ex_SW004!$B$10,ROUND(12*$AW9,0),(PlotControl!$C$6-1),1,1)) -> 0 | AZ9: =(OFFSET(P_Ex_SW004a!$B$10,ROUND(12*$AW9,0),(PlotControl!$C$6-1),1,1)) -> 0 | BA9: =(OFFSET(P_Ex_SW005!$B$10,ROUND(12*$AW9,0),(PlotControl!$C$6-1),1,1)) -> 0.234 | BB9: =(OFFSET(P_Ex_Colby!$B$10,ROUND(12*$AW9,0),(PlotControl!$C$6-1),1,1)) -> 0 | BC9: =(OFFSET(P_notNA_SW003!$B$10,ROUND(12*$AW9,0),(PlotControl!$C$6-1),1,1)) -> 0 | BD9: =(OFFSET(P_notNA_SW004!$B$10,ROUND(12*$AW9,0),(PlotControl!$C$6-1),1,1)) -> 0 | BE9: =(OFFSET(P_notNA_SW004a!$B$10,ROUND(12*$AW9,0),(PlotControl!$C$6-1),1,1)) -> 0 | BF9: =(OFFSET(P_notNA_SW005!$B$10,ROUND(12*$AW9,0),(PlotControl!$C$6-1),1,1)) -> 0 | BG9: =(OFFSET(P_notNA_Colby!$B$10,ROUND(12*$AW9,0),(PlotControl!$C$6-1),1,1)) -> 0
A10: 6 | B10: =IF(PlotControl!$B$4 = "Annual Max",MAX(OFFSET(P_Ex_SW003!$B$10,12*($A10-1),(PlotControl!$C$6-1),12,1)),AVERAGE(OFFSET(P_Ex_SW003!$B$10,12*($A10-1),(PlotControl!$C$6-1),12,1))) -> 0 | C10: =IF(PlotControl!$B$4 = "Annual Max",MAX(OFFSET(P_Ex_SW004!$B$10,12*($A10-1),(PlotControl!$C$6-1),12,1)),AVERAGE(OFFSET(P_Ex_SW004!$B$10,12*($A10-1),(PlotControl!$C$6-1),12,1))) -> 0 | D10: =IF(PlotControl!$B$4 = "Annual Max",MAX(OFFSET(P_Ex_SW004a!$B$10,12*($A10-1),(PlotControl!$C$6-1),12,1)),AVERAGE(OFFSET(P_Ex_SW004a!$B$10,12*($A10-1),(PlotControl!$C$6-1),12,1))) -> 0 | E10: =IF(PlotControl!$B$4 = "Annual Max",MAX(OFFSET(P_Ex_SW005!$B$10,12*($A10-1),(PlotControl!$C$6-1),12,1)),AVERAGE(OFFSET(P_Ex_SW005!$B$10,12*($A10-1),(PlotControl!$C$6-1),12,1))) -> 0.93 | F10: =IF(PlotControl!$B$4 = "Annual Max",MAX(OFFSET(P_Ex_Colby!$B$10,12*($A10-1),(PlotControl!$C$6-1),12,1)),AVERAGE(OFFSET(P_Ex_Colby!$B$10,12*($A10-1),(PlotControl!$C$6-1),12,1))) -> 0 | H10: 6 | I10: =IF(PlotControl!$B$4 = "Annual Max",MAX(OFFSET(P_notNA_SW003!$B$10,12*($H10-1),(PlotControl!$C$6-1),12,1)),AVERAGE(OFFSET(P_notNA_SW003!$B$10,12*$A10,(PlotControl!$C$6-1),12,1))) -> 0 | J10: =IF(PlotControl!$B$4 = "Annual Max",MAX(OFFSET(P_notNA_SW004!$B$10,12*($H10-1),(PlotControl!$C$6-1),12,1)),AVERAGE(OFFSET(P_notNA_SW004!$B$10,12*$A10,(PlotControl!$C$6-1),12,1))) -> 0 | K10: =IF(PlotControl!$B$4 = "Annual Max",MAX(OFFSET(P_notNA_SW004a!$B$10,12*($H10-1),(PlotControl!$C$6-1),12,1)),AVERAGE(OFFSET(P_notNA_SW004a!$B$10,12*$A10,(PlotControl!$C$6-1),12,1))) -> 0 | L10: =IF(PlotControl!$B$4 = "Annual Max",MAX(OFFSET(P_notNA_SW005!$B$10,12*($H10-1),(PlotControl!$C$6-1),12,1)),AVERAGE(OFFSET(P_notNA_SW005!$B$10,12*$A10,(PlotControl!$C$6-1),12,1))) -> 0.002 | M10: =IF(PlotControl!$B$4 = "Annual Max",MAX(OFFSET(P_notNA_Colby!$B$10,12*($H10-1),(PlotControl!$C$6-1),12,1)),AVERAGE(OFFSET(P_notNA_Colby!$B$10,12*$A10,(PlotControl!$C$6-1),12,1))) -> 0 | O10: 6 | P10: =IF(PlotControl!$B$4 = "Annual Max",MAX(OFFSET(AssimCap_SW003!$C$10,12*($O10-1),4*(PlotControl!$C$6-1),12,1)),AVERAGE(OFFSET(AssimCap_SW003!$C$10,12*($O10-1),4*(PlotControl!$C$6-1),12,1))) -> 0 | Q10: =IF(PlotControl!$B$4 = "Annual Max",MAX(OFFSET(AssimCap_SW003!$D$10,12*($O10-1),4*(PlotControl!$C$6-1),12,1)),AVERAGE(OFFSET(AssimCap_SW003!$D$10,12*($O10-1),4*(PlotControl!$C$6-1),12,1))) -> 0 | R10: =IF(PlotControl!$B$4 = "Annual Max",MAX(OFFSET(AssimCap_SW003!$E$10,12*($O10-1),4*(PlotControl!$C$6-1),12,1)),AVERAGE(OFFSET(AssimCap_SW003!$E$10,12*($O10-1),4*(PlotControl!$C$6-1),12,1))) -> 0 | S10: =IF(PlotControl!$B$4 = "Annual Max",MAX(OFFSET(AssimCap_SW004!$C$10,12*($O10-1),4*(PlotControl!$C$6-1),12,1)),AVERAGE(OFFSET(AssimCap_SW004!$C$10,12*($O10-1),4*(PlotControl!$C$6-1),12,1))) -> 0 | T10: =IF(PlotControl!$B$4 = "Annual Max",MAX(OFFSET(AssimCap_SW004!$D$10,12*($O10-1),4*(PlotControl!$C$6-1),12,1)),AVERAGE(OFFSET(AssimCap_SW004!$D$10,12*($O10-1),4*(PlotControl!$C$6-1),12,1))) -> 0 | U10: =IF(PlotControl!$B$4 = "Annual Max",MAX(OFFSET(AssimCap_SW004!$E$10,12*($O10-1),4*(PlotControl!$C$6-1),12,1)),AVERAGE(OFFSET(AssimCap_SW004!$E$10,12*($O10-1),4*(PlotControl!$C$6-1),12,1))) -> 0 | V10: =IF(PlotControl!$B$4 = "Annual Max",MAX(OFFSET(AssimCap_SW004a!$C$10,12*($O10-1),4*(PlotControl!$C$6-1),12,1)),AVERAGE(OFFSET(AssimCap_SW004a!$C$10,12*($O10-1),4*(PlotControl!$C$6-1),12,1))) -> 0 | W10: =IF(PlotControl!$B$4 = "Annual Max",MAX(OFFSET(AssimCap_SW004a!$D$10,12*($O10-1),4*(PlotControl!$C$6-1),12,1)),AVERAGE(OFFSET(AssimCap_SW004a!$D$10,12*($O10-1),4*(PlotControl!$C$6-1),12,1))) -> 0 | X10: =IF(PlotControl!$B$4 = "Annual Max",MAX(OFFSET(AssimCap_SW004a!$E$10,12*($O10-1),4*(PlotControl!$C$6-1),12,1)),AVERAGE(OFFSET(AssimCap_SW004a!$E$10,12*($O10-1),4*(PlotControl!$C$6-1),12,1))) -> 0 | Y10: =IF(PlotControl!$B$4 = "Annual Max",MAX(OFFSET(AssimCap_SW005!$C$10,12*($O10-1),4*(PlotControl!$C$6-1),12,1)),AVERAGE(OFFSET(AssimCap_SW005!$C$10,12*($O10-1),4*(PlotControl!$C$6-1),12,1))) -> 1 | Z10: =IF(PlotControl!$B$4 = "Annual Max",MAX(OFFSET(AssimCap_SW005!$D$10,12*($O10-1),4*(PlotControl!$C$6-1),12,1)),AVERAGE(OFFSET(AssimCap_SW005!$D$10,12*($O10-1),4*(PlotControl!$C$6-1),12,1))) -> 1 | AA10: =IF(PlotControl!$B$4 = "Annual Max",MAX(OFFSET(AssimCap_SW005!$E$10,12*($O10-1),4*(PlotControl!$C$6-1),12,1)),AVERAGE(OFFSET(AssimCap_SW005!$E$10,12*($O10-1),4*(PlotControl!$C$6-1),12,1))) -> 1 | AB10: =IF(PlotControl!$B$4 = "Annual Max",MAX(OFFSET(AssimCap_Colby!$C$10,12*($O10-1),4*(PlotControl!$C$6-1),12,1)),AVERAGE(OFFSET(AssimCap_Colby!$C$10,12*($O10-1),4*(PlotControl!$C$6-1),12,1))) -> 0.00045277 | AC10: =IF(PlotControl!$B$4 = "Annual Max",MAX(OFFSET(AssimCap_Colby!$D$10,12*($O10-1),4*(PlotControl!$C$6-1),12,1)),AVERAGE(OFFSET(AssimCap_Colby!$D$10,12*($O10-1),4*(PlotControl!$C$6-1),12,1))) -> 0.00066416 | AD10: =IF(PlotControl!$B$4 = "Annual Max",MAX(OFFSET(AssimCap_Colby!$E$10,12*($O10-1),4*(PlotControl!$C$6-1),12,1)),AVERAGE(OFFSET(AssimCap_Colby!$E$10,12*($O10-1),4*(PlotControl!$C$6-1),12,1))) -> 0.00092187 | AF10: 120.4166667 | AG10: =OFFSET(AssimCap_SW003!$C$10,ROUND(12*$AF10,0),4*(PlotControl!$C$6-1),1,1) -> 0 | AH10: =OFFSET(AssimCap_SW003!$D$10,ROUND(12*$AF10,0),4*(PlotControl!$C$6-1),1,1) -> 0 | AI10: =OFFSET(AssimCap_SW003!$E$10,ROUND(12*$AF10,0),4*(PlotControl!$C$6-1),1,1) -> 0 | AJ10: =OFFSET(AssimCap_SW004!$C$10,ROUND(12*$AF10,0),4*(PlotControl!$C$6-1),1,1) -> 0 | AK10: =OFFSET(AssimCap_SW004!$D$10,ROUND(12*$AF10,0),4*(PlotControl!$C$6-1),1,1) -> 0 | AL10: =OFFSET(AssimCap_SW004!$E$10,ROUND(12*$AF10,0),4*(PlotControl!$C$6-1),1,1) -> 0 | AM10: =OFFSET(AssimCap_SW004a!$C$10,ROUND(12*$AF10,0),4*(PlotControl!$C$6-1),1,1) -> 0 | AN10: =OFFSET(AssimCap_SW004a!$D$10,ROUND(12*$AF10,0),4*(PlotControl!$C$6-1),1,1) -> 0 | AO10: =OFFSET(AssimCap_SW004a!$E$10,ROUND(12*$AF10,0),4*(PlotControl!$C$6-1),1,1) -> 0 | AP10: =OFFSET(AssimCap_SW005!$C$10,ROUND(12*$AF10,0),4*(PlotControl!$C$6-1),1,1) -> 0.0014206 | AQ10: =OFFSET(AssimCap_SW005!$D$10,ROUND(12*$AF10,0),4*(PlotControl!$C$6-1),1,1) -> 0.0079376 | AR10: =OFFSET(AssimCap_SW005!$E$10,ROUND(12*$AF10,0),4*(PlotControl!$C$6-1),1,1) -> 1 | AS10: =OFFSET(AssimCap_Colby!$C$10,ROUND(12*$AF10,0),4*(PlotControl!$C$6-1),1,1) -> -0.0019209 | AT10: =OFFSET(AssimCap_Colby!$D$10,ROUND(12*$AF10,0),4*(PlotControl!$C$6-1),1,1) -> -0.00038984 | AU10: =OFFSET(AssimCap_Colby!$E$10,ROUND(12*$AF10,0),4*(PlotControl!$C$6-1),1,1) -> -5.7277e-05 | AW10: 120.4166667 | AX10: =(OFFSET(P_Ex_SW003!$B$10,ROUND(12*$AW10,0),(PlotControl!$C$6-1),1,1)) -> 0 | AY10: =(OFFSET(P_Ex_SW004!$B$10,ROUND(12*$AW10,0),(PlotControl!$C$6-1),1,1)) -> 0 | AZ10: =(OFFSET(P_Ex_SW004a!$B$10,ROUND(12*$AW10,0),(PlotControl!$C$6-1),1,1)) -> 0 | BA10: =(OFFSET(P_Ex_SW005!$B$10,ROUND(12*$AW10,0),(PlotControl!$C$6-1),1,1)) -> 0.26 | BB10: =(OFFSET(P_Ex_Colby!$B$10,ROUND(12*$AW10,0),(PlotControl!$C$6-1),1,1)) -> 0 | BC10: =(OFFSET(P_notNA_SW003!$B$10,ROUND(12*$AW10,0),(PlotControl!$C$6-1),1,1)) -> 0 | BD10: =(OFFSET(P_notNA_SW004!$B$10,ROUND(12*$AW10,0),(PlotControl!$C$6-1),1,1)) -> 0 | BE10: =(OFFSET(P_notNA_SW004a!$B$10,ROUND(12*$AW10,0),(PlotControl!$C$6-1),1,1)) -> 0 | BF10: =(OFFSET(P_notNA_SW005!$B$10,ROUND(12*$AW10,0),(PlotControl!$C$6-1),1,1)) -> 0 | BG10: =(OFFSET(P_notNA_Colby!$B$10,ROUND(12*$AW10,0),(PlotControl!$C$6-1),1,1)) -> 0
A11: 7 | B11: =IF(PlotControl!$B$4 = "Annual Max",MAX(OFFSET(P_Ex_SW003!$B$10,12*($A11-1),(PlotControl!$C$6-1),12,1)),AVERAGE(OFFSET(P_Ex_SW003!$B$10,12*($A11-1),(PlotControl!$C$6-1),12,1))) -> 0 | C11: =IF(PlotControl!$B$4 = "Annual Max",MAX(OFFSET(P_Ex_SW004!$B$10,12*($A11-1),(PlotControl!$C$6-1),12,1)),AVERAGE(OFFSET(P_Ex_SW004!$B$10,12*($A11-1),(PlotControl!$C$6-1),12,1))) -> 0 | D11: =IF(PlotControl!$B$4 = "Annual Max",MAX(OFFSET(P_Ex_SW004a!$B$10,12*($A11-1),(PlotControl!$C$6-1),12,1)),AVERAGE(OFFSET(P_Ex_SW004a!$B$10,12*($A11-1),(PlotControl!$C$6-1),12,1))) -> 0 | E11: =IF(PlotControl!$B$4 = "Annual Max",MAX(OFFSET(P_Ex_SW005!$B$10,12*($A11-1),(PlotControl!$C$6-1),12,1)),AVERAGE(OFFSET(P_Ex_SW005!$B$10,12*($A11-1),(PlotControl!$C$6-1),12,1))) -> 0.964 | F11: =IF(PlotControl!$B$4 = "Annual Max",MAX(OFFSET(P_Ex_Colby!$B$10,12*($A11-1),(PlotControl!$C$6-1),12,1)),AVERAGE(OFFSET(P_Ex_Colby!$B$10,12*($A11-1),(PlotControl!$C$6-1),12,1))) -> 0 | H11: 7 | I11: =IF(PlotControl!$B$4 = "Annual Max",MAX(OFFSET(P_notNA_SW003!$B$10,12*($H11-1),(PlotControl!$C$6-1),12,1)),AVERAGE(OFFSET(P_notNA_SW003!$B$10,12*$A11,(PlotControl!$C$6-1),12,1))) -> 0 | J11: =IF(PlotControl!$B$4 = "Annual Max",MAX(OFFSET(P_notNA_SW004!$B$10,12*($H11-1),(PlotControl!$C$6-1),12,1)),AVERAGE(OFFSET(P_notNA_SW004!$B$10,12*$A11,(PlotControl!$C$6-1),12,1))) -> 0 | K11: =IF(PlotControl!$B$4 = "Annual Max",MAX(OFFSET(P_notNA_SW004a!$B$10,12*($H11-1),(PlotControl!$C$6-1),12,1)),AVERAGE(OFFSET(P_notNA_SW004a!$B$10,12*$A11,(PlotControl!$C$6-1),12,1))) -> 0 | L11: =IF(PlotControl!$B$4 = "Annual Max",MAX(OFFSET(P_notNA_SW005!$B$10,12*($H11-1),(PlotControl!$C$6-1),12,1)),AVERAGE(OFFSET(P_notNA_SW005!$B$10,12*$A11,(PlotControl!$C$6-1),12,1))) -> 0.004 | M11: =IF(PlotControl!$B$4 = "Annual Max",MAX(OFFSET(P_notNA_Colby!$B$10,12*($H11-1),(PlotControl!$C$6-1),12,1)),AVERAGE(OFFSET(P_notNA_Colby!$B$10,12*$A11,(PlotControl!$C$6-1),12,1))) -> 0 | O11: 7 | P11: =IF(PlotControl!$B$4 = "Annual Max",MAX(OFFSET(AssimCap_SW003!$C$10,12*($O11-1),4*(PlotControl!$C$6-1),12,1)),AVERAGE(OFFSET(AssimCap_SW003!$C$10,12*($O11-1),4*(PlotControl!$C$6-1),12,1))) -> 0 | Q11: =IF(PlotControl!$B$4 = "Annual Max",MAX(OFFSET(AssimCap_SW003!$D$10,12*($O11-1),4*(PlotControl!$C$6-1),12,1)),AVERAGE(OFFSET(AssimCap_SW003!$D$10,12*($O11-1),4*(PlotControl!$C$6-1),12,1))) -> 0 | R11: =IF(PlotControl!$B$4 = "Annual Max",MAX(OFFSET(AssimCap_SW003!$E$10,12*($O11-1),4*(PlotControl!$C$6-1),12,1)),AVERAGE(OFFSET(AssimCap_SW003!$E$10,12*($O11-1),4*(PlotControl!$C$6-1),12,1))) -> 0 | S11: =IF(PlotControl!$B$4 = "Annual Max",MAX(OFFSET(AssimCap_SW004!$C$10,12*($O11-1),4*(PlotControl!$C$6-1),12,1)),AVERAGE(OFFSET(AssimCap_SW004!$C$10,12*($O11-1),4*(PlotControl!$C$6-1),12,1))) -> 0 | T11: =IF(PlotControl!$B$4 = "Annual Max",MAX(OFFSET(AssimCap_SW004!$D$10,12*($O11-1),4*(PlotControl!$C$6-1),12,1)),AVERAGE(OFFSET(AssimCap_SW004!$D$10,12*($O11-1),4*(PlotControl!$C$6-1),12,1))) -> 0 | U11: =IF(PlotControl!$B$4 = "Annual Max",MAX(OFFSET(AssimCap_SW004!$E$10,12*($O11-1),4*(PlotControl!$C$6-1),12,1)),AVERAGE(OFFSET(AssimCap_SW004!$E$10,12*($O11-1),4*(PlotControl!$C$6-1),12,1))) -> 0 | V11: =IF(PlotControl!$B$4 = "Annual Max",MAX(OFFSET(AssimCap_SW004a!$C$10,12*($O11-1),4*(PlotControl!$C$6-1),12,1)),AVERAGE(OFFSET(AssimCap_SW004a!$C$10,12*($O11-1),4*(PlotControl!$C$6-1),12,1))) -> 0 | W11: =IF(PlotControl!$B$4 = "Annual Max",MAX(OFFSET(AssimCap_SW004a!$D$10,12*($O11-1),4*(PlotControl!$C$6-1),12,1)),AVERAGE(OFFSET(AssimCap_SW004a!$D$10,12*($O11-1),4*(PlotControl!$C$6-1),12,1))) -> 0 | X11: =IF(PlotControl!$B$4 = "Annual Max",MAX(OFFSET(AssimCap_SW004a!$E$10,12*($O11-1),4*(PlotControl!$C$6-1),12,1)),AVERAGE(OFFSET(AssimCap_SW004a!$E$10,12*($O11-1),4*(PlotControl!$C$6-1),12,1))) -> 0 | Y11: =IF(PlotControl!$B$4 = "Annual Max",MAX(OFFSET(AssimCap_SW005!$C$10,12*($O11-1),4*(PlotControl!$C$6-1),12,1)),AVERAGE(OFFSET(AssimCap_SW005!$C$10,12*($O11-1),4*(PlotControl!$C$6-1),12,1))) -> 1 | Z11: =IF(PlotControl!$B$4 = "Annual Max",MAX(OFFSET(AssimCap_SW005!$D$10,12*($O11-1),4*(PlotControl!$C$6-1),12,1)),AVERAGE(OFFSET(AssimCap_SW005!$D$10,12*($O11-1),4*(PlotControl!$C$6-1),12,1))) -> 1 | AA11: =IF(PlotControl!$B$4 = "Annual Max",MAX(OFFSET(AssimCap_SW005!$E$10,12*($O11-1),4*(PlotControl!$C$6-1),12,1)),AVERAGE(OFFSET(AssimCap_SW005!$E$10,12*($O11-1),4*(PlotControl!$C$6-1),12,1))) -> 1 | AB11: =IF(PlotControl!$B$4 = "Annual Max",MAX(OFFSET(AssimCap_Colby!$C$10,12*($O11-1),4*(PlotControl!$C$6-1),12,1)),AVERAGE(OFFSET(AssimCap_Colby!$C$10,12*($O11-1),4*(PlotControl!$C$6-1),12,1))) -> 0.00050364 | AC11: =IF(PlotControl!$B$4 = "Annual Max",MAX(OFFSET(AssimCap_Colby!$D$10,12*($O11-1),4*(PlotControl!$C$6-1),12,1)),AVERAGE(OFFSET(AssimCap_Colby!$D$10,12*($O11-1),4*(PlotControl!$C$6-1),12,1))) -> 0.0007585 | AD11: =IF(PlotControl!$B$4 = "Annual Max",MAX(OFFSET(AssimCap_Colby!$E$10,12*($O11-1),4*(PlotControl!$C$6-1),12,1)),AVERAGE(OFFSET(AssimCap_Colby!$E$10,12*($O11-1),4*(PlotControl!$C$6-1),12,1))) -> 0.0011041 | AF11: 120.5 | AG11: =OFFSET(AssimCap_SW003!$C$10,ROUND(12*$AF11,0),4*(PlotControl!$C$6-1),1,1) -> 0 | AH11: =OFFSET(AssimCap_SW003!$D$10,ROUND(12*$AF11,0),4*(PlotControl!$C$6-1),1,1) -> 0 | AI11: =OFFSET(AssimCap_SW003!$E$10,ROUND(12*$AF11,0),4*(PlotControl!$C$6-1),1,1) -> 0 | AJ11: =OFFSET(AssimCap_SW004!$C$10,ROUND(12*$AF11,0),4*(PlotControl!$C$6-1),1,1) -> 0 | AK11: =OFFSET(AssimCap_SW004!$D$10,ROUND(12*$AF11,0),4*(PlotControl!$C$6-1),1,1) -> 0 | AL11: =OFFSET(AssimCap_SW004!$E$10,ROUND(12*$AF11,0),4*(PlotControl!$C$6-1),1,1) -> 0 | AM11: =OFFSET(AssimCap_SW004a!$C$10,ROUND(12*$AF11,0),4*(PlotControl!$C$6-1),1,1) -> 0 | AN11: =OFFSET(AssimCap_SW004a!$D$10,ROUND(12*$AF11,0),4*(PlotControl!$C$6-1),1,1) -> 0 | AO11: =OFFSET(AssimCap_SW004a!$E$10,ROUND(12*$AF11,0),4*(PlotControl!$C$6-1),1,1) -> 0 | AP11: =OFFSET(AssimCap_SW005!$C$10,ROUND(12*$AF11,0),4*(PlotControl!$C$6-1),1,1) -> 0.0028034 | AQ11: =OFFSET(AssimCap_SW005!$D$10,ROUND(12*$AF11,0),4*(PlotControl!$C$6-1),1,1) -> 0.012531 | AR11: =OFFSET(AssimCap_SW005!$E$10,ROUND(12*$AF11,0),4*(PlotControl!$C$6-1),1,1) -> 1 | AS11: =OFFSET(AssimCap_Colby!$C$10,ROUND(12*$AF11,0),4*(PlotControl!$C$6-1),1,1) -> -0.0015747 | AT11: =OFFSET(AssimCap_Colby!$D$10,ROUND(12*$AF11,0),4*(PlotControl!$C$6-1),1,1) -> -0.0003517 | AU11: =OFFSET(AssimCap_Colby!$E$10,ROUND(12*$AF11,0),4*(PlotControl!$C$6-1),1,1) -> -5.0281e-05 | AW11: 120.5 | AX11: =(OFFSET(P_Ex_SW003!$B$10,ROUND(12*$AW11,0),(PlotControl!$C$6-1),1,1)) -> 0 | AY11: =(OFFSET(P_Ex_SW004!$B$10,ROUND(12*$AW11,0),(PlotControl!$C$6-1),1,1)) -> 0 | AZ11: =(OFFSET(P_Ex_SW004a!$B$10,ROUND(12*$AW11,0),(PlotControl!$C$6-1),1,1)) -> 0 | BA11: =(OFFSET(P_Ex_SW005!$B$10,ROUND(12*$AW11,0),(PlotControl!$C$6-1),1,1)) -> 0.228 | BB11: =(OFFSET(P_Ex_Colby!$B$10,ROUND(12*$AW11,0),(PlotControl!$C$6-1),1,1)) -> 0 | BC11: =(OFFSET(P_notNA_SW003!$B$10,ROUND(12*$AW11,0),(PlotControl!$C$6-1),1,1)) -> 0 | BD11: =(OFFSET(P_notNA_SW004!$B$10,ROUND(12*$AW11,0),(PlotControl!$C$6-1),1,1)) -> 0 | BE11: =(OFFSET(P_notNA_SW004a!$B$10,ROUND(12*$AW11,0),(PlotControl!$C$6-1),1,1)) -> 0 | BF11: =(OFFSET(P_notNA_SW005!$B$10,ROUND(12*$AW11,0),(PlotControl!$C$6-1),1,1)) -> 0 | BG11: =(OFFSET(P_notNA_Colby!$B$10,ROUND(12*$AW11,0),(PlotControl!$C$6-1),1,1)) -> 0
A12: 8 | B12: =IF(PlotControl!$B$4 = "Annual Max",MAX(OFFSET(P_Ex_SW003!$B$10,12*($A12-1),(PlotControl!$C$6-1),12,1)),AVERAGE(OFFSET(P_Ex_SW003!$B$10,12*($A12-1),(PlotControl!$C$6-1),12,1))) -> 0 | C12: =IF(PlotControl!$B$4 = "Annual Max",MAX(OFFSET(P_Ex_SW004!$B$10,12*($A12-1),(PlotControl!$C$6-1),12,1)),AVERAGE(OFFSET(P_Ex_SW004!$B$10,12*($A12-1),(PlotControl!$C$6-1),12,1))) -> 0 | D12: =IF(PlotControl!$B$4 = "Annual Max",MAX(OFFSET(P_Ex_SW004a!$B$10,12*($A12-1),(PlotControl!$C$6-1),12,1)),AVERAGE(OFFSET(P_Ex_SW004a!$B$10,12*($A12-1),(PlotControl!$C$6-1),12,1))) -> 0 | E12: =IF(PlotControl!$B$4 = "Annual Max",MAX(OFFSET(P_Ex_SW005!$B$10,12*($A12-1),(PlotControl!$C$6-1),12,1)),AVERAGE(OFFSET(P_Ex_SW005!$B$10,12*($A12-1),(PlotControl!$C$6-1),12,1))) -> 0.964 | F12: =IF(PlotControl!$B$4 = "Annual Max",MAX(OFFSET(P_Ex_Colby!$B$10,12*($A12-1),(PlotControl!$C$6-1),12,1)),AVERAGE(OFFSET(P_Ex_Colby!$B$10,12*($A12-1),(PlotControl!$C$6-1),12,1))) -> 0 | H12: 8 | I12: =IF(PlotControl!$B$4 = "Annual Max",MAX(OFFSET(P_notNA_SW003!$B$10,12*($H12-1),(PlotControl!$C$6-1),12,1)),AVERAGE(OFFSET(P_notNA_SW003!$B$10,12*$A12,(PlotControl!$C$6-1),12,1))) -> 0 | J12: =IF(PlotControl!$B$4 = "Annual Max",MAX(OFFSET(P_notNA_SW004!$B$10,12*($H12-1),(PlotControl!$C$6-1),12,1)),AVERAGE(OFFSET(P_notNA_SW004!$B$10,12*$A12,(PlotControl!$C$6-1),12,1))) -> 0 | K12: =IF(PlotControl!$B$4 = "Annual Max",MAX(OFFSET(P_notNA_SW004a!$B$10,12*($H12-1),(PlotControl!$C$6-1),12,1)),AVERAGE(OFFSET(P_notNA_SW004a!$B$10,12*$A12,(PlotControl!$C$6-1),12,1))) -> 0 | L12: =IF(PlotControl!$B$4 = "Annual Max",MAX(OFFSET(P_notNA_SW005!$B$10,12*($H12-1),(PlotControl!$C$6-1),12,1)),AVERAGE(OFFSET(P_notNA_SW005!$B$10,12*$A12,(PlotControl!$C$6-1),12,1))) -> 0.008 | M12: =IF(PlotControl!$B$4 = "Annual Max",MAX(OFFSET(P_notNA_Colby!$B$10,12*($H12-1),(PlotControl!$C$6-1),12,1)),AVERAGE(OFFSET(P_notNA_Colby!$B$10,12*$A12,(PlotControl!$C$6-1),12,1))) -> 0 | O12: 8 | P12: =IF(PlotControl!$B$4 = "Annual Max",MAX(OFFSET(AssimCap_SW003!$C$10,12*($O12-1),4*(PlotControl!$C$6-1),12,1)),AVERAGE(OFFSET(AssimCap_SW003!$C$10,12*($O12-1),4*(PlotControl!$C$6-1),12,1))) -> 0 | Q12: =IF(PlotControl!$B$4 = "Annual Max",MAX(OFFSET(AssimCap_SW003!$D$10,12*($O12-1),4*(PlotControl!$C$6-1),12,1)),AVERAGE(OFFSET(AssimCap_SW003!$D$10,12*($O12-1),4*(PlotControl!$C$6-1),12,1))) -> 0 | R12: =IF(PlotControl!$B$4 = "Annual Max",MAX(OFFSET(AssimCap_SW003!$E$10,12*($O12-1),4*(PlotControl!$C$6-1),12,1)),AVERAGE(OFFSET(AssimCap_SW003!$E$10,12*($O12-1),4*(PlotControl!$C$6-1),12,1))) -> 0 | S12: =IF(PlotControl!$B$4 = "Annual Max",MAX(OFFSET(AssimCap_SW004!$C$10,12*($O12-1),4*(PlotControl!$C$6-1),12,1)),AVERAGE(OFFSET(AssimCap_SW004!$C$10,12*($O12-1),4*(PlotControl!$C$6-1),12,1))) -> 0 | T12: =IF(PlotControl!$B$4 = "Annual Max",MAX(OFFSET(AssimCap_SW004!$D$10,12*($O12-1),4*(PlotControl!$C$6-1),12,1)),AVERAGE(OFFSET(AssimCap_SW004!$D$10,12*($O12-1),4*(PlotControl!$C$6-1),12,1))) -> 0 | U12: =IF(PlotControl!$B$4 = "Annual Max",MAX(OFFSET(AssimCap_SW004!$E$10,12*($O12-1),4*(PlotControl!$C$6-1),12,1)),AVERAGE(OFFSET(AssimCap_SW004!$E$10,12*($O12-1),4*(PlotControl!$C$6-1),12,1))) -> 0 | V12: =IF(PlotControl!$B$4 = "Annual Max",MAX(OFFSET(AssimCap_SW004a!$C$10,12*($O12-1),4*(PlotControl!$C$6-1),12,1)),AVERAGE(OFFSET(AssimCap_SW004a!$C$10,12*($O12-1),4*(PlotControl!$C$6-1),12,1))) -> 0 | W12: =IF(PlotControl!$B$4 = "Annual Max",MAX(OFFSET(AssimCap_SW004a!$D$10,12*($O12-1),4*(PlotControl!$C$6-1),12,1)),AVERAGE(OFFSET(AssimCap_SW004a!$D$10,12*($O12-1),4*(PlotControl!$C$6-1),12,1))) -> 0 | X12: =IF(PlotControl!$B$4 = "Annual Max",MAX(OFFSET(AssimCap_SW004a!$E$10,12*($O12-1),4*(PlotControl!$C$6-1),12,1)),AVERAGE(OFFSET(AssimCap_SW004a!$E$10,12*($O12-1),4*(PlotControl!$C$6-1),12,1))) -> 0 | Y12: =IF(PlotControl!$B$4 = "Annual Max",MAX(OFFSET(AssimCap_SW005!$C$10,12*($O12-1),4*(PlotControl!$C$6-1),12,1)),AVERAGE(OFFSET(AssimCap_SW005!$C$10,12*($O12-1),4*(PlotControl!$C$6-1),12,1))) -> 1 | Z12: =IF(PlotControl!$B$4 = "Annual Max",MAX(OFFSET(AssimCap_SW005!$D$10,12*($O12-1),4*(PlotControl!$C$6-1),12,1)),AVERAGE(OFFSET(AssimCap_SW005!$D$10,12*($O12-1),4*(PlotControl!$C$6-1),12,1))) -> 1 | AA12: =IF(PlotControl!$B$4 = "Annual Max",MAX(OFFSET(AssimCap_SW005!$E$10,12*($O12-1),4*(PlotControl!$C$6-1),12,1)),AVERAGE(OFFSET(AssimCap_SW005!$E$10,12*($O12-1),4*(PlotControl!$C$6-1),12,1))) -> 1 | AB12: =IF(PlotControl!$B$4 = "Annual Max",MAX(OFFSET(AssimCap_Colby!$C$10,12*($O12-1),4*(PlotControl!$C$6-1),12,1)),AVERAGE(OFFSET(AssimCap_Colby!$C$10,12*($O12-1),4*(PlotControl!$C$6-1),12,1))) -> 0.00059764 | AC12: =IF(PlotControl!$B$4 = "Annual Max",MAX(OFFSET(AssimCap_Colby!$D$10,12*($O12-1),4*(PlotControl!$C$6-1),12,1)),AVERAGE(OFFSET(AssimCap_Colby!$D$10,12*($O12-1),4*(PlotControl!$C$6-1),12,1))) -> 0.00087031 | AD12: =IF(PlotControl!$B$4 = "Annual Max",MAX(OFFSET(AssimCap_Colby!$E$10,12*($O12-1),4*(PlotControl!$C$6-1),12,1)),AVERAGE(OFFSET(AssimCap_Colby!$E$10,12*($O12-1),4*(PlotControl!$C$6-1),12,1))) -> 0.0012644 | AF12: 120.5833333 | AG12: =OFFSET(AssimCap_SW003!$C$10,ROUND(12*$AF12,0),4*(PlotControl!$C$6-1),1,1) -> 0 | AH12: =OFFSET(AssimCap_SW003!$D$10,ROUND(12*$AF12,0),4*(PlotControl!$C$6-1),1,1) -> 0 | AI12: =OFFSET(AssimCap_SW003!$E$10,ROUND(12*$AF12,0),4*(PlotControl!$C$6-1),1,1) -> 0 | AJ12: =OFFSET(AssimCap_SW004!$C$10,ROUND(12*$AF12,0),4*(PlotControl!$C$6-1),1,1) -> 0 | AK12: =OFFSET(AssimCap_SW004!$D$10,ROUND(12*$AF12,0),4*(PlotControl!$C$6-1),1,1) -> 0 | AL12: =OFFSET(AssimCap_SW004!$E$10,ROUND(12*$AF12,0),4*(PlotControl!$C$6-1),1,1) -> 0 | AM12: =OFFSET(AssimCap_SW004a!$C$10,ROUND(12*$AF12,0),4*(PlotControl!$C$6-1),1,1) -> 0 | AN12: =OFFSET(AssimCap_SW004a!$D$10,ROUND(12*$AF12,0),4*(PlotControl!$C$6-1),1,1) -> 0 | AO12: =OFFSET(AssimCap_SW004a!$E$10,ROUND(12*$AF12,0),4*(PlotControl!$C$6-1),1,1) -> 0 | AP12: =OFFSET(AssimCap_SW005!$C$10,ROUND(12*$AF12,0),4*(PlotControl!$C$6-1),1,1) -> 0.0012643 | AQ12: =OFFSET(AssimCap_SW005!$D$10,ROUND(12*$AF12,0),4*(PlotControl!$C$6-1),1,1) -> 0.020805 | AR12: =OFFSET(AssimCap_SW005!$E$10,ROUND(12*$AF12,0),4*(PlotControl!$C$6-1),1,1) -> 1 | AS12: =OFFSET(AssimCap_Colby!$C$10,ROUND(12*$AF12,0),4*(PlotControl!$C$6-1),1,1) -> -0.0013476 | AT12: =OFFSET(AssimCap_Colby!$D$10,ROUND(12*$AF12,0),4*(PlotControl!$C$6-1),1,1) -> -0.00028172 | AU12: =OFFSET(AssimCap_Colby!$E$10,ROUND(12*$AF12,0),4*(PlotControl!$C$6-1),1,1) -> 1.5819e-05 | AW12: 120.5833333 | AX12: =(OFFSET(P_Ex_SW003!$B$10,ROUND(12*$AW12,0),(PlotControl!$C$6-1),1,1)) -> 0 | AY12: =(OFFSET(P_Ex_SW004!$B$10,ROUND(12*$AW12,0),(PlotControl!$C$6-1),1,1)) -> 0 | AZ12: =(OFFSET(P_Ex_SW004a!$B$10,ROUND(12*$AW12,0),(PlotControl!$C$6-1),1,1)) -> 0 | BA12: =(OFFSET(P_Ex_SW005!$B$10,ROUND(12*$AW12,0),(PlotControl!$C$6-1),1,1)) -> 0.224 | BB12: =(OFFSET(P_Ex_Colby!$B$10,ROUND(12*$AW12,0),(PlotControl!$C$6-1),1,1)) -> 0 | BC12: =(OFFSET(P_notNA_SW003!$B$10,ROUND(12*$AW12,0),(PlotControl!$C$6-1),1,1)) -> 0 | BD12: =(OFFSET(P_notNA_SW004!$B$10,ROUND(12*$AW12,0),(PlotControl!$C$6-1),1,1)) -> 0 | BE12: =(OFFSET(P_notNA_SW004a!$B$10,ROUND(12*$AW12,0),(PlotControl!$C$6-1),1,1)) -> 0 | BF12: =(OFFSET(P_notNA_SW005!$B$10,ROUND(12*$AW12,0),(PlotControl!$C$6-1),1,1)) -> 0 | BG12: =(OFFSET(P_notNA_Colby!$B$10,ROUND(12*$AW12,0),(PlotControl!$C$6-1),1,1)) -> 0
A13: 9 | B13: =IF(PlotControl!$B$4 = "Annual Max",MAX(OFFSET(P_Ex_SW003!$B$10,12*($A13-1),(PlotControl!$C$6-1),12,1)),AVERAGE(OFFSET(P_Ex_SW003!$B$10,12*($A13-1),(PlotControl!$C$6-1),12,1))) -> 0 | C13: =IF(PlotControl!$B$4 = "Annual Max",MAX(OFFSET(P_Ex_SW004!$B$10,12*($A13-1),(PlotControl!$C$6-1),12,1)),AVERAGE(OFFSET(P_Ex_SW004!$B$10,12*($A13-1),(PlotControl!$C$6-1),12,1))) -> 0 | D13: =IF(PlotControl!$B$4 = "Annual Max",MAX(OFFSET(P_Ex_SW004a!$B$10,12*($A13-1),(PlotControl!$C$6-1),12,1)),AVERAGE(OFFSET(P_Ex_SW004a!$B$10,12*($A13-1),(PlotControl!$C$6-1),12,1))) -> 0 | E13: =IF(PlotControl!$B$4 = "Annual Max",MAX(OFFSET(P_Ex_SW005!$B$10,12*($A13-1),(PlotControl!$C$6-1),12,1)),AVERAGE(OFFSET(P_Ex_SW005!$B$10,12*($A13-1),(PlotControl!$C$6-1),12,1))) -> 0.95 | F13: =IF(PlotControl!$B$4 = "Annual Max",MAX(OFFSET(P_Ex_Colby!$B$10,12*($A13-1),(PlotControl!$C$6-1),12,1)),AVERAGE(OFFSET(P_Ex_Colby!$B$10,12*($A13-1),(PlotControl!$C$6-1),12,1))) -> 0 | H13: 9 | I13: =IF(PlotControl!$B$4 = "Annual Max",MAX(OFFSET(P_notNA_SW003!$B$10,12*($H13-1),(PlotControl!$C$6-1),12,1)),AVERAGE(OFFSET(P_notNA_SW003!$B$10,12*$A13,(PlotControl!$C$6-1),12,1))) -> 0 | J13: =IF(PlotControl!$B$4 = "Annual Max",MAX(OFFSET(P_notNA_SW004!$B$10,12*($H13-1),(PlotControl!$C$6-1),12,1)),AVERAGE(OFFSET(P_notNA_SW004!$B$10,12*$A13,(PlotControl!$C$6-1),12,1))) -> 0 | K13: =IF(PlotControl!$B$4 = "Annual Max",MAX(OFFSET(P_notNA_SW004a!$B$10,12*($H13-1),(PlotControl!$C$6-1),12,1)),AVERAGE(OFFSET(P_notNA_SW004a!$B$10,12*$A13,(PlotControl!$C$6-1),12,1))) -> 0 | L13: =IF(PlotControl!$B$4 = "Annual Max",MAX(OFFSET(P_notNA_SW005!$B$10,12*($H13-1),(PlotControl!$C$6-1),12,1)),AVERAGE(OFFSET(P_notNA_SW005!$B$10,12*$A13,(PlotControl!$C$6-1),12,1))) -> 0.004 | M13: =IF(PlotControl!$B$4 = "Annual Max",MAX(OFFSET(P_notNA_Colby!$B$10,12*($H13-1),(PlotControl!$C$6-1),12,1)),AVERAGE(OFFSET(P_notNA_Colby!$B$10,12*$A13,(PlotControl!$C$6-1),12,1))) -> 0 | O13: 9 | P13: =IF(PlotControl!$B$4 = "Annual Max",MAX(OFFSET(AssimCap_SW003!$C$10,12*($O13-1),4*(PlotControl!$C$6-1),12,1)),AVERAGE(OFFSET(AssimCap_SW003!$C$10,12*($O13-1),4*(PlotControl!$C$6-1),12,1))) -> 0 | Q13: =IF(PlotControl!$B$4 = "Annual Max",MAX(OFFSET(AssimCap_SW003!$D$10,12*($O13-1),4*(PlotControl!$C$6-1),12,1)),AVERAGE(OFFSET(AssimCap_SW003!$D$10,12*($O13-1),4*(PlotControl!$C$6-1),12,1))) -> 0 | R13: =IF(PlotControl!$B$4 = "Annual Max",MAX(OFFSET(AssimCap_SW003!$E$10,12*($O13-1),4*(PlotControl!$C$6-1),12,1)),AVERAGE(OFFSET(AssimCap_SW003!$E$10,12*($O13-1),4*(PlotControl!$C$6-1),12,1))) -> 0 | S13: =IF(PlotControl!$B$4 = "Annual Max",MAX(OFFSET(AssimCap_SW004!$C$10,12*($O13-1),4*(PlotControl!$C$6-1),12,1)),AVERAGE(OFFSET(AssimCap_SW004!$C$10,12*($O13-1),4*(PlotControl!$C$6-1),12,1))) -> 0 | T13: =IF(PlotControl!$B$4 = "Annual Max",MAX(OFFSET(AssimCap_SW004!$D$10,12*($O13-1),4*(PlotControl!$C$6-1),12,1)),AVERAGE(OFFSET(AssimCap_SW004!$D$10,12*($O13-1),4*(PlotControl!$C$6-1),12,1))) -> 0 | U13: =IF(PlotControl!$B$4 = "Annual Max",MAX(OFFSET(AssimCap_SW004!$E$10,12*($O13-1),4*(PlotControl!$C$6-1),12,1)),AVERAGE(OFFSET(AssimCap_SW004!$E$10,12*($O13-1),4*(PlotControl!$C$6-1),12,1))) -> 0 | V13: =IF(PlotControl!$B$4 = "Annual Max",MAX(OFFSET(AssimCap_SW004a!$C$10,12*($O13-1),4*(PlotControl!$C$6-1),12,1)),AVERAGE(OFFSET(AssimCap_SW004a!$C$10,12*($O13-1),4*(PlotControl!$C$6-1),12,1))) -> 0 | W13: =IF(PlotControl!$B$4 = "Annual Max",MAX(OFFSET(AssimCap_SW004a!$D$10,12*($O13-1),4*(PlotControl!$C$6-1),12,1)),AVERAGE(OFFSET(AssimCap_SW004a!$D$10,12*($O13-1),4*(PlotControl!$C$6-1),12,1))) -> 0 | X13: =IF(PlotControl!$B$4 = "Annual Max",MAX(OFFSET(AssimCap_SW004a!$E$10,12*($O13-1),4*(PlotControl!$C$6-1),12,1)),AVERAGE(OFFSET(AssimCap_SW004a!$E$10,12*($O13-1),4*(PlotControl!$C$6-1),12,1))) -> 0 | Y13: =IF(PlotControl!$B$4 = "Annual Max",MAX(OFFSET(AssimCap_SW005!$C$10,12*($O13-1),4*(PlotControl!$C$6-1),12,1)),AVERAGE(OFFSET(AssimCap_SW005!$C$10,12*($O13-1),4*(PlotControl!$C$6-1),12,1))) -> 1 | Z13: =IF(PlotControl!$B$4 = "Annual Max",MAX(OFFSET(AssimCap_SW005!$D$10,12*($O13-1),4*(PlotControl!$C$6-1),12,1)),AVERAGE(OFFSET(AssimCap_SW005!$D$10,12*($O13-1),4*(PlotControl!$C$6-1),12,1))) -> 1 | AA13: =IF(PlotControl!$B$4 = "Annual Max",MAX(OFFSET(AssimCap_SW005!$E$10,12*($O13-1),4*(PlotControl!$C$6-1),12,1)),AVERAGE(OFFSET(AssimCap_SW005!$E$10,12*($O13-1),4*(PlotControl!$C$6-1),12,1))) -> 1 | AB13: =IF(PlotControl!$B$4 = "Annual Max",MAX(OFFSET(AssimCap_Colby!$C$10,12*($O13-1),4*(PlotControl!$C$6-1),12,1)),AVERAGE(OFFSET(AssimCap_Colby!$C$10,12*($O13-1),4*(PlotControl!$C$6-1),12,1))) -> 0.00067328 | AC13: =IF(PlotControl!$B$4 = "Annual Max",MAX(OFFSET(AssimCap_Colby!$D$10,12*($O13-1),4*(PlotControl!$C$6-1),12,1)),AVERAGE(OFFSET(AssimCap_Colby!$D$10,12*($O13-1),4*(PlotControl!$C$6-1),12,1))) -> 0.00097491 | AD13: =IF(PlotControl!$B$4 = "Annual Max",MAX(OFFSET(AssimCap_Colby!$E$10,12*($O13-1),4*(PlotControl!$C$6-1),12,1)),AVERAGE(OFFSET(AssimCap_Colby!$E$10,12*($O13-1),4*(PlotControl!$C$6-1),12,1))) -> 0.0013756 | AF13: 120.6666667 | AG13: =OFFSET(AssimCap_SW003!$C$10,ROUND(12*$AF13,0),4*(PlotControl!$C$6-1),1,1) -> 0 | AH13: =OFFSET(AssimCap_SW003!$D$10,ROUND(12*$AF13,0),4*(PlotControl!$C$6-1),1,1) -> 0 | AI13: =OFFSET(AssimCap_SW003!$E$10,ROUND(12*$AF13,0),4*(PlotControl!$C$6-1),1,1) -> 0 | AJ13: =OFFSET(AssimCap_SW004!$C$10,ROUND(12*$AF13,0),4*(PlotControl!$C$6-1),1,1) -> 0 | AK13: =OFFSET(AssimCap_SW004!$D$10,ROUND(12*$AF13,0),4*(PlotControl!$C$6-1),1,1) -> 0 | AL13: =OFFSET(AssimCap_SW004!$E$10,ROUND(12*$AF13,0),4*(PlotControl!$C$6-1),1,1) -> 0 | AM13: =OFFSET(AssimCap_SW004a!$C$10,ROUND(12*$AF13,0),4*(PlotControl!$C$6-1),1,1) -> 0 | AN13: =OFFSET(AssimCap_SW004a!$D$10,ROUND(12*$AF13,0),4*(PlotControl!$C$6-1),1,1) -> 0 | AO13: =OFFSET(AssimCap_SW004a!$E$10,ROUND(12*$AF13,0),4*(PlotControl!$C$6-1),1,1) -> 0 | AP13: =OFFSET(AssimCap_SW005!$C$10,ROUND(12*$AF13,0),4*(PlotControl!$C$6-1),1,1) -> 0.002277 | AQ13: =OFFSET(AssimCap_SW005!$D$10,ROUND(12*$AF13,0),4*(PlotControl!$C$6-1),1,1) -> 0.02169 | AR13: =OFFSET(AssimCap_SW005!$E$10,ROUND(12*$AF13,0),4*(PlotControl!$C$6-1),1,1) -> 1 | AS13: =OFFSET(AssimCap_Colby!$C$10,ROUND(12*$AF13,0),4*(PlotControl!$C$6-1),1,1) -> -0.0015088 | AT13: =OFFSET(AssimCap_Colby!$D$10,ROUND(12*$AF13,0),4*(PlotControl!$C$6-1),1,1) -> -0.00032691 | AU13: =OFFSET(AssimCap_Colby!$E$10,ROUND(12*$AF13,0),4*(PlotControl!$C$6-1),1,1) -> -3.7775e-06 | AW13: 120.6666667 | AX13: =(OFFSET(P_Ex_SW003!$B$10,ROUND(12*$AW13,0),(PlotControl!$C$6-1),1,1)) -> 0 | AY13: =(OFFSET(P_Ex_SW004!$B$10,ROUND(12*$AW13,0),(PlotControl!$C$6-1),1,1)) -> 0 | AZ13: =(OFFSET(P_Ex_SW004a!$B$10,ROUND(12*$AW13,0),(PlotControl!$C$6-1),1,1)) -> 0 | BA13: =(OFFSET(P_Ex_SW005!$B$10,ROUND(12*$AW13,0),(PlotControl!$C$6-1),1,1)) -> 0.204 | BB13: =(OFFSET(P_Ex_Colby!$B$10,ROUND(12*$AW13,0),(PlotControl!$C$6-1),1,1)) -> 0 | BC13: =(OFFSET(P_notNA_SW003!$B$10,ROUND(12*$AW13,0),(PlotControl!$C$6-1),1,1)) -> 0 | BD13: =(OFFSET(P_notNA_SW004!$B$10,ROUND(12*$AW13,0),(PlotControl!$C$6-1),1,1)) -> 0 | BE13: =(OFFSET(P_notNA_SW004a!$B$10,ROUND(12*$AW13,0),(PlotControl!$C$6-1),1,1)) -> 0 | BF13: =(OFFSET(P_notNA_SW005!$B$10,ROUND(12*$AW13,0),(PlotControl!$C$6-1),1,1)) -> 0 | BG13: =(OFFSET(P_notNA_Colby!$B$10,ROUND(12*$AW13,0),(PlotControl!$C$6-1),1,1)) -> 0
A14: 10 | B14: =IF(PlotControl!$B$4 = "Annual Max",MAX(OFFSET(P_Ex_SW003!$B$10,12*($A14-1),(PlotControl!$C$6-1),12,1)),AVERAGE(OFFSET(P_Ex_SW003!$B$10,12*($A14-1),(PlotControl!$C$6-1),12,1))) -> 0 | C14: =IF(PlotControl!$B$4 = "Annual Max",MAX(OFFSET(P_Ex_SW004!$B$10,12*($A14-1),(PlotControl!$C$6-1),12,1)),AVERAGE(OFFSET(P_Ex_SW004!$B$10,12*($A14-1),(PlotControl!$C$6-1),12,1))) -> 0 | D14: =IF(PlotControl!$B$4 = "Annual Max",MAX(OFFSET(P_Ex_SW004a!$B$10,12*($A14-1),(PlotControl!$C$6-1),12,1)),AVERAGE(OFFSET(P_Ex_SW004a!$B$10,12*($A14-1),(PlotControl!$C$6-1),12,1))) -> 0 | E14: =IF(PlotControl!$B$4 = "Annual Max",MAX(OFFSET(P_Ex_SW005!$B$10,12*($A14-1),(PlotControl!$C$6-1),12,1)),AVERAGE(OFFSET(P_Ex_SW005!$B$10,12*($A14-1),(PlotControl!$C$6-1),12,1))) -> 0.95 | F14: =IF(PlotControl!$B$4 = "Annual Max",MAX(OFFSET(P_Ex_Colby!$B$10,12*($A14-1),(PlotControl!$C$6-1),12,1)),AVERAGE(OFFSET(P_Ex_Colby!$B$10,12*($A14-1),(PlotControl!$C$6-1),12,1))) -> 0 | H14: 10 | I14: =IF(PlotControl!$B$4 = "Annual Max",MAX(OFFSET(P_notNA_SW003!$B$10,12*($H14-1),(PlotControl!$C$6-1),12,1)),AVERAGE(OFFSET(P_notNA_SW003!$B$10,12*$A14,(PlotControl!$C$6-1),12,1))) -> 0 | J14: =IF(PlotControl!$B$4 = "Annual Max",MAX(OFFSET(P_notNA_SW004!$B$10,12*($H14-1),(PlotControl!$C$6-1),12,1)),AVERAGE(OFFSET(P_notNA_SW004!$B$10,12*$A14,(PlotControl!$C$6-1),12,1))) -> 0 | K14: =IF(PlotControl!$B$4 = "Annual Max",MAX(OFFSET(P_notNA_SW004a!$B$10,12*($H14-1),(PlotControl!$C$6-1),12,1)),AVERAGE(OFFSET(P_notNA_SW004a!$B$10,12*$A14,(PlotControl!$C$6-1),12,1))) -> 0 | L14: =IF(PlotControl!$B$4 = "Annual Max",MAX(OFFSET(P_notNA_SW005!$B$10,12*($H14-1),(PlotControl!$C$6-1),12,1)),AVERAGE(OFFSET(P_notNA_SW005!$B$10,12*$A14,(PlotControl!$C$6-1),12,1))) -> 0.004 | M14: =IF(PlotControl!$B$4 = "Annual Max",MAX(OFFSET(P_notNA_Colby!$B$10,12*($H14-1),(PlotControl!$C$6-1),12,1)),AVERAGE(OFFSET(P_notNA_Colby!$B$10,12*$A14,(PlotControl!$C$6-1),12,1))) -> 0 | O14: 10 | P14: =IF(PlotControl!$B$4 = "Annual Max",MAX(OFFSET(AssimCap_SW003!$C$10,12*($O14-1),4*(PlotControl!$C$6-1),12,1)),AVERAGE(OFFSET(AssimCap_SW003!$C$10,12*($O14-1),4*(PlotControl!$C$6-1),12,1))) -> 0 | Q14: =IF(PlotControl!$B$4 = "Annual Max",MAX(OFFSET(AssimCap_SW003!$D$10,12*($O14-1),4*(PlotControl!$C$6-1),12,1)),AVERAGE(OFFSET(AssimCap_SW003!$D$10,12*($O14-1),4*(PlotControl!$C$6-1),12,1))) -> 0 | R14: =IF(PlotControl!$B$4 = "Annual Max",MAX(OFFSET(AssimCap_SW003!$E$10,12*($O14-1),4*(PlotControl!$C$6-1),12,1)),AVERAGE(OFFSET(AssimCap_SW003!$E$10,12*($O14-1),4*(PlotControl!$C$6-1),12,1))) -> 0 | S14: =IF(PlotControl!$B$4 = "Annual Max",MAX(OFFSET(AssimCap_SW004!$C$10,12*($O14-1),4*(PlotControl!$C$6-1),12,1)),AVERAGE(OFFSET(AssimCap_SW004!$C$10,12*($O14-1),4*(PlotControl!$C$6-1),12,1))) -> 0 | T14: =IF(PlotControl!$B$4 = "Annual Max",MAX(OFFSET(AssimCap_SW004!$D$10,12*($O14-1),4*(PlotControl!$C$6-1),12,1)),AVERAGE(OFFSET(AssimCap_SW004!$D$10,12*($O14-1),4*(PlotControl!$C$6-1),12,1))) -> 0 | U14: =IF(PlotControl!$B$4 = "Annual Max",MAX(OFFSET(AssimCap_SW004!$E$10,12*($O14-1),4*(PlotControl!$C$6-1),12,1)),AVERAGE(OFFSET(AssimCap_SW004!$E$10,12*($O14-1),4*(PlotControl!$C$6-1),12,1))) -> 0 | V14: =IF(PlotControl!$B$4 = "Annual Max",MAX(OFFSET(AssimCap_SW004a!$C$10,12*($O14-1),4*(PlotControl!$C$6-1),12,1)),AVERAGE(OFFSET(AssimCap_SW004a!$C$10,12*($O14-1),4*(PlotControl!$C$6-1),12,1))) -> 0 | W14: =IF(PlotControl!$B$4 = "Annual Max",MAX(OFFSET(AssimCap_SW004a!$D$10,12*($O14-1),4*(PlotControl!$C$6-1),12,1)),AVERAGE(OFFSET(AssimCap_SW004a!$D$10,12*($O14-1),4*(PlotControl!$C$6-1),12,1))) -> 0 | X14: =IF(PlotControl!$B$4 = "Annual Max",MAX(OFFSET(AssimCap_SW004a!$E$10,12*($O14-1),4*(PlotControl!$C$6-1),12,1)),AVERAGE(OFFSET(AssimCap_SW004a!$E$10,12*($O14-1),4*(PlotControl!$C$6-1),12,1))) -> 0 | Y14: =IF(PlotControl!$B$4 = "Annual Max",MAX(OFFSET(AssimCap_SW005!$C$10,12*($O14-1),4*(PlotControl!$C$6-1),12,1)),AVERAGE(OFFSET(AssimCap_SW005!$C$10,12*($O14-1),4*(PlotControl!$C$6-1),12,1))) -> 1 | Z14: =IF(PlotControl!$B$4 = "Annual Max",MAX(OFFSET(AssimCap_SW005!$D$10,12*($O14-1),4*(PlotControl!$C$6-1),12,1)),AVERAGE(OFFSET(AssimCap_SW005!$D$10,12*($O14-1),4*(PlotControl!$C$6-1),12,1))) -> 1 | AA14: =IF(PlotControl!$B$4 = "Annual Max",MAX(OFFSET(AssimCap_SW005!$E$10,12*($O14-1),4*(PlotControl!$C$6-1),12,1)),AVERAGE(OFFSET(AssimCap_SW005!$E$10,12*($O14-1),4*(PlotControl!$C$6-1),12,1))) -> 1 | AB14: =IF(PlotControl!$B$4 = "Annual Max",MAX(OFFSET(AssimCap_Colby!$C$10,12*($O14-1),4*(PlotControl!$C$6-1),12,1)),AVERAGE(OFFSET(AssimCap_Colby!$C$10,12*($O14-1),4*(PlotControl!$C$6-1),12,1))) -> 0.00074787 | AC14: =IF(PlotControl!$B$4 = "Annual Max",MAX(OFFSET(AssimCap_Colby!$D$10,12*($O14-1),4*(PlotControl!$C$6-1),12,1)),AVERAGE(OFFSET(AssimCap_Colby!$D$10,12*($O14-1),4*(PlotControl!$C$6-1),12,1))) -> 0.0011196 | AD14: =IF(PlotControl!$B$4 = "Annual Max",MAX(OFFSET(AssimCap_Colby!$E$10,12*($O14-1),4*(PlotControl!$C$6-1),12,1)),AVERAGE(OFFSET(AssimCap_Colby!$E$10,12*($O14-1),4*(PlotControl!$C$6-1),12,1))) -> 0.0015431 | AF14: 120.75 | AG14: =OFFSET(AssimCap_SW003!$C$10,ROUND(12*$AF14,0),4*(PlotControl!$C$6-1),1,1) -> 0 | AH14: =OFFSET(AssimCap_SW003!$D$10,ROUND(12*$AF14,0),4*(PlotControl!$C$6-1),1,1) -> 0 | AI14: =OFFSET(AssimCap_SW003!$E$10,ROUND(12*$AF14,0),4*(PlotControl!$C$6-1),1,1) -> 0 | AJ14: =OFFSET(AssimCap_SW004!$C$10,ROUND(12*$AF14,0),4*(PlotControl!$C$6-1),1,1) -> 0 | AK14: =OFFSET(AssimCap_SW004!$D$10,ROUND(12*$AF14,0),4*(PlotControl!$C$6-1),1,1) -> 0 | AL14: =OFFSET(AssimCap_SW004!$E$10,ROUND(12*$AF14,0),4*(PlotControl!$C$6-1),1,1) -> 0 | AM14: =OFFSET(AssimCap_SW004a!$C$10,ROUND(12*$AF14,0),4*(PlotControl!$C$6-1),1,1) -> 0 | AN14: =OFFSET(AssimCap_SW004a!$D$10,ROUND(12*$AF14,0),4*(PlotControl!$C$6-1),1,1) -> 0 | AO14: =OFFSET(AssimCap_SW004a!$E$10,ROUND(12*$AF14,0),4*(PlotControl!$C$6-1),1,1) -> 0 | AP14: =OFFSET(AssimCap_SW005!$C$10,ROUND(12*$AF14,0),4*(PlotControl!$C$6-1),1,1) -> 0.0036862 | AQ14: =OFFSET(AssimCap_SW005!$D$10,ROUND(12*$AF14,0),4*(PlotControl!$C$6-1),1,1) -> 0.015115 | AR14: =OFFSET(AssimCap_SW005!$E$10,ROUND(12*$AF14,0),4*(PlotControl!$C$6-1),1,1) -> 1 | AS14: =OFFSET(AssimCap_Colby!$C$10,ROUND(12*$AF14,0),4*(PlotControl!$C$6-1),1,1) -> -0.0015909 | AT14: =OFFSET(AssimCap_Colby!$D$10,ROUND(12*$AF14,0),4*(PlotControl!$C$6-1),1,1) -> -0.00039002 | AU14: =OFFSET(AssimCap_Colby!$E$10,ROUND(12*$AF14,0),4*(PlotControl!$C$6-1),1,1) -> -8.1291e-05 | AW14: 120.75 | AX14: =(OFFSET(P_Ex_SW003!$B$10,ROUND(12*$AW14,0),(PlotControl!$C$6-1),1,1)) -> 0 | AY14: =(OFFSET(P_Ex_SW004!$B$10,ROUND(12*$AW14,0),(PlotControl!$C$6-1),1,1)) -> 0 | AZ14: =(OFFSET(P_Ex_SW004a!$B$10,ROUND(12*$AW14,0),(PlotControl!$C$6-1),1,1)) -> 0 | BA14: =(OFFSET(P_Ex_SW005!$B$10,ROUND(12*$AW14,0),(PlotControl!$C$6-1),1,1)) -> 0.172 | BB14: =(OFFSET(P_Ex_Colby!$B$10,ROUND(12*$AW14,0),(PlotControl!$C$6-1),1,1)) -> 0 | BC14: =(OFFSET(P_notNA_SW003!$B$10,ROUND(12*$AW14,0),(PlotControl!$C$6-1),1,1)) -> 0 | BD14: =(OFFSET(P_notNA_SW004!$B$10,ROUND(12*$AW14,0),(PlotControl!$C$6-1),1,1)) -> 0 | BE14: =(OFFSET(P_notNA_SW004a!$B$10,ROUND(12*$AW14,0),(PlotControl!$C$6-1),1,1)) -> 0 | BF14: =(OFFSET(P_notNA_SW005!$B$10,ROUND(12*$AW14,0),(PlotControl!$C$6-1),1,1)) -> 0 | BG14: =(OFFSET(P_notNA_Colby!$B$10,ROUND(12*$AW14,0),(PlotControl!$C$6-1),1,1)) -> 0
A15: 11 | B15: =IF(PlotControl!$B$4 = "Annual Max",MAX(OFFSET(P_Ex_SW003!$B$10,12*($A15-1),(PlotControl!$C$6-1),12,1)),AVERAGE(OFFSET(P_Ex_SW003!$B$10,12*($A15-1),(PlotControl!$C$6-1),12,1))) -> 0 | C15: =IF(PlotControl!$B$4 = "Annual Max",MAX(OFFSET(P_Ex_SW004!$B$10,12*($A15-1),(PlotControl!$C$6-1),12,1)),AVERAGE(OFFSET(P_Ex_SW004!$B$10,12*($A15-1),(PlotControl!$C$6-1),12,1))) -> 0 | D15: =IF(PlotControl!$B$4 = "Annual Max",MAX(OFFSET(P_Ex_SW004a!$B$10,12*($A15-1),(PlotControl!$C$6-1),12,1)),AVERAGE(OFFSET(P_Ex_SW004a!$B$10,12*($A15-1),(PlotControl!$C$6-1),12,1))) -> 0 | E15: =IF(PlotControl!$B$4 = "Annual Max",MAX(OFFSET(P_Ex_SW005!$B$10,12*($A15-1),(PlotControl!$C$6-1),12,1)),AVERAGE(OFFSET(P_Ex_SW005!$B$10,12*($A15-1),(PlotControl!$C$6-1),12,1))) -> 0.958 | F15: =IF(PlotControl!$B$4 = "Annual Max",MAX(OFFSET(P_Ex_Colby!$B$10,12*($A15-1),(PlotControl!$C$6-1),12,1)),AVERAGE(OFFSET(P_Ex_Colby!$B$10,12*($A15-1),(PlotControl!$C$6-1),12,1))) -> 0 | H15: 11 | I15: =IF(PlotControl!$B$4 = "Annual Max",MAX(OFFSET(P_notNA_SW003!$B$10,12*($H15-1),(PlotControl!$C$6-1),12,1)),AVERAGE(OFFSET(P_notNA_SW003!$B$10,12*$A15,(PlotControl!$C$6-1),12,1))) -> 0 | J15: =IF(PlotControl!$B$4 = "Annual Max",MAX(OFFSET(P_notNA_SW004!$B$10,12*($H15-1),(PlotControl!$C$6-1),12,1)),AVERAGE(OFFSET(P_notNA_SW004!$B$10,12*$A15,(PlotControl!$C$6-1),12,1))) -> 0 | K15: =IF(PlotControl!$B$4 = "Annual Max",MAX(OFFSET(P_notNA_SW004a!$B$10,12*($H15-1),(PlotControl!$C$6-1),12,1)),AVERAGE(OFFSET(P_notNA_SW004a!$B$10,12*$A15,(PlotControl!$C$6-1),12,1))) -> 0 | L15: =IF(PlotControl!$B$4 = "Annual Max",MAX(OFFSET(P_notNA_SW005!$B$10,12*($H15-1),(PlotControl!$C$6-1),12,1)),AVERAGE(OFFSET(P_notNA_SW005!$B$10,12*$A15,(PlotControl!$C$6-1),12,1))) -> 0.006 | M15: =IF(PlotControl!$B$4 = "Annual Max",MAX(OFFSET(P_notNA_Colby!$B$10,12*($H15-1),(PlotControl!$C$6-1),12,1)),AVERAGE(OFFSET(P_notNA_Colby!$B$10,12*$A15,(PlotControl!$C$6-1),12,1))) -> 0 | O15: 11 | P15: =IF(PlotControl!$B$4 = "Annual Max",MAX(OFFSET(AssimCap_SW003!$C$10,12*($O15-1),4*(PlotControl!$C$6-1),12,1)),AVERAGE(OFFSET(AssimCap_SW003!$C$10,12*($O15-1),4*(PlotControl!$C$6-1),12,1))) -> 0 | Q15: =IF(PlotControl!$B$4 = "Annual Max",MAX(OFFSET(AssimCap_SW003!$D$10,12*($O15-1),4*(PlotControl!$C$6-1),12,1)),AVERAGE(OFFSET(AssimCap_SW003!$D$10,12*($O15-1),4*(PlotControl!$C$6-1),12,1))) -> 0 | R15: =IF(PlotControl!$B$4 = "Annual Max",MAX(OFFSET(AssimCap_SW003!$E$10,12*($O15-1),4*(PlotControl!$C$6-1),12,1)),AVERAGE(OFFSET(AssimCap_SW003!$E$10,12*($O15-1),4*(PlotControl!$C$6-1),12,1))) -> 0 | S15: =IF(PlotControl!$B$4 = "Annual Max",MAX(OFFSET(AssimCap_SW004!$C$10,12*($O15-1),4*(PlotControl!$C$6-1),12,1)),AVERAGE(OFFSET(AssimCap_SW004!$C$10,12*($O15-1),4*(PlotControl!$C$6-1),12,1))) -> 0 | T15: =IF(PlotControl!$B$4 = "Annual Max",MAX(OFFSET(AssimCap_SW004!$D$10,12*($O15-1),4*(PlotControl!$C$6-1),12,1)),AVERAGE(OFFSET(AssimCap_SW004!$D$10,12*($O15-1),4*(PlotControl!$C$6-1),12,1))) -> 0 | U15: =IF(PlotControl!$B$4 = "Annual Max",MAX(OFFSET(AssimCap_SW004!$E$10,12*($O15-1),4*(PlotControl!$C$6-1),12,1)),AVERAGE(OFFSET(AssimCap_SW004!$E$10,12*($O15-1),4*(PlotControl!$C$6-1),12,1))) -> 0 | V15: =IF(PlotControl!$B$4 = "Annual Max",MAX(OFFSET(AssimCap_SW004a!$C$10,12*($O15-1),4*(PlotControl!$C$6-1),12,1)),AVERAGE(OFFSET(AssimCap_SW004a!$C$10,12*($O15-1),4*(PlotControl!$C$6-1),12,1))) -> 0 | W15: =IF(PlotControl!$B$4 = "Annual Max",MAX(OFFSET(AssimCap_SW004a!$D$10,12*($O15-1),4*(PlotControl!$C$6-1),12,1)),AVERAGE(OFFSET(AssimCap_SW004a!$D$10,12*($O15-1),4*(PlotControl!$C$6-1),12,1))) -> 0 | X15: =IF(PlotControl!$B$4 = "Annual Max",MAX(OFFSET(AssimCap_SW004a!$E$10,12*($O15-1),4*(PlotControl!$C$6-1),12,1)),AVERAGE(OFFSET(AssimCap_SW004a!$E$10,12*($O15-1),4*(PlotControl!$C$6-1),12,1))) -> 0 | Y15: =IF(PlotControl!$B$4 = "Annual Max",MAX(OFFSET(AssimCap_SW005!$C$10,12*($O15-1),4*(PlotControl!$C$6-1),12,1)),AVERAGE(OFFSET(AssimCap_SW005!$C$10,12*($O15-1),4*(PlotControl!$C$6-1),12,1))) -> 1 | Z15: =IF(PlotControl!$B$4 = "Annual Max",MAX(OFFSET(AssimCap_SW005!$D$10,12*($O15-1),4*(PlotControl!$C$6-1),12,1)),AVERAGE(OFFSET(AssimCap_SW005!$D$10,12*($O15-1),4*(PlotControl!$C$6-1),12,1))) -> 1 | AA15: =IF(PlotControl!$B$4 = "Annual Max",MAX(OFFSET(AssimCap_SW005!$E$10,12*($O15-1),4*(PlotControl!$C$6-1),12,1)),AVERAGE(OFFSET(AssimCap_SW005!$E$10,12*($O15-1),4*(PlotControl!$C$6-1),12,1))) -> 1 | AB15: =IF(PlotControl!$B$4 = "Annual Max",MAX(OFFSET(AssimCap_Colby!$C$10,12*($O15-1),4*(PlotControl!$C$6-1),12,1)),AVERAGE(OFFSET(AssimCap_Colby!$C$10,12*($O15-1),4*(PlotControl!$C$6-1),12,1))) -> 0.00079619 | AC15: =IF(PlotControl!$B$4 = "Annual Max",MAX(OFFSET(AssimCap_Colby!$D$10,12*($O15-1),4*(PlotControl!$C$6-1),12,1)),AVERAGE(OFFSET(AssimCap_Colby!$D$10,12*($O15-1),4*(PlotControl!$C$6-1),12,1))) -> 0.0011892 | AD15: =IF(PlotControl!$B$4 = "Annual Max",MAX(OFFSET(AssimCap_Colby!$E$10,12*($O15-1),4*(PlotControl!$C$6-1),12,1)),AVERAGE(OFFSET(AssimCap_Colby!$E$10,12*($O15-1),4*(PlotControl!$C$6-1),12,1))) -> 0.0016792 | AF15: 120.8333333 | AG15: =OFFSET(AssimCap_SW003!$C$10,ROUND(12*$AF15,0),4*(PlotControl!$C$6-1),1,1) -> 0 | AH15: =OFFSET(AssimCap_SW003!$D$10,ROUND(12*$AF15,0),4*(PlotControl!$C$6-1),1,1) -> 0 | AI15: =OFFSET(AssimCap_SW003!$E$10,ROUND(12*$AF15,0),4*(PlotControl!$C$6-1),1,1) -> 0 | AJ15: =OFFSET(AssimCap_SW004!$C$10,ROUND(12*$AF15,0),4*(PlotControl!$C$6-1),1,1) -> 0 | AK15: =OFFSET(AssimCap_SW004!$D$10,ROUND(12*$AF15,0),4*(PlotControl!$C$6-1),1,1) -> 0 | AL15: =OFFSET(AssimCap_SW004!$E$10,ROUND(12*$AF15,0),4*(PlotControl!$C$6-1),1,1) -> 0 | AM15: =OFFSET(AssimCap_SW004a!$C$10,ROUND(12*$AF15,0),4*(PlotControl!$C$6-1),1,1) -> 0 | AN15: =OFFSET(AssimCap_SW004a!$D$10,ROUND(12*$AF15,0),4*(PlotControl!$C$6-1),1,1) -> 0 | AO15: =OFFSET(AssimCap_SW004a!$E$10,ROUND(12*$AF15,0),4*(PlotControl!$C$6-1),1,1) -> 0 | AP15: =OFFSET(AssimCap_SW005!$C$10,ROUND(12*$AF15,0),4*(PlotControl!$C$6-1),1,1) -> 0.0022948 | AQ15: =OFFSET(AssimCap_SW005!$D$10,ROUND(12*$AF15,0),4*(PlotControl!$C$6-1),1,1) -> 0.014571 | AR15: =OFFSET(AssimCap_SW005!$E$10,ROUND(12*$AF15,0),4*(PlotControl!$C$6-1),1,1) -> 1 | AS15: =OFFSET(AssimCap_Colby!$C$10,ROUND(12*$AF15,0),4*(PlotControl!$C$6-1),1,1) -> -0.0015793 | AT15: =OFFSET(AssimCap_Colby!$D$10,ROUND(12*$AF15,0),4*(PlotControl!$C$6-1),1,1) -> -0.00040239 | AU15: =OFFSET(AssimCap_Colby!$E$10,ROUND(12*$AF15,0),4*(PlotControl!$C$6-1),1,1) -> -3.4357e-05 | AW15: 120.8333333 | AX15: =(OFFSET(P_Ex_SW003!$B$10,ROUND(12*$AW15,0),(PlotControl!$C$6-1),1,1)) -> 0 | AY15: =(OFFSET(P_Ex_SW004!$B$10,ROUND(12*$AW15,0),(PlotControl!$C$6-1),1,1)) -> 0 | AZ15: =(OFFSET(P_Ex_SW004a!$B$10,ROUND(12*$AW15,0),(PlotControl!$C$6-1),1,1)) -> 0 | BA15: =(OFFSET(P_Ex_SW005!$B$10,ROUND(12*$AW15,0),(PlotControl!$C$6-1),1,1)) -> 0.234 | BB15: =(OFFSET(P_Ex_Colby!$B$10,ROUND(12*$AW15,0),(PlotControl!$C$6-1),1,1)) -> 0 | BC15: =(OFFSET(P_notNA_SW003!$B$10,ROUND(12*$AW15,0),(PlotControl!$C$6-1),1,1)) -> 0 | BD15: =(OFFSET(P_notNA_SW004!$B$10,ROUND(12*$AW15,0),(PlotControl!$C$6-1),1,1)) -> 0 | BE15: =(OFFSET(P_notNA_SW004a!$B$10,ROUND(12*$AW15,0),(PlotControl!$C$6-1),1,1)) -> 0 | BF15: =(OFFSET(P_notNA_SW005!$B$10,ROUND(12*$AW15,0),(PlotControl!$C$6-1),1,1)) -> 0.002 | BG15: =(OFFSET(P_notNA_Colby!$B$10,ROUND(12*$AW15,0),(PlotControl!$C$6-1),1,1)) -> 0
A16: 12 | B16: =IF(PlotControl!$B$4 = "Annual Max",MAX(OFFSET(P_Ex_SW003!$B$10,12*($A16-1),(PlotControl!$C$6-1),12,1)),AVERAGE(OFFSET(P_Ex_SW003!$B$10,12*($A16-1),(PlotControl!$C$6-1),12,1))) -> 0 | C16: =IF(PlotControl!$B$4 = "Annual Max",MAX(OFFSET(P_Ex_SW004!$B$10,12*($A16-1),(PlotControl!$C$6-1),12,1)),AVERAGE(OFFSET(P_Ex_SW004!$B$10,12*($A16-1),(PlotControl!$C$6-1),12,1))) -> 0 | D16: =IF(PlotControl!$B$4 = "Annual Max",MAX(OFFSET(P_Ex_SW004a!$B$10,12*($A16-1),(PlotControl!$C$6-1),12,1)),AVERAGE(OFFSET(P_Ex_SW004a!$B$10,12*($A16-1),(PlotControl!$C$6-1),12,1))) -> 0 | E16: =IF(PlotControl!$B$4 = "Annual Max",MAX(OFFSET(P_Ex_SW005!$B$10,12*($A16-1),(PlotControl!$C$6-1),12,1)),AVERAGE(OFFSET(P_Ex_SW005!$B$10,12*($A16-1),(PlotControl!$C$6-1),12,1))) -> 0.946 | F16: =IF(PlotControl!$B$4 = "Annual Max",MAX(OFFSET(P_Ex_Colby!$B$10,12*($A16-1),(PlotControl!$C$6-1),12,1)),AVERAGE(OFFSET(P_Ex_Colby!$B$10,12*($A16-1),(PlotControl!$C$6-1),12,1))) -> 0 | H16: 12 | I16: =IF(PlotControl!$B$4 = "Annual Max",MAX(OFFSET(P_notNA_SW003!$B$10,12*($H16-1),(PlotControl!$C$6-1),12,1)),AVERAGE(OFFSET(P_notNA_SW003!$B$10,12*$A16,(PlotControl!$C$6-1),12,1))) -> 0 | J16: =IF(PlotControl!$B$4 = "Annual Max",MAX(OFFSET(P_notNA_SW004!$B$10,12*($H16-1),(PlotControl!$C$6-1),12,1)),AVERAGE(OFFSET(P_notNA_SW004!$B$10,12*$A16,(PlotControl!$C$6-1),12,1))) -> 0 | K16: =IF(PlotControl!$B$4 = "Annual Max",MAX(OFFSET(P_notNA_SW004a!$B$10,12*($H16-1),(PlotControl!$C$6-1),12,1)),AVERAGE(OFFSET(P_notNA_SW004a!$B$10,12*$A16,(PlotControl!$C$6-1),12,1))) -> 0 | L16: =IF(PlotControl!$B$4 = "Annual Max",MAX(OFFSET(P_notNA_SW005!$B$10,12*($H16-1),(PlotControl!$C$6-1),12,1)),AVERAGE(OFFSET(P_notNA_SW005!$B$10,12*$A16,(PlotControl!$C$6-1),12,1))) -> 0.008 | M16: =IF(PlotControl!$B$4 = "Annual Max",MAX(OFFSET(P_notNA_Colby!$B$10,12*($H16-1),(PlotControl!$C$6-1),12,1)),AVERAGE(OFFSET(P_notNA_Colby!$B$10,12*$A16,(PlotControl!$C$6-1),12,1))) -> 0 | O16: 12 | P16: =IF(PlotControl!$B$4 = "Annual Max",MAX(OFFSET(AssimCap_SW003!$C$10,12*($O16-1),4*(PlotControl!$C$6-1),12,1)),AVERAGE(OFFSET(AssimCap_SW003!$C$10,12*($O16-1),4*(PlotControl!$C$6-1),12,1))) -> 0 | Q16: =IF(PlotControl!$B$4 = "Annual Max",MAX(OFFSET(AssimCap_SW003!$D$10,12*($O16-1),4*(PlotControl!$C$6-1),12,1)),AVERAGE(OFFSET(AssimCap_SW003!$D$10,12*($O16-1),4*(PlotControl!$C$6-1),12,1))) -> 0 | R16: =IF(PlotControl!$B$4 = "Annual Max",MAX(OFFSET(AssimCap_SW003!$E$10,12*($O16-1),4*(PlotControl!$C$6-1),12,1)),AVERAGE(OFFSET(AssimCap_SW003!$E$10,12*($O16-1),4*(PlotControl!$C$6-1),12,1))) -> 0 | S16: =IF(PlotControl!$B$4 = "Annual Max",MAX(OFFSET(AssimCap_SW004!$C$10,12*($O16-1),4*(PlotControl!$C$6-1),12,1)),AVERAGE(OFFSET(AssimCap_SW004!$C$10,12*($O16-1),4*(PlotControl!$C$6-1),12,1))) -> 0 | T16: =IF(PlotControl!$B$4 = "Annual Max",MAX(OFFSET(AssimCap_SW004!$D$10,12*($O16-1),4*(PlotControl!$C$6-1),12,1)),AVERAGE(OFFSET(AssimCap_SW004!$D$10,12*($O16-1),4*(PlotControl!$C$6-1),12,1))) -> 0 | U16: =IF(PlotControl!$B$4 = "Annual Max",MAX(OFFSET(AssimCap_SW004!$E$10,12*($O16-1),4*(PlotControl!$C$6-1),12,1)),AVERAGE(OFFSET(AssimCap_SW004!$E$10,12*($O16-1),4*(PlotControl!$C$6-1),12,1))) -> 0 | V16: =IF(PlotControl!$B$4 = "Annual Max",MAX(OFFSET(AssimCap_SW004a!$C$10,12*($O16-1),4*(PlotControl!$C$6-1),12,1)),AVERAGE(OFFSET(AssimCap_SW004a!$C$10,12*($O16-1),4*(PlotControl!$C$6-1),12,1))) -> 0 | W16: =IF(PlotControl!$B$4 = "Annual Max",MAX(OFFSET(AssimCap_SW004a!$D$10,12*($O16-1),4*(PlotControl!$C$6-1),12,1)),AVERAGE(OFFSET(AssimCap_SW004a!$D$10,12*($O16-1),4*(PlotControl!$C$6-1),12,1))) -> 0 | X16: =IF(PlotControl!$B$4 = "Annual Max",MAX(OFFSET(AssimCap_SW004a!$E$10,12*($O16-1),4*(PlotControl!$C$6-1),12,1)),AVERAGE(OFFSET(AssimCap_SW004a!$E$10,12*($O16-1),4*(PlotControl!$C$6-1),12,1))) -> 0 | Y16: =IF(PlotControl!$B$4 = "Annual Max",MAX(OFFSET(AssimCap_SW005!$C$10,12*($O16-1),4*(PlotControl!$C$6-1),12,1)),AVERAGE(OFFSET(AssimCap_SW005!$C$10,12*($O16-1),4*(PlotControl!$C$6-1),12,1))) -> 1 | Z16: =IF(PlotControl!$B$4 = "Annual Max",MAX(OFFSET(AssimCap_SW005!$D$10,12*($O16-1),4*(PlotControl!$C$6-1),12,1)),AVERAGE(OFFSET(AssimCap_SW005!$D$10,12*($O16-1),4*(PlotControl!$C$6-1),12,1))) -> 1 | AA16: =IF(PlotControl!$B$4 = "Annual Max",MAX(OFFSET(AssimCap_SW005!$E$10,12*($O16-1),4*(PlotControl!$C$6-1),12,1)),AVERAGE(OFFSET(AssimCap_SW005!$E$10,12*($O16-1),4*(PlotControl!$C$6-1),12,1))) -> 1 | AB16: =IF(PlotControl!$B$4 = "Annual Max",MAX(OFFSET(AssimCap_Colby!$C$10,12*($O16-1),4*(PlotControl!$C$6-1),12,1)),AVERAGE(OFFSET(AssimCap_Colby!$C$10,12*($O16-1),4*(PlotControl!$C$6-1),12,1))) -> 0.00090148 | AC16: =IF(PlotControl!$B$4 = "Annual Max",MAX(OFFSET(AssimCap_Colby!$D$10,12*($O16-1),4*(PlotControl!$C$6-1),12,1)),AVERAGE(OFFSET(AssimCap_Colby!$D$10,12*($O16-1),4*(PlotControl!$C$6-1),12,1))) -> 0.0012941 | AD16: =IF(PlotControl!$B$4 = "Annual Max",MAX(OFFSET(AssimCap_Colby!$E$10,12*($O16-1),4*(PlotControl!$C$6-1),12,1)),AVERAGE(OFFSET(AssimCap_Colby!$E$10,12*($O16-1),4*(PlotControl!$C$6-1),12,1))) -> 0.0017917 | AF16: 120.9166667 | AG16: =OFFSET(AssimCap_SW003!$C$10,ROUND(12*$AF16,0),4*(PlotControl!$C$6-1),1,1) -> 0 | AH16: =OFFSET(AssimCap_SW003!$D$10,ROUND(12*$AF16,0),4*(PlotControl!$C$6-1),1,1) -> 0 | AI16: =OFFSET(AssimCap_SW003!$E$10,ROUND(12*$AF16,0),4*(PlotControl!$C$6-1),1,1) -> 0 | AJ16: =OFFSET(AssimCap_SW004!$C$10,ROUND(12*$AF16,0),4*(PlotControl!$C$6-1),1,1) -> 0 | AK16: =OFFSET(AssimCap_SW004!$D$10,ROUND(12*$AF16,0),4*(PlotControl!$C$6-1),1,1) -> 0 | AL16: =OFFSET(AssimCap_SW004!$E$10,ROUND(12*$AF16,0),4*(PlotControl!$C$6-1),1,1) -> 0 | AM16: =OFFSET(AssimCap_SW004a!$C$10,ROUND(12*$AF16,0),4*(PlotControl!$C$6-1),1,1) -> 0 | AN16: =OFFSET(AssimCap_SW004a!$D$10,ROUND(12*$AF16,0),4*(PlotControl!$C$6-1),1,1) -> 0 | AO16: =OFFSET(AssimCap_SW004a!$E$10,ROUND(12*$AF16,0),4*(PlotControl!$C$6-1),1,1) -> 0 | AP16: =OFFSET(AssimCap_SW005!$C$10,ROUND(12*$AF16,0),4*(PlotControl!$C$6-1),1,1) -> 0.0048299 | AQ16: =OFFSET(AssimCap_SW005!$D$10,ROUND(12*$AF16,0),4*(PlotControl!$C$6-1),1,1) -> 0.020989 | AR16: =OFFSET(AssimCap_SW005!$E$10,ROUND(12*$AF16,0),4*(PlotControl!$C$6-1),1,1) -> 1 | AS16: =OFFSET(AssimCap_Colby!$C$10,ROUND(12*$AF16,0),4*(PlotControl!$C$6-1),1,1) -> -0.0017523 | AT16: =OFFSET(AssimCap_Colby!$D$10,ROUND(12*$AF16,0),4*(PlotControl!$C$6-1),1,1) -> -0.00054456 | AU16: =OFFSET(AssimCap_Colby!$E$10,ROUND(12*$AF16,0),4*(PlotControl!$C$6-1),1,1) -> -0.00012414 | AW16: 120.9166667 | AX16: =(OFFSET(P_Ex_SW003!$B$10,ROUND(12*$AW16,0),(PlotControl!$C$6-1),1,1)) -> 0 | AY16: =(OFFSET(P_Ex_SW004!$B$10,ROUND(12*$AW16,0),(PlotControl!$C$6-1),1,1)) -> 0 | AZ16: =(OFFSET(P_Ex_SW004a!$B$10,ROUND(12*$AW16,0),(PlotControl!$C$6-1),1,1)) -> 0 | BA16: =(OFFSET(P_Ex_SW005!$B$10,ROUND(12*$AW16,0),(PlotControl!$C$6-1),1,1)) -> 0.206 | BB16: =(OFFSET(P_Ex_Colby!$B$10,ROUND(12*$AW16,0),(PlotControl!$C$6-1),1,1)) -> 0 | BC16: =(OFFSET(P_notNA_SW003!$B$10,ROUND(12*$AW16,0),(PlotControl!$C$6-1),1,1)) -> 0 | BD16: =(OFFSET(P_notNA_SW004!$B$10,ROUND(12*$AW16,0),(PlotControl!$C$6-1),1,1)) -> 0 | BE16: =(OFFSET(P_notNA_SW004a!$B$10,ROUND(12*$AW16,0),(PlotControl!$C$6-1),1,1)) -> 0 | BF16: =(OFFSET(P_notNA_SW005!$B$10,ROUND(12*$AW16,0),(PlotControl!$C$6-1),1,1)) -> 0 | BG16: =(OFFSET(P_notNA_Colby!$B$10,ROUND(12*$AW16,0),(PlotControl!$C$6-1),1,1)) -> 0
A17: 13 | B17: =IF(PlotControl!$B$4 = "Annual Max",MAX(OFFSET(P_Ex_SW003!$B$10,12*($A17-1),(PlotControl!$C$6-1),12,1)),AVERAGE(OFFSET(P_Ex_SW003!$B$10,12*($A17-1),(PlotControl!$C$6-1),12,1))) -> 0 | C17: =IF(PlotControl!$B$4 = "Annual Max",MAX(OFFSET(P_Ex_SW004!$B$10,12*($A17-1),(PlotControl!$C$6-1),12,1)),AVERAGE(OFFSET(P_Ex_SW004!$B$10,12*($A17-1),(PlotControl!$C$6-1),12,1))) -> 0 | D17: =IF(PlotControl!$B$4 = "Annual Max",MAX(OFFSET(P_Ex_SW004a!$B$10,12*($A17-1),(PlotControl!$C$6-1),12,1)),AVERAGE(OFFSET(P_Ex_SW004a!$B$10,12*($A17-1),(PlotControl!$C$6-1),12,1))) -> 0 | E17: =IF(PlotControl!$B$4 = "Annual Max",MAX(OFFSET(P_Ex_SW005!$B$10,12*($A17-1),(PlotControl!$C$6-1),12,1)),AVERAGE(OFFSET(P_Ex_SW005!$B$10,12*($A17-1),(PlotControl!$C$6-1),12,1))) -> 0.95 | F17: =IF(PlotControl!$B$4 = "Annual Max",MAX(OFFSET(P_Ex_Colby!$B$10,12*($A17-1),(PlotControl!$C$6-1),12,1)),AVERAGE(OFFSET(P_Ex_Colby!$B$10,12*($A17-1),(PlotControl!$C$6-1),12,1))) -> 0 | H17: 13 | I17: =IF(PlotControl!$B$4 = "Annual Max",MAX(OFFSET(P_notNA_SW003!$B$10,12*($H17-1),(PlotControl!$C$6-1),12,1)),AVERAGE(OFFSET(P_notNA_SW003!$B$10,12*$A17,(PlotControl!$C$6-1),12,1))) -> 0 | J17: =IF(PlotControl!$B$4 = "Annual Max",MAX(OFFSET(P_notNA_SW004!$B$10,12*($H17-1),(PlotControl!$C$6-1),12,1)),AVERAGE(OFFSET(P_notNA_SW004!$B$10,12*$A17,(PlotControl!$C$6-1),12,1))) -> 0 | K17: =IF(PlotControl!$B$4 = "Annual Max",MAX(OFFSET(P_notNA_SW004a!$B$10,12*($H17-1),(PlotControl!$C$6-1),12,1)),AVERAGE(OFFSET(P_notNA_SW004a!$B$10,12*$A17,(PlotControl!$C$6-1),12,1))) -> 0 | L17: =IF(PlotControl!$B$4 = "Annual Max",MAX(OFFSET(P_notNA_SW005!$B$10,12*($H17-1),(PlotControl!$C$6-1),12,1)),AVERAGE(OFFSET(P_notNA_SW005!$B$10,12*$A17,(PlotControl!$C$6-1),12,1))) -> 0.004 | M17: =IF(PlotControl!$B$4 = "Annual Max",MAX(OFFSET(P_notNA_Colby!$B$10,12*($H17-1),(PlotControl!$C$6-1),12,1)),AVERAGE(OFFSET(P_notNA_Colby!$B$10,12*$A17,(PlotControl!$C$6-1),12,1))) -> 0 | O17: 13 | P17: =IF(PlotControl!$B$4 = "Annual Max",MAX(OFFSET(AssimCap_SW003!$C$10,12*($O17-1),4*(PlotControl!$C$6-1),12,1)),AVERAGE(OFFSET(AssimCap_SW003!$C$10,12*($O17-1),4*(PlotControl!$C$6-1),12,1))) -> 0 | Q17: =IF(PlotControl!$B$4 = "Annual Max",MAX(OFFSET(AssimCap_SW003!$D$10,12*($O17-1),4*(PlotControl!$C$6-1),12,1)),AVERAGE(OFFSET(AssimCap_SW003!$D$10,12*($O17-1),4*(PlotControl!$C$6-1),12,1))) -> 0 | R17: =IF(PlotControl!$B$4 = "Annual Max",MAX(OFFSET(AssimCap_SW003!$E$10,12*($O17-1),4*(PlotControl!$C$6-1),12,1)),AVERAGE(OFFSET(AssimCap_SW003!$E$10,12*($O17-1),4*(PlotControl!$C$6-1),12,1))) -> 0 | S17: =IF(PlotControl!$B$4 = "Annual Max",MAX(OFFSET(AssimCap_SW004!$C$10,12*($O17-1),4*(PlotControl!$C$6-1),12,1)),AVERAGE(OFFSET(AssimCap_SW004!$C$10,12*($O17-1),4*(PlotControl!$C$6-1),12,1))) -> 0 | T17: =IF(PlotControl!$B$4 = "Annual Max",MAX(OFFSET(AssimCap_SW004!$D$10,12*($O17-1),4*(PlotControl!$C$6-1),12,1)),AVERAGE(OFFSET(AssimCap_SW004!$D$10,12*($O17-1),4*(PlotControl!$C$6-1),12,1))) -> 0 | U17: =IF(PlotControl!$B$4 = "Annual Max",MAX(OFFSET(AssimCap_SW004!$E$10,12*($O17-1),4*(PlotControl!$C$6-1),12,1)),AVERAGE(OFFSET(AssimCap_SW004!$E$10,12*($O17-1),4*(PlotControl!$C$6-1),12,1))) -> 0 | V17: =IF(PlotControl!$B$4 = "Annual Max",MAX(OFFSET(AssimCap_SW004a!$C$10,12*($O17-1),4*(PlotControl!$C$6-1),12,1)),AVERAGE(OFFSET(AssimCap_SW004a!$C$10,12*($O17-1),4*(PlotControl!$C$6-1),12,1))) -> 0 | W17: =IF(PlotControl!$B$4 = "Annual Max",MAX(OFFSET(AssimCap_SW004a!$D$10,12*($O17-1),4*(PlotControl!$C$6-1),12,1)),AVERAGE(OFFSET(AssimCap_SW004a!$D$10,12*($O17-1),4*(PlotControl!$C$6-1),12,1))) -> 0 | X17: =IF(PlotControl!$B$4 = "Annual Max",MAX(OFFSET(AssimCap_SW004a!$E$10,12*($O17-1),4*(PlotControl!$C$6-1),12,1)),AVERAGE(OFFSET(AssimCap_SW004a!$E$10,12*($O17-1),4*(PlotControl!$C$6-1),12,1))) -> 0 | Y17: =IF(PlotControl!$B$4 = "Annual Max",MAX(OFFSET(AssimCap_SW005!$C$10,12*($O17-1),4*(PlotControl!$C$6-1),12,1)),AVERAGE(OFFSET(AssimCap_SW005!$C$10,12*($O17-1),4*(PlotControl!$C$6-1),12,1))) -> 1 | Z17: =IF(PlotControl!$B$4 = "Annual Max",MAX(OFFSET(AssimCap_SW005!$D$10,12*($O17-1),4*(PlotControl!$C$6-1),12,1)),AVERAGE(OFFSET(AssimCap_SW005!$D$10,12*($O17-1),4*(PlotControl!$C$6-1),12,1))) -> 1 | AA17: =IF(PlotControl!$B$4 = "Annual Max",MAX(OFFSET(AssimCap_SW005!$E$10,12*($O17-1),4*(PlotControl!$C$6-1),12,1)),AVERAGE(OFFSET(AssimCap_SW005!$E$10,12*($O17-1),4*(PlotControl!$C$6-1),12,1))) -> 1 | AB17: =IF(PlotControl!$B$4 = "Annual Max",MAX(OFFSET(AssimCap_Colby!$C$10,12*($O17-1),4*(PlotControl!$C$6-1),12,1)),AVERAGE(OFFSET(AssimCap_Colby!$C$10,12*($O17-1),4*(PlotControl!$C$6-1),12,1))) -> 0.00084016 | AC17: =IF(PlotControl!$B$4 = "Annual Max",MAX(OFFSET(AssimCap_Colby!$D$10,12*($O17-1),4*(PlotControl!$C$6-1),12,1)),AVERAGE(OFFSET(AssimCap_Colby!$D$10,12*($O17-1),4*(PlotControl!$C$6-1),12,1))) -> 0.0012004 | AD17: =IF(PlotControl!$B$4 = "Annual Max",MAX(OFFSET(AssimCap_Colby!$E$10,12*($O17-1),4*(PlotControl!$C$6-1),12,1)),AVERAGE(OFFSET(AssimCap_Colby!$E$10,12*($O17-1),4*(PlotControl!$C$6-1),12,1))) -> 0.0016838 | AF17: 121 | AG17: =OFFSET(AssimCap_SW003!$C$10,ROUND(12*$AF17,0),4*(PlotControl!$C$6-1),1,1) -> 0 | AH17: =OFFSET(AssimCap_SW003!$D$10,ROUND(12*$AF17,0),4*(PlotControl!$C$6-1),1,1) -> 0 | AI17: =OFFSET(AssimCap_SW003!$E$10,ROUND(12*$AF17,0),4*(PlotControl!$C$6-1),1,1) -> 0 | AJ17: =OFFSET(AssimCap_SW004!$C$10,ROUND(12*$AF17,0),4*(PlotControl!$C$6-1),1,1) -> 0 | AK17: =OFFSET(AssimCap_SW004!$D$10,ROUND(12*$AF17,0),4*(PlotControl!$C$6-1),1,1) -> 0 | AL17: =OFFSET(AssimCap_SW004!$E$10,ROUND(12*$AF17,0),4*(PlotControl!$C$6-1),1,1) -> 0 | AM17: =OFFSET(AssimCap_SW004a!$C$10,ROUND(12*$AF17,0),4*(PlotControl!$C$6-1),1,1) -> 0 | AN17: =OFFSET(AssimCap_SW004a!$D$10,ROUND(12*$AF17,0),4*(PlotControl!$C$6-1),1,1) -> 0 | AO17: =OFFSET(AssimCap_SW004a!$E$10,ROUND(12*$AF17,0),4*(PlotControl!$C$6-1),1,1) -> 0 | AP17: =OFFSET(AssimCap_SW005!$C$10,ROUND(12*$AF17,0),4*(PlotControl!$C$6-1),1,1) -> 0.013829 | AQ17: =OFFSET(AssimCap_SW005!$D$10,ROUND(12*$AF17,0),4*(PlotControl!$C$6-1),1,1) -> 0.040486 | AR17: =OFFSET(AssimCap_SW005!$E$10,ROUND(12*$AF17,0),4*(PlotControl!$C$6-1),1,1) -> 1 | AS17: =OFFSET(AssimCap_Colby!$C$10,ROUND(12*$AF17,0),4*(PlotControl!$C$6-1),1,1) -> -0.0024958 | AT17: =OFFSET(AssimCap_Colby!$D$10,ROUND(12*$AF17,0),4*(PlotControl!$C$6-1),1,1) -> -0.0010282 | AU17: =OFFSET(AssimCap_Colby!$E$10,ROUND(12*$AF17,0),4*(PlotControl!$C$6-1),1,1) -> -0.00040286 | AW17: 121 | AX17: =(OFFSET(P_Ex_SW003!$B$10,ROUND(12*$AW17,0),(PlotControl!$C$6-1),1,1)) -> 0 | AY17: =(OFFSET(P_Ex_SW004!$B$10,ROUND(12*$AW17,0),(PlotControl!$C$6-1),1,1)) -> 0 | AZ17: =(OFFSET(P_Ex_SW004a!$B$10,ROUND(12*$AW17,0),(PlotControl!$C$6-1),1,1)) -> 0 | BA17: =(OFFSET(P_Ex_SW005!$B$10,ROUND(12*$AW17,0),(PlotControl!$C$6-1),1,1)) -> 0.2 | BB17: =(OFFSET(P_Ex_Colby!$B$10,ROUND(12*$AW17,0),(PlotControl!$C$6-1),1,1)) -> 0 | BC17: =(OFFSET(P_notNA_SW003!$B$10,ROUND(12*$AW17,0),(PlotControl!$C$6-1),1,1)) -> 0 | BD17: =(OFFSET(P_notNA_SW004!$B$10,ROUND(12*$AW17,0),(PlotControl!$C$6-1),1,1)) -> 0 | BE17: =(OFFSET(P_notNA_SW004a!$B$10,ROUND(12*$AW17,0),(PlotControl!$C$6-1),1,1)) -> 0 | BF17: =(OFFSET(P_notNA_SW005!$B$10,ROUND(12*$AW17,0),(PlotControl!$C$6-1),1,1)) -> 0.004 | BG17: =(OFFSET(P_notNA_Colby!$B$10,ROUND(12*$AW17,0),(PlotControl!$C$6-1),1,1)) -> 0
A18: 14 | B18: =IF(PlotControl!$B$4 = "Annual Max",MAX(OFFSET(P_Ex_SW003!$B$10,12*($A18-1),(PlotControl!$C$6-1),12,1)),AVERAGE(OFFSET(P_Ex_SW003!$B$10,12*($A18-1),(PlotControl!$C$6-1),12,1))) -> 0 | C18: =IF(PlotControl!$B$4 = "Annual Max",MAX(OFFSET(P_Ex_SW004!$B$10,12*($A18-1),(PlotControl!$C$6-1),12,1)),AVERAGE(OFFSET(P_Ex_SW004!$B$10,12*($A18-1),(PlotControl!$C$6-1),12,1))) -> 0 | D18: =IF(PlotControl!$B$4 = "Annual Max",MAX(OFFSET(P_Ex_SW004a!$B$10,12*($A18-1),(PlotControl!$C$6-1),12,1)),AVERAGE(OFFSET(P_Ex_SW004a!$B$10,12*($A18-1),(PlotControl!$C$6-1),12,1))) -> 0 | E18: =IF(PlotControl!$B$4 = "Annual Max",MAX(OFFSET(P_Ex_SW005!$B$10,12*($A18-1),(PlotControl!$C$6-1),12,1)),AVERAGE(OFFSET(P_Ex_SW005!$B$10,12*($A18-1),(PlotControl!$C$6-1),12,1))) -> 0.97 | F18: =IF(PlotControl!$B$4 = "Annual Max",MAX(OFFSET(P_Ex_Colby!$B$10,12*($A18-1),(PlotControl!$C$6-1),12,1)),AVERAGE(OFFSET(P_Ex_Colby!$B$10,12*($A18-1),(PlotControl!$C$6-1),12,1))) -> 0 | H18: 14 | I18: =IF(PlotControl!$B$4 = "Annual Max",MAX(OFFSET(P_notNA_SW003!$B$10,12*($H18-1),(PlotControl!$C$6-1),12,1)),AVERAGE(OFFSET(P_notNA_SW003!$B$10,12*$A18,(PlotControl!$C$6-1),12,1))) -> 0 | J18: =IF(PlotControl!$B$4 = "Annual Max",MAX(OFFSET(P_notNA_SW004!$B$10,12*($H18-1),(PlotControl!$C$6-1),12,1)),AVERAGE(OFFSET(P_notNA_SW004!$B$10,12*$A18,(PlotControl!$C$6-1),12,1))) -> 0 | K18: =IF(PlotControl!$B$4 = "Annual Max",MAX(OFFSET(P_notNA_SW004a!$B$10,12*($H18-1),(PlotControl!$C$6-1),12,1)),AVERAGE(OFFSET(P_notNA_SW004a!$B$10,12*$A18,(PlotControl!$C$6-1),12,1))) -> 0 | L18: =IF(PlotControl!$B$4 = "Annual Max",MAX(OFFSET(P_notNA_SW005!$B$10,12*($H18-1),(PlotControl!$C$6-1),12,1)),AVERAGE(OFFSET(P_notNA_SW005!$B$10,12*$A18,(PlotControl!$C$6-1),12,1))) -> 0.004 | M18: =IF(PlotControl!$B$4 = "Annual Max",MAX(OFFSET(P_notNA_Colby!$B$10,12*($H18-1),(PlotControl!$C$6-1),12,1)),AVERAGE(OFFSET(P_notNA_Colby!$B$10,12*$A18,(PlotControl!$C$6-1),12,1))) -> 0 | O18: 14 | P18: =IF(PlotControl!$B$4 = "Annual Max",MAX(OFFSET(AssimCap_SW003!$C$10,12*($O18-1),4*(PlotControl!$C$6-1),12,1)),AVERAGE(OFFSET(AssimCap_SW003!$C$10,12*($O18-1),4*(PlotControl!$C$6-1),12,1))) -> 0 | Q18: =IF(PlotControl!$B$4 = "Annual Max",MAX(OFFSET(AssimCap_SW003!$D$10,12*($O18-1),4*(PlotControl!$C$6-1),12,1)),AVERAGE(OFFSET(AssimCap_SW003!$D$10,12*($O18-1),4*(PlotControl!$C$6-1),12,1))) -> 0 | R18: =IF(PlotControl!$B$4 = "Annual Max",MAX(OFFSET(AssimCap_SW003!$E$10,12*($O18-1),4*(PlotControl!$C$6-1),12,1)),AVERAGE(OFFSET(AssimCap_SW003!$E$10,12*($O18-1),4*(PlotControl!$C$6-1),12,1))) -> 0 | S18: =IF(PlotControl!$B$4 = "Annual Max",MAX(OFFSET(AssimCap_SW004!$C$10,12*($O18-1),4*(PlotControl!$C$6-1),12,1)),AVERAGE(OFFSET(AssimCap_SW004!$C$10,12*($O18-1),4*(PlotControl!$C$6-1),12,1))) -> 0 | T18: =IF(PlotControl!$B$4 = "Annual Max",MAX(OFFSET(AssimCap_SW004!$D$10,12*($O18-1),4*(PlotControl!$C$6-1),12,1)),AVERAGE(OFFSET(AssimCap_SW004!$D$10,12*($O18-1),4*(PlotControl!$C$6-1),12,1))) -> 0 | U18: =IF(PlotControl!$B$4 = "Annual Max",MAX(OFFSET(AssimCap_SW004!$E$10,12*($O18-1),4*(PlotControl!$C$6-1),12,1)),AVERAGE(OFFSET(AssimCap_SW004!$E$10,12*($O18-1),4*(PlotControl!$C$6-1),12,1))) -> 0 | V18: =IF(PlotControl!$B$4 = "Annual Max",MAX(OFFSET(AssimCap_SW004a!$C$10,12*($O18-1),4*(PlotControl!$C$6-1),12,1)),AVERAGE(OFFSET(AssimCap_SW004a!$C$10,12*($O18-1),4*(PlotControl!$C$6-1),12,1))) -> 0 | W18: =IF(PlotControl!$B$4 = "Annual Max",MAX(OFFSET(AssimCap_SW004a!$D$10,12*($O18-1),4*(PlotControl!$C$6-1),12,1)),AVERAGE(OFFSET(AssimCap_SW004a!$D$10,12*($O18-1),4*(PlotControl!$C$6-1),12,1))) -> 0 | X18: =IF(PlotControl!$B$4 = "Annual Max",MAX(OFFSET(AssimCap_SW004a!$E$10,12*($O18-1),4*(PlotControl!$C$6-1),12,1)),AVERAGE(OFFSET(AssimCap_SW004a!$E$10,12*($O18-1),4*(PlotControl!$C$6-1),12,1))) -> 0 | Y18: =IF(PlotControl!$B$4 = "Annual Max",MAX(OFFSET(AssimCap_SW005!$C$10,12*($O18-1),4*(PlotControl!$C$6-1),12,1)),AVERAGE(OFFSET(AssimCap_SW005!$C$10,12*($O18-1),4*(PlotControl!$C$6-1),12,1))) -> 1 | Z18: =IF(PlotControl!$B$4 = "Annual Max",MAX(OFFSET(AssimCap_SW005!$D$10,12*($O18-1),4*(PlotControl!$C$6-1),12,1)),AVERAGE(OFFSET(AssimCap_SW005!$D$10,12*($O18-1),4*(PlotControl!$C$6-1),12,1))) -> 1 | AA18: =IF(PlotControl!$B$4 = "Annual Max",MAX(OFFSET(AssimCap_SW005!$E$10,12*($O18-1),4*(PlotControl!$C$6-1),12,1)),AVERAGE(OFFSET(AssimCap_SW005!$E$10,12*($O18-1),4*(PlotControl!$C$6-1),12,1))) -> 1 | AB18: =IF(PlotControl!$B$4 = "Annual Max",MAX(OFFSET(AssimCap_Colby!$C$10,12*($O18-1),4*(PlotControl!$C$6-1),12,1)),AVERAGE(OFFSET(AssimCap_Colby!$C$10,12*($O18-1),4*(PlotControl!$C$6-1),12,1))) -> 0.00077143 | AC18: =IF(PlotControl!$B$4 = "Annual Max",MAX(OFFSET(AssimCap_Colby!$D$10,12*($O18-1),4*(PlotControl!$C$6-1),12,1)),AVERAGE(OFFSET(AssimCap_Colby!$D$10,12*($O18-1),4*(PlotControl!$C$6-1),12,1))) -> 0.0011587 | AD18: =IF(PlotControl!$B$4 = "Annual Max",MAX(OFFSET(AssimCap_Colby!$E$10,12*($O18-1),4*(PlotControl!$C$6-1),12,1)),AVERAGE(OFFSET(AssimCap_Colby!$E$10,12*($O18-1),4*(PlotControl!$C$6-1),12,1))) -> 0.0015607 | AF18: 121.0833333 | AG18: =OFFSET(AssimCap_SW003!$C$10,ROUND(12*$AF18,0),4*(PlotControl!$C$6-1),1,1) -> 0 | AH18: =OFFSET(AssimCap_SW003!$D$10,ROUND(12*$AF18,0),4*(PlotControl!$C$6-1),1,1) -> 0 | AI18: =OFFSET(AssimCap_SW003!$E$10,ROUND(12*$AF18,0),4*(PlotControl!$C$6-1),1,1) -> 0 | AJ18: =OFFSET(AssimCap_SW004!$C$10,ROUND(12*$AF18,0),4*(PlotControl!$C$6-1),1,1) -> 0 | AK18: =OFFSET(AssimCap_SW004!$D$10,ROUND(12*$AF18,0),4*(PlotControl!$C$6-1),1,1) -> 0 | AL18: =OFFSET(AssimCap_SW004!$E$10,ROUND(12*$AF18,0),4*(PlotControl!$C$6-1),1,1) -> 0 | AM18: =OFFSET(AssimCap_SW004a!$C$10,ROUND(12*$AF18,0),4*(PlotControl!$C$6-1),1,1) -> 0 | AN18: =OFFSET(AssimCap_SW004a!$D$10,ROUND(12*$AF18,0),4*(PlotControl!$C$6-1),1,1) -> 0 | AO18: =OFFSET(AssimCap_SW004a!$E$10,ROUND(12*$AF18,0),4*(PlotControl!$C$6-1),1,1) -> 0 | AP18: =OFFSET(AssimCap_SW005!$C$10,ROUND(12*$AF18,0),4*(PlotControl!$C$6-1),1,1) -> 0.022521 | AQ18: =OFFSET(AssimCap_SW005!$D$10,ROUND(12*$AF18,0),4*(PlotControl!$C$6-1),1,1) -> 0.071617 | AR18: =OFFSET(AssimCap_SW005!$E$10,ROUND(12*$AF18,0),4*(PlotControl!$C$6-1),1,1) -> 1 | AS18: =OFFSET(AssimCap_Colby!$C$10,ROUND(12*$AF18,0),4*(PlotControl!$C$6-1),1,1) -> -0.0033052 | AT18: =OFFSET(AssimCap_Colby!$D$10,ROUND(12*$AF18,0),4*(PlotControl!$C$6-1),1,1) -> -0.0015096 | AU18: =OFFSET(AssimCap_Colby!$E$10,ROUND(12*$AF18,0),4*(PlotControl!$C$6-1),1,1) -> -0.00036676 | AW18: 121.0833333 | AX18: =(OFFSET(P_Ex_SW003!$B$10,ROUND(12*$AW18,0),(PlotControl!$C$6-1),1,1)) -> 0 | AY18: =(OFFSET(P_Ex_SW004!$B$10,ROUND(12*$AW18,0),(PlotControl!$C$6-1),1,1)) -> 0 | AZ18: =(OFFSET(P_Ex_SW004a!$B$10,ROUND(12*$AW18,0),(PlotControl!$C$6-1),1,1)) -> 0 | BA18: =(OFFSET(P_Ex_SW005!$B$10,ROUND(12*$AW18,0),(PlotControl!$C$6-1),1,1)) -> 0.176 | BB18: =(OFFSET(P_Ex_Colby!$B$10,ROUND(12*$AW18,0),(PlotControl!$C$6-1),1,1)) -> 0 | BC18: =(OFFSET(P_notNA_SW003!$B$10,ROUND(12*$AW18,0),(PlotControl!$C$6-1),1,1)) -> 0 | BD18: =(OFFSET(P_notNA_SW004!$B$10,ROUND(12*$AW18,0),(PlotControl!$C$6-1),1,1)) -> 0 | BE18: =(OFFSET(P_notNA_SW004a!$B$10,ROUND(12*$AW18,0),(PlotControl!$C$6-1),1,1)) -> 0 | BF18: =(OFFSET(P_notNA_SW005!$B$10,ROUND(12*$AW18,0),(PlotControl!$C$6-1),1,1)) -> 0 | BG18: =(OFFSET(P_notNA_Colby!$B$10,ROUND(12*$AW18,0),(PlotControl!$C$6-1),1,1)) -> 0
A19: 15 | B19: =IF(PlotControl!$B$4 = "Annual Max",MAX(OFFSET(P_Ex_SW003!$B$10,12*($A19-1),(PlotControl!$C$6-1),12,1)),AVERAGE(OFFSET(P_Ex_SW003!$B$10,12*($A19-1),(PlotControl!$C$6-1),12,1))) -> 0 | C19: =IF(PlotControl!$B$4 = "Annual Max",MAX(OFFSET(P_Ex_SW004!$B$10,12*($A19-1),(PlotControl!$C$6-1),12,1)),AVERAGE(OFFSET(P_Ex_SW004!$B$10,12*($A19-1),(PlotControl!$C$6-1),12,1))) -> 0 | D19: =IF(PlotControl!$B$4 = "Annual Max",MAX(OFFSET(P_Ex_SW004a!$B$10,12*($A19-1),(PlotControl!$C$6-1),12,1)),AVERAGE(OFFSET(P_Ex_SW004a!$B$10,12*($A19-1),(PlotControl!$C$6-1),12,1))) -> 0 | E19: =IF(PlotControl!$B$4 = "Annual Max",MAX(OFFSET(P_Ex_SW005!$B$10,12*($A19-1),(PlotControl!$C$6-1),12,1)),AVERAGE(OFFSET(P_Ex_SW005!$B$10,12*($A19-1),(PlotControl!$C$6-1),12,1))) -> 0.954 | F19: =IF(PlotControl!$B$4 = "Annual Max",MAX(OFFSET(P_Ex_Colby!$B$10,12*($A19-1),(PlotControl!$C$6-1),12,1)),AVERAGE(OFFSET(P_Ex_Colby!$B$10,12*($A19-1),(PlotControl!$C$6-1),12,1))) -> 0 | H19: 15 | I19: =IF(PlotControl!$B$4 = "Annual Max",MAX(OFFSET(P_notNA_SW003!$B$10,12*($H19-1),(PlotControl!$C$6-1),12,1)),AVERAGE(OFFSET(P_notNA_SW003!$B$10,12*$A19,(PlotControl!$C$6-1),12,1))) -> 0 | J19: =IF(PlotControl!$B$4 = "Annual Max",MAX(OFFSET(P_notNA_SW004!$B$10,12*($H19-1),(PlotControl!$C$6-1),12,1)),AVERAGE(OFFSET(P_notNA_SW004!$B$10,12*$A19,(PlotControl!$C$6-1),12,1))) -> 0 | K19: =IF(PlotControl!$B$4 = "Annual Max",MAX(OFFSET(P_notNA_SW004a!$B$10,12*($H19-1),(PlotControl!$C$6-1),12,1)),AVERAGE(OFFSET(P_notNA_SW004a!$B$10,12*$A19,(PlotControl!$C$6-1),12,1))) -> 0 | L19: =IF(PlotControl!$B$4 = "Annual Max",MAX(OFFSET(P_notNA_SW005!$B$10,12*($H19-1),(PlotControl!$C$6-1),12,1)),AVERAGE(OFFSET(P_notNA_SW005!$B$10,12*$A19,(PlotControl!$C$6-1),12,1))) -> 0.004 | M19: =IF(PlotControl!$B$4 = "Annual Max",MAX(OFFSET(P_notNA_Colby!$B$10,12*($H19-1),(PlotControl!$C$6-1),12,1)),AVERAGE(OFFSET(P_notNA_Colby!$B$10,12*$A19,(PlotControl!$C$6-1),12,1))) -> 0 | O19: 15 | P19: =IF(PlotControl!$B$4 = "Annual Max",MAX(OFFSET(AssimCap_SW003!$C$10,12*($O19-1),4*(PlotControl!$C$6-1),12,1)),AVERAGE(OFFSET(AssimCap_SW003!$C$10,12*($O19-1),4*(PlotControl!$C$6-1),12,1))) -> 0 | Q19: =IF(PlotControl!$B$4 = "Annual Max",MAX(OFFSET(AssimCap_SW003!$D$10,12*($O19-1),4*(PlotControl!$C$6-1),12,1)),AVERAGE(OFFSET(AssimCap_SW003!$D$10,12*($O19-1),4*(PlotControl!$C$6-1),12,1))) -> 0 | R19: =IF(PlotControl!$B$4 = "Annual Max",MAX(OFFSET(AssimCap_SW003!$E$10,12*($O19-1),4*(PlotControl!$C$6-1),12,1)),AVERAGE(OFFSET(AssimCap_SW003!$E$10,12*($O19-1),4*(PlotControl!$C$6-1),12,1))) -> 0 | S19: =IF(PlotControl!$B$4 = "Annual Max",MAX(OFFSET(AssimCap_SW004!$C$10,12*($O19-1),4*(PlotControl!$C$6-1),12,1)),AVERAGE(OFFSET(AssimCap_SW004!$C$10,12*($O19-1),4*(PlotControl!$C$6-1),12,1))) -> 0 | T19: =IF(PlotControl!$B$4 = "Annual Max",MAX(OFFSET(AssimCap_SW004!$D$10,12*($O19-1),4*(PlotControl!$C$6-1),12,1)),AVERAGE(OFFSET(AssimCap_SW004!$D$10,12*($O19-1),4*(PlotControl!$C$6-1),12,1))) -> 0 | U19: =IF(PlotControl!$B$4 = "Annual Max",MAX(OFFSET(AssimCap_SW004!$E$10,12*($O19-1),4*(PlotControl!$C$6-1),12,1)),AVERAGE(OFFSET(AssimCap_SW004!$E$10,12*($O19-1),4*(PlotControl!$C$6-1),12,1))) -> 0 | V19: =IF(PlotControl!$B$4 = "Annual Max",MAX(OFFSET(AssimCap_SW004a!$C$10,12*($O19-1),4*(PlotControl!$C$6-1),12,1)),AVERAGE(OFFSET(AssimCap_SW004a!$C$10,12*($O19-1),4*(PlotControl!$C$6-1),12,1))) -> 0 | W19: =IF(PlotControl!$B$4 = "Annual Max",MAX(OFFSET(AssimCap_SW004a!$D$10,12*($O19-1),4*(PlotControl!$C$6-1),12,1)),AVERAGE(OFFSET(AssimCap_SW004a!$D$10,12*($O19-1),4*(PlotControl!$C$6-1),12,1))) -> 0 | X19: =IF(PlotControl!$B$4 = "Annual Max",MAX(OFFSET(AssimCap_SW004a!$E$10,12*($O19-1),4*(PlotControl!$C$6-1),12,1)),AVERAGE(OFFSET(AssimCap_SW004a!$E$10,12*($O19-1),4*(PlotControl!$C$6-1),12,1))) -> 0 | Y19: =IF(PlotControl!$B$4 = "Annual Max",MAX(OFFSET(AssimCap_SW005!$C$10,12*($O19-1),4*(PlotControl!$C$6-1),12,1)),AVERAGE(OFFSET(AssimCap_SW005!$C$10,12*($O19-1),4*(PlotControl!$C$6-1),12,1))) -> 1 | Z19: =IF(PlotControl!$B$4 = "Annual Max",MAX(OFFSET(AssimCap_SW005!$D$10,12*($O19-1),4*(PlotControl!$C$6-1),12,1)),AVERAGE(OFFSET(AssimCap_SW005!$D$10,12*($O19-1),4*(PlotControl!$C$6-1),12,1))) -> 1 | AA19: =IF(PlotControl!$B$4 = "Annual Max",MAX(OFFSET(AssimCap_SW005!$E$10,12*($O19-1),4*(PlotControl!$C$6-1),12,1)),AVERAGE(OFFSET(AssimCap_SW005!$E$10,12*($O19-1),4*(PlotControl!$C$6-1),12,1))) -> 1 | AB19: =IF(PlotControl!$B$4 = "Annual Max",MAX(OFFSET(AssimCap_Colby!$C$10,12*($O19-1),4*(PlotControl!$C$6-1),12,1)),AVERAGE(OFFSET(AssimCap_Colby!$C$10,12*($O19-1),4*(PlotControl!$C$6-1),12,1))) -> 0.00075092 | AC19: =IF(PlotControl!$B$4 = "Annual Max",MAX(OFFSET(AssimCap_Colby!$D$10,12*($O19-1),4*(PlotControl!$C$6-1),12,1)),AVERAGE(OFFSET(AssimCap_Colby!$D$10,12*($O19-1),4*(PlotControl!$C$6-1),12,1))) -> 0.0011429 | AD19: =IF(PlotControl!$B$4 = "Annual Max",MAX(OFFSET(AssimCap_Colby!$E$10,12*($O19-1),4*(PlotControl!$C$6-1),12,1)),AVERAGE(OFFSET(AssimCap_Colby!$E$10,12*($O19-1),4*(PlotControl!$C$6-1),12,1))) -> 0.0015378 | AF19: 121.1666667 | AG19: =OFFSET(AssimCap_SW003!$C$10,ROUND(12*$AF19,0),4*(PlotControl!$C$6-1),1,1) -> 0 | AH19: =OFFSET(AssimCap_SW003!$D$10,ROUND(12*$AF19,0),4*(PlotControl!$C$6-1),1,1) -> 0 | AI19: =OFFSET(AssimCap_SW003!$E$10,ROUND(12*$AF19,0),4*(PlotControl!$C$6-1),1,1) -> 0 | AJ19: =OFFSET(AssimCap_SW004!$C$10,ROUND(12*$AF19,0),4*(PlotControl!$C$6-1),1,1) -> 0 | AK19: =OFFSET(AssimCap_SW004!$D$10,ROUND(12*$AF19,0),4*(PlotControl!$C$6-1),1,1) -> 0 | AL19: =OFFSET(AssimCap_SW004!$E$10,ROUND(12*$AF19,0),4*(PlotControl!$C$6-1),1,1) -> 0 | AM19: =OFFSET(AssimCap_SW004a!$C$10,ROUND(12*$AF19,0),4*(PlotControl!$C$6-1),1,1) -> 0 | AN19: =OFFSET(AssimCap_SW004a!$D$10,ROUND(12*$AF19,0),4*(PlotControl!$C$6-1),1,1) -> 0 | AO19: =OFFSET(AssimCap_SW004a!$E$10,ROUND(12*$AF19,0),4*(PlotControl!$C$6-1),1,1) -> 0 | AP19: =OFFSET(AssimCap_SW005!$C$10,ROUND(12*$AF19,0),4*(PlotControl!$C$6-1),1,1) -> 0.024121 | AQ19: =OFFSET(AssimCap_SW005!$D$10,ROUND(12*$AF19,0),4*(PlotControl!$C$6-1),1,1) -> 0.10082 | AR19: =OFFSET(AssimCap_SW005!$E$10,ROUND(12*$AF19,0),4*(PlotControl!$C$6-1),1,1) -> 1 | AS19: =OFFSET(AssimCap_Colby!$C$10,ROUND(12*$AF19,0),4*(PlotControl!$C$6-1),1,1) -> -0.0043813 | AT19: =OFFSET(AssimCap_Colby!$D$10,ROUND(12*$AF19,0),4*(PlotControl!$C$6-1),1,1) -> -0.0018242 | AU19: =OFFSET(AssimCap_Colby!$E$10,ROUND(12*$AF19,0),4*(PlotControl!$C$6-1),1,1) -> 0.00085889 | AW19: 121.1666667 | AX19: =(OFFSET(P_Ex_SW003!$B$10,ROUND(12*$AW19,0),(PlotControl!$C$6-1),1,1)) -> 0 | AY19: =(OFFSET(P_Ex_SW004!$B$10,ROUND(12*$AW19,0),(PlotControl!$C$6-1),1,1)) -> 0 | AZ19: =(OFFSET(P_Ex_SW004a!$B$10,ROUND(12*$AW19,0),(PlotControl!$C$6-1),1,1)) -> 0 | BA19: =(OFFSET(P_Ex_SW005!$B$10,ROUND(12*$AW19,0),(PlotControl!$C$6-1),1,1)) -> 0.15 | BB19: =(OFFSET(P_Ex_Colby!$B$10,ROUND(12*$AW19,0),(PlotControl!$C$6-1),1,1)) -> 0 | BC19: =(OFFSET(P_notNA_SW003!$B$10,ROUND(12*$AW19,0),(PlotControl!$C$6-1),1,1)) -> 0 | BD19: =(OFFSET(P_notNA_SW004!$B$10,ROUND(12*$AW19,0),(PlotControl!$C$6-1),1,1)) -> 0 | BE19: =(OFFSET(P_notNA_SW004a!$B$10,ROUND(12*$AW19,0),(PlotControl!$C$6-1),1,1)) -> 0 | BF19: =(OFFSET(P_notNA_SW005!$B$10,ROUND(12*$AW19,0),(PlotControl!$C$6-1),1,1)) -> 0 | BG19: =(OFFSET(P_notNA_Colby!$B$10,ROUND(12*$AW19,0),(PlotControl!$C$6-1),1,1)) -> 0
A20: 16 | B20: =IF(PlotControl!$B$4 = "Annual Max",MAX(OFFSET(P_Ex_SW003!$B$10,12*($A20-1),(PlotControl!$C$6-1),12,1)),AVERAGE(OFFSET(P_Ex_SW003!$B$10,12*($A20-1),(PlotControl!$C$6-1),12,1))) -> 0 | C20: =IF(PlotControl!$B$4 = "Annual Max",MAX(OFFSET(P_Ex_SW004!$B$10,12*($A20-1),(PlotControl!$C$6-1),12,1)),AVERAGE(OFFSET(P_Ex_SW004!$B$10,12*($A20-1),(PlotControl!$C$6-1),12,1))) -> 0 | D20: =IF(PlotControl!$B$4 = "Annual Max",MAX(OFFSET(P_Ex_SW004a!$B$10,12*($A20-1),(PlotControl!$C$6-1),12,1)),AVERAGE(OFFSET(P_Ex_SW004a!$B$10,12*($A20-1),(PlotControl!$C$6-1),12,1))) -> 0 | E20: =IF(PlotControl!$B$4 = "Annual Max",MAX(OFFSET(P_Ex_SW005!$B$10,12*($A20-1),(PlotControl!$C$6-1),12,1)),AVERAGE(OFFSET(P_Ex_SW005!$B$10,12*($A20-1),(PlotControl!$C$6-1),12,1))) -> 0.944 | F20: =IF(PlotControl!$B$4 = "Annual Max",MAX(OFFSET(P_Ex_Colby!$B$10,12*($A20-1),(PlotControl!$C$6-1),12,1)),AVERAGE(OFFSET(P_Ex_Colby!$B$10,12*($A20-1),(PlotControl!$C$6-1),12,1))) -> 0 | H20: 16 | I20: =IF(PlotControl!$B$4 = "Annual Max",MAX(OFFSET(P_notNA_SW003!$B$10,12*($H20-1),(PlotControl!$C$6-1),12,1)),AVERAGE(OFFSET(P_notNA_SW003!$B$10,12*$A20,(PlotControl!$C$6-1),12,1))) -> 0 | J20: =IF(PlotControl!$B$4 = "Annual Max",MAX(OFFSET(P_notNA_SW004!$B$10,12*($H20-1),(PlotControl!$C$6-1),12,1)),AVERAGE(OFFSET(P_notNA_SW004!$B$10,12*$A20,(PlotControl!$C$6-1),12,1))) -> 0 | K20: =IF(PlotControl!$B$4 = "Annual Max",MAX(OFFSET(P_notNA_SW004a!$B$10,12*($H20-1),(PlotControl!$C$6-1),12,1)),AVERAGE(OFFSET(P_notNA_SW004a!$B$10,12*$A20,(PlotControl!$C$6-1),12,1))) -> 0 | L20: =IF(PlotControl!$B$4 = "Annual Max",MAX(OFFSET(P_notNA_SW005!$B$10,12*($H20-1),(PlotControl!$C$6-1),12,1)),AVERAGE(OFFSET(P_notNA_SW005!$B$10,12*$A20,(PlotControl!$C$6-1),12,1))) -> 0.006 | M20: =IF(PlotControl!$B$4 = "Annual Max",MAX(OFFSET(P_notNA_Colby!$B$10,12*($H20-1),(PlotControl!$C$6-1),12,1)),AVERAGE(OFFSET(P_notNA_Colby!$B$10,12*$A20,(PlotControl!$C$6-1),12,1))) -> 0 | O20: 16 | P20: =IF(PlotControl!$B$4 = "Annual Max",MAX(OFFSET(AssimCap_SW003!$C$10,12*($O20-1),4*(PlotControl!$C$6-1),12,1)),AVERAGE(OFFSET(AssimCap_SW003!$C$10,12*($O20-1),4*(PlotControl!$C$6-1),12,1))) -> 0 | Q20: =IF(PlotControl!$B$4 = "Annual Max",MAX(OFFSET(AssimCap_SW003!$D$10,12*($O20-1),4*(PlotControl!$C$6-1),12,1)),AVERAGE(OFFSET(AssimCap_SW003!$D$10,12*($O20-1),4*(PlotControl!$C$6-1),12,1))) -> 0 | R20: =IF(PlotControl!$B$4 = "Annual Max",MAX(OFFSET(AssimCap_SW003!$E$10,12*($O20-1),4*(PlotControl!$C$6-1),12,1)),AVERAGE(OFFSET(AssimCap_SW003!$E$10,12*($O20-1),4*(PlotControl!$C$6-1),12,1))) -> 0 | S20: =IF(PlotControl!$B$4 = "Annual Max",MAX(OFFSET(AssimCap_SW004!$C$10,12*($O20-1),4*(PlotControl!$C$6-1),12,1)),AVERAGE(OFFSET(AssimCap_SW004!$C$10,12*($O20-1),4*(PlotControl!$C$6-1),12,1))) -> 0 | T20: =IF(PlotControl!$B$4 = "Annual Max",MAX(OFFSET(AssimCap_SW004!$D$10,12*($O20-1),4*(PlotControl!$C$6-1),12,1)),AVERAGE(OFFSET(AssimCap_SW004!$D$10,12*($O20-1),4*(PlotControl!$C$6-1),12,1))) -> 0 | U20: =IF(PlotControl!$B$4 = "Annual Max",MAX(OFFSET(AssimCap_SW004!$E$10,12*($O20-1),4*(PlotControl!$C$6-1),12,1)),AVERAGE(OFFSET(AssimCap_SW004!$E$10,12*($O20-1),4*(PlotControl!$C$6-1),12,1))) -> 0 | V20: =IF(PlotControl!$B$4 = "Annual Max",MAX(OFFSET(AssimCap_SW004a!$C$10,12*($O20-1),4*(PlotControl!$C$6-1),12,1)),AVERAGE(OFFSET(AssimCap_SW004a!$C$10,12*($O20-1),4*(PlotControl!$C$6-1),12,1))) -> 0 | W20: =IF(PlotControl!$B$4 = "Annual Max",MAX(OFFSET(AssimCap_SW004a!$D$10,12*($O20-1),4*(PlotControl!$C$6-1),12,1)),AVERAGE(OFFSET(AssimCap_SW004a!$D$10,12*($O20-1),4*(PlotControl!$C$6-1),12,1))) -> 0 | X20: =IF(PlotControl!$B$4 = "Annual Max",MAX(OFFSET(AssimCap_SW004a!$E$10,12*($O20-1),4*(PlotControl!$C$6-1),12,1)),AVERAGE(OFFSET(AssimCap_SW004a!$E$10,12*($O20-1),4*(PlotControl!$C$6-1),12,1))) -> 0 | Y20: =IF(PlotControl!$B$4 = "Annual Max",MAX(OFFSET(AssimCap_SW005!$C$10,12*($O20-1),4*(PlotControl!$C$6-1),12,1)),AVERAGE(OFFSET(AssimCap_SW005!$C$10,12*($O20-1),4*(PlotControl!$C$6-1),12,1))) -> 1 | Z20: =IF(PlotControl!$B$4 = "Annual Max",MAX(OFFSET(AssimCap_SW005!$D$10,12*($O20-1),4*(PlotControl!$C$6-1),12,1)),AVERAGE(OFFSET(AssimCap_SW005!$D$10,12*($O20-1),4*(PlotControl!$C$6-1),12,1))) -> 1 | AA20: =IF(PlotControl!$B$4 = "Annual Max",MAX(OFFSET(AssimCap_SW005!$E$10,12*($O20-1),4*(PlotControl!$C$6-1),12,1)),AVERAGE(OFFSET(AssimCap_SW005!$E$10,12*($O20-1),4*(PlotControl!$C$6-1),12,1))) -> 1 | AB20: =IF(PlotControl!$B$4 = "Annual Max",MAX(OFFSET(AssimCap_Colby!$C$10,12*($O20-1),4*(PlotControl!$C$6-1),12,1)),AVERAGE(OFFSET(AssimCap_Colby!$C$10,12*($O20-1),4*(PlotControl!$C$6-1),12,1))) -> 0.00065756 | AC20: =IF(PlotControl!$B$4 = "Annual Max",MAX(OFFSET(AssimCap_Colby!$D$10,12*($O20-1),4*(PlotControl!$C$6-1),12,1)),AVERAGE(OFFSET(AssimCap_Colby!$D$10,12*($O20-1),4*(PlotControl!$C$6-1),12,1))) -> 0.0010064 | AD20: =IF(PlotControl!$B$4 = "Annual Max",MAX(OFFSET(AssimCap_Colby!$E$10,12*($O20-1),4*(PlotControl!$C$6-1),12,1)),AVERAGE(OFFSET(AssimCap_Colby!$E$10,12*($O20-1),4*(PlotControl!$C$6-1),12,1))) -> 0.0013983 | AF20: 121.25 | AG20: =OFFSET(AssimCap_SW003!$C$10,ROUND(12*$AF20,0),4*(PlotControl!$C$6-1),1,1) -> 0 | AH20: =OFFSET(AssimCap_SW003!$D$10,ROUND(12*$AF20,0),4*(PlotControl!$C$6-1),1,1) -> 0 | AI20: =OFFSET(AssimCap_SW003!$E$10,ROUND(12*$AF20,0),4*(PlotControl!$C$6-1),1,1) -> 0 | AJ20: =OFFSET(AssimCap_SW004!$C$10,ROUND(12*$AF20,0),4*(PlotControl!$C$6-1),1,1) -> 0 | AK20: =OFFSET(AssimCap_SW004!$D$10,ROUND(12*$AF20,0),4*(PlotControl!$C$6-1),1,1) -> 0 | AL20: =OFFSET(AssimCap_SW004!$E$10,ROUND(12*$AF20,0),4*(PlotControl!$C$6-1),1,1) -> 0 | AM20: =OFFSET(AssimCap_SW004a!$C$10,ROUND(12*$AF20,0),4*(PlotControl!$C$6-1),1,1) -> 0 | AN20: =OFFSET(AssimCap_SW004a!$D$10,ROUND(12*$AF20,0),4*(PlotControl!$C$6-1),1,1) -> 0 | AO20: =OFFSET(AssimCap_SW004a!$E$10,ROUND(12*$AF20,0),4*(PlotControl!$C$6-1),1,1) -> 0 | AP20: =OFFSET(AssimCap_SW005!$C$10,ROUND(12*$AF20,0),4*(PlotControl!$C$6-1),1,1) -> 0.0049127 | AQ20: =OFFSET(AssimCap_SW005!$D$10,ROUND(12*$AF20,0),4*(PlotControl!$C$6-1),1,1) -> 0.097164 | AR20: =OFFSET(AssimCap_SW005!$E$10,ROUND(12*$AF20,0),4*(PlotControl!$C$6-1),1,1) -> 1 | AS20: =OFFSET(AssimCap_Colby!$C$10,ROUND(12*$AF20,0),4*(PlotControl!$C$6-1),1,1) -> -0.0058397 | AT20: =OFFSET(AssimCap_Colby!$D$10,ROUND(12*$AF20,0),4*(PlotControl!$C$6-1),1,1) -> -0.0028631 | AU20: =OFFSET(AssimCap_Colby!$E$10,ROUND(12*$AF20,0),4*(PlotControl!$C$6-1),1,1) -> -0.00027637 | AW20: 121.25 | AX20: =(OFFSET(P_Ex_SW003!$B$10,ROUND(12*$AW20,0),(PlotControl!$C$6-1),1,1)) -> 0 | AY20: =(OFFSET(P_Ex_SW004!$B$10,ROUND(12*$AW20,0),(PlotControl!$C$6-1),1,1)) -> 0 | AZ20: =(OFFSET(P_Ex_SW004a!$B$10,ROUND(12*$AW20,0),(PlotControl!$C$6-1),1,1)) -> 0 | BA20: =(OFFSET(P_Ex_SW005!$B$10,ROUND(12*$AW20,0),(PlotControl!$C$6-1),1,1)) -> 0.142 | BB20: =(OFFSET(P_Ex_Colby!$B$10,ROUND(12*$AW20,0),(PlotControl!$C$6-1),1,1)) -> 0 | BC20: =(OFFSET(P_notNA_SW003!$B$10,ROUND(12*$AW20,0),(PlotControl!$C$6-1),1,1)) -> 0 | BD20: =(OFFSET(P_notNA_SW004!$B$10,ROUND(12*$AW20,0),(PlotControl!$C$6-1),1,1)) -> 0 | BE20: =(OFFSET(P_notNA_SW004a!$B$10,ROUND(12*$AW20,0),(PlotControl!$C$6-1),1,1)) -> 0 | BF20: =(OFFSET(P_notNA_SW005!$B$10,ROUND(12*$AW20,0),(PlotControl!$C$6-1),1,1)) -> 0.004 | BG20: =(OFFSET(P_notNA_Colby!$B$10,ROUND(12*$AW20,0),(PlotControl!$C$6-1),1,1)) -> 0
A21: 17 | B21: =IF(PlotControl!$B$4 = "Annual Max",MAX(OFFSET(P_Ex_SW003!$B$10,12*($A21-1),(PlotControl!$C$6-1),12,1)),AVERAGE(OFFSET(P_Ex_SW003!$B$10,12*($A21-1),(PlotControl!$C$6-1),12,1))) -> 0 | C21: =IF(PlotControl!$B$4 = "Annual Max",MAX(OFFSET(P_Ex_SW004!$B$10,12*($A21-1),(PlotControl!$C$6-1),12,1)),AVERAGE(OFFSET(P_Ex_SW004!$B$10,12*($A21-1),(PlotControl!$C$6-1),12,1))) -> 0 | D21: =IF(PlotControl!$B$4 = "Annual Max",MAX(OFFSET(P_Ex_SW004a!$B$10,12*($A21-1),(PlotControl!$C$6-1),12,1)),AVERAGE(OFFSET(P_Ex_SW004a!$B$10,12*($A21-1),(PlotControl!$C$6-1),12,1))) -> 0 | E21: =IF(PlotControl!$B$4 = "Annual Max",MAX(OFFSET(P_Ex_SW005!$B$10,12*($A21-1),(PlotControl!$C$6-1),12,1)),AVERAGE(OFFSET(P_Ex_SW005!$B$10,12*($A21-1),(PlotControl!$C$6-1),12,1))) -> 0.962 | F21: =IF(PlotControl!$B$4 = "Annual Max",MAX(OFFSET(P_Ex_Colby!$B$10,12*($A21-1),(PlotControl!$C$6-1),12,1)),AVERAGE(OFFSET(P_Ex_Colby!$B$10,12*($A21-1),(PlotControl!$C$6-1),12,1))) -> 0 | H21: 17 | I21: =IF(PlotControl!$B$4 = "Annual Max",MAX(OFFSET(P_notNA_SW003!$B$10,12*($H21-1),(PlotControl!$C$6-1),12,1)),AVERAGE(OFFSET(P_notNA_SW003!$B$10,12*$A21,(PlotControl!$C$6-1),12,1))) -> 0 | J21: =IF(PlotControl!$B$4 = "Annual Max",MAX(OFFSET(P_notNA_SW004!$B$10,12*($H21-1),(PlotControl!$C$6-1),12,1)),AVERAGE(OFFSET(P_notNA_SW004!$B$10,12*$A21,(PlotControl!$C$6-1),12,1))) -> 0 | K21: =IF(PlotControl!$B$4 = "Annual Max",MAX(OFFSET(P_notNA_SW004a!$B$10,12*($H21-1),(PlotControl!$C$6-1),12,1)),AVERAGE(OFFSET(P_notNA_SW004a!$B$10,12*$A21,(PlotControl!$C$6-1),12,1))) -> 0 | L21: =IF(PlotControl!$B$4 = "Annual Max",MAX(OFFSET(P_notNA_SW005!$B$10,12*($H21-1),(PlotControl!$C$6-1),12,1)),AVERAGE(OFFSET(P_notNA_SW005!$B$10,12*$A21,(PlotControl!$C$6-1),12,1))) -> 0.004 | M21: =IF(PlotControl!$B$4 = "Annual Max",MAX(OFFSET(P_notNA_Colby!$B$10,12*($H21-1),(PlotControl!$C$6-1),12,1)),AVERAGE(OFFSET(P_notNA_Colby!$B$10,12*$A21,(PlotControl!$C$6-1),12,1))) -> 0 | O21: 17 | P21: =IF(PlotControl!$B$4 = "Annual Max",MAX(OFFSET(AssimCap_SW003!$C$10,12*($O21-1),4*(PlotControl!$C$6-1),12,1)),AVERAGE(OFFSET(AssimCap_SW003!$C$10,12*($O21-1),4*(PlotControl!$C$6-1),12,1))) -> 0 | Q21: =IF(PlotControl!$B$4 = "Annual Max",MAX(OFFSET(AssimCap_SW003!$D$10,12*($O21-1),4*(PlotControl!$C$6-1),12,1)),AVERAGE(OFFSET(AssimCap_SW003!$D$10,12*($O21-1),4*(PlotControl!$C$6-1),12,1))) -> 0 | R21: =IF(PlotControl!$B$4 = "Annual Max",MAX(OFFSET(AssimCap_SW003!$E$10,12*($O21-1),4*(PlotControl!$C$6-1),12,1)),AVERAGE(OFFSET(AssimCap_SW003!$E$10,12*($O21-1),4*(PlotControl!$C$6-1),12,1))) -> 0 | S21: =IF(PlotControl!$B$4 = "Annual Max",MAX(OFFSET(AssimCap_SW004!$C$10,12*($O21-1),4*(PlotControl!$C$6-1),12,1)),AVERAGE(OFFSET(AssimCap_SW004!$C$10,12*($O21-1),4*(PlotControl!$C$6-1),12,1))) -> 0 | T21: =IF(PlotControl!$B$4 = "Annual Max",MAX(OFFSET(AssimCap_SW004!$D$10,12*($O21-1),4*(PlotControl!$C$6-1),12,1)),AVERAGE(OFFSET(AssimCap_SW004!$D$10,12*($O21-1),4*(PlotControl!$C$6-1),12,1))) -> 0 | U21: =IF(PlotControl!$B$4 = "Annual Max",MAX(OFFSET(AssimCap_SW004!$E$10,12*($O21-1),4*(PlotControl!$C$6-1),12,1)),AVERAGE(OFFSET(AssimCap_SW004!$E$10,12*($O21-1),4*(PlotControl!$C$6-1),12,1))) -> 0 | V21: =IF(PlotControl!$B$4 = "Annual Max",MAX(OFFSET(AssimCap_SW004a!$C$10,12*($O21-1),4*(PlotControl!$C$6-1),12,1)),AVERAGE(OFFSET(AssimCap_SW004a!$C$10,12*($O21-1),4*(PlotControl!$C$6-1),12,1))) -> 0 | W21: =IF(PlotControl!$B$4 = "Annual Max",MAX(OFFSET(AssimCap_SW004a!$D$10,12*($O21-1),4*(PlotControl!$C$6-1),12,1)),AVERAGE(OFFSET(AssimCap_SW004a!$D$10,12*($O21-1),4*(PlotControl!$C$6-1),12,1))) -> 0 | X21: =IF(PlotControl!$B$4 = "Annual Max",MAX(OFFSET(AssimCap_SW004a!$E$10,12*($O21-1),4*(PlotControl!$C$6-1),12,1)),AVERAGE(OFFSET(AssimCap_SW004a!$E$10,12*($O21-1),4*(PlotControl!$C$6-1),12,1))) -> 0 | Y21: =IF(PlotControl!$B$4 = "Annual Max",MAX(OFFSET(AssimCap_SW005!$C$10,12*($O21-1),4*(PlotControl!$C$6-1),12,1)),AVERAGE(OFFSET(AssimCap_SW005!$C$10,12*($O21-1),4*(PlotControl!$C$6-1),12,1))) -> 1 | Z21: =IF(PlotControl!$B$4 = "Annual Max",MAX(OFFSET(AssimCap_SW005!$D$10,12*($O21-1),4*(PlotControl!$C$6-1),12,1)),AVERAGE(OFFSET(AssimCap_SW005!$D$10,12*($O21-1),4*(PlotControl!$C$6-1),12,1))) -> 1 | AA21: =IF(PlotControl!$B$4 = "Annual Max",MAX(OFFSET(AssimCap_SW005!$E$10,12*($O21-1),4*(PlotControl!$C$6-1),12,1)),AVERAGE(OFFSET(AssimCap_SW005!$E$10,12*($O21-1),4*(PlotControl!$C$6-1),12,1))) -> 1 | AB21: =IF(PlotControl!$B$4 = "Annual Max",MAX(OFFSET(AssimCap_Colby!$C$10,12*($O21-1),4*(PlotControl!$C$6-1),12,1)),AVERAGE(OFFSET(AssimCap_Colby!$C$10,12*($O21-1),4*(PlotControl!$C$6-1),12,1))) -> 0.00061208 | AC21: =IF(PlotControl!$B$4 = "Annual Max",MAX(OFFSET(AssimCap_Colby!$D$10,12*($O21-1),4*(PlotControl!$C$6-1),12,1)),AVERAGE(OFFSET(AssimCap_Colby!$D$10,12*($O21-1),4*(PlotControl!$C$6-1),12,1))) -> 0.00094416 | AD21: =IF(PlotControl!$B$4 = "Annual Max",MAX(OFFSET(AssimCap_Colby!$E$10,12*($O21-1),4*(PlotControl!$C$6-1),12,1)),AVERAGE(OFFSET(AssimCap_Colby!$E$10,12*($O21-1),4*(PlotControl!$C$6-1),12,1))) -> 0.0013001 | AF21: 121.3333333 | AG21: =OFFSET(AssimCap_SW003!$C$10,ROUND(12*$AF21,0),4*(PlotControl!$C$6-1),1,1) -> 0 | AH21: =OFFSET(AssimCap_SW003!$D$10,ROUND(12*$AF21,0),4*(PlotControl!$C$6-1),1,1) -> 0 | AI21: =OFFSET(AssimCap_SW003!$E$10,ROUND(12*$AF21,0),4*(PlotControl!$C$6-1),1,1) -> 0 | AJ21: =OFFSET(AssimCap_SW004!$C$10,ROUND(12*$AF21,0),4*(PlotControl!$C$6-1),1,1) -> 0 | AK21: =OFFSET(AssimCap_SW004!$D$10,ROUND(12*$AF21,0),4*(PlotControl!$C$6-1),1,1) -> 0 | AL21: =OFFSET(AssimCap_SW004!$E$10,ROUND(12*$AF21,0),4*(PlotControl!$C$6-1),1,1) -> 0 | AM21: =OFFSET(AssimCap_SW004a!$C$10,ROUND(12*$AF21,0),4*(PlotControl!$C$6-1),1,1) -> 0 | AN21: =OFFSET(AssimCap_SW004a!$D$10,ROUND(12*$AF21,0),4*(PlotControl!$C$6-1),1,1) -> 0 | AO21: =OFFSET(AssimCap_SW004a!$E$10,ROUND(12*$AF21,0),4*(PlotControl!$C$6-1),1,1) -> 0 | AP21: =OFFSET(AssimCap_SW005!$C$10,ROUND(12*$AF21,0),4*(PlotControl!$C$6-1),1,1) -> 0.0013105 | AQ21: =OFFSET(AssimCap_SW005!$D$10,ROUND(12*$AF21,0),4*(PlotControl!$C$6-1),1,1) -> 0.0073438 | AR21: =OFFSET(AssimCap_SW005!$E$10,ROUND(12*$AF21,0),4*(PlotControl!$C$6-1),1,1) -> 1 | AS21: =OFFSET(AssimCap_Colby!$C$10,ROUND(12*$AF21,0),4*(PlotControl!$C$6-1),1,1) -> -0.0037811 | AT21: =OFFSET(AssimCap_Colby!$D$10,ROUND(12*$AF21,0),4*(PlotControl!$C$6-1),1,1) -> -0.0011069 | AU21: =OFFSET(AssimCap_Colby!$E$10,ROUND(12*$AF21,0),4*(PlotControl!$C$6-1),1,1) -> -0.00027129 | AW21: 121.3333333 | AX21: =(OFFSET(P_Ex_SW003!$B$10,ROUND(12*$AW21,0),(PlotControl!$C$6-1),1,1)) -> 0 | AY21: =(OFFSET(P_Ex_SW004!$B$10,ROUND(12*$AW21,0),(PlotControl!$C$6-1),1,1)) -> 0 | AZ21: =(OFFSET(P_Ex_SW004a!$B$10,ROUND(12*$AW21,0),(PlotControl!$C$6-1),1,1)) -> 0 | BA21: =(OFFSET(P_Ex_SW005!$B$10,ROUND(12*$AW21,0),(PlotControl!$C$6-1),1,1)) -> 0.24 | BB21: =(OFFSET(P_Ex_Colby!$B$10,ROUND(12*$AW21,0),(PlotControl!$C$6-1),1,1)) -> 0 | BC21: =(OFFSET(P_notNA_SW003!$B$10,ROUND(12*$AW21,0),(PlotControl!$C$6-1),1,1)) -> 0 | BD21: =(OFFSET(P_notNA_SW004!$B$10,ROUND(12*$AW21,0),(PlotControl!$C$6-1),1,1)) -> 0 | BE21: =(OFFSET(P_notNA_SW004a!$B$10,ROUND(12*$AW21,0),(PlotControl!$C$6-1),1,1)) -> 0 | BF21: =(OFFSET(P_notNA_SW005!$B$10,ROUND(12*$AW21,0),(PlotControl!$C$6-1),1,1)) -> 0 | BG21: =(OFFSET(P_notNA_Colby!$B$10,ROUND(12*$AW21,0),(PlotControl!$C$6-1),1,1)) -> 0
A22: 18 | B22: =IF(PlotControl!$B$4 = "Annual Max",MAX(OFFSET(P_Ex_SW003!$B$10,12*($A22-1),(PlotControl!$C$6-1),12,1)),AVERAGE(OFFSET(P_Ex_SW003!$B$10,12*($A22-1),(PlotControl!$C$6-1),12,1))) -> 0 | C22: =IF(PlotControl!$B$4 = "Annual Max",MAX(OFFSET(P_Ex_SW004!$B$10,12*($A22-1),(PlotControl!$C$6-1),12,1)),AVERAGE(OFFSET(P_Ex_SW004!$B$10,12*($A22-1),(PlotControl!$C$6-1),12,1))) -> 0 | D22: =IF(PlotControl!$B$4 = "Annual Max",MAX(OFFSET(P_Ex_SW004a!$B$10,12*($A22-1),(PlotControl!$C$6-1),12,1)),AVERAGE(OFFSET(P_Ex_SW004a!$B$10,12*($A22-1),(PlotControl!$C$6-1),12,1))) -> 0 | E22: =IF(PlotControl!$B$4 = "Annual Max",MAX(OFFSET(P_Ex_SW005!$B$10,12*($A22-1),(PlotControl!$C$6-1),12,1)),AVERAGE(OFFSET(P_Ex_SW005!$B$10,12*($A22-1),(PlotControl!$C$6-1),12,1))) -> 0.956 | F22: =IF(PlotControl!$B$4 = "Annual Max",MAX(OFFSET(P_Ex_Colby!$B$10,12*($A22-1),(PlotControl!$C$6-1),12,1)),AVERAGE(OFFSET(P_Ex_Colby!$B$10,12*($A22-1),(PlotControl!$C$6-1),12,1))) -> 0 | H22: 18 | I22: =IF(PlotControl!$B$4 = "Annual Max",MAX(OFFSET(P_notNA_SW003!$B$10,12*($H22-1),(PlotControl!$C$6-1),12,1)),AVERAGE(OFFSET(P_notNA_SW003!$B$10,12*$A22,(PlotControl!$C$6-1),12,1))) -> 0 | J22: =IF(PlotControl!$B$4 = "Annual Max",MAX(OFFSET(P_notNA_SW004!$B$10,12*($H22-1),(PlotControl!$C$6-1),12,1)),AVERAGE(OFFSET(P_notNA_SW004!$B$10,12*$A22,(PlotControl!$C$6-1),12,1))) -> 0 | K22: =IF(PlotControl!$B$4 = "Annual Max",MAX(OFFSET(P_notNA_SW004a!$B$10,12*($H22-1),(PlotControl!$C$6-1),12,1)),AVERAGE(OFFSET(P_notNA_SW004a!$B$10,12*$A22,(PlotControl!$C$6-1),12,1))) -> 0 | L22: =IF(PlotControl!$B$4 = "Annual Max",MAX(OFFSET(P_notNA_SW005!$B$10,12*($H22-1),(PlotControl!$C$6-1),12,1)),AVERAGE(OFFSET(P_notNA_SW005!$B$10,12*$A22,(PlotControl!$C$6-1),12,1))) -> 0.006 | M22: =IF(PlotControl!$B$4 = "Annual Max",MAX(OFFSET(P_notNA_Colby!$B$10,12*($H22-1),(PlotControl!$C$6-1),12,1)),AVERAGE(OFFSET(P_notNA_Colby!$B$10,12*$A22,(PlotControl!$C$6-1),12,1))) -> 0 | O22: 18 | P22: =IF(PlotControl!$B$4 = "Annual Max",MAX(OFFSET(AssimCap_SW003!$C$10,12*($O22-1),4*(PlotControl!$C$6-1),12,1)),AVERAGE(OFFSET(AssimCap_SW003!$C$10,12*($O22-1),4*(PlotControl!$C$6-1),12,1))) -> 0 | Q22: =IF(PlotControl!$B$4 = "Annual Max",MAX(OFFSET(AssimCap_SW003!$D$10,12*($O22-1),4*(PlotControl!$C$6-1),12,1)),AVERAGE(OFFSET(AssimCap_SW003!$D$10,12*($O22-1),4*(PlotControl!$C$6-1),12,1))) -> 0 | R22: =IF(PlotControl!$B$4 = "Annual Max",MAX(OFFSET(AssimCap_SW003!$E$10,12*($O22-1),4*(PlotControl!$C$6-1),12,1)),AVERAGE(OFFSET(AssimCap_SW003!$E$10,12*($O22-1),4*(PlotControl!$C$6-1),12,1))) -> 0 | S22: =IF(PlotControl!$B$4 = "Annual Max",MAX(OFFSET(AssimCap_SW004!$C$10,12*($O22-1),4*(PlotControl!$C$6-1),12,1)),AVERAGE(OFFSET(AssimCap_SW004!$C$10,12*($O22-1),4*(PlotControl!$C$6-1),12,1))) -> 0 | T22: =IF(PlotControl!$B$4 = "Annual Max",MAX(OFFSET(AssimCap_SW004!$D$10,12*($O22-1),4*(PlotControl!$C$6-1),12,1)),AVERAGE(OFFSET(AssimCap_SW004!$D$10,12*($O22-1),4*(PlotControl!$C$6-1),12,1))) -> 0 | U22: =IF(PlotControl!$B$4 = "Annual Max",MAX(OFFSET(AssimCap_SW004!$E$10,12*($O22-1),4*(PlotControl!$C$6-1),12,1)),AVERAGE(OFFSET(AssimCap_SW004!$E$10,12*($O22-1),4*(PlotControl!$C$6-1),12,1))) -> 0 | V22: =IF(PlotControl!$B$4 = "Annual Max",MAX(OFFSET(AssimCap_SW004a!$C$10,12*($O22-1),4*(PlotControl!$C$6-1),12,1)),AVERAGE(OFFSET(AssimCap_SW004a!$C$10,12*($O22-1),4*(PlotControl!$C$6-1),12,1))) -> 0 | W22: =IF(PlotControl!$B$4 = "Annual Max",MAX(OFFSET(AssimCap_SW004a!$D$10,12*($O22-1),4*(PlotControl!$C$6-1),12,1)),AVERAGE(OFFSET(AssimCap_SW004a!$D$10,12*($O22-1),4*(PlotControl!$C$6-1),12,1))) -> 0 | X22: =IF(PlotControl!$B$4 = "Annual Max",MAX(OFFSET(AssimCap_SW004a!$E$10,12*($O22-1),4*(PlotControl!$C$6-1),12,1)),AVERAGE(OFFSET(AssimCap_SW004a!$E$10,12*($O22-1),4*(PlotControl!$C$6-1),12,1))) -> 0 | Y22: =IF(PlotControl!$B$4 = "Annual Max",MAX(OFFSET(AssimCap_SW005!$C$10,12*($O22-1),4*(PlotControl!$C$6-1),12,1)),AVERAGE(OFFSET(AssimCap_SW005!$C$10,12*($O22-1),4*(PlotControl!$C$6-1),12,1))) -> 1 | Z22: =IF(PlotControl!$B$4 = "Annual Max",MAX(OFFSET(AssimCap_SW005!$D$10,12*($O22-1),4*(PlotControl!$C$6-1),12,1)),AVERAGE(OFFSET(AssimCap_SW005!$D$10,12*($O22-1),4*(PlotControl!$C$6-1),12,1))) -> 1 | AA22: =IF(PlotControl!$B$4 = "Annual Max",MAX(OFFSET(AssimCap_SW005!$E$10,12*($O22-1),4*(PlotControl!$C$6-1),12,1)),AVERAGE(OFFSET(AssimCap_SW005!$E$10,12*($O22-1),4*(PlotControl!$C$6-1),12,1))) -> 1 | AB22: =IF(PlotControl!$B$4 = "Annual Max",MAX(OFFSET(AssimCap_Colby!$C$10,12*($O22-1),4*(PlotControl!$C$6-1),12,1)),AVERAGE(OFFSET(AssimCap_Colby!$C$10,12*($O22-1),4*(PlotControl!$C$6-1),12,1))) -> 0.00057151 | AC22: =IF(PlotControl!$B$4 = "Annual Max",MAX(OFFSET(AssimCap_Colby!$D$10,12*($O22-1),4*(PlotControl!$C$6-1),12,1)),AVERAGE(OFFSET(AssimCap_Colby!$D$10,12*($O22-1),4*(PlotControl!$C$6-1),12,1))) -> 0.00088547 | AD22: =IF(PlotControl!$B$4 = "Annual Max",MAX(OFFSET(AssimCap_Colby!$E$10,12*($O22-1),4*(PlotControl!$C$6-1),12,1)),AVERAGE(OFFSET(AssimCap_Colby!$E$10,12*($O22-1),4*(PlotControl!$C$6-1),12,1))) -> 0.0012424 | AF22: 121.4166667 | AG22: =OFFSET(AssimCap_SW003!$C$10,ROUND(12*$AF22,0),4*(PlotControl!$C$6-1),1,1) -> 0 | AH22: =OFFSET(AssimCap_SW003!$D$10,ROUND(12*$AF22,0),4*(PlotControl!$C$6-1),1,1) -> 0 | AI22: =OFFSET(AssimCap_SW003!$E$10,ROUND(12*$AF22,0),4*(PlotControl!$C$6-1),1,1) -> 0 | AJ22: =OFFSET(AssimCap_SW004!$C$10,ROUND(12*$AF22,0),4*(PlotControl!$C$6-1),1,1) -> 0 | AK22: =OFFSET(AssimCap_SW004!$D$10,ROUND(12*$AF22,0),4*(PlotControl!$C$6-1),1,1) -> 0 | AL22: =OFFSET(AssimCap_SW004!$E$10,ROUND(12*$AF22,0),4*(PlotControl!$C$6-1),1,1) -> 0 | AM22: =OFFSET(AssimCap_SW004a!$C$10,ROUND(12*$AF22,0),4*(PlotControl!$C$6-1),1,1) -> 0 | AN22: =OFFSET(AssimCap_SW004a!$D$10,ROUND(12*$AF22,0),4*(PlotControl!$C$6-1),1,1) -> 0 | AO22: =OFFSET(AssimCap_SW004a!$E$10,ROUND(12*$AF22,0),4*(PlotControl!$C$6-1),1,1) -> 0 | AP22: =OFFSET(AssimCap_SW005!$C$10,ROUND(12*$AF22,0),4*(PlotControl!$C$6-1),1,1) -> 0.0015677 | AQ22: =OFFSET(AssimCap_SW005!$D$10,ROUND(12*$AF22,0),4*(PlotControl!$C$6-1),1,1) -> 0.0068294 | AR22: =OFFSET(AssimCap_SW005!$E$10,ROUND(12*$AF22,0),4*(PlotControl!$C$6-1),1,1) -> 1 | AS22: =OFFSET(AssimCap_Colby!$C$10,ROUND(12*$AF22,0),4*(PlotControl!$C$6-1),1,1) -> -0.0015328 | AT22: =OFFSET(AssimCap_Colby!$D$10,ROUND(12*$AF22,0),4*(PlotControl!$C$6-1),1,1) -> -0.00040485 | AU22: =OFFSET(AssimCap_Colby!$E$10,ROUND(12*$AF22,0),4*(PlotControl!$C$6-1),1,1) -> -5.0792e-05 | AW22: 121.4166667 | AX22: =(OFFSET(P_Ex_SW003!$B$10,ROUND(12*$AW22,0),(PlotControl!$C$6-1),1,1)) -> 0 | AY22: =(OFFSET(P_Ex_SW004!$B$10,ROUND(12*$AW22,0),(PlotControl!$C$6-1),1,1)) -> 0 | AZ22: =(OFFSET(P_Ex_SW004a!$B$10,ROUND(12*$AW22,0),(PlotControl!$C$6-1),1,1)) -> 0 | BA22: =(OFFSET(P_Ex_SW005!$B$10,ROUND(12*$AW22,0),(PlotControl!$C$6-1),1,1)) -> 0.202 | BB22: =(OFFSET(P_Ex_Colby!$B$10,ROUND(12*$AW22,0),(PlotControl!$C$6-1),1,1)) -> 0 | BC22: =(OFFSET(P_notNA_SW003!$B$10,ROUND(12*$AW22,0),(PlotControl!$C$6-1),1,1)) -> 0 | BD22: =(OFFSET(P_notNA_SW004!$B$10,ROUND(12*$AW22,0),(PlotControl!$C$6-1),1,1)) -> 0 | BE22: =(OFFSET(P_notNA_SW004a!$B$10,ROUND(12*$AW22,0),(PlotControl!$C$6-1),1,1)) -> 0 | BF22: =(OFFSET(P_notNA_SW005!$B$10,ROUND(12*$AW22,0),(PlotControl!$C$6-1),1,1)) -> 0 | BG22: =(OFFSET(P_notNA_Colby!$B$10,ROUND(12*$AW22,0),(PlotControl!$C$6-1),1,1)) -> 0
A23: 19 | B23: =IF(PlotControl!$B$4 = "Annual Max",MAX(OFFSET(P_Ex_SW003!$B$10,12*($A23-1),(PlotControl!$C$6-1),12,1)),AVERAGE(OFFSET(P_Ex_SW003!$B$10,12*($A23-1),(PlotControl!$C$6-1),12,1))) -> 0 | C23: =IF(PlotControl!$B$4 = "Annual Max",MAX(OFFSET(P_Ex_SW004!$B$10,12*($A23-1),(PlotControl!$C$6-1),12,1)),AVERAGE(OFFSET(P_Ex_SW004!$B$10,12*($A23-1),(PlotControl!$C$6-1),12,1))) -> 0 | D23: =IF(PlotControl!$B$4 = "Annual Max",MAX(OFFSET(P_Ex_SW004a!$B$10,12*($A23-1),(PlotControl!$C$6-1),12,1)),AVERAGE(OFFSET(P_Ex_SW004a!$B$10,12*($A23-1),(PlotControl!$C$6-1),12,1))) -> 0 | E23: =IF(PlotControl!$B$4 = "Annual Max",MAX(OFFSET(P_Ex_SW005!$B$10,12*($A23-1),(PlotControl!$C$6-1),12,1)),AVERAGE(OFFSET(P_Ex_SW005!$B$10,12*($A23-1),(PlotControl!$C$6-1),12,1))) -> 0.94 | F23: =IF(PlotControl!$B$4 = "Annual Max",MAX(OFFSET(P_Ex_Colby!$B$10,12*($A23-1),(PlotControl!$C$6-1),12,1)),AVERAGE(OFFSET(P_Ex_Colby!$B$10,12*($A23-1),(PlotControl!$C$6-1),12,1))) -> 0 | H23: 19 | I23: =IF(PlotControl!$B$4 = "Annual Max",MAX(OFFSET(P_notNA_SW003!$B$10,12*($H23-1),(PlotControl!$C$6-1),12,1)),AVERAGE(OFFSET(P_notNA_SW003!$B$10,12*$A23,(PlotControl!$C$6-1),12,1))) -> 0 | J23: =IF(PlotControl!$B$4 = "Annual Max",MAX(OFFSET(P_notNA_SW004!$B$10,12*($H23-1),(PlotControl!$C$6-1),12,1)),AVERAGE(OFFSET(P_notNA_SW004!$B$10,12*$A23,(PlotControl!$C$6-1),12,1))) -> 0 | K23: =IF(PlotControl!$B$4 = "Annual Max",MAX(OFFSET(P_notNA_SW004a!$B$10,12*($H23-1),(PlotControl!$C$6-1),12,1)),AVERAGE(OFFSET(P_notNA_SW004a!$B$10,12*$A23,(PlotControl!$C$6-1),12,1))) -> 0 | L23: =IF(PlotControl!$B$4 = "Annual Max",MAX(OFFSET(P_notNA_SW005!$B$10,12*($H23-1),(PlotControl!$C$6-1),12,1)),AVERAGE(OFFSET(P_notNA_SW005!$B$10,12*$A23,(PlotControl!$C$6-1),12,1))) -> 0.002 | M23: =IF(PlotControl!$B$4 = "Annual Max",MAX(OFFSET(P_notNA_Colby!$B$10,12*($H23-1),(PlotControl!$C$6-1),12,1)),AVERAGE(OFFSET(P_notNA_Colby!$B$10,12*$A23,(PlotControl!$C$6-1),12,1))) -> 0 | O23: 19 | P23: =IF(PlotControl!$B$4 = "Annual Max",MAX(OFFSET(AssimCap_SW003!$C$10,12*($O23-1),4*(PlotControl!$C$6-1),12,1)),AVERAGE(OFFSET(AssimCap_SW003!$C$10,12*($O23-1),4*(PlotControl!$C$6-1),12,1))) -> 0 | Q23: =IF(PlotControl!$B$4 = "Annual Max",MAX(OFFSET(AssimCap_SW003!$D$10,12*($O23-1),4*(PlotControl!$C$6-1),12,1)),AVERAGE(OFFSET(AssimCap_SW003!$D$10,12*($O23-1),4*(PlotControl!$C$6-1),12,1))) -> 0 | R23: =IF(PlotControl!$B$4 = "Annual Max",MAX(OFFSET(AssimCap_SW003!$E$10,12*($O23-1),4*(PlotControl!$C$6-1),12,1)),AVERAGE(OFFSET(AssimCap_SW003!$E$10,12*($O23-1),4*(PlotControl!$C$6-1),12,1))) -> 0 | S23: =IF(PlotControl!$B$4 = "Annual Max",MAX(OFFSET(AssimCap_SW004!$C$10,12*($O23-1),4*(PlotControl!$C$6-1),12,1)),AVERAGE(OFFSET(AssimCap_SW004!$C$10,12*($O23-1),4*(PlotControl!$C$6-1),12,1))) -> 0 | T23: =IF(PlotControl!$B$4 = "Annual Max",MAX(OFFSET(AssimCap_SW004!$D$10,12*($O23-1),4*(PlotControl!$C$6-1),12,1)),AVERAGE(OFFSET(AssimCap_SW004!$D$10,12*($O23-1),4*(PlotControl!$C$6-1),12,1))) -> 0 | U23: =IF(PlotControl!$B$4 = "Annual Max",MAX(OFFSET(AssimCap_SW004!$E$10,12*($O23-1),4*(PlotControl!$C$6-1),12,1)),AVERAGE(OFFSET(AssimCap_SW004!$E$10,12*($O23-1),4*(PlotControl!$C$6-1),12,1))) -> 0 | V23: =IF(PlotControl!$B$4 = "Annual Max",MAX(OFFSET(AssimCap_SW004a!$C$10,12*($O23-1),4*(PlotControl!$C$6-1),12,1)),AVERAGE(OFFSET(AssimCap_SW004a!$C$10,12*($O23-1),4*(PlotControl!$C$6-1),12,1))) -> 0 | W23: =IF(PlotControl!$B$4 = "Annual Max",MAX(OFFSET(AssimCap_SW004a!$D$10,12*($O23-1),4*(PlotControl!$C$6-1),12,1)),AVERAGE(OFFSET(AssimCap_SW004a!$D$10,12*($O23-1),4*(PlotControl!$C$6-1),12,1))) -> 0 | X23: =IF(PlotControl!$B$4 = "Annual Max",MAX(OFFSET(AssimCap_SW004a!$E$10,12*($O23-1),4*(PlotControl!$C$6-1),12,1)),AVERAGE(OFFSET(AssimCap_SW004a!$E$10,12*($O23-1),4*(PlotControl!$C$6-1),12,1))) -> 0 | Y23: =IF(PlotControl!$B$4 = "Annual Max",MAX(OFFSET(AssimCap_SW005!$C$10,12*($O23-1),4*(PlotControl!$C$6-1),12,1)),AVERAGE(OFFSET(AssimCap_SW005!$C$10,12*($O23-1),4*(PlotControl!$C$6-1),12,1))) -> 1 | Z23: =IF(PlotControl!$B$4 = "Annual Max",MAX(OFFSET(AssimCap_SW005!$D$10,12*($O23-1),4*(PlotControl!$C$6-1),12,1)),AVERAGE(OFFSET(AssimCap_SW005!$D$10,12*($O23-1),4*(PlotControl!$C$6-1),12,1))) -> 1 | AA23: =IF(PlotControl!$B$4 = "Annual Max",MAX(OFFSET(AssimCap_SW005!$E$10,12*($O23-1),4*(PlotControl!$C$6-1),12,1)),AVERAGE(OFFSET(AssimCap_SW005!$E$10,12*($O23-1),4*(PlotControl!$C$6-1),12,1))) -> 1 | AB23: =IF(PlotControl!$B$4 = "Annual Max",MAX(OFFSET(AssimCap_Colby!$C$10,12*($O23-1),4*(PlotControl!$C$6-1),12,1)),AVERAGE(OFFSET(AssimCap_Colby!$C$10,12*($O23-1),4*(PlotControl!$C$6-1),12,1))) -> 0.00052182 | AC23: =IF(PlotControl!$B$4 = "Annual Max",MAX(OFFSET(AssimCap_Colby!$D$10,12*($O23-1),4*(PlotControl!$C$6-1),12,1)),AVERAGE(OFFSET(AssimCap_Colby!$D$10,12*($O23-1),4*(PlotControl!$C$6-1),12,1))) -> 0.00078848 | AD23: =IF(PlotControl!$B$4 = "Annual Max",MAX(OFFSET(AssimCap_Colby!$E$10,12*($O23-1),4*(PlotControl!$C$6-1),12,1)),AVERAGE(OFFSET(AssimCap_Colby!$E$10,12*($O23-1),4*(PlotControl!$C$6-1),12,1))) -> 0.0011036 | AF23: 121.5 | AG23: =OFFSET(AssimCap_SW003!$C$10,ROUND(12*$AF23,0),4*(PlotControl!$C$6-1),1,1) -> 0 | AH23: =OFFSET(AssimCap_SW003!$D$10,ROUND(12*$AF23,0),4*(PlotControl!$C$6-1),1,1) -> 0 | AI23: =OFFSET(AssimCap_SW003!$E$10,ROUND(12*$AF23,0),4*(PlotControl!$C$6-1),1,1) -> 0 | AJ23: =OFFSET(AssimCap_SW004!$C$10,ROUND(12*$AF23,0),4*(PlotControl!$C$6-1),1,1) -> 0 | AK23: =OFFSET(AssimCap_SW004!$D$10,ROUND(12*$AF23,0),4*(PlotControl!$C$6-1),1,1) -> 0 | AL23: =OFFSET(AssimCap_SW004!$E$10,ROUND(12*$AF23,0),4*(PlotControl!$C$6-1),1,1) -> 0 | AM23: =OFFSET(AssimCap_SW004a!$C$10,ROUND(12*$AF23,0),4*(PlotControl!$C$6-1),1,1) -> 0 | AN23: =OFFSET(AssimCap_SW004a!$D$10,ROUND(12*$AF23,0),4*(PlotControl!$C$6-1),1,1) -> 0 | AO23: =OFFSET(AssimCap_SW004a!$E$10,ROUND(12*$AF23,0),4*(PlotControl!$C$6-1),1,1) -> 0 | AP23: =OFFSET(AssimCap_SW005!$C$10,ROUND(12*$AF23,0),4*(PlotControl!$C$6-1),1,1) -> 0.0032818 | AQ23: =OFFSET(AssimCap_SW005!$D$10,ROUND(12*$AF23,0),4*(PlotControl!$C$6-1),1,1) -> 0.012191 | AR23: =OFFSET(AssimCap_SW005!$E$10,ROUND(12*$AF23,0),4*(PlotControl!$C$6-1),1,1) -> 1 | AS23: =OFFSET(AssimCap_Colby!$C$10,ROUND(12*$AF23,0),4*(PlotControl!$C$6-1),1,1) -> -0.001389 | AT23: =OFFSET(AssimCap_Colby!$D$10,ROUND(12*$AF23,0),4*(PlotControl!$C$6-1),1,1) -> -0.00034752 | AU23: =OFFSET(AssimCap_Colby!$E$10,ROUND(12*$AF23,0),4*(PlotControl!$C$6-1),1,1) -> -6.0594e-05 | AW23: 121.5 | AX23: =(OFFSET(P_Ex_SW003!$B$10,ROUND(12*$AW23,0),(PlotControl!$C$6-1),1,1)) -> 0 | AY23: =(OFFSET(P_Ex_SW004!$B$10,ROUND(12*$AW23,0),(PlotControl!$C$6-1),1,1)) -> 0 | AZ23: =(OFFSET(P_Ex_SW004a!$B$10,ROUND(12*$AW23,0),(PlotControl!$C$6-1),1,1)) -> 0 | BA23: =(OFFSET(P_Ex_SW005!$B$10,ROUND(12*$AW23,0),(PlotControl!$C$6-1),1,1)) -> 0.218 | BB23: =(OFFSET(P_Ex_Colby!$B$10,ROUND(12*$AW23,0),(PlotControl!$C$6-1),1,1)) -> 0 | BC23: =(OFFSET(P_notNA_SW003!$B$10,ROUND(12*$AW23,0),(PlotControl!$C$6-1),1,1)) -> 0 | BD23: =(OFFSET(P_notNA_SW004!$B$10,ROUND(12*$AW23,0),(PlotControl!$C$6-1),1,1)) -> 0 | BE23: =(OFFSET(P_notNA_SW004a!$B$10,ROUND(12*$AW23,0),(PlotControl!$C$6-1),1,1)) -> 0 | BF23: =(OFFSET(P_notNA_SW005!$B$10,ROUND(12*$AW23,0),(PlotControl!$C$6-1),1,1)) -> 0.002 | BG23: =(OFFSET(P_notNA_Colby!$B$10,ROUND(12*$AW23,0),(PlotControl!$C$6-1),1,1)) -> 0
A24: 20 | B24: =IF(PlotControl!$B$4 = "Annual Max",MAX(OFFSET(P_Ex_SW003!$B$10,12*($A24-1),(PlotControl!$C$6-1),12,1)),AVERAGE(OFFSET(P_Ex_SW003!$B$10,12*($A24-1),(PlotControl!$C$6-1),12,1))) -> 0 | C24: =IF(PlotControl!$B$4 = "Annual Max",MAX(OFFSET(P_Ex_SW004!$B$10,12*($A24-1),(PlotControl!$C$6-1),12,1)),AVERAGE(OFFSET(P_Ex_SW004!$B$10,12*($A24-1),(PlotControl!$C$6-1),12,1))) -> 0 | D24: =IF(PlotControl!$B$4 = "Annual Max",MAX(OFFSET(P_Ex_SW004a!$B$10,12*($A24-1),(PlotControl!$C$6-1),12,1)),AVERAGE(OFFSET(P_Ex_SW004a!$B$10,12*($A24-1),(PlotControl!$C$6-1),12,1))) -> 0 | E24: =IF(PlotControl!$B$4 = "Annual Max",MAX(OFFSET(P_Ex_SW005!$B$10,12*($A24-1),(PlotControl!$C$6-1),12,1)),AVERAGE(OFFSET(P_Ex_SW005!$B$10,12*($A24-1),(PlotControl!$C$6-1),12,1))) -> 0.946 | F24: =IF(PlotControl!$B$4 = "Annual Max",MAX(OFFSET(P_Ex_Colby!$B$10,12*($A24-1),(PlotControl!$C$6-1),12,1)),AVERAGE(OFFSET(P_Ex_Colby!$B$10,12*($A24-1),(PlotControl!$C$6-1),12,1))) -> 0 | H24: 20 | I24: =IF(PlotControl!$B$4 = "Annual Max",MAX(OFFSET(P_notNA_SW003!$B$10,12*($H24-1),(PlotControl!$C$6-1),12,1)),AVERAGE(OFFSET(P_notNA_SW003!$B$10,12*$A24,(PlotControl!$C$6-1),12,1))) -> 0 | J24: =IF(PlotControl!$B$4 = "Annual Max",MAX(OFFSET(P_notNA_SW004!$B$10,12*($H24-1),(PlotControl!$C$6-1),12,1)),AVERAGE(OFFSET(P_notNA_SW004!$B$10,12*$A24,(PlotControl!$C$6-1),12,1))) -> 0 | K24: =IF(PlotControl!$B$4 = "Annual Max",MAX(OFFSET(P_notNA_SW004a!$B$10,12*($H24-1),(PlotControl!$C$6-1),12,1)),AVERAGE(OFFSET(P_notNA_SW004a!$B$10,12*$A24,(PlotControl!$C$6-1),12,1))) -> 0 | L24: =IF(PlotControl!$B$4 = "Annual Max",MAX(OFFSET(P_notNA_SW005!$B$10,12*($H24-1),(PlotControl!$C$6-1),12,1)),AVERAGE(OFFSET(P_notNA_SW005!$B$10,12*$A24,(PlotControl!$C$6-1),12,1))) -> 0.004 | M24: =IF(PlotControl!$B$4 = "Annual Max",MAX(OFFSET(P_notNA_Colby!$B$10,12*($H24-1),(PlotControl!$C$6-1),12,1)),AVERAGE(OFFSET(P_notNA_Colby!$B$10,12*$A24,(PlotControl!$C$6-1),12,1))) -> 0 | O24: 20 | P24: =IF(PlotControl!$B$4 = "Annual Max",MAX(OFFSET(AssimCap_SW003!$C$10,12*($O24-1),4*(PlotControl!$C$6-1),12,1)),AVERAGE(OFFSET(AssimCap_SW003!$C$10,12*($O24-1),4*(PlotControl!$C$6-1),12,1))) -> 0 | Q24: =IF(PlotControl!$B$4 = "Annual Max",MAX(OFFSET(AssimCap_SW003!$D$10,12*($O24-1),4*(PlotControl!$C$6-1),12,1)),AVERAGE(OFFSET(AssimCap_SW003!$D$10,12*($O24-1),4*(PlotControl!$C$6-1),12,1))) -> 0 | R24: =IF(PlotControl!$B$4 = "Annual Max",MAX(OFFSET(AssimCap_SW003!$E$10,12*($O24-1),4*(PlotControl!$C$6-1),12,1)),AVERAGE(OFFSET(AssimCap_SW003!$E$10,12*($O24-1),4*(PlotControl!$C$6-1),12,1))) -> 0 | S24: =IF(PlotControl!$B$4 = "Annual Max",MAX(OFFSET(AssimCap_SW004!$C$10,12*($O24-1),4*(PlotControl!$C$6-1),12,1)),AVERAGE(OFFSET(AssimCap_SW004!$C$10,12*($O24-1),4*(PlotControl!$C$6-1),12,1))) -> 0 | T24: =IF(PlotControl!$B$4 = "Annual Max",MAX(OFFSET(AssimCap_SW004!$D$10,12*($O24-1),4*(PlotControl!$C$6-1),12,1)),AVERAGE(OFFSET(AssimCap_SW004!$D$10,12*($O24-1),4*(PlotControl!$C$6-1),12,1))) -> 0 | U24: =IF(PlotControl!$B$4 = "Annual Max",MAX(OFFSET(AssimCap_SW004!$E$10,12*($O24-1),4*(PlotControl!$C$6-1),12,1)),AVERAGE(OFFSET(AssimCap_SW004!$E$10,12*($O24-1),4*(PlotControl!$C$6-1),12,1))) -> 0 | V24: =IF(PlotControl!$B$4 = "Annual Max",MAX(OFFSET(AssimCap_SW004a!$C$10,12*($O24-1),4*(PlotControl!$C$6-1),12,1)),AVERAGE(OFFSET(AssimCap_SW004a!$C$10,12*($O24-1),4*(PlotControl!$C$6-1),12,1))) -> 0 | W24: =IF(PlotControl!$B$4 = "Annual Max",MAX(OFFSET(AssimCap_SW004a!$D$10,12*($O24-1),4*(PlotControl!$C$6-1),12,1)),AVERAGE(OFFSET(AssimCap_SW004a!$D$10,12*($O24-1),4*(PlotControl!$C$6-1),12,1))) -> 0 | X24: =IF(PlotControl!$B$4 = "Annual Max",MAX(OFFSET(AssimCap_SW004a!$E$10,12*($O24-1),4*(PlotControl!$C$6-1),12,1)),AVERAGE(OFFSET(AssimCap_SW004a!$E$10,12*($O24-1),4*(PlotControl!$C$6-1),12,1))) -> 0 | Y24: =IF(PlotControl!$B$4 = "Annual Max",MAX(OFFSET(AssimCap_SW005!$C$10,12*($O24-1),4*(PlotControl!$C$6-1),12,1)),AVERAGE(OFFSET(AssimCap_SW005!$C$10,12*($O24-1),4*(PlotControl!$C$6-1),12,1))) -> 1 | Z24: =IF(PlotControl!$B$4 = "Annual Max",MAX(OFFSET(AssimCap_SW005!$D$10,12*($O24-1),4*(PlotControl!$C$6-1),12,1)),AVERAGE(OFFSET(AssimCap_SW005!$D$10,12*($O24-1),4*(PlotControl!$C$6-1),12,1))) -> 1 | AA24: =IF(PlotControl!$B$4 = "Annual Max",MAX(OFFSET(AssimCap_SW005!$E$10,12*($O24-1),4*(PlotControl!$C$6-1),12,1)),AVERAGE(OFFSET(AssimCap_SW005!$E$10,12*($O24-1),4*(PlotControl!$C$6-1),12,1))) -> 1 | AB24: =IF(PlotControl!$B$4 = "Annual Max",MAX(OFFSET(AssimCap_Colby!$C$10,12*($O24-1),4*(PlotControl!$C$6-1),12,1)),AVERAGE(OFFSET(AssimCap_Colby!$C$10,12*($O24-1),4*(PlotControl!$C$6-1),12,1))) -> 0.00046282 | AC24: =IF(PlotControl!$B$4 = "Annual Max",MAX(OFFSET(AssimCap_Colby!$D$10,12*($O24-1),4*(PlotControl!$C$6-1),12,1)),AVERAGE(OFFSET(AssimCap_Colby!$D$10,12*($O24-1),4*(PlotControl!$C$6-1),12,1))) -> 0.00068298 | AD24: =IF(PlotControl!$B$4 = "Annual Max",MAX(OFFSET(AssimCap_Colby!$E$10,12*($O24-1),4*(PlotControl!$C$6-1),12,1)),AVERAGE(OFFSET(AssimCap_Colby!$E$10,12*($O24-1),4*(PlotControl!$C$6-1),12,1))) -> 0.00099398 | AF24: 121.5833333 | AG24: =OFFSET(AssimCap_SW003!$C$10,ROUND(12*$AF24,0),4*(PlotControl!$C$6-1),1,1) -> 0 | AH24: =OFFSET(AssimCap_SW003!$D$10,ROUND(12*$AF24,0),4*(PlotControl!$C$6-1),1,1) -> 0 | AI24: =OFFSET(AssimCap_SW003!$E$10,ROUND(12*$AF24,0),4*(PlotControl!$C$6-1),1,1) -> 0 | AJ24: =OFFSET(AssimCap_SW004!$C$10,ROUND(12*$AF24,0),4*(PlotControl!$C$6-1),1,1) -> 0 | AK24: =OFFSET(AssimCap_SW004!$D$10,ROUND(12*$AF24,0),4*(PlotControl!$C$6-1),1,1) -> 0 | AL24: =OFFSET(AssimCap_SW004!$E$10,ROUND(12*$AF24,0),4*(PlotControl!$C$6-1),1,1) -> 0 | AM24: =OFFSET(AssimCap_SW004a!$C$10,ROUND(12*$AF24,0),4*(PlotControl!$C$6-1),1,1) -> 0 | AN24: =OFFSET(AssimCap_SW004a!$D$10,ROUND(12*$AF24,0),4*(PlotControl!$C$6-1),1,1) -> 0 | AO24: =OFFSET(AssimCap_SW004a!$E$10,ROUND(12*$AF24,0),4*(PlotControl!$C$6-1),1,1) -> 0 | AP24: =OFFSET(AssimCap_SW005!$C$10,ROUND(12*$AF24,0),4*(PlotControl!$C$6-1),1,1) -> 0.0013576 | AQ24: =OFFSET(AssimCap_SW005!$D$10,ROUND(12*$AF24,0),4*(PlotControl!$C$6-1),1,1) -> 0.02038 | AR24: =OFFSET(AssimCap_SW005!$E$10,ROUND(12*$AF24,0),4*(PlotControl!$C$6-1),1,1) -> 1 | AS24: =OFFSET(AssimCap_Colby!$C$10,ROUND(12*$AF24,0),4*(PlotControl!$C$6-1),1,1) -> -0.0014406 | AT24: =OFFSET(AssimCap_Colby!$D$10,ROUND(12*$AF24,0),4*(PlotControl!$C$6-1),1,1) -> -0.00028688 | AU24: =OFFSET(AssimCap_Colby!$E$10,ROUND(12*$AF24,0),4*(PlotControl!$C$6-1),1,1) -> 7.2989e-06 | AW24: 121.5833333 | AX24: =(OFFSET(P_Ex_SW003!$B$10,ROUND(12*$AW24,0),(PlotControl!$C$6-1),1,1)) -> 0 | AY24: =(OFFSET(P_Ex_SW004!$B$10,ROUND(12*$AW24,0),(PlotControl!$C$6-1),1,1)) -> 0 | AZ24: =(OFFSET(P_Ex_SW004a!$B$10,ROUND(12*$AW24,0),(PlotControl!$C$6-1),1,1)) -> 0 | BA24: =(OFFSET(P_Ex_SW005!$B$10,ROUND(12*$AW24,0),(PlotControl!$C$6-1),1,1)) -> 0.228 | BB24: =(OFFSET(P_Ex_Colby!$B$10,ROUND(12*$AW24,0),(PlotControl!$C$6-1),1,1)) -> 0 | BC24: =(OFFSET(P_notNA_SW003!$B$10,ROUND(12*$AW24,0),(PlotControl!$C$6-1),1,1)) -> 0 | BD24: =(OFFSET(P_notNA_SW004!$B$10,ROUND(12*$AW24,0),(PlotControl!$C$6-1),1,1)) -> 0 | BE24: =(OFFSET(P_notNA_SW004a!$B$10,ROUND(12*$AW24,0),(PlotControl!$C$6-1),1,1)) -> 0 | BF24: =(OFFSET(P_notNA_SW005!$B$10,ROUND(12*$AW24,0),(PlotControl!$C$6-1),1,1)) -> 0.002 | BG24: =(OFFSET(P_notNA_Colby!$B$10,ROUND(12*$AW24,0),(PlotControl!$C$6-1),1,1)) -> 0
A25: 21 | B25: =IF(PlotControl!$B$4 = "Annual Max",MAX(OFFSET(P_Ex_SW003!$B$10,12*($A25-1),(PlotControl!$C$6-1),12,1)),AVERAGE(OFFSET(P_Ex_SW003!$B$10,12*($A25-1),(PlotControl!$C$6-1),12,1))) -> 0 | C25: =IF(PlotControl!$B$4 = "Annual Max",MAX(OFFSET(P_Ex_SW004!$B$10,12*($A25-1),(PlotControl!$C$6-1),12,1)),AVERAGE(OFFSET(P_Ex_SW004!$B$10,12*($A25-1),(PlotControl!$C$6-1),12,1))) -> 0 | D25: =IF(PlotControl!$B$4 = "Annual Max",MAX(OFFSET(P_Ex_SW004a!$B$10,12*($A25-1),(PlotControl!$C$6-1),12,1)),AVERAGE(OFFSET(P_Ex_SW004a!$B$10,12*($A25-1),(PlotControl!$C$6-1),12,1))) -> 0 | E25: =IF(PlotControl!$B$4 = "Annual Max",MAX(OFFSET(P_Ex_SW005!$B$10,12*($A25-1),(PlotControl!$C$6-1),12,1)),AVERAGE(OFFSET(P_Ex_SW005!$B$10,12*($A25-1),(PlotControl!$C$6-1),12,1))) -> 0.954 | F25: =IF(PlotControl!$B$4 = "Annual Max",MAX(OFFSET(P_Ex_Colby!$B$10,12*($A25-1),(PlotControl!$C$6-1),12,1)),AVERAGE(OFFSET(P_Ex_Colby!$B$10,12*($A25-1),(PlotControl!$C$6-1),12,1))) -> 0 | H25: 21 | I25: =IF(PlotControl!$B$4 = "Annual Max",MAX(OFFSET(P_notNA_SW003!$B$10,12*($H25-1),(PlotControl!$C$6-1),12,1)),AVERAGE(OFFSET(P_notNA_SW003!$B$10,12*$A25,(PlotControl!$C$6-1),12,1))) -> 0 | J25: =IF(PlotControl!$B$4 = "Annual Max",MAX(OFFSET(P_notNA_SW004!$B$10,12*($H25-1),(PlotControl!$C$6-1),12,1)),AVERAGE(OFFSET(P_notNA_SW004!$B$10,12*$A25,(PlotControl!$C$6-1),12,1))) -> 0 | K25: =IF(PlotControl!$B$4 = "Annual Max",MAX(OFFSET(P_notNA_SW004a!$B$10,12*($H25-1),(PlotControl!$C$6-1),12,1)),AVERAGE(OFFSET(P_notNA_SW004a!$B$10,12*$A25,(PlotControl!$C$6-1),12,1))) -> 0 | L25: =IF(PlotControl!$B$4 = "Annual Max",MAX(OFFSET(P_notNA_SW005!$B$10,12*($H25-1),(PlotControl!$C$6-1),12,1)),AVERAGE(OFFSET(P_notNA_SW005!$B$10,12*$A25,(PlotControl!$C$6-1),12,1))) -> 0.002 | M25: =IF(PlotControl!$B$4 = "Annual Max",MAX(OFFSET(P_notNA_Colby!$B$10,12*($H25-1),(PlotControl!$C$6-1),12,1)),AVERAGE(OFFSET(P_notNA_Colby!$B$10,12*$A25,(PlotControl!$C$6-1),12,1))) -> 0 | O25: 21 | P25: =IF(PlotControl!$B$4 = "Annual Max",MAX(OFFSET(AssimCap_SW003!$C$10,12*($O25-1),4*(PlotControl!$C$6-1),12,1)),AVERAGE(OFFSET(AssimCap_SW003!$C$10,12*($O25-1),4*(PlotControl!$C$6-1),12,1))) -> 0 | Q25: =IF(PlotControl!$B$4 = "Annual Max",MAX(OFFSET(AssimCap_SW003!$D$10,12*($O25-1),4*(PlotControl!$C$6-1),12,1)),AVERAGE(OFFSET(AssimCap_SW003!$D$10,12*($O25-1),4*(PlotControl!$C$6-1),12,1))) -> 0 | R25: =IF(PlotControl!$B$4 = "Annual Max",MAX(OFFSET(AssimCap_SW003!$E$10,12*($O25-1),4*(PlotControl!$C$6-1),12,1)),AVERAGE(OFFSET(AssimCap_SW003!$E$10,12*($O25-1),4*(PlotControl!$C$6-1),12,1))) -> 0 | S25: =IF(PlotControl!$B$4 = "Annual Max",MAX(OFFSET(AssimCap_SW004!$C$10,12*($O25-1),4*(PlotControl!$C$6-1),12,1)),AVERAGE(OFFSET(AssimCap_SW004!$C$10,12*($O25-1),4*(PlotControl!$C$6-1),12,1))) -> 0 | T25: =IF(PlotControl!$B$4 = "Annual Max",MAX(OFFSET(AssimCap_SW004!$D$10,12*($O25-1),4*(PlotControl!$C$6-1),12,1)),AVERAGE(OFFSET(AssimCap_SW004!$D$10,12*($O25-1),4*(PlotControl!$C$6-1),12,1))) -> 0 | U25: =IF(PlotControl!$B$4 = "Annual Max",MAX(OFFSET(AssimCap_SW004!$E$10,12*($O25-1),4*(PlotControl!$C$6-1),12,1)),AVERAGE(OFFSET(AssimCap_SW004!$E$10,12*($O25-1),4*(PlotControl!$C$6-1),12,1))) -> 0 | V25: =IF(PlotControl!$B$4 = "Annual Max",MAX(OFFSET(AssimCap_SW004a!$C$10,12*($O25-1),4*(PlotControl!$C$6-1),12,1)),AVERAGE(OFFSET(AssimCap_SW004a!$C$10,12*($O25-1),4*(PlotControl!$C$6-1),12,1))) -> 0 | W25: =IF(PlotControl!$B$4 = "Annual Max",MAX(OFFSET(AssimCap_SW004a!$D$10,12*($O25-1),4*(PlotControl!$C$6-1),12,1)),AVERAGE(OFFSET(AssimCap_SW004a!$D$10,12*($O25-1),4*(PlotControl!$C$6-1),12,1))) -> 0 | X25: =IF(PlotControl!$B$4 = "Annual Max",MAX(OFFSET(AssimCap_SW004a!$E$10,12*($O25-1),4*(PlotControl!$C$6-1),12,1)),AVERAGE(OFFSET(AssimCap_SW004a!$E$10,12*($O25-1),4*(PlotControl!$C$6-1),12,1))) -> 0 | Y25: =IF(PlotControl!$B$4 = "Annual Max",MAX(OFFSET(AssimCap_SW005!$C$10,12*($O25-1),4*(PlotControl!$C$6-1),12,1)),AVERAGE(OFFSET(AssimCap_SW005!$C$10,12*($O25-1),4*(PlotControl!$C$6-1),12,1))) -> 1 | Z25: =IF(PlotControl!$B$4 = "Annual Max",MAX(OFFSET(AssimCap_SW005!$D$10,12*($O25-1),4*(PlotControl!$C$6-1),12,1)),AVERAGE(OFFSET(AssimCap_SW005!$D$10,12*($O25-1),4*(PlotControl!$C$6-1),12,1))) -> 1 | AA25: =IF(PlotControl!$B$4 = "Annual Max",MAX(OFFSET(AssimCap_SW005!$E$10,12*($O25-1),4*(PlotControl!$C$6-1),12,1)),AVERAGE(OFFSET(AssimCap_SW005!$E$10,12*($O25-1),4*(PlotControl!$C$6-1),12,1))) -> 1 | AB25: =IF(PlotControl!$B$4 = "Annual Max",MAX(OFFSET(AssimCap_Colby!$C$10,12*($O25-1),4*(PlotControl!$C$6-1),12,1)),AVERAGE(OFFSET(AssimCap_Colby!$C$10,12*($O25-1),4*(PlotControl!$C$6-1),12,1))) -> 0.00044399 | AC25: =IF(PlotControl!$B$4 = "Annual Max",MAX(OFFSET(AssimCap_Colby!$D$10,12*($O25-1),4*(PlotControl!$C$6-1),12,1)),AVERAGE(OFFSET(AssimCap_Colby!$D$10,12*($O25-1),4*(PlotControl!$C$6-1),12,1))) -> 0.00066756 | AD25: =IF(PlotControl!$B$4 = "Annual Max",MAX(OFFSET(AssimCap_Colby!$E$10,12*($O25-1),4*(PlotControl!$C$6-1),12,1)),AVERAGE(OFFSET(AssimCap_Colby!$E$10,12*($O25-1),4*(PlotControl!$C$6-1),12,1))) -> 0.00097291 | AF25: 121.6666667 | AG25: =OFFSET(AssimCap_SW003!$C$10,ROUND(12*$AF25,0),4*(PlotControl!$C$6-1),1,1) -> 0 | AH25: =OFFSET(AssimCap_SW003!$D$10,ROUND(12*$AF25,0),4*(PlotControl!$C$6-1),1,1) -> 0 | AI25: =OFFSET(AssimCap_SW003!$E$10,ROUND(12*$AF25,0),4*(PlotControl!$C$6-1),1,1) -> 0 | AJ25: =OFFSET(AssimCap_SW004!$C$10,ROUND(12*$AF25,0),4*(PlotControl!$C$6-1),1,1) -> 0 | AK25: =OFFSET(AssimCap_SW004!$D$10,ROUND(12*$AF25,0),4*(PlotControl!$C$6-1),1,1) -> 0 | AL25: =OFFSET(AssimCap_SW004!$E$10,ROUND(12*$AF25,0),4*(PlotControl!$C$6-1),1,1) -> 0 | AM25: =OFFSET(AssimCap_SW004a!$C$10,ROUND(12*$AF25,0),4*(PlotControl!$C$6-1),1,1) -> 0 | AN25: =OFFSET(AssimCap_SW004a!$D$10,ROUND(12*$AF25,0),4*(PlotControl!$C$6-1),1,1) -> 0 | AO25: =OFFSET(AssimCap_SW004a!$E$10,ROUND(12*$AF25,0),4*(PlotControl!$C$6-1),1,1) -> 0 | AP25: =OFFSET(AssimCap_SW005!$C$10,ROUND(12*$AF25,0),4*(PlotControl!$C$6-1),1,1) -> 0.0021008 | AQ25: =OFFSET(AssimCap_SW005!$D$10,ROUND(12*$AF25,0),4*(PlotControl!$C$6-1),1,1) -> 0.019845 | AR25: =OFFSET(AssimCap_SW005!$E$10,ROUND(12*$AF25,0),4*(PlotControl!$C$6-1),1,1) -> 1 | AS25: =OFFSET(AssimCap_Colby!$C$10,ROUND(12*$AF25,0),4*(PlotControl!$C$6-1),1,1) -> -0.0015858 | AT25: =OFFSET(AssimCap_Colby!$D$10,ROUND(12*$AF25,0),4*(PlotControl!$C$6-1),1,1) -> -0.00032933 | AU25: =OFFSET(AssimCap_Colby!$E$10,ROUND(12*$AF25,0),4*(PlotControl!$C$6-1),1,1) -> 3.7257e-06 | AW25: 121.6666667 | AX25: =(OFFSET(P_Ex_SW003!$B$10,ROUND(12*$AW25,0),(PlotControl!$C$6-1),1,1)) -> 0 | AY25: =(OFFSET(P_Ex_SW004!$B$10,ROUND(12*$AW25,0),(PlotControl!$C$6-1),1,1)) -> 0 | AZ25: =(OFFSET(P_Ex_SW004a!$B$10,ROUND(12*$AW25,0),(PlotControl!$C$6-1),1,1)) -> 0 | BA25: =(OFFSET(P_Ex_SW005!$B$10,ROUND(12*$AW25,0),(PlotControl!$C$6-1),1,1)) -> 0.202 | BB25: =(OFFSET(P_Ex_Colby!$B$10,ROUND(12*$AW25,0),(PlotControl!$C$6-1),1,1)) -> 0 | BC25: =(OFFSET(P_notNA_SW003!$B$10,ROUND(12*$AW25,0),(PlotControl!$C$6-1),1,1)) -> 0 | BD25: =(OFFSET(P_notNA_SW004!$B$10,ROUND(12*$AW25,0),(PlotControl!$C$6-1),1,1)) -> 0 | BE25: =(OFFSET(P_notNA_SW004a!$B$10,ROUND(12*$AW25,0),(PlotControl!$C$6-1),1,1)) -> 0 | BF25: =(OFFSET(P_notNA_SW005!$B$10,ROUND(12*$AW25,0),(PlotControl!$C$6-1),1,1)) -> 0 | BG25: =(OFFSET(P_notNA_Colby!$B$10,ROUND(12*$AW25,0),(PlotControl!$C$6-1),1,1)) -> 0
A26: 22 | B26: =IF(PlotControl!$B$4 = "Annual Max",MAX(OFFSET(P_Ex_SW003!$B$10,12*($A26-1),(PlotControl!$C$6-1),12,1)),AVERAGE(OFFSET(P_Ex_SW003!$B$10,12*($A26-1),(PlotControl!$C$6-1),12,1))) -> 0 | C26: =IF(PlotControl!$B$4 = "Annual Max",MAX(OFFSET(P_Ex_SW004!$B$10,12*($A26-1),(PlotControl!$C$6-1),12,1)),AVERAGE(OFFSET(P_Ex_SW004!$B$10,12*($A26-1),(PlotControl!$C$6-1),12,1))) -> 0 | D26: =IF(PlotControl!$B$4 = "Annual Max",MAX(OFFSET(P_Ex_SW004a!$B$10,12*($A26-1),(PlotControl!$C$6-1),12,1)),AVERAGE(OFFSET(P_Ex_SW004a!$B$10,12*($A26-1),(PlotControl!$C$6-1),12,1))) -> 0 | E26: =IF(PlotControl!$B$4 = "Annual Max",MAX(OFFSET(P_Ex_SW005!$B$10,12*($A26-1),(PlotControl!$C$6-1),12,1)),AVERAGE(OFFSET(P_Ex_SW005!$B$10,12*($A26-1),(PlotControl!$C$6-1),12,1))) -> 0.952 | F26: =IF(PlotControl!$B$4 = "Annual Max",MAX(OFFSET(P_Ex_Colby!$B$10,12*($A26-1),(PlotControl!$C$6-1),12,1)),AVERAGE(OFFSET(P_Ex_Colby!$B$10,12*($A26-1),(PlotControl!$C$6-1),12,1))) -> 0 | H26: 22 | I26: =IF(PlotControl!$B$4 = "Annual Max",MAX(OFFSET(P_notNA_SW003!$B$10,12*($H26-1),(PlotControl!$C$6-1),12,1)),AVERAGE(OFFSET(P_notNA_SW003!$B$10,12*$A26,(PlotControl!$C$6-1),12,1))) -> 0 | J26: =IF(PlotControl!$B$4 = "Annual Max",MAX(OFFSET(P_notNA_SW004!$B$10,12*($H26-1),(PlotControl!$C$6-1),12,1)),AVERAGE(OFFSET(P_notNA_SW004!$B$10,12*$A26,(PlotControl!$C$6-1),12,1))) -> 0 | K26: =IF(PlotControl!$B$4 = "Annual Max",MAX(OFFSET(P_notNA_SW004a!$B$10,12*($H26-1),(PlotControl!$C$6-1),12,1)),AVERAGE(OFFSET(P_notNA_SW004a!$B$10,12*$A26,(PlotControl!$C$6-1),12,1))) -> 0 | L26: =IF(PlotControl!$B$4 = "Annual Max",MAX(OFFSET(P_notNA_SW005!$B$10,12*($H26-1),(PlotControl!$C$6-1),12,1)),AVERAGE(OFFSET(P_notNA_SW005!$B$10,12*$A26,(PlotControl!$C$6-1),12,1))) -> 0.004 | M26: =IF(PlotControl!$B$4 = "Annual Max",MAX(OFFSET(P_notNA_Colby!$B$10,12*($H26-1),(PlotControl!$C$6-1),12,1)),AVERAGE(OFFSET(P_notNA_Colby!$B$10,12*$A26,(PlotControl!$C$6-1),12,1))) -> 0 | O26: 22 | P26: =IF(PlotControl!$B$4 = "Annual Max",MAX(OFFSET(AssimCap_SW003!$C$10,12*($O26-1),4*(PlotControl!$C$6-1),12,1)),AVERAGE(OFFSET(AssimCap_SW003!$C$10,12*($O26-1),4*(PlotControl!$C$6-1),12,1))) -> 0 | Q26: =IF(PlotControl!$B$4 = "Annual Max",MAX(OFFSET(AssimCap_SW003!$D$10,12*($O26-1),4*(PlotControl!$C$6-1),12,1)),AVERAGE(OFFSET(AssimCap_SW003!$D$10,12*($O26-1),4*(PlotControl!$C$6-1),12,1))) -> 0 | R26: =IF(PlotControl!$B$4 = "Annual Max",MAX(OFFSET(AssimCap_SW003!$E$10,12*($O26-1),4*(PlotControl!$C$6-1),12,1)),AVERAGE(OFFSET(AssimCap_SW003!$E$10,12*($O26-1),4*(PlotControl!$C$6-1),12,1))) -> 0 | S26: =IF(PlotControl!$B$4 = "Annual Max",MAX(OFFSET(AssimCap_SW004!$C$10,12*($O26-1),4*(PlotControl!$C$6-1),12,1)),AVERAGE(OFFSET(AssimCap_SW004!$C$10,12*($O26-1),4*(PlotControl!$C$6-1),12,1))) -> 0 | T26: =IF(PlotControl!$B$4 = "Annual Max",MAX(OFFSET(AssimCap_SW004!$D$10,12*($O26-1),4*(PlotControl!$C$6-1),12,1)),AVERAGE(OFFSET(AssimCap_SW004!$D$10,12*($O26-1),4*(PlotControl!$C$6-1),12,1))) -> 0 | U26: =IF(PlotControl!$B$4 = "Annual Max",MAX(OFFSET(AssimCap_SW004!$E$10,12*($O26-1),4*(PlotControl!$C$6-1),12,1)),AVERAGE(OFFSET(AssimCap_SW004!$E$10,12*($O26-1),4*(PlotControl!$C$6-1),12,1))) -> 0 | V26: =IF(PlotControl!$B$4 = "Annual Max",MAX(OFFSET(AssimCap_SW004a!$C$10,12*($O26-1),4*(PlotControl!$C$6-1),12,1)),AVERAGE(OFFSET(AssimCap_SW004a!$C$10,12*($O26-1),4*(PlotControl!$C$6-1),12,1))) -> 0 | W26: =IF(PlotControl!$B$4 = "Annual Max",MAX(OFFSET(AssimCap_SW004a!$D$10,12*($O26-1),4*(PlotControl!$C$6-1),12,1)),AVERAGE(OFFSET(AssimCap_SW004a!$D$10,12*($O26-1),4*(PlotControl!$C$6-1),12,1))) -> 0 | X26: =IF(PlotControl!$B$4 = "Annual Max",MAX(OFFSET(AssimCap_SW004a!$E$10,12*($O26-1),4*(PlotControl!$C$6-1),12,1)),AVERAGE(OFFSET(AssimCap_SW004a!$E$10,12*($O26-1),4*(PlotControl!$C$6-1),12,1))) -> 0 | Y26: =IF(PlotControl!$B$4 = "Annual Max",MAX(OFFSET(AssimCap_SW005!$C$10,12*($O26-1),4*(PlotControl!$C$6-1),12,1)),AVERAGE(OFFSET(AssimCap_SW005!$C$10,12*($O26-1),4*(PlotControl!$C$6-1),12,1))) -> 1 | Z26: =IF(PlotControl!$B$4 = "Annual Max",MAX(OFFSET(AssimCap_SW005!$D$10,12*($O26-1),4*(PlotControl!$C$6-1),12,1)),AVERAGE(OFFSET(AssimCap_SW005!$D$10,12*($O26-1),4*(PlotControl!$C$6-1),12,1))) -> 1 | AA26: =IF(PlotControl!$B$4 = "Annual Max",MAX(OFFSET(AssimCap_SW005!$E$10,12*($O26-1),4*(PlotControl!$C$6-1),12,1)),AVERAGE(OFFSET(AssimCap_SW005!$E$10,12*($O26-1),4*(PlotControl!$C$6-1),12,1))) -> 1 | AB26: =IF(PlotControl!$B$4 = "Annual Max",MAX(OFFSET(AssimCap_Colby!$C$10,12*($O26-1),4*(PlotControl!$C$6-1),12,1)),AVERAGE(OFFSET(AssimCap_Colby!$C$10,12*($O26-1),4*(PlotControl!$C$6-1),12,1))) -> 0.00061411 | AC26: =IF(PlotControl!$B$4 = "Annual Max",MAX(OFFSET(AssimCap_Colby!$D$10,12*($O26-1),4*(PlotControl!$C$6-1),12,1)),AVERAGE(OFFSET(AssimCap_Colby!$D$10,12*($O26-1),4*(PlotControl!$C$6-1),12,1))) -> 0.00085885 | AD26: =IF(PlotControl!$B$4 = "Annual Max",MAX(OFFSET(AssimCap_Colby!$E$10,12*($O26-1),4*(PlotControl!$C$6-1),12,1)),AVERAGE(OFFSET(AssimCap_Colby!$E$10,12*($O26-1),4*(PlotControl!$C$6-1),12,1))) -> 0.001198 | AF26: 121.75 | AG26: =OFFSET(AssimCap_SW003!$C$10,ROUND(12*$AF26,0),4*(PlotControl!$C$6-1),1,1) -> 0 | AH26: =OFFSET(AssimCap_SW003!$D$10,ROUND(12*$AF26,0),4*(PlotControl!$C$6-1),1,1) -> 0 | AI26: =OFFSET(AssimCap_SW003!$E$10,ROUND(12*$AF26,0),4*(PlotControl!$C$6-1),1,1) -> 0 | AJ26: =OFFSET(AssimCap_SW004!$C$10,ROUND(12*$AF26,0),4*(PlotControl!$C$6-1),1,1) -> 0 | AK26: =OFFSET(AssimCap_SW004!$D$10,ROUND(12*$AF26,0),4*(PlotControl!$C$6-1),1,1) -> 0 | AL26: =OFFSET(AssimCap_SW004!$E$10,ROUND(12*$AF26,0),4*(PlotControl!$C$6-1),1,1) -> 0 | AM26: =OFFSET(AssimCap_SW004a!$C$10,ROUND(12*$AF26,0),4*(PlotControl!$C$6-1),1,1) -> 0 | AN26: =OFFSET(AssimCap_SW004a!$D$10,ROUND(12*$AF26,0),4*(PlotControl!$C$6-1),1,1) -> 0 | AO26: =OFFSET(AssimCap_SW004a!$E$10,ROUND(12*$AF26,0),4*(PlotControl!$C$6-1),1,1) -> 0 | AP26: =OFFSET(AssimCap_SW005!$C$10,ROUND(12*$AF26,0),4*(PlotControl!$C$6-1),1,1) -> 0.0035478 | AQ26: =OFFSET(AssimCap_SW005!$D$10,ROUND(12*$AF26,0),4*(PlotControl!$C$6-1),1,1) -> 0.015321 | AR26: =OFFSET(AssimCap_SW005!$E$10,ROUND(12*$AF26,0),4*(PlotControl!$C$6-1),1,1) -> 1 | AS26: =OFFSET(AssimCap_Colby!$C$10,ROUND(12*$AF26,0),4*(PlotControl!$C$6-1),1,1) -> -0.0016522 | AT26: =OFFSET(AssimCap_Colby!$D$10,ROUND(12*$AF26,0),4*(PlotControl!$C$6-1),1,1) -> -0.000394 | AU26: =OFFSET(AssimCap_Colby!$E$10,ROUND(12*$AF26,0),4*(PlotControl!$C$6-1),1,1) -> -7.1878e-05 | AW26: 121.75 | AX26: =(OFFSET(P_Ex_SW003!$B$10,ROUND(12*$AW26,0),(PlotControl!$C$6-1),1,1)) -> 0 | AY26: =(OFFSET(P_Ex_SW004!$B$10,ROUND(12*$AW26,0),(PlotControl!$C$6-1),1,1)) -> 0 | AZ26: =(OFFSET(P_Ex_SW004a!$B$10,ROUND(12*$AW26,0),(PlotControl!$C$6-1),1,1)) -> 0 | BA26: =(OFFSET(P_Ex_SW005!$B$10,ROUND(12*$AW26,0),(PlotControl!$C$6-1),1,1)) -> 0.218 | BB26: =(OFFSET(P_Ex_Colby!$B$10,ROUND(12*$AW26,0),(PlotControl!$C$6-1),1,1)) -> 0 | BC26: =(OFFSET(P_notNA_SW003!$B$10,ROUND(12*$AW26,0),(PlotControl!$C$6-1),1,1)) -> 0 | BD26: =(OFFSET(P_notNA_SW004!$B$10,ROUND(12*$AW26,0),(PlotControl!$C$6-1),1,1)) -> 0 | BE26: =(OFFSET(P_notNA_SW004a!$B$10,ROUND(12*$AW26,0),(PlotControl!$C$6-1),1,1)) -> 0 | BF26: =(OFFSET(P_notNA_SW005!$B$10,ROUND(12*$AW26,0),(PlotControl!$C$6-1),1,1)) -> 0 | BG26: =(OFFSET(P_notNA_Colby!$B$10,ROUND(12*$AW26,0),(PlotControl!$C$6-1),1,1)) -> 0
A27: 23 | B27: =IF(PlotControl!$B$4 = "Annual Max",MAX(OFFSET(P_Ex_SW003!$B$10,12*($A27-1),(PlotControl!$C$6-1),12,1)),AVERAGE(OFFSET(P_Ex_SW003!$B$10,12*($A27-1),(PlotControl!$C$6-1),12,1))) -> 0 | C27: =IF(PlotControl!$B$4 = "Annual Max",MAX(OFFSET(P_Ex_SW004!$B$10,12*($A27-1),(PlotControl!$C$6-1),12,1)),AVERAGE(OFFSET(P_Ex_SW004!$B$10,12*($A27-1),(PlotControl!$C$6-1),12,1))) -> 0 | D27: =IF(PlotControl!$B$4 = "Annual Max",MAX(OFFSET(P_Ex_SW004a!$B$10,12*($A27-1),(PlotControl!$C$6-1),12,1)),AVERAGE(OFFSET(P_Ex_SW004a!$B$10,12*($A27-1),(PlotControl!$C$6-1),12,1))) -> 0 | E27: =IF(PlotControl!$B$4 = "Annual Max",MAX(OFFSET(P_Ex_SW005!$B$10,12*($A27-1),(PlotControl!$C$6-1),12,1)),AVERAGE(OFFSET(P_Ex_SW005!$B$10,12*($A27-1),(PlotControl!$C$6-1),12,1))) -> 0.948 | F27: =IF(PlotControl!$B$4 = "Annual Max",MAX(OFFSET(P_Ex_Colby!$B$10,12*($A27-1),(PlotControl!$C$6-1),12,1)),AVERAGE(OFFSET(P_Ex_Colby!$B$10,12*($A27-1),(PlotControl!$C$6-1),12,1))) -> 0 | H27: 23 | I27: =IF(PlotControl!$B$4 = "Annual Max",MAX(OFFSET(P_notNA_SW003!$B$10,12*($H27-1),(PlotControl!$C$6-1),12,1)),AVERAGE(OFFSET(P_notNA_SW003!$B$10,12*$A27,(PlotControl!$C$6-1),12,1))) -> 0 | J27: =IF(PlotControl!$B$4 = "Annual Max",MAX(OFFSET(P_notNA_SW004!$B$10,12*($H27-1),(PlotControl!$C$6-1),12,1)),AVERAGE(OFFSET(P_notNA_SW004!$B$10,12*$A27,(PlotControl!$C$6-1),12,1))) -> 0 | K27: =IF(PlotControl!$B$4 = "Annual Max",MAX(OFFSET(P_notNA_SW004a!$B$10,12*($H27-1),(PlotControl!$C$6-1),12,1)),AVERAGE(OFFSET(P_notNA_SW004a!$B$10,12*$A27,(PlotControl!$C$6-1),12,1))) -> 0 | L27: =IF(PlotControl!$B$4 = "Annual Max",MAX(OFFSET(P_notNA_SW005!$B$10,12*($H27-1),(PlotControl!$C$6-1),12,1)),AVERAGE(OFFSET(P_notNA_SW005!$B$10,12*$A27,(PlotControl!$C$6-1),12,1))) -> 0.006 | M27: =IF(PlotControl!$B$4 = "Annual Max",MAX(OFFSET(P_notNA_Colby!$B$10,12*($H27-1),(PlotControl!$C$6-1),12,1)),AVERAGE(OFFSET(P_notNA_Colby!$B$10,12*$A27,(PlotControl!$C$6-1),12,1))) -> 0 | O27: 23 | P27: =IF(PlotControl!$B$4 = "Annual Max",MAX(OFFSET(AssimCap_SW003!$C$10,12*($O27-1),4*(PlotControl!$C$6-1),12,1)),AVERAGE(OFFSET(AssimCap_SW003!$C$10,12*($O27-1),4*(PlotControl!$C$6-1),12,1))) -> 0 | Q27: =IF(PlotControl!$B$4 = "Annual Max",MAX(OFFSET(AssimCap_SW003!$D$10,12*($O27-1),4*(PlotControl!$C$6-1),12,1)),AVERAGE(OFFSET(AssimCap_SW003!$D$10,12*($O27-1),4*(PlotControl!$C$6-1),12,1))) -> 0 | R27: =IF(PlotControl!$B$4 = "Annual Max",MAX(OFFSET(AssimCap_SW003!$E$10,12*($O27-1),4*(PlotControl!$C$6-1),12,1)),AVERAGE(OFFSET(AssimCap_SW003!$E$10,12*($O27-1),4*(PlotControl!$C$6-1),12,1))) -> 0 | S27: =IF(PlotControl!$B$4 = "Annual Max",MAX(OFFSET(AssimCap_SW004!$C$10,12*($O27-1),4*(PlotControl!$C$6-1),12,1)),AVERAGE(OFFSET(AssimCap_SW004!$C$10,12*($O27-1),4*(PlotControl!$C$6-1),12,1))) -> 0 | T27: =IF(PlotControl!$B$4 = "Annual Max",MAX(OFFSET(AssimCap_SW004!$D$10,12*($O27-1),4*(PlotControl!$C$6-1),12,1)),AVERAGE(OFFSET(AssimCap_SW004!$D$10,12*($O27-1),4*(PlotControl!$C$6-1),12,1))) -> 0 | U27: =IF(PlotControl!$B$4 = "Annual Max",MAX(OFFSET(AssimCap_SW004!$E$10,12*($O27-1),4*(PlotControl!$C$6-1),12,1)),AVERAGE(OFFSET(AssimCap_SW004!$E$10,12*($O27-1),4*(PlotControl!$C$6-1),12,1))) -> 0 | V27: =IF(PlotControl!$B$4 = "Annual Max",MAX(OFFSET(AssimCap_SW004a!$C$10,12*($O27-1),4*(PlotControl!$C$6-1),12,1)),AVERAGE(OFFSET(AssimCap_SW004a!$C$10,12*($O27-1),4*(PlotControl!$C$6-1),12,1))) -> 0 | W27: =IF(PlotControl!$B$4 = "Annual Max",MAX(OFFSET(AssimCap_SW004a!$D$10,12*($O27-1),4*(PlotControl!$C$6-1),12,1)),AVERAGE(OFFSET(AssimCap_SW004a!$D$10,12*($O27-1),4*(PlotControl!$C$6-1),12,1))) -> 0 | X27: =IF(PlotControl!$B$4 = "Annual Max",MAX(OFFSET(AssimCap_SW004a!$E$10,12*($O27-1),4*(PlotControl!$C$6-1),12,1)),AVERAGE(OFFSET(AssimCap_SW004a!$E$10,12*($O27-1),4*(PlotControl!$C$6-1),12,1))) -> 0 | Y27: =IF(PlotControl!$B$4 = "Annual Max",MAX(OFFSET(AssimCap_SW005!$C$10,12*($O27-1),4*(PlotControl!$C$6-1),12,1)),AVERAGE(OFFSET(AssimCap_SW005!$C$10,12*($O27-1),4*(PlotControl!$C$6-1),12,1))) -> 1 | Z27: =IF(PlotControl!$B$4 = "Annual Max",MAX(OFFSET(AssimCap_SW005!$D$10,12*($O27-1),4*(PlotControl!$C$6-1),12,1)),AVERAGE(OFFSET(AssimCap_SW005!$D$10,12*($O27-1),4*(PlotControl!$C$6-1),12,1))) -> 1 | AA27: =IF(PlotControl!$B$4 = "Annual Max",MAX(OFFSET(AssimCap_SW005!$E$10,12*($O27-1),4*(PlotControl!$C$6-1),12,1)),AVERAGE(OFFSET(AssimCap_SW005!$E$10,12*($O27-1),4*(PlotControl!$C$6-1),12,1))) -> 1 | AB27: =IF(PlotControl!$B$4 = "Annual Max",MAX(OFFSET(AssimCap_Colby!$C$10,12*($O27-1),4*(PlotControl!$C$6-1),12,1)),AVERAGE(OFFSET(AssimCap_Colby!$C$10,12*($O27-1),4*(PlotControl!$C$6-1),12,1))) -> 0.0005661 | AC27: =IF(PlotControl!$B$4 = "Annual Max",MAX(OFFSET(AssimCap_Colby!$D$10,12*($O27-1),4*(PlotControl!$C$6-1),12,1)),AVERAGE(OFFSET(AssimCap_Colby!$D$10,12*($O27-1),4*(PlotControl!$C$6-1),12,1))) -> 0.000837 | AD27: =IF(PlotControl!$B$4 = "Annual Max",MAX(OFFSET(AssimCap_Colby!$E$10,12*($O27-1),4*(PlotControl!$C$6-1),12,1)),AVERAGE(OFFSET(AssimCap_Colby!$E$10,12*($O27-1),4*(PlotControl!$C$6-1),12,1))) -> 0.0011588 | AF27: 121.8333333 | AG27: =OFFSET(AssimCap_SW003!$C$10,ROUND(12*$AF27,0),4*(PlotControl!$C$6-1),1,1) -> 0 | AH27: =OFFSET(AssimCap_SW003!$D$10,ROUND(12*$AF27,0),4*(PlotControl!$C$6-1),1,1) -> 0 | AI27: =OFFSET(AssimCap_SW003!$E$10,ROUND(12*$AF27,0),4*(PlotControl!$C$6-1),1,1) -> 0 | AJ27: =OFFSET(AssimCap_SW004!$C$10,ROUND(12*$AF27,0),4*(PlotControl!$C$6-1),1,1) -> 0 | AK27: =OFFSET(AssimCap_SW004!$D$10,ROUND(12*$AF27,0),4*(PlotControl!$C$6-1),1,1) -> 0 | AL27: =OFFSET(AssimCap_SW004!$E$10,ROUND(12*$AF27,0),4*(PlotControl!$C$6-1),1,1) -> 0 | AM27: =OFFSET(AssimCap_SW004a!$C$10,ROUND(12*$AF27,0),4*(PlotControl!$C$6-1),1,1) -> 0 | AN27: =OFFSET(AssimCap_SW004a!$D$10,ROUND(12*$AF27,0),4*(PlotControl!$C$6-1),1,1) -> 0 | AO27: =OFFSET(AssimCap_SW004a!$E$10,ROUND(12*$AF27,0),4*(PlotControl!$C$6-1),1,1) -> 0 | AP27: =OFFSET(AssimCap_SW005!$C$10,ROUND(12*$AF27,0),4*(PlotControl!$C$6-1),1,1) -> 0.0024159 | AQ27: =OFFSET(AssimCap_SW005!$D$10,ROUND(12*$AF27,0),4*(PlotControl!$C$6-1),1,1) -> 0.015389 | AR27: =OFFSET(AssimCap_SW005!$E$10,ROUND(12*$AF27,0),4*(PlotControl!$C$6-1),1,1) -> 1 | AS27: =OFFSET(AssimCap_Colby!$C$10,ROUND(12*$AF27,0),4*(PlotControl!$C$6-1),1,1) -> -0.0016164 | AT27: =OFFSET(AssimCap_Colby!$D$10,ROUND(12*$AF27,0),4*(PlotControl!$C$6-1),1,1) -> -0.00042939 | AU27: =OFFSET(AssimCap_Colby!$E$10,ROUND(12*$AF27,0),4*(PlotControl!$C$6-1),1,1) -> -3.9542e-05 | AW27: 121.8333333 | AX27: =(OFFSET(P_Ex_SW003!$B$10,ROUND(12*$AW27,0),(PlotControl!$C$6-1),1,1)) -> 0 | AY27: =(OFFSET(P_Ex_SW004!$B$10,ROUND(12*$AW27,0),(PlotControl!$C$6-1),1,1)) -> 0 | AZ27: =(OFFSET(P_Ex_SW004a!$B$10,ROUND(12*$AW27,0),(PlotControl!$C$6-1),1,1)) -> 0 | BA27: =(OFFSET(P_Ex_SW005!$B$10,ROUND(12*$AW27,0),(PlotControl!$C$6-1),1,1)) -> 0.234 | BB27: =(OFFSET(P_Ex_Colby!$B$10,ROUND(12*$AW27,0),(PlotControl!$C$6-1),1,1)) -> 0 | BC27: =(OFFSET(P_notNA_SW003!$B$10,ROUND(12*$AW27,0),(PlotControl!$C$6-1),1,1)) -> 0 | BD27: =(OFFSET(P_notNA_SW004!$B$10,ROUND(12*$AW27,0),(PlotControl!$C$6-1),1,1)) -> 0 | BE27: =(OFFSET(P_notNA_SW004a!$B$10,ROUND(12*$AW27,0),(PlotControl!$C$6-1),1,1)) -> 0 | BF27: =(OFFSET(P_notNA_SW005!$B$10,ROUND(12*$AW27,0),(PlotControl!$C$6-1),1,1)) -> 0 | BG27: =(OFFSET(P_notNA_Colby!$B$10,ROUND(12*$AW27,0),(PlotControl!$C$6-1),1,1)) -> 0
